Workbook

Sheet DichiarazioneAttivita
B3: Art. 1 -Definizioni
B7: TARI Tributo o Tariffa corrispettiva Indicare il Comune per il quale si calcola il corrispettivo ai sensi del MTR
B9: Comune | C9: Codice ISTAT
B10: =[4]Info!$B$6 -> Capannori | C10: =IFERROR(INDEX(DbComuni!$T$4:$T$7981,MATCH(B10,DbComuni!$S$4:$S$7981,0)),"") -> 046007
B13: DICHIARAZIONE dei GESTORI (Società/Comune) Sono i soggetti tenuti alla dichiarazione di veridicità dei dati ai sensi dell'art. 18.3 Allegato A MTR (Allegato 3)
B15: Gestore | C15: Nome Gestore
B16: Gestore 1 | C16: =[5]ComuniGestiti!$B$10 -> Ascit
B17: Gestore 2 | C17: =[4]Info!$B$6 -> Capannori
B18: Gestore 3
B21: DICHIARAZIONE delle ATTIVITA' SVOLTE ricomprese all'interno della TARI Tributo o della tariffa corrispettiva
B23: Tipo di componente | C23: Descrizione attività | E23: 2017 | H23: 2018
E24: Gestore 1 | F24: Gestore 2 | G24: Gestore 3 | H24: Gestore 1 | I24: Gestore 2 | J24: Gestore 3
B25: CSL (costi operativi per l’attività di spazzamento e lavaggio) | C25: Spazzamento meccanizzato, manuale e misto (compresa la pulizia delle caditoie e delle relative griglie
C26: Lavaggio strade e suolo pubblico
C27: Svuotamento cestini e raccolta foglie
C28: Raccolta dei rifiuti abbandonati su strade o aree pubbliche o su strade private soggette ad uso pubblico su arenili e rive fluviali e lacuali, nonché aree cimiteriali
B29: CRT (costi operativi per l’attività di raccolta e trasporto dei rifiuti urbani indifferenziati) | C29: Raccolta porta a porta, stradale, misto, di prossimità e a chiamata
C30: Trasporto dei rifiuti urbani indifferenziati verso impianti di trattamento, Recupero e smaltimento, con o senza trasbordo su mezzi di maggiori dimensioni
C31: Raccolta e trasporto dei rifiuti da esumazioni ed estumulazioni, nonché degli altri rifiuti provenienti da attività cimiteriale
C32: Gestione delle isole ecologiche (anche mobili) e delle aree di transfer
C33: Lavaggio e sanificazione dei contenitori della raccolta dei rifiuti indifferenziati
C34: Micro-raccolta dell’amianto da utenze domestiche (se già ricompresa nella gestione del ciclo integrato dei rifiuti urbani alla data di pubblicazione del provvedimento)
C35: Raccolta e gestione dei dati relativi al conferimento dei rifiuti da parte degli utenti e del successivo conferimento agli impianti di trattamento e di smaltimento
B36: CTS (costi operativi per l’attività di trattamento e smaltimento dei rifiuti urbani) | C36: Pretrattamento dei rifiuti urbani residui
C37: Trattamento presso gli impianti di trattamento meccanico-biologico (TMB)
C38: Smaltimento presso gli impianti di incenerimento senza recupero energetico
C39: Smaltimento in impianti di discarica controllata
B40: CRD (costi operativi per l’attività di raccolta e trasporto delle frazioni differenziate) | C40: Operazioni di raccolta ( porta a porta, stradale e misto)
C41: Trasporto delle frazioni differenziate dei rifiuti urbani verso impianti di trattamento e di riutilizzo e/o di recupero, con o senza trasbordo su mezzi di maggiori dimensioni
C42: Gestione delle isole ecologiche (anche mobili), dei centri di raccolta e delle aree di transfer
C43: Raccolta e trasporto dei rifiuti urbani pericolosi
C44: Raccolta dei rifiuti vegetali ad esempio foglie, sfalci, potature provenienti da aree verdi (quali giardini, parchi e aree cimiteriali)
C45: Lavaggio e sanificazione dei contenitori della raccolta delle frazioni differenziate dei rifiuti
C46: Raccolta e gestione dei dati relativi al conferimento delle frazioni differenziate dei rifiuti da parte delle utenze e del successivo conferimento agli impianti di trattamento e di riutilizzo e/o di recupero
B47: CTR (costi operativi per l’attività di trattamento e di recupero dei rifiuti urbani e delle operazioni per il conferimento delle frazioni della raccolta differenziata alle piattaforme o agli impianti di trattamento - finalizzato al riciclo e al riutilizzo, o in generale al recupero) | C47: Trattamento presso gli impianti di trattamento meccanico-biologico (TMB)
C48: Recupero energetico realizzato presso gli impianti di incenerimento
C49: Conferimento della frazione organica agli impianti di compostaggio, di digestione anaerobica o misti
C50: Commercializzazione e valorizzazione delle frazioni differenziate dei rifiuti raccolti
B51: CARC (sono i costi operativi per l’attività di gestione delle tariffe e dei rapporti con gli utenti) | C51: Accertamento, riscossione (incluse le attività di bollettazione e l'invio degli avvisi di pagamento)
C52: Gestione del rapporto con gli utenti (inclusa la gestione reclami) anche mediante sportelli dedicati o call-center
C53: Gestione della banca dati degli utenti e delle utenze, dei crediti e del contenzioso;
C54: Promozione di campagne ambientali di cui al comma 9.2, lett. a)
C55: Prevenzione della produzione di rifiuti urbani di cui al comma 9.2, lett. b)
B56: CGG (Costi generali) | C56: Costi generali di gestione relativi al personale non direttamente impiegato nelle attività operative del servizio integrato di gestione dei RU
C57: Costi generali di struttura
B58: CCD (Crediti inesigibili) | C58: Crediti inesigibili secondo normativa vigente (TARI tributo)
C59: Perdite su crediti per la sola quota parte eccedente l'utilizzo del fondo perdite su crediti o da garanzia assicurativa
B60: ACC (Accantonamento rischi e oneri e Accantonamento svalutazione crediti) | C60: Valore massimo pari all’80% di quanto previsto dalle norme sul fondo crediti di dubbia esigibilità al punto 3.3 dell’allegato n. 4/2 al Dlgs 118/2011 (TARI tributo)
C61: Valore massimo previsto dalle norme fiscali (tariffa corrispettiva)
C62: Oneri previsti dalla normativa di settore e/o dai contratti di affidamento
C63: Costituzione di un fondo per la chiusura a fine vita dell'impianto
C64: Costituzione di un fondo per il ripristino dei siti
C65: Costituzione di un fondo per la gestione post operativa della discarica
C66: Altri accantonamenti non in eccesso rispetto all'applicazione di norme tributarie
B67: COal | C67: Uso infrastrutture di terzi
C68: Rimborso mutui proprietari
C69: Altri corrispettivi a comuni, aziende speciali, società patrimoniali
C70: Corrispettivi a gestori preesistenti
C71: Canoni di affitto immobili non industriali
C72: Contributo funzionamento EGATO
C73: Contributo funzionamento ARERA
C74: Oneri di mitigazione ambientale
C75: Oneri ambientali (tasse SO2 e Nox)
C76: Oneri tributari locali (IMU,...)
C77: Oneri per compensazioni territoriali
C78: Oneri relativi a fondi perequativi fissati dall’Ente territorialmente competente
C79: Oneri per la gestione post-operativa delle discariche autorizzate e dei costi di chiusura nel caso in cui le risorse accantonate in conformità alla normativa vigente risultatino insufficienti... (art. 9.3)
B80: Attività esterne al ciclo RU (sono tutte quelle attività che, anche qualora siano state incluse nella concessione di affidamento del servizio di gestione integrata del ciclo dei rifiuti, ai sensi della normativa vigente, non possono essere incluse nel perimetro sottoposto a regolazione dell’Autorità) | C80: Operazioni di sgombero della neve dalla sede stradale e sue pertinenze
C81: Raccolta, trasporto e smaltimento amianto da utenze domestiche (se non già inclusa nella gestione del ciclo integrato dei rifiuti urbani alla data di pubblicazione del provvedimento)
C82: Derattizzazione
C83: Disinfestazione zanzare
C84: Spazzamento e sgombero della neve
C85: Cancellazione scritte vandaliche
C86: Defissione di manifesti abusivi
C87: Gestione dei servizi igienici pubblici
C88: Gestione del verde pubblico
C89: Manutenzione delle fontane
B90: Attività diverse o extra perimetro (Servizio Idrico Integrato, Produzione e distribuzione di energia elettrica, Distribuzione gas,Trasporti locali,TLC, Servizio integrato dei rifiuti svolto extra perimetro, Altro…)

Sheet DichiarazioneAttivita_old (hidden)
A3: << Indice | B3: Art. 1 -Definizioni
B5: DICHIARAZIONE delle ATTIVITA' SVOLTE dal soggetto principale (Comune/Società) o altre comprese all'interno della TARI Tributo o della tariffa corrispettiva
B7: Soggetto principale tenuto alla dichiarazione di veridicità dei dati ai sensi dell'MTR (Indicare il nome del Comune o della Società che svolge la prevalenza delle attività afferenti al Servizio Integrato)
B10: Altri soggetti (Indicare il nome o i nomi degli altri soggetti che svolgono alcune delle attività del Servizio Integrato)
B13: Tipo di componente | C13: Descrizione attività | D13: 2017 | F13: 2018 | H13: 2019
D14: Soggetto principale | E14: Altri soggetti | F14: Soggetto principale | G14: Altri soggetti | H14: Soggetto principale | I14: Altri soggetti
D15: =IF(ISBLANK($B$8),"",$B$8) ->  | E15: =IF(ISBLANK($B$11),"",$B$11) ->  | F15: =IF(ISBLANK($B$8),"",$B$8) ->  | G15: =IF(ISBLANK($B$11),"",$B$11) ->  | H15: =IF(ISBLANK($B$8),"",$B$8) ->  | I15: =IF(ISBLANK($B$11),"",$B$11) -> 
B16: CSL (costi operativi per l’attività di spazzamento e lavaggio) | C16: Spazzamento meccanizzato, manuale e misto
C17: Lavaggio strade e suolo pubblico
C18: Svuotamento cestini e raccolta foglie
C19: Raccolta dei rifiuti abbandonati su strade o aree pubbliche o su strade private soggette ad uso pubblico su arenili e rive fluviali e lacuali, nonché aree cimiteriali
B20: CRT (costi operativi per l’attività di raccolta e trasporto dei rifiuti urbani indifferenziati) | C20: Raccolta porta a porta, stradale, misto, di prossimità e a chiamata
C21: trasporto dei rifiuti urbani indifferenziati verso impianti di trattamento
C22: recupero e smaltimento, con o senza trasbordo su mezzi di maggiori dimensioni
C23: raccolta e trasporto dei rifiuti da esumazioni ed estumulazioni, nonché degli altri rifiuti provenienti da attività cimiteriale
C24: Gestione delle isole ecologiche (anche mobili) e delle aree di transfer
C25: Lavaggio e sanificazione dei contenitori della raccolta dei rifiuti indifferenziati
C26: micro raccolta dell’amianto da utenze domestiche (se già ricompresa nella gestione del ciclo integrato dei rifiuti urbani alla data di pubblicazione del provvedimento)
C27: raccolta e gestione dei dati relativi al conferimento dei rifiuti da parte degli utenti e del successivo conferimento agli impianti di trattamento e di smaltimento
B28: CTS (costi operativi per l’attività di trattamento e smaltimento dei rifiuti urbani) | C28: Pretrattamento dei rifiuti urbani residui
C29: Trattamento presso gli impianti di trattamento meccanico-biologico (TMB)
C30: Smaltimento presso gli impianti di incenerimento senza recupero energetico
C31: Smaltimento in impianti di discarica controllata
B32: CRD (costi operativi per l’attività di raccolta e trasporto delle frazioni differenziate) | C32: Operazioni di raccolta ( porta a porta, stradale e misto)
C33: Trasporto delle frazioni differenziate dei rifiuti urbani verso impianti di trattamento e di riutilizzo e/o di recupero, con o senza trasbordo su mezzi di maggiori dimensioni
C34: gestione delle isole ecologiche (anche mobili), dei centri di raccolta e delle aree di transfer
C35: raccolta e trasporto dei rifiuti urbani pericolosi
C36: raccolta dei rifiuti vegetali ad esempio foglie, sfalci, potature provenienti da aree verdi (quali giardini, parchi e aree cimiteriali)
C37: lavaggio e sanificazione dei contenitori della raccolta delle frazioni differenziate dei rifiuti
C38: raccolta e gestione dei dati relativi al conferimento delle frazioni differenziate dei rifiuti da parte delle utenze e del successivo conferimento agli impianti di trattamento e di riutilizzo e/o di recupero
B39: CTR (costi operativi per l’attività di trattamento e di recupero dei rifiuti urbani e delle operazioni per il conferimento delle frazioni della raccolta differenziata alle piattaforme o agli impianti di trattamento - finalizzato al riciclo e al riutilizzo, o in generale al recupero) | C39: Trattamento presso gli impianti di trattamento meccanico-biologico (TMB)
C40: Recupero energetico realizzato presso gli impianti di incenerimento
C41: conferimento della frazione organica agli impianti di compostaggio, di digestione anaerobica o misti
C42: Commercializzazione e valorizzazione delle frazioni differenziate dei rifiuti raccolti
B43: CARC (sono i costi operativi per l’attività di gestione delle tariffe e dei rapporti con gli utenti) | C43: accertamento, riscossione (incluse le attività di bollettazione e l'invio degli avvisi di pagamento)
C44: gestione del rapporto con gli utenti (inclusa la gestione reclami) anche mediante sportelli dedicati o call-center
C45: gestione della banca dati degli utenti e delle utenze, dei crediti e del contenzioso;
C46: promozione di campagne ambientali di cui al comma 9.2, lett. a)
C47: prevenzione della produzione di rifiuti urbani di cui al comma 9.2, lett. b)
B48: CGG (Costi generali) | C48: costi generali di gestione relativi al personale non direttamente impiegato nelle attività operative del servizio integrato di gestione dei RU
C49: Costi generali di struttura
B50: CCD (Crediti inesigibili) | C50: Crediti inesigibili secondo normativa vigente (TARI tributo)
C51: Perdite su crediti per la sola quota parte eccedente l'utilizzo del fondo perdite su crediti o da garanzia assicurativa
B52: ACC (Accantonamento rischi e oneri e Accantonamento svalutazione crediti) | C52: valore massimo pari all’80% di quanto previsto dalle norme sul fondo crediti di dubbia esigibilità al punto 3.3 dell’allegato n. 4/2 al Dlgs 118/2011 (TARI tributo)
C53: valore massimo previsto dalle norme fiscali (tariffa corrispettiva)
C54: Oneri previsti dalla normativa di settore e/o dai contratti di finanziamento
C55: costituzione di un fondo per la chiusura a fine vita dell'impianto
C56: costituzione di un fondo per il ripristino dei siti
C57: costituzione di un fondo per la gestione post operativa della discarica
C58: altri accantonamenti non in eccesso rispetto all'applicazione di norme tributarie
B59: COal | C59: Uso infrastrutture di terzi
C60: Rimborso mutui proprietari
C61: Altri corrispettivi a comuni, aziende speciali, società patrimoniali
C62: Corrispettivi a gestori preesistenti
C63: Canoni di affitto immobili non industriali
C64: Contributo funzionamento EGATO
C65: Contributo funzionamento ARERA
C66: Oneri di mitigazione ambientale
C67: Oneri ambientali (tasse SO2 e Nox)
C68: Oneri tributari locali (IMU,...)
C69: Oneri per compensazioni territoriali
C70: Oneri relativi a fondi perequativi fissati dall’Ente territorialmente competente
C71: Oneri per lo svolgimento di campagne informative e di educazione ambientale sulle fase del ciclo integrato di gestione dei rifiuti, attività necessarie alla chiusura del ciclo, sull'impatto ambientale nel territorio di riferimento (art. 9.2 a)
C72: Oneri sostenuti in favore di misure di prevenzione a riduzione della quantità dei rifiuti, degli impatti negativi dei rifiuti sull'ambiente e la salute umana, il contenuto di sostanze pericolose in materiali e prodotti (art. 9.2 b)
C73: Oneri per la gestione post-operativa delle discariche autorizzate e dei costi di chiusura nel caso in cui le risorse accantonate in conformità alla normativa vigente risultatino insufficienti a garantire il ripristino ambientale del sito medesimo (art. 9.3)
B74: Attività esterne al ciclo integrato dei RU (sono tutte quelle attività che, anche qualora siano state incluse nella concessione di affidamento del servizio di gestione integrata del ciclo dei rifiuti, ai sensi della normativa vigente, non possono essere incluse nel perimetro sottoposto a regolazione dell’Autorità) | C74: Operazioni di sgombero della neve dalla sede stradale e sue pertinenze
C75: Raccolta, trasporto e smaltimento amianto da utenze domestiche (se non già inclusa nella gestione del ciclo integrato dei rifiuti urbani alla data di pubblicazione del provvedimento)
C76: derattizzazione
C77: disinfestazione zanzare
C78: spazzamento e sgombero della neve
C79: cancellazione scritte vandaliche
C80: defissione di manifesti abusivi
C81: gestione dei servizi igienici pubblici
C82: gestione del verde pubblico
C83: manutenzione delle fontane
B84: Attività diverse ed extra perimetro (Servizio Idrico Integrato, Produzione e distribuzione di energia elettrica, Distribuzione gas,Trasporti locali,TLC, Servizio integrato dei rifiuti svolto extra perimetro, Altro…)

Sheet IVA_Imposte
B3: =[4]IVA_Imposte!B5 -> Soggetto da cui si acquista Servizio/prestazione | C3: =[4]IVA_Imposte!C5 -> Anno di competenza
D4: CSL | E4: CRT | F4: CTS | G4: CRD | H4: CTR | I4: CARC | J4: CGG | K4: CCD | L4: ACC | M4: COal
D5: =[4]IVA_Imposte!E7 -> IVA | E5: =[4]IVA_Imposte!H7 -> IVA | F5: =[4]IVA_Imposte!K7 -> IVA | G5: =[4]IVA_Imposte!N7 -> IVA | H5: =[4]IVA_Imposte!Q7 -> IVA | I5: =[4]IVA_Imposte!T7 -> IVA | J5: =[4]IVA_Imposte!W7 -> IVA | K5: =[4]IVA_Imposte!Z7 -> IVA | L5: =[4]IVA_Imposte!AC7 -> IVA | M5: =[4]IVA_Imposte!AF7 -> IVA
B6: =[4]IVA_Imposte!B8 -> 0 | C6: =[4]IVA_Imposte!C8 -> 0 | D6: =[4]IVA_Imposte!E8 -> 0 | E6: =[4]IVA_Imposte!H8 -> 0 | F6: =[4]IVA_Imposte!K8 -> 0 | G6: =[4]IVA_Imposte!N8 -> 0 | H6: =[4]IVA_Imposte!Q8 -> 0 | I6: =[4]IVA_Imposte!T8 -> 0 | J6: =[4]IVA_Imposte!W8 -> 0 | K6: =[4]IVA_Imposte!Z8 -> 0 | L6: =[4]IVA_Imposte!AC8 -> 0 | M6: =[4]IVA_Imposte!AF8 -> 0
B7: =[4]IVA_Imposte!B9 -> 0 | C7: =[4]IVA_Imposte!C9 -> 0 | D7: =[4]IVA_Imposte!E9 -> 0 | E7: =[4]IVA_Imposte!H9 -> 0 | F7: =[4]IVA_Imposte!K9 -> 0 | G7: =[4]IVA_Imposte!N9 -> 0 | H7: =[4]IVA_Imposte!Q9 -> 0 | I7: =[4]IVA_Imposte!T9 -> 0 | J7: =[4]IVA_Imposte!W9 -> 0 | K7: =[4]IVA_Imposte!Z9 -> 0 | L7: =[4]IVA_Imposte!AC9 -> 0 | M7: =[4]IVA_Imposte!AF9 -> 0
B8: =[4]IVA_Imposte!B10 -> 0 | C8: =[4]IVA_Imposte!C10 -> 0 | D8: =[4]IVA_Imposte!E10 -> 0 | E8: =[4]IVA_Imposte!H10 -> 0 | F8: =[4]IVA_Imposte!K10 -> 0 | G8: =[4]IVA_Imposte!N10 -> 0 | H8: =[4]IVA_Imposte!Q10 -> 0 | I8: =[4]IVA_Imposte!T10 -> 0 | J8: =[4]IVA_Imposte!W10 -> 0 | K8: =[4]IVA_Imposte!Z10 -> 0 | L8: =[4]IVA_Imposte!AC10 -> 0 | M8: =[4]IVA_Imposte!AF10 -> 0
B9: =[4]IVA_Imposte!B11 -> 0 | C9: =[4]IVA_Imposte!C11 -> 0 | D9: =[4]IVA_Imposte!E11 -> 0 | E9: =[4]IVA_Imposte!H11 -> 0 | F9: =[4]IVA_Imposte!K11 -> 0 | G9: =[4]IVA_Imposte!N11 -> 0 | H9: =[4]IVA_Imposte!Q11 -> 0 | I9: =[4]IVA_Imposte!T11 -> 0 | J9: =[4]IVA_Imposte!W11 -> 0 | K9: =[4]IVA_Imposte!Z11 -> 0 | L9: =[4]IVA_Imposte!AC11 -> 0 | M9: =[4]IVA_Imposte!AF11 -> 0
B10: =[4]IVA_Imposte!B12 -> 0 | C10: =[4]IVA_Imposte!C12 -> 0 | D10: =[4]IVA_Imposte!E12 -> 0 | E10: =[4]IVA_Imposte!H12 -> 0 | F10: =[4]IVA_Imposte!K12 -> 0 | G10: =[4]IVA_Imposte!N12 -> 0 | H10: =[4]IVA_Imposte!Q12 -> 0 | I10: =[4]IVA_Imposte!T12 -> 0 | J10: =[4]IVA_Imposte!W12 -> 0 | K10: =[4]IVA_Imposte!Z12 -> 0 | L10: =[4]IVA_Imposte!AC12 -> 0 | M10: =[4]IVA_Imposte!AF12 -> 0
B11: =[4]IVA_Imposte!B13 -> 0 | C11: =[4]IVA_Imposte!C13 -> 0 | D11: =[4]IVA_Imposte!E13 -> 0 | E11: =[4]IVA_Imposte!H13 -> 0 | F11: =[4]IVA_Imposte!K13 -> 0 | G11: =[4]IVA_Imposte!N13 -> 0 | H11: =[4]IVA_Imposte!Q13 -> 0 | I11: =[4]IVA_Imposte!T13 -> 0 | J11: =[4]IVA_Imposte!W13 -> 0 | K11: =[4]IVA_Imposte!Z13 -> 0 | L11: =[4]IVA_Imposte!AC13 -> 0 | M11: =[4]IVA_Imposte!AF13 -> 0
B12: =[4]IVA_Imposte!B14 -> 0 | C12: =[4]IVA_Imposte!C14 -> 0 | D12: =[4]IVA_Imposte!E14 -> 0 | E12: =[4]IVA_Imposte!H14 -> 0 | F12: =[4]IVA_Imposte!K14 -> 0 | G12: =[4]IVA_Imposte!N14 -> 0 | H12: =[4]IVA_Imposte!Q14 -> 0 | I12: =[4]IVA_Imposte!T14 -> 0 | J12: =[4]IVA_Imposte!W14 -> 0 | K12: =[4]IVA_Imposte!Z14 -> 0 | L12: =[4]IVA_Imposte!AC14 -> 0 | M12: =[4]IVA_Imposte!AF14 -> 0
B13: =[4]IVA_Imposte!B15 -> 0 | C13: =[4]IVA_Imposte!C15 -> 0 | D13: =[4]IVA_Imposte!E15 -> 0 | E13: =[4]IVA_Imposte!H15 -> 0 | F13: =[4]IVA_Imposte!K15 -> 0 | G13: =[4]IVA_Imposte!N15 -> 0 | H13: =[4]IVA_Imposte!Q15 -> 0 | I13: =[4]IVA_Imposte!T15 -> 0 | J13: =[4]IVA_Imposte!W15 -> 0 | K13: =[4]IVA_Imposte!Z15 -> 0 | L13: =[4]IVA_Imposte!AC15 -> 0 | M13: =[4]IVA_Imposte!AF15 -> 0
B14: =[4]IVA_Imposte!B16 -> 0 | C14: =[4]IVA_Imposte!C16 -> 0 | D14: =[4]IVA_Imposte!E16 -> 0 | E14: =[4]IVA_Imposte!H16 -> 0 | F14: =[4]IVA_Imposte!K16 -> 0 | G14: =[4]IVA_Imposte!N16 -> 0 | H14: =[4]IVA_Imposte!Q16 -> 0 | I14: =[4]IVA_Imposte!T16 -> 0 | J14: =[4]IVA_Imposte!W16 -> 0 | K14: =[4]IVA_Imposte!Z16 -> 0 | L14: =[4]IVA_Imposte!AC16 -> 0 | M14: =[4]IVA_Imposte!AF16 -> 0
B15: =[4]IVA_Imposte!B17 -> 0 | C15: =[4]IVA_Imposte!C17 -> 0 | D15: =[4]IVA_Imposte!E17 -> 0 | E15: =[4]IVA_Imposte!H17 -> 0 | F15: =[4]IVA_Imposte!K17 -> 0 | G15: =[4]IVA_Imposte!N17 -> 0 | H15: =[4]IVA_Imposte!Q17 -> 0 | I15: =[4]IVA_Imposte!T17 -> 0 | J15: =[4]IVA_Imposte!W17 -> 0 | K15: =[4]IVA_Imposte!Z17 -> 0 | L15: =[4]IVA_Imposte!AC17 -> 0 | M15: =[4]IVA_Imposte!AF17 -> 0
B16: =[4]IVA_Imposte!B18 -> 0 | C16: =[4]IVA_Imposte!C18 -> 0 | D16: =[4]IVA_Imposte!E18 -> 0 | E16: =[4]IVA_Imposte!H18 -> 0 | F16: =[4]IVA_Imposte!K18 -> 0 | G16: =[4]IVA_Imposte!N18 -> 0 | H16: =[4]IVA_Imposte!Q18 -> 0 | I16: =[4]IVA_Imposte!T18 -> 0 | J16: =[4]IVA_Imposte!W18 -> 0 | K16: =[4]IVA_Imposte!Z18 -> 0 | L16: =[4]IVA_Imposte!AC18 -> 0 | M16: =[4]IVA_Imposte!AF18 -> 0
B17: =[4]IVA_Imposte!B19 -> 0 | C17: =[4]IVA_Imposte!C19 -> 0 | D17: =[4]IVA_Imposte!E19 -> 0 | E17: =[4]IVA_Imposte!H19 -> 0 | F17: =[4]IVA_Imposte!K19 -> 0 | G17: =[4]IVA_Imposte!N19 -> 0 | H17: =[4]IVA_Imposte!Q19 -> 0 | I17: =[4]IVA_Imposte!T19 -> 0 | J17: =[4]IVA_Imposte!W19 -> 0 | K17: =[4]IVA_Imposte!Z19 -> 0 | L17: =[4]IVA_Imposte!AC19 -> 0 | M17: =[4]IVA_Imposte!AF19 -> 0
B18: =[4]IVA_Imposte!B20 -> 0 | C18: =[4]IVA_Imposte!C20 -> 0 | D18: =[4]IVA_Imposte!E20 -> 0 | E18: =[4]IVA_Imposte!H20 -> 0 | F18: =[4]IVA_Imposte!K20 -> 0 | G18: =[4]IVA_Imposte!N20 -> 0 | H18: =[4]IVA_Imposte!Q20 -> 0 | I18: =[4]IVA_Imposte!T20 -> 0 | J18: =[4]IVA_Imposte!W20 -> 0 | K18: =[4]IVA_Imposte!Z20 -> 0 | L18: =[4]IVA_Imposte!AC20 -> 0 | M18: =[4]IVA_Imposte!AF20 -> 0
B19: =[4]IVA_Imposte!B21 -> 0 | C19: =[4]IVA_Imposte!C21 -> 0 | D19: =[4]IVA_Imposte!E21 -> 0 | E19: =[4]IVA_Imposte!H21 -> 0 | F19: =[4]IVA_Imposte!K21 -> 0 | G19: =[4]IVA_Imposte!N21 -> 0 | H19: =[4]IVA_Imposte!Q21 -> 0 | I19: =[4]IVA_Imposte!T21 -> 0 | J19: =[4]IVA_Imposte!W21 -> 0 | K19: =[4]IVA_Imposte!Z21 -> 0 | L19: =[4]IVA_Imposte!AC21 -> 0 | M19: =[4]IVA_Imposte!AF21 -> 0
B20: =[4]IVA_Imposte!B22 -> 0 | C20: =[4]IVA_Imposte!C22 -> 0 | D20: =[4]IVA_Imposte!E22 -> 0 | E20: =[4]IVA_Imposte!H22 -> 0 | F20: =[4]IVA_Imposte!K22 -> 0 | G20: =[4]IVA_Imposte!N22 -> 0 | H20: =[4]IVA_Imposte!Q22 -> 0 | I20: =[4]IVA_Imposte!T22 -> 0 | J20: =[4]IVA_Imposte!W22 -> 0 | K20: =[4]IVA_Imposte!Z22 -> 0 | L20: =[4]IVA_Imposte!AC22 -> 0 | M20: =[4]IVA_Imposte!AF22 -> 0
B21: =[4]IVA_Imposte!B23 -> 0 | C21: =[4]IVA_Imposte!C23 -> 0 | D21: =[4]IVA_Imposte!E23 -> 0 | E21: =[4]IVA_Imposte!H23 -> 0 | F21: =[4]IVA_Imposte!K23 -> 0 | G21: =[4]IVA_Imposte!N23 -> 0 | H21: =[4]IVA_Imposte!Q23 -> 0 | I21: =[4]IVA_Imposte!T23 -> 0 | J21: =[4]IVA_Imposte!W23 -> 0 | K21: =[4]IVA_Imposte!Z23 -> 0 | L21: =[4]IVA_Imposte!AC23 -> 0 | M21: =[4]IVA_Imposte!AF23 -> 0
B22: =[4]IVA_Imposte!B24 -> 0 | C22: =[4]IVA_Imposte!C24 -> 0 | D22: =[4]IVA_Imposte!E24 -> 0 | E22: =[4]IVA_Imposte!H24 -> 0 | F22: =[4]IVA_Imposte!K24 -> 0 | G22: =[4]IVA_Imposte!N24 -> 0 | H22: =[4]IVA_Imposte!Q24 -> 0 | I22: =[4]IVA_Imposte!T24 -> 0 | J22: =[4]IVA_Imposte!W24 -> 0 | K22: =[4]IVA_Imposte!Z24 -> 0 | L22: =[4]IVA_Imposte!AC24 -> 0 | M22: =[4]IVA_Imposte!AF24 -> 0
B23: =[4]IVA_Imposte!B25 -> 0 | C23: =[4]IVA_Imposte!C25 -> 0 | D23: =[4]IVA_Imposte!E25 -> 0 | E23: =[4]IVA_Imposte!H25 -> 0 | F23: =[4]IVA_Imposte!K25 -> 0 | G23: =[4]IVA_Imposte!N25 -> 0 | H23: =[4]IVA_Imposte!Q25 -> 0 | I23: =[4]IVA_Imposte!T25 -> 0 | J23: =[4]IVA_Imposte!W25 -> 0 | K23: =[4]IVA_Imposte!Z25 -> 0 | L23: =[4]IVA_Imposte!AC25 -> 0 | M23: =[4]IVA_Imposte!AF25 -> 0
B24: =[4]IVA_Imposte!B26 -> 0 | C24: =[4]IVA_Imposte!C26 -> 0 | D24: =[4]IVA_Imposte!E26 -> 0 | E24: =[4]IVA_Imposte!H26 -> 0 | F24: =[4]IVA_Imposte!K26 -> 0 | G24: =[4]IVA_Imposte!N26 -> 0 | H24: =[4]IVA_Imposte!Q26 -> 0 | I24: =[4]IVA_Imposte!T26 -> 0 | J24: =[4]IVA_Imposte!W26 -> 0 | K24: =[4]IVA_Imposte!Z26 -> 0 | L24: =[4]IVA_Imposte!AC26 -> 0 | M24: =[4]IVA_Imposte!AF26 -> 0
B25: =[4]IVA_Imposte!B27 -> 0 | C25: =[4]IVA_Imposte!C27 -> 0 | D25: =[4]IVA_Imposte!E27 -> 0 | E25: =[4]IVA_Imposte!H27 -> 0 | F25: =[4]IVA_Imposte!K27 -> 0 | G25: =[4]IVA_Imposte!N27 -> 0 | H25: =[4]IVA_Imposte!Q27 -> 0 | I25: =[4]IVA_Imposte!T27 -> 0 | J25: =[4]IVA_Imposte!W27 -> 0 | K25: =[4]IVA_Imposte!Z27 -> 0 | L25: =[4]IVA_Imposte!AC27 -> 0 | M25: =[4]IVA_Imposte!AF27 -> 0
B26: =[4]IVA_Imposte!B28 -> 0 | C26: =[4]IVA_Imposte!C28 -> 0 | D26: =[4]IVA_Imposte!E28 -> 0 | E26: =[4]IVA_Imposte!H28 -> 0 | F26: =[4]IVA_Imposte!K28 -> 0 | G26: =[4]IVA_Imposte!N28 -> 0 | H26: =[4]IVA_Imposte!Q28 -> 0 | I26: =[4]IVA_Imposte!T28 -> 0 | J26: =[4]IVA_Imposte!W28 -> 0 | K26: =[4]IVA_Imposte!Z28 -> 0 | L26: =[4]IVA_Imposte!AC28 -> 0 | M26: =[4]IVA_Imposte!AF28 -> 0
B27: =[4]IVA_Imposte!B29 -> 0 | C27: =[4]IVA_Imposte!C29 -> 0 | D27: =[4]IVA_Imposte!E29 -> 0 | E27: =[4]IVA_Imposte!H29 -> 0 | F27: =[4]IVA_Imposte!K29 -> 0 | G27: =[4]IVA_Imposte!N29 -> 0 | H27: =[4]IVA_Imposte!Q29 -> 0 | I27: =[4]IVA_Imposte!T29 -> 0 | J27: =[4]IVA_Imposte!W29 -> 0 | K27: =[4]IVA_Imposte!Z29 -> 0 | L27: =[4]IVA_Imposte!AC29 -> 0 | M27: =[4]IVA_Imposte!AF29 -> 0
B28: =[4]IVA_Imposte!B30 -> 0 | C28: =[4]IVA_Imposte!C30 -> 0 | D28: =[4]IVA_Imposte!E30 -> 0 | E28: =[4]IVA_Imposte!H30 -> 0 | F28: =[4]IVA_Imposte!K30 -> 0 | G28: =[4]IVA_Imposte!N30 -> 0 | H28: =[4]IVA_Imposte!Q30 -> 0 | I28: =[4]IVA_Imposte!T30 -> 0 | J28: =[4]IVA_Imposte!W30 -> 0 | K28: =[4]IVA_Imposte!Z30 -> 0 | L28: =[4]IVA_Imposte!AC30 -> 0 | M28: =[4]IVA_Imposte!AF30 -> 0
B29: =[4]IVA_Imposte!B31 -> 0 | C29: =[4]IVA_Imposte!C31 -> 0 | D29: =[4]IVA_Imposte!E31 -> 0 | E29: =[4]IVA_Imposte!H31 -> 0 | F29: =[4]IVA_Imposte!K31 -> 0 | G29: =[4]IVA_Imposte!N31 -> 0 | H29: =[4]IVA_Imposte!Q31 -> 0 | I29: =[4]IVA_Imposte!T31 -> 0 | J29: =[4]IVA_Imposte!W31 -> 0 | K29: =[4]IVA_Imposte!Z31 -> 0 | L29: =[4]IVA_Imposte!AC31 -> 0 | M29: =[4]IVA_Imposte!AF31 -> 0
B30: =[4]IVA_Imposte!B32 -> 0 | C30: =[4]IVA_Imposte!C32 -> 0 | D30: =[4]IVA_Imposte!E32 -> 0 | E30: =[4]IVA_Imposte!H32 -> 0 | F30: =[4]IVA_Imposte!K32 -> 0 | G30: =[4]IVA_Imposte!N32 -> 0 | H30: =[4]IVA_Imposte!Q32 -> 0 | I30: =[4]IVA_Imposte!T32 -> 0 | J30: =[4]IVA_Imposte!W32 -> 0 | K30: =[4]IVA_Imposte!Z32 -> 0 | L30: =[4]IVA_Imposte!AC32 -> 0 | M30: =[4]IVA_Imposte!AF32 -> 0
B31: =[4]IVA_Imposte!B33 -> 0 | C31: =[4]IVA_Imposte!C33 -> 0 | D31: =[4]IVA_Imposte!E33 -> 0 | E31: =[4]IVA_Imposte!H33 -> 0 | F31: =[4]IVA_Imposte!K33 -> 0 | G31: =[4]IVA_Imposte!N33 -> 0 | H31: =[4]IVA_Imposte!Q33 -> 0 | I31: =[4]IVA_Imposte!T33 -> 0 | J31: =[4]IVA_Imposte!W33 -> 0 | K31: =[4]IVA_Imposte!Z33 -> 0 | L31: =[4]IVA_Imposte!AC33 -> 0 | M31: =[4]IVA_Imposte!AF33 -> 0
B32: =[4]IVA_Imposte!B34 -> 0 | C32: =[4]IVA_Imposte!C34 -> 0 | D32: =[4]IVA_Imposte!E34 -> 0 | E32: =[4]IVA_Imposte!H34 -> 0 | F32: =[4]IVA_Imposte!K34 -> 0 | G32: =[4]IVA_Imposte!N34 -> 0 | H32: =[4]IVA_Imposte!Q34 -> 0 | I32: =[4]IVA_Imposte!T34 -> 0 | J32: =[4]IVA_Imposte!W34 -> 0 | K32: =[4]IVA_Imposte!Z34 -> 0 | L32: =[4]IVA_Imposte!AC34 -> 0 | M32: =[4]IVA_Imposte!AF34 -> 0
B33: =[4]IVA_Imposte!B35 -> 0 | C33: =[4]IVA_Imposte!C35 -> 0 | D33: =[4]IVA_Imposte!E35 -> 0 | E33: =[4]IVA_Imposte!H35 -> 0 | F33: =[4]IVA_Imposte!K35 -> 0 | G33: =[4]IVA_Imposte!N35 -> 0 | H33: =[4]IVA_Imposte!Q35 -> 0 | I33: =[4]IVA_Imposte!T35 -> 0 | J33: =[4]IVA_Imposte!W35 -> 0 | K33: =[4]IVA_Imposte!Z35 -> 0 | L33: =[4]IVA_Imposte!AC35 -> 0 | M33: =[4]IVA_Imposte!AF35 -> 0
B34: =[4]IVA_Imposte!B36 -> 0 | C34: =[4]IVA_Imposte!C36 -> 0 | D34: =[4]IVA_Imposte!E36 -> 0 | E34: =[4]IVA_Imposte!H36 -> 0 | F34: =[4]IVA_Imposte!K36 -> 0 | G34: =[4]IVA_Imposte!N36 -> 0 | H34: =[4]IVA_Imposte!Q36 -> 0 | I34: =[4]IVA_Imposte!T36 -> 0 | J34: =[4]IVA_Imposte!W36 -> 0 | K34: =[4]IVA_Imposte!Z36 -> 0 | L34: =[4]IVA_Imposte!AC36 -> 0 | M34: =[4]IVA_Imposte!AF36 -> 0
B35: =[4]IVA_Imposte!B37 -> 0 | C35: =[4]IVA_Imposte!C37 -> 0 | D35: =[4]IVA_Imposte!E37 -> 0 | E35: =[4]IVA_Imposte!H37 -> 0 | F35: =[4]IVA_Imposte!K37 -> 0 | G35: =[4]IVA_Imposte!N37 -> 0 | H35: =[4]IVA_Imposte!Q37 -> 0 | I35: =[4]IVA_Imposte!T37 -> 0 | J35: =[4]IVA_Imposte!W37 -> 0 | K35: =[4]IVA_Imposte!Z37 -> 0 | L35: =[4]IVA_Imposte!AC37 -> 0 | M35: =[4]IVA_Imposte!AF37 -> 0
B36: =[4]IVA_Imposte!B38 -> 0 | C36: =[4]IVA_Imposte!C38 -> 0 | D36: =[4]IVA_Imposte!E38 -> 0 | E36: =[4]IVA_Imposte!H38 -> 0 | F36: =[4]IVA_Imposte!K38 -> 0 | G36: =[4]IVA_Imposte!N38 -> 0 | H36: =[4]IVA_Imposte!Q38 -> 0 | I36: =[4]IVA_Imposte!T38 -> 0 | J36: =[4]IVA_Imposte!W38 -> 0 | K36: =[4]IVA_Imposte!Z38 -> 0 | L36: =[4]IVA_Imposte!AC38 -> 0 | M36: =[4]IVA_Imposte!AF38 -> 0
B37: =[4]IVA_Imposte!B39 -> 0 | C37: =[4]IVA_Imposte!C39 -> 0 | D37: =[4]IVA_Imposte!E39 -> 0 | E37: =[4]IVA_Imposte!H39 -> 0 | F37: =[4]IVA_Imposte!K39 -> 0 | G37: =[4]IVA_Imposte!N39 -> 0 | H37: =[4]IVA_Imposte!Q39 -> 0 | I37: =[4]IVA_Imposte!T39 -> 0 | J37: =[4]IVA_Imposte!W39 -> 0 | K37: =[4]IVA_Imposte!Z39 -> 0 | L37: =[4]IVA_Imposte!AC39 -> 0 | M37: =[4]IVA_Imposte!AF39 -> 0
B38: =[4]IVA_Imposte!B40 -> 0 | C38: =[4]IVA_Imposte!C40 -> 0 | D38: =[4]IVA_Imposte!E40 -> 0 | E38: =[4]IVA_Imposte!H40 -> 0 | F38: =[4]IVA_Imposte!K40 -> 0 | G38: =[4]IVA_Imposte!N40 -> 0 | H38: =[4]IVA_Imposte!Q40 -> 0 | I38: =[4]IVA_Imposte!T40 -> 0 | J38: =[4]IVA_Imposte!W40 -> 0 | K38: =[4]IVA_Imposte!Z40 -> 0 | L38: =[4]IVA_Imposte!AC40 -> 0 | M38: =[4]IVA_Imposte!AF40 -> 0
B39: =[4]IVA_Imposte!B41 -> 0 | C39: =[4]IVA_Imposte!C41 -> 0 | D39: =[4]IVA_Imposte!E41 -> 0 | E39: =[4]IVA_Imposte!H41 -> 0 | F39: =[4]IVA_Imposte!K41 -> 0 | G39: =[4]IVA_Imposte!N41 -> 0 | H39: =[4]IVA_Imposte!Q41 -> 0 | I39: =[4]IVA_Imposte!T41 -> 0 | J39: =[4]IVA_Imposte!W41 -> 0 | K39: =[4]IVA_Imposte!Z41 -> 0 | L39: =[4]IVA_Imposte!AC41 -> 0 | M39: =[4]IVA_Imposte!AF41 -> 0
B40: =[4]IVA_Imposte!B42 -> 0 | C40: =[4]IVA_Imposte!C42 -> 0 | D40: =[4]IVA_Imposte!E42 -> 0 | E40: =[4]IVA_Imposte!H42 -> 0 | F40: =[4]IVA_Imposte!K42 -> 0 | G40: =[4]IVA_Imposte!N42 -> 0 | H40: =[4]IVA_Imposte!Q42 -> 0 | I40: =[4]IVA_Imposte!T42 -> 0 | J40: =[4]IVA_Imposte!W42 -> 0 | K40: =[4]IVA_Imposte!Z42 -> 0 | L40: =[4]IVA_Imposte!AC42 -> 0 | M40: =[4]IVA_Imposte!AF42 -> 0
B41: =[4]IVA_Imposte!B43 -> 0 | C41: =[4]IVA_Imposte!C43 -> 0 | D41: =[4]IVA_Imposte!E43 -> 0 | E41: =[4]IVA_Imposte!H43 -> 0 | F41: =[4]IVA_Imposte!K43 -> 0 | G41: =[4]IVA_Imposte!N43 -> 0 | H41: =[4]IVA_Imposte!Q43 -> 0 | I41: =[4]IVA_Imposte!T43 -> 0 | J41: =[4]IVA_Imposte!W43 -> 0 | K41: =[4]IVA_Imposte!Z43 -> 0 | L41: =[4]IVA_Imposte!AC43 -> 0 | M41: =[4]IVA_Imposte!AF43 -> 0
B42: =[4]IVA_Imposte!B44 -> 0 | C42: =[4]IVA_Imposte!C44 -> 0 | D42: =[4]IVA_Imposte!E44 -> 0 | E42: =[4]IVA_Imposte!H44 -> 0 | F42: =[4]IVA_Imposte!K44 -> 0 | G42: =[4]IVA_Imposte!N44 -> 0 | H42: =[4]IVA_Imposte!Q44 -> 0 | I42: =[4]IVA_Imposte!T44 -> 0 | J42: =[4]IVA_Imposte!W44 -> 0 | K42: =[4]IVA_Imposte!Z44 -> 0 | L42: =[4]IVA_Imposte!AC44 -> 0 | M42: =[4]IVA_Imposte!AF44 -> 0
B43: =[4]IVA_Imposte!B45 -> 0 | C43: =[4]IVA_Imposte!C45 -> 0 | D43: =[4]IVA_Imposte!E45 -> 0 | E43: =[4]IVA_Imposte!H45 -> 0 | F43: =[4]IVA_Imposte!K45 -> 0 | G43: =[4]IVA_Imposte!N45 -> 0 | H43: =[4]IVA_Imposte!Q45 -> 0 | I43: =[4]IVA_Imposte!T45 -> 0 | J43: =[4]IVA_Imposte!W45 -> 0 | K43: =[4]IVA_Imposte!Z45 -> 0 | L43: =[4]IVA_Imposte!AC45 -> 0 | M43: =[4]IVA_Imposte!AF45 -> 0
B44: =[4]IVA_Imposte!B46 -> 0 | C44: =[4]IVA_Imposte!C46 -> 0 | D44: =[4]IVA_Imposte!E46 -> 0 | E44: =[4]IVA_Imposte!H46 -> 0 | F44: =[4]IVA_Imposte!K46 -> 0 | G44: =[4]IVA_Imposte!N46 -> 0 | H44: =[4]IVA_Imposte!Q46 -> 0 | I44: =[4]IVA_Imposte!T46 -> 0 | J44: =[4]IVA_Imposte!W46 -> 0 | K44: =[4]IVA_Imposte!Z46 -> 0 | L44: =[4]IVA_Imposte!AC46 -> 0 | M44: =[4]IVA_Imposte!AF46 -> 0
B45: =[4]IVA_Imposte!B47 -> 0 | C45: =[4]IVA_Imposte!C47 -> 0 | D45: =[4]IVA_Imposte!E47 -> 0 | E45: =[4]IVA_Imposte!H47 -> 0 | F45: =[4]IVA_Imposte!K47 -> 0 | G45: =[4]IVA_Imposte!N47 -> 0 | H45: =[4]IVA_Imposte!Q47 -> 0 | I45: =[4]IVA_Imposte!T47 -> 0 | J45: =[4]IVA_Imposte!W47 -> 0 | K45: =[4]IVA_Imposte!Z47 -> 0 | L45: =[4]IVA_Imposte!AC47 -> 0 | M45: =[4]IVA_Imposte!AF47 -> 0
B46: =[4]IVA_Imposte!B48 -> 0 | C46: =[4]IVA_Imposte!C48 -> 0 | D46: =[4]IVA_Imposte!E48 -> 0 | E46: =[4]IVA_Imposte!H48 -> 0 | F46: =[4]IVA_Imposte!K48 -> 0 | G46: =[4]IVA_Imposte!N48 -> 0 | H46: =[4]IVA_Imposte!Q48 -> 0 | I46: =[4]IVA_Imposte!T48 -> 0 | J46: =[4]IVA_Imposte!W48 -> 0 | K46: =[4]IVA_Imposte!Z48 -> 0 | L46: =[4]IVA_Imposte!AC48 -> 0 | M46: =[4]IVA_Imposte!AF48 -> 0
B47: =[4]IVA_Imposte!B49 -> 0 | C47: =[4]IVA_Imposte!C49 -> 0 | D47: =[4]IVA_Imposte!E49 -> 0 | E47: =[4]IVA_Imposte!H49 -> 0 | F47: =[4]IVA_Imposte!K49 -> 0 | G47: =[4]IVA_Imposte!N49 -> 0 | H47: =[4]IVA_Imposte!Q49 -> 0 | I47: =[4]IVA_Imposte!T49 -> 0 | J47: =[4]IVA_Imposte!W49 -> 0 | K47: =[4]IVA_Imposte!Z49 -> 0 | L47: =[4]IVA_Imposte!AC49 -> 0 | M47: =[4]IVA_Imposte!AF49 -> 0
B48: =[4]IVA_Imposte!B50 -> 0 | C48: =[4]IVA_Imposte!C50 -> 0 | D48: =[4]IVA_Imposte!E50 -> 0 | E48: =[4]IVA_Imposte!H50 -> 0 | F48: =[4]IVA_Imposte!K50 -> 0 | G48: =[4]IVA_Imposte!N50 -> 0 | H48: =[4]IVA_Imposte!Q50 -> 0 | I48: =[4]IVA_Imposte!T50 -> 0 | J48: =[4]IVA_Imposte!W50 -> 0 | K48: =[4]IVA_Imposte!Z50 -> 0 | L48: =[4]IVA_Imposte!AC50 -> 0 | M48: =[4]IVA_Imposte!AF50 -> 0
B49: =[4]IVA_Imposte!B51 -> 0 | C49: =[4]IVA_Imposte!C51 -> 0 | D49: =[4]IVA_Imposte!E51 -> 0 | E49: =[4]IVA_Imposte!H51 -> 0 | F49: =[4]IVA_Imposte!K51 -> 0 | G49: =[4]IVA_Imposte!N51 -> 0 | H49: =[4]IVA_Imposte!Q51 -> 0 | I49: =[4]IVA_Imposte!T51 -> 0 | J49: =[4]IVA_Imposte!W51 -> 0 | K49: =[4]IVA_Imposte!Z51 -> 0 | L49: =[4]IVA_Imposte!AC51 -> 0 | M49: =[4]IVA_Imposte!AF51 -> 0
B50: =[4]IVA_Imposte!B52 -> 0 | C50: =[4]IVA_Imposte!C52 -> 0 | D50: =[4]IVA_Imposte!E52 -> 0 | E50: =[4]IVA_Imposte!H52 -> 0 | F50: =[4]IVA_Imposte!K52 -> 0 | G50: =[4]IVA_Imposte!N52 -> 0 | H50: =[4]IVA_Imposte!Q52 -> 0 | I50: =[4]IVA_Imposte!T52 -> 0 | J50: =[4]IVA_Imposte!W52 -> 0 | K50: =[4]IVA_Imposte!Z52 -> 0 | L50: =[4]IVA_Imposte!AC52 -> 0 | M50: =[4]IVA_Imposte!AF52 -> 0
B51: =[4]IVA_Imposte!B53 -> 0 | C51: =[4]IVA_Imposte!C53 -> 0 | D51: =[4]IVA_Imposte!E53 -> 0 | E51: =[4]IVA_Imposte!H53 -> 0 | F51: =[4]IVA_Imposte!K53 -> 0 | G51: =[4]IVA_Imposte!N53 -> 0 | H51: =[4]IVA_Imposte!Q53 -> 0 | I51: =[4]IVA_Imposte!T53 -> 0 | J51: =[4]IVA_Imposte!W53 -> 0 | K51: =[4]IVA_Imposte!Z53 -> 0 | L51: =[4]IVA_Imposte!AC53 -> 0 | M51: =[4]IVA_Imposte!AF53 -> 0
B52: =[4]IVA_Imposte!B54 -> 0 | C52: =[4]IVA_Imposte!C54 -> 0 | D52: =[4]IVA_Imposte!E54 -> 0 | E52: =[4]IVA_Imposte!H54 -> 0 | F52: =[4]IVA_Imposte!K54 -> 0 | G52: =[4]IVA_Imposte!N54 -> 0 | H52: =[4]IVA_Imposte!Q54 -> 0 | I52: =[4]IVA_Imposte!T54 -> 0 | J52: =[4]IVA_Imposte!W54 -> 0 | K52: =[4]IVA_Imposte!Z54 -> 0 | L52: =[4]IVA_Imposte!AC54 -> 0 | M52: =[4]IVA_Imposte!AF54 -> 0
B53: =[4]IVA_Imposte!B55 -> 0 | C53: =[4]IVA_Imposte!C55 -> 0 | D53: =[4]IVA_Imposte!E55 -> 0 | E53: =[4]IVA_Imposte!H55 -> 0 | F53: =[4]IVA_Imposte!K55 -> 0 | G53: =[4]IVA_Imposte!N55 -> 0 | H53: =[4]IVA_Imposte!Q55 -> 0 | I53: =[4]IVA_Imposte!T55 -> 0 | J53: =[4]IVA_Imposte!W55 -> 0 | K53: =[4]IVA_Imposte!Z55 -> 0 | L53: =[4]IVA_Imposte!AC55 -> 0 | M53: =[4]IVA_Imposte!AF55 -> 0
B54: =[4]IVA_Imposte!B56 -> 0 | C54: =[4]IVA_Imposte!C56 -> 0 | D54: =[4]IVA_Imposte!E56 -> 0 | E54: =[4]IVA_Imposte!H56 -> 0 | F54: =[4]IVA_Imposte!K56 -> 0 | G54: =[4]IVA_Imposte!N56 -> 0 | H54: =[4]IVA_Imposte!Q56 -> 0 | I54: =[4]IVA_Imposte!T56 -> 0 | J54: =[4]IVA_Imposte!W56 -> 0 | K54: =[4]IVA_Imposte!Z56 -> 0 | L54: =[4]IVA_Imposte!AC56 -> 0 | M54: =[4]IVA_Imposte!AF56 -> 0
B55: =[4]IVA_Imposte!B57 -> 0 | C55: =[4]IVA_Imposte!C57 -> 0 | D55: =[4]IVA_Imposte!E57 -> 0 | E55: =[4]IVA_Imposte!H57 -> 0 | F55: =[4]IVA_Imposte!K57 -> 0 | G55: =[4]IVA_Imposte!N57 -> 0 | H55: =[4]IVA_Imposte!Q57 -> 0 | I55: =[4]IVA_Imposte!T57 -> 0 | J55: =[4]IVA_Imposte!W57 -> 0 | K55: =[4]IVA_Imposte!Z57 -> 0 | L55: =[4]IVA_Imposte!AC57 -> 0 | M55: =[4]IVA_Imposte!AF57 -> 0
B56: =[4]IVA_Imposte!B58 -> 0 | C56: =[4]IVA_Imposte!C58 -> 0 | D56: =[4]IVA_Imposte!E58 -> 0 | E56: =[4]IVA_Imposte!H58 -> 0 | F56: =[4]IVA_Imposte!K58 -> 0 | G56: =[4]IVA_Imposte!N58 -> 0 | H56: =[4]IVA_Imposte!Q58 -> 0 | I56: =[4]IVA_Imposte!T58 -> 0 | J56: =[4]IVA_Imposte!W58 -> 0 | K56: =[4]IVA_Imposte!Z58 -> 0 | L56: =[4]IVA_Imposte!AC58 -> 0 | M56: =[4]IVA_Imposte!AF58 -> 0
B57: =[4]IVA_Imposte!B59 -> 0 | C57: =[4]IVA_Imposte!C59 -> 0 | D57: =[4]IVA_Imposte!E59 -> 0 | E57: =[4]IVA_Imposte!H59 -> 0 | F57: =[4]IVA_Imposte!K59 -> 0 | G57: =[4]IVA_Imposte!N59 -> 0 | H57: =[4]IVA_Imposte!Q59 -> 0 | I57: =[4]IVA_Imposte!T59 -> 0 | J57: =[4]IVA_Imposte!W59 -> 0 | K57: =[4]IVA_Imposte!Z59 -> 0 | L57: =[4]IVA_Imposte!AC59 -> 0 | M57: =[4]IVA_Imposte!AF59 -> 0
B58: =[4]IVA_Imposte!B60 -> 0 | C58: =[4]IVA_Imposte!C60 -> 0 | D58: =[4]IVA_Imposte!E60 -> 0 | E58: =[4]IVA_Imposte!H60 -> 0 | F58: =[4]IVA_Imposte!K60 -> 0 | G58: =[4]IVA_Imposte!N60 -> 0 | H58: =[4]IVA_Imposte!Q60 -> 0 | I58: =[4]IVA_Imposte!T60 -> 0 | J58: =[4]IVA_Imposte!W60 -> 0 | K58: =[4]IVA_Imposte!Z60 -> 0 | L58: =[4]IVA_Imposte!AC60 -> 0 | M58: =[4]IVA_Imposte!AF60 -> 0
B59: =[4]IVA_Imposte!B61 -> 0 | C59: =[4]IVA_Imposte!C61 -> 0 | D59: =[4]IVA_Imposte!E61 -> 0 | E59: =[4]IVA_Imposte!H61 -> 0 | F59: =[4]IVA_Imposte!K61 -> 0 | G59: =[4]IVA_Imposte!N61 -> 0 | H59: =[4]IVA_Imposte!Q61 -> 0 | I59: =[4]IVA_Imposte!T61 -> 0 | J59: =[4]IVA_Imposte!W61 -> 0 | K59: =[4]IVA_Imposte!Z61 -> 0 | L59: =[4]IVA_Imposte!AC61 -> 0 | M59: =[4]IVA_Imposte!AF61 -> 0
B60: =[4]IVA_Imposte!B62 -> 0 | C60: =[4]IVA_Imposte!C62 -> 0 | D60: =[4]IVA_Imposte!E62 -> 0 | E60: =[4]IVA_Imposte!H62 -> 0 | F60: =[4]IVA_Imposte!K62 -> 0 | G60: =[4]IVA_Imposte!N62 -> 0 | H60: =[4]IVA_Imposte!Q62 -> 0 | I60: =[4]IVA_Imposte!T62 -> 0 | J60: =[4]IVA_Imposte!W62 -> 0 | K60: =[4]IVA_Imposte!Z62 -> 0 | L60: =[4]IVA_Imposte!AC62 -> 0 | M60: =[4]IVA_Imposte!AF62 -> 0
B61: =[4]IVA_Imposte!B63 -> 0 | C61: =[4]IVA_Imposte!C63 -> 0 | D61: =[4]IVA_Imposte!E63 -> 0 | E61: =[4]IVA_Imposte!H63 -> 0 | F61: =[4]IVA_Imposte!K63 -> 0 | G61: =[4]IVA_Imposte!N63 -> 0 | H61: =[4]IVA_Imposte!Q63 -> 0 | I61: =[4]IVA_Imposte!T63 -> 0 | J61: =[4]IVA_Imposte!W63 -> 0 | K61: =[4]IVA_Imposte!Z63 -> 0 | L61: =[4]IVA_Imposte!AC63 -> 0 | M61: =[4]IVA_Imposte!AF63 -> 0
B62: =[4]IVA_Imposte!B64 -> 0 | C62: =[4]IVA_Imposte!C64 -> 0 | D62: =[4]IVA_Imposte!E64 -> 0 | E62: =[4]IVA_Imposte!H64 -> 0 | F62: =[4]IVA_Imposte!K64 -> 0 | G62: =[4]IVA_Imposte!N64 -> 0 | H62: =[4]IVA_Imposte!Q64 -> 0 | I62: =[4]IVA_Imposte!T64 -> 0 | J62: =[4]IVA_Imposte!W64 -> 0 | K62: =[4]IVA_Imposte!Z64 -> 0 | L62: =[4]IVA_Imposte!AC64 -> 0 | M62: =[4]IVA_Imposte!AF64 -> 0
B63: =[4]IVA_Imposte!B65 -> 0 | C63: =[4]IVA_Imposte!C65 -> 0 | D63: =[4]IVA_Imposte!E65 -> 0 | E63: =[4]IVA_Imposte!H65 -> 0 | F63: =[4]IVA_Imposte!K65 -> 0 | G63: =[4]IVA_Imposte!N65 -> 0 | H63: =[4]IVA_Imposte!Q65 -> 0 | I63: =[4]IVA_Imposte!T65 -> 0 | J63: =[4]IVA_Imposte!W65 -> 0 | K63: =[4]IVA_Imposte!Z65 -> 0 | L63: =[4]IVA_Imposte!AC65 -> 0 | M63: =[4]IVA_Imposte!AF65 -> 0
B64: =[4]IVA_Imposte!B66 -> 0 | C64: =[4]IVA_Imposte!C66 -> 0 | D64: =[4]IVA_Imposte!E66 -> 0 | E64: =[4]IVA_Imposte!H66 -> 0 | F64: =[4]IVA_Imposte!K66 -> 0 | G64: =[4]IVA_Imposte!N66 -> 0 | H64: =[4]IVA_Imposte!Q66 -> 0 | I64: =[4]IVA_Imposte!T66 -> 0 | J64: =[4]IVA_Imposte!W66 -> 0 | K64: =[4]IVA_Imposte!Z66 -> 0 | L64: =[4]IVA_Imposte!AC66 -> 0 | M64: =[4]IVA_Imposte!AF66 -> 0
B65: =[4]IVA_Imposte!B67 -> 0 | C65: =[4]IVA_Imposte!C67 -> 0 | D65: =[4]IVA_Imposte!E67 -> 0 | E65: =[4]IVA_Imposte!H67 -> 0 | F65: =[4]IVA_Imposte!K67 -> 0 | G65: =[4]IVA_Imposte!N67 -> 0 | H65: =[4]IVA_Imposte!Q67 -> 0 | I65: =[4]IVA_Imposte!T67 -> 0 | J65: =[4]IVA_Imposte!W67 -> 0 | K65: =[4]IVA_Imposte!Z67 -> 0 | L65: =[4]IVA_Imposte!AC67 -> 0 | M65: =[4]IVA_Imposte!AF67 -> 0
B66: =[4]IVA_Imposte!B68 -> 0 | C66: =[4]IVA_Imposte!C68 -> 0 | D66: =[4]IVA_Imposte!E68 -> 0 | E66: =[4]IVA_Imposte!H68 -> 0 | F66: =[4]IVA_Imposte!K68 -> 0 | G66: =[4]IVA_Imposte!N68 -> 0 | H66: =[4]IVA_Imposte!Q68 -> 0 | I66: =[4]IVA_Imposte!T68 -> 0 | J66: =[4]IVA_Imposte!W68 -> 0 | K66: =[4]IVA_Imposte!Z68 -> 0 | L66: =[4]IVA_Imposte!AC68 -> 0 | M66: =[4]IVA_Imposte!AF68 -> 0
B67: =[4]IVA_Imposte!B69 -> 0 | C67: =[4]IVA_Imposte!C69 -> 0 | D67: =[4]IVA_Imposte!E69 -> 0 | E67: =[4]IVA_Imposte!H69 -> 0 | F67: =[4]IVA_Imposte!K69 -> 0 | G67: =[4]IVA_Imposte!N69 -> 0 | H67: =[4]IVA_Imposte!Q69 -> 0 | I67: =[4]IVA_Imposte!T69 -> 0 | J67: =[4]IVA_Imposte!W69 -> 0 | K67: =[4]IVA_Imposte!Z69 -> 0 | L67: =[4]IVA_Imposte!AC69 -> 0 | M67: =[4]IVA_Imposte!AF69 -> 0
B68: =[4]IVA_Imposte!B70 -> 0 | C68: =[4]IVA_Imposte!C70 -> 0 | D68: =[4]IVA_Imposte!E70 -> 0 | E68: =[4]IVA_Imposte!H70 -> 0 | F68: =[4]IVA_Imposte!K70 -> 0 | G68: =[4]IVA_Imposte!N70 -> 0 | H68: =[4]IVA_Imposte!Q70 -> 0 | I68: =[4]IVA_Imposte!T70 -> 0 | J68: =[4]IVA_Imposte!W70 -> 0 | K68: =[4]IVA_Imposte!Z70 -> 0 | L68: =[4]IVA_Imposte!AC70 -> 0 | M68: =[4]IVA_Imposte!AF70 -> 0
B69: =[4]IVA_Imposte!B71 -> 0 | C69: =[4]IVA_Imposte!C71 -> 0 | D69: =[4]IVA_Imposte!E71 -> 0 | E69: =[4]IVA_Imposte!H71 -> 0 | F69: =[4]IVA_Imposte!K71 -> 0 | G69: =[4]IVA_Imposte!N71 -> 0 | H69: =[4]IVA_Imposte!Q71 -> 0 | I69: =[4]IVA_Imposte!T71 -> 0 | J69: =[4]IVA_Imposte!W71 -> 0 | K69: =[4]IVA_Imposte!Z71 -> 0 | L69: =[4]IVA_Imposte!AC71 -> 0 | M69: =[4]IVA_Imposte!AF71 -> 0
B70: =[4]IVA_Imposte!B72 -> 0 | C70: =[4]IVA_Imposte!C72 -> 0 | D70: =[4]IVA_Imposte!E72 -> 0 | E70: =[4]IVA_Imposte!H72 -> 0 | F70: =[4]IVA_Imposte!K72 -> 0 | G70: =[4]IVA_Imposte!N72 -> 0 | H70: =[4]IVA_Imposte!Q72 -> 0 | I70: =[4]IVA_Imposte!T72 -> 0 | J70: =[4]IVA_Imposte!W72 -> 0 | K70: =[4]IVA_Imposte!Z72 -> 0 | L70: =[4]IVA_Imposte!AC72 -> 0 | M70: =[4]IVA_Imposte!AF72 -> 0
B71: =[4]IVA_Imposte!B73 -> 0 | C71: =[4]IVA_Imposte!C73 -> 0 | D71: =[4]IVA_Imposte!E73 -> 0 | E71: =[4]IVA_Imposte!H73 -> 0 | F71: =[4]IVA_Imposte!K73 -> 0 | G71: =[4]IVA_Imposte!N73 -> 0 | H71: =[4]IVA_Imposte!Q73 -> 0 | I71: =[4]IVA_Imposte!T73 -> 0 | J71: =[4]IVA_Imposte!W73 -> 0 | K71: =[4]IVA_Imposte!Z73 -> 0 | L71: =[4]IVA_Imposte!AC73 -> 0 | M71: =[4]IVA_Imposte!AF73 -> 0
B72: =[4]IVA_Imposte!B74 -> 0 | C72: =[4]IVA_Imposte!C74 -> 0 | D72: =[4]IVA_Imposte!E74 -> 0 | E72: =[4]IVA_Imposte!H74 -> 0 | F72: =[4]IVA_Imposte!K74 -> 0 | G72: =[4]IVA_Imposte!N74 -> 0 | H72: =[4]IVA_Imposte!Q74 -> 0 | I72: =[4]IVA_Imposte!T74 -> 0 | J72: =[4]IVA_Imposte!W74 -> 0 | K72: =[4]IVA_Imposte!Z74 -> 0 | L72: =[4]IVA_Imposte!AC74 -> 0 | M72: =[4]IVA_Imposte!AF74 -> 0
B73: =[4]IVA_Imposte!B75 -> 0 | C73: =[4]IVA_Imposte!C75 -> 0 | D73: =[4]IVA_Imposte!E75 -> 0 | E73: =[4]IVA_Imposte!H75 -> 0 | F73: =[4]IVA_Imposte!K75 -> 0 | G73: =[4]IVA_Imposte!N75 -> 0 | H73: =[4]IVA_Imposte!Q75 -> 0 | I73: =[4]IVA_Imposte!T75 -> 0 | J73: =[4]IVA_Imposte!W75 -> 0 | K73: =[4]IVA_Imposte!Z75 -> 0 | L73: =[4]IVA_Imposte!AC75 -> 0 | M73: =[4]IVA_Imposte!AF75 -> 0
B74: =[4]IVA_Imposte!B76 -> 0 | C74: =[4]IVA_Imposte!C76 -> 0 | D74: =[4]IVA_Imposte!E76 -> 0 | E74: =[4]IVA_Imposte!H76 -> 0 | F74: =[4]IVA_Imposte!K76 -> 0 | G74: =[4]IVA_Imposte!N76 -> 0 | H74: =[4]IVA_Imposte!Q76 -> 0 | I74: =[4]IVA_Imposte!T76 -> 0 | J74: =[4]IVA_Imposte!W76 -> 0 | K74: =[4]IVA_Imposte!Z76 -> 0 | L74: =[4]IVA_Imposte!AC76 -> 0 | M74: =[4]IVA_Imposte!AF76 -> 0
B75: =[4]IVA_Imposte!B77 -> 0 | C75: =[4]IVA_Imposte!C77 -> 0 | D75: =[4]IVA_Imposte!E77 -> 0 | E75: =[4]IVA_Imposte!H77 -> 0 | F75: =[4]IVA_Imposte!K77 -> 0 | G75: =[4]IVA_Imposte!N77 -> 0 | H75: =[4]IVA_Imposte!Q77 -> 0 | I75: =[4]IVA_Imposte!T77 -> 0 | J75: =[4]IVA_Imposte!W77 -> 0 | K75: =[4]IVA_Imposte!Z77 -> 0 | L75: =[4]IVA_Imposte!AC77 -> 0 | M75: =[4]IVA_Imposte!AF77 -> 0
B76: =[4]IVA_Imposte!B78 -> 0 | C76: =[4]IVA_Imposte!C78 -> 0 | D76: =[4]IVA_Imposte!E78 -> 0 | E76: =[4]IVA_Imposte!H78 -> 0 | F76: =[4]IVA_Imposte!K78 -> 0 | G76: =[4]IVA_Imposte!N78 -> 0 | H76: =[4]IVA_Imposte!Q78 -> 0 | I76: =[4]IVA_Imposte!T78 -> 0 | J76: =[4]IVA_Imposte!W78 -> 0 | K76: =[4]IVA_Imposte!Z78 -> 0 | L76: =[4]IVA_Imposte!AC78 -> 0 | M76: =[4]IVA_Imposte!AF78 -> 0
B77: =[4]IVA_Imposte!B79 -> 0 | C77: =[4]IVA_Imposte!C79 -> 0 | D77: =[4]IVA_Imposte!E79 -> 0 | E77: =[4]IVA_Imposte!H79 -> 0 | F77: =[4]IVA_Imposte!K79 -> 0 | G77: =[4]IVA_Imposte!N79 -> 0 | H77: =[4]IVA_Imposte!Q79 -> 0 | I77: =[4]IVA_Imposte!T79 -> 0 | J77: =[4]IVA_Imposte!W79 -> 0 | K77: =[4]IVA_Imposte!Z79 -> 0 | L77: =[4]IVA_Imposte!AC79 -> 0 | M77: =[4]IVA_Imposte!AF79 -> 0
B78: =[4]IVA_Imposte!B80 -> 0 | C78: =[4]IVA_Imposte!C80 -> 0 | D78: =[4]IVA_Imposte!E80 -> 0 | E78: =[4]IVA_Imposte!H80 -> 0 | F78: =[4]IVA_Imposte!K80 -> 0 | G78: =[4]IVA_Imposte!N80 -> 0 | H78: =[4]IVA_Imposte!Q80 -> 0 | I78: =[4]IVA_Imposte!T80 -> 0 | J78: =[4]IVA_Imposte!W80 -> 0 | K78: =[4]IVA_Imposte!Z80 -> 0 | L78: =[4]IVA_Imposte!AC80 -> 0 | M78: =[4]IVA_Imposte!AF80 -> 0
B79: =[4]IVA_Imposte!B81 -> 0 | C79: =[4]IVA_Imposte!C81 -> 0 | D79: =[4]IVA_Imposte!E81 -> 0 | E79: =[4]IVA_Imposte!H81 -> 0 | F79: =[4]IVA_Imposte!K81 -> 0 | G79: =[4]IVA_Imposte!N81 -> 0 | H79: =[4]IVA_Imposte!Q81 -> 0 | I79: =[4]IVA_Imposte!T81 -> 0 | J79: =[4]IVA_Imposte!W81 -> 0 | K79: =[4]IVA_Imposte!Z81 -> 0 | L79: =[4]IVA_Imposte!AC81 -> 0 | M79: =[4]IVA_Imposte!AF81 -> 0
B80: =[4]IVA_Imposte!B82 -> 0 | C80: =[4]IVA_Imposte!C82 -> 0 | D80: =[4]IVA_Imposte!E82 -> 0 | E80: =[4]IVA_Imposte!H82 -> 0 | F80: =[4]IVA_Imposte!K82 -> 0 | G80: =[4]IVA_Imposte!N82 -> 0 | H80: =[4]IVA_Imposte!Q82 -> 0 | I80: =[4]IVA_Imposte!T82 -> 0 | J80: =[4]IVA_Imposte!W82 -> 0 | K80: =[4]IVA_Imposte!Z82 -> 0 | L80: =[4]IVA_Imposte!AC82 -> 0 | M80: =[4]IVA_Imposte!AF82 -> 0
B81: =[4]IVA_Imposte!B83 -> 0 | C81: =[4]IVA_Imposte!C83 -> 0 | D81: =[4]IVA_Imposte!E83 -> 0 | E81: =[4]IVA_Imposte!H83 -> 0 | F81: =[4]IVA_Imposte!K83 -> 0 | G81: =[4]IVA_Imposte!N83 -> 0 | H81: =[4]IVA_Imposte!Q83 -> 0 | I81: =[4]IVA_Imposte!T83 -> 0 | J81: =[4]IVA_Imposte!W83 -> 0 | K81: =[4]IVA_Imposte!Z83 -> 0 | L81: =[4]IVA_Imposte!AC83 -> 0 | M81: =[4]IVA_Imposte!AF83 -> 0
B82: =[4]IVA_Imposte!B84 -> 0 | C82: =[4]IVA_Imposte!C84 -> 0 | D82: =[4]IVA_Imposte!E84 -> 0 | E82: =[4]IVA_Imposte!H84 -> 0 | F82: =[4]IVA_Imposte!K84 -> 0 | G82: =[4]IVA_Imposte!N84 -> 0 | H82: =[4]IVA_Imposte!Q84 -> 0 | I82: =[4]IVA_Imposte!T84 -> 0 | J82: =[4]IVA_Imposte!W84 -> 0 | K82: =[4]IVA_Imposte!Z84 -> 0 | L82: =[4]IVA_Imposte!AC84 -> 0 | M82: =[4]IVA_Imposte!AF84 -> 0
B83: =[4]IVA_Imposte!B85 -> 0 | C83: =[4]IVA_Imposte!C85 -> 0 | D83: =[4]IVA_Imposte!E85 -> 0 | E83: =[4]IVA_Imposte!H85 -> 0 | F83: =[4]IVA_Imposte!K85 -> 0 | G83: =[4]IVA_Imposte!N85 -> 0 | H83: =[4]IVA_Imposte!Q85 -> 0 | I83: =[4]IVA_Imposte!T85 -> 0 | J83: =[4]IVA_Imposte!W85 -> 0 | K83: =[4]IVA_Imposte!Z85 -> 0 | L83: =[4]IVA_Imposte!AC85 -> 0 | M83: =[4]IVA_Imposte!AF85 -> 0
B84: =[4]IVA_Imposte!B86 -> 0 | C84: =[4]IVA_Imposte!C86 -> 0 | D84: =[4]IVA_Imposte!E86 -> 0 | E84: =[4]IVA_Imposte!H86 -> 0 | F84: =[4]IVA_Imposte!K86 -> 0 | G84: =[4]IVA_Imposte!N86 -> 0 | H84: =[4]IVA_Imposte!Q86 -> 0 | I84: =[4]IVA_Imposte!T86 -> 0 | J84: =[4]IVA_Imposte!W86 -> 0 | K84: =[4]IVA_Imposte!Z86 -> 0 | L84: =[4]IVA_Imposte!AC86 -> 0 | M84: =[4]IVA_Imposte!AF86 -> 0
B85: =[4]IVA_Imposte!B87 -> 0 | C85: =[4]IVA_Imposte!C87 -> 0 | D85: =[4]IVA_Imposte!E87 -> 0 | E85: =[4]IVA_Imposte!H87 -> 0 | F85: =[4]IVA_Imposte!K87 -> 0 | G85: =[4]IVA_Imposte!N87 -> 0 | H85: =[4]IVA_Imposte!Q87 -> 0 | I85: =[4]IVA_Imposte!T87 -> 0 | J85: =[4]IVA_Imposte!W87 -> 0 | K85: =[4]IVA_Imposte!Z87 -> 0 | L85: =[4]IVA_Imposte!AC87 -> 0 | M85: =[4]IVA_Imposte!AF87 -> 0
B86: =[4]IVA_Imposte!B88 -> 0 | C86: =[4]IVA_Imposte!C88 -> 0 | D86: =[4]IVA_Imposte!E88 -> 0 | E86: =[4]IVA_Imposte!H88 -> 0 | F86: =[4]IVA_Imposte!K88 -> 0 | G86: =[4]IVA_Imposte!N88 -> 0 | H86: =[4]IVA_Imposte!Q88 -> 0 | I86: =[4]IVA_Imposte!T88 -> 0 | J86: =[4]IVA_Imposte!W88 -> 0 | K86: =[4]IVA_Imposte!Z88 -> 0 | L86: =[4]IVA_Imposte!AC88 -> 0 | M86: =[4]IVA_Imposte!AF88 -> 0
B87: =[4]IVA_Imposte!B89 -> 0 | C87: =[4]IVA_Imposte!C89 -> 0 | D87: =[4]IVA_Imposte!E89 -> 0 | E87: =[4]IVA_Imposte!H89 -> 0 | F87: =[4]IVA_Imposte!K89 -> 0 | G87: =[4]IVA_Imposte!N89 -> 0 | H87: =[4]IVA_Imposte!Q89 -> 0 | I87: =[4]IVA_Imposte!T89 -> 0 | J87: =[4]IVA_Imposte!W89 -> 0 | K87: =[4]IVA_Imposte!Z89 -> 0 | L87: =[4]IVA_Imposte!AC89 -> 0 | M87: =[4]IVA_Imposte!AF89 -> 0
B88: =[4]IVA_Imposte!B90 -> 0 | C88: =[4]IVA_Imposte!C90 -> 0 | D88: =[4]IVA_Imposte!E90 -> 0 | E88: =[4]IVA_Imposte!H90 -> 0 | F88: =[4]IVA_Imposte!K90 -> 0 | G88: =[4]IVA_Imposte!N90 -> 0 | H88: =[4]IVA_Imposte!Q90 -> 0 | I88: =[4]IVA_Imposte!T90 -> 0 | J88: =[4]IVA_Imposte!W90 -> 0 | K88: =[4]IVA_Imposte!Z90 -> 0 | L88: =[4]IVA_Imposte!AC90 -> 0 | M88: =[4]IVA_Imposte!AF90 -> 0
B89: =[4]IVA_Imposte!B91 -> 0 | C89: =[4]IVA_Imposte!C91 -> 0 | D89: =[4]IVA_Imposte!E91 -> 0 | E89: =[4]IVA_Imposte!H91 -> 0 | F89: =[4]IVA_Imposte!K91 -> 0 | G89: =[4]IVA_Imposte!N91 -> 0 | H89: =[4]IVA_Imposte!Q91 -> 0 | I89: =[4]IVA_Imposte!T91 -> 0 | J89: =[4]IVA_Imposte!W91 -> 0 | K89: =[4]IVA_Imposte!Z91 -> 0 | L89: =[4]IVA_Imposte!AC91 -> 0 | M89: =[4]IVA_Imposte!AF91 -> 0
B90: =[4]IVA_Imposte!B92 -> 0 | C90: =[4]IVA_Imposte!C92 -> 0 | D90: =[4]IVA_Imposte!E92 -> 0 | E90: =[4]IVA_Imposte!H92 -> 0 | F90: =[4]IVA_Imposte!K92 -> 0 | G90: =[4]IVA_Imposte!N92 -> 0 | H90: =[4]IVA_Imposte!Q92 -> 0 | I90: =[4]IVA_Imposte!T92 -> 0 | J90: =[4]IVA_Imposte!W92 -> 0 | K90: =[4]IVA_Imposte!Z92 -> 0 | L90: =[4]IVA_Imposte!AC92 -> 0 | M90: =[4]IVA_Imposte!AF92 -> 0
B91: =[4]IVA_Imposte!B93 -> 0 | C91: =[4]IVA_Imposte!C93 -> 0 | D91: =[4]IVA_Imposte!E93 -> 0 | E91: =[4]IVA_Imposte!H93 -> 0 | F91: =[4]IVA_Imposte!K93 -> 0 | G91: =[4]IVA_Imposte!N93 -> 0 | H91: =[4]IVA_Imposte!Q93 -> 0 | I91: =[4]IVA_Imposte!T93 -> 0 | J91: =[4]IVA_Imposte!W93 -> 0 | K91: =[4]IVA_Imposte!Z93 -> 0 | L91: =[4]IVA_Imposte!AC93 -> 0 | M91: =[4]IVA_Imposte!AF93 -> 0
B92: =[4]IVA_Imposte!B94 -> 0 | C92: =[4]IVA_Imposte!C94 -> 0 | D92: =[4]IVA_Imposte!E94 -> 0 | E92: =[4]IVA_Imposte!H94 -> 0 | F92: =[4]IVA_Imposte!K94 -> 0 | G92: =[4]IVA_Imposte!N94 -> 0 | H92: =[4]IVA_Imposte!Q94 -> 0 | I92: =[4]IVA_Imposte!T94 -> 0 | J92: =[4]IVA_Imposte!W94 -> 0 | K92: =[4]IVA_Imposte!Z94 -> 0 | L92: =[4]IVA_Imposte!AC94 -> 0 | M92: =[4]IVA_Imposte!AF94 -> 0
B93: =[4]IVA_Imposte!B95 -> 0 | C93: =[4]IVA_Imposte!C95 -> 0 | D93: =[4]IVA_Imposte!E95 -> 0 | E93: =[4]IVA_Imposte!H95 -> 0 | F93: =[4]IVA_Imposte!K95 -> 0 | G93: =[4]IVA_Imposte!N95 -> 0 | H93: =[4]IVA_Imposte!Q95 -> 0 | I93: =[4]IVA_Imposte!T95 -> 0 | J93: =[4]IVA_Imposte!W95 -> 0 | K93: =[4]IVA_Imposte!Z95 -> 0 | L93: =[4]IVA_Imposte!AC95 -> 0 | M93: =[4]IVA_Imposte!AF95 -> 0
B94: =[4]IVA_Imposte!B96 -> 0 | C94: =[4]IVA_Imposte!C96 -> 0 | D94: =[4]IVA_Imposte!E96 -> 0 | E94: =[4]IVA_Imposte!H96 -> 0 | F94: =[4]IVA_Imposte!K96 -> 0 | G94: =[4]IVA_Imposte!N96 -> 0 | H94: =[4]IVA_Imposte!Q96 -> 0 | I94: =[4]IVA_Imposte!T96 -> 0 | J94: =[4]IVA_Imposte!W96 -> 0 | K94: =[4]IVA_Imposte!Z96 -> 0 | L94: =[4]IVA_Imposte!AC96 -> 0 | M94: =[4]IVA_Imposte!AF96 -> 0
B95: =[4]IVA_Imposte!B97 -> 0 | C95: =[4]IVA_Imposte!C97 -> 0 | D95: =[4]IVA_Imposte!E97 -> 0 | E95: =[4]IVA_Imposte!H97 -> 0 | F95: =[4]IVA_Imposte!K97 -> 0 | G95: =[4]IVA_Imposte!N97 -> 0 | H95: =[4]IVA_Imposte!Q97 -> 0 | I95: =[4]IVA_Imposte!T97 -> 0 | J95: =[4]IVA_Imposte!W97 -> 0 | K95: =[4]IVA_Imposte!Z97 -> 0 | L95: =[4]IVA_Imposte!AC97 -> 0 | M95: =[4]IVA_Imposte!AF97 -> 0
B96: =[4]IVA_Imposte!B98 -> 0 | C96: =[4]IVA_Imposte!C98 -> 0 | D96: =[4]IVA_Imposte!E98 -> 0 | E96: =[4]IVA_Imposte!H98 -> 0 | F96: =[4]IVA_Imposte!K98 -> 0 | G96: =[4]IVA_Imposte!N98 -> 0 | H96: =[4]IVA_Imposte!Q98 -> 0 | I96: =[4]IVA_Imposte!T98 -> 0 | J96: =[4]IVA_Imposte!W98 -> 0 | K96: =[4]IVA_Imposte!Z98 -> 0 | L96: =[4]IVA_Imposte!AC98 -> 0 | M96: =[4]IVA_Imposte!AF98 -> 0
B97: =[4]IVA_Imposte!B99 -> 0 | C97: =[4]IVA_Imposte!C99 -> 0 | D97: =[4]IVA_Imposte!E99 -> 0 | E97: =[4]IVA_Imposte!H99 -> 0 | F97: =[4]IVA_Imposte!K99 -> 0 | G97: =[4]IVA_Imposte!N99 -> 0 | H97: =[4]IVA_Imposte!Q99 -> 0 | I97: =[4]IVA_Imposte!T99 -> 0 | J97: =[4]IVA_Imposte!W99 -> 0 | K97: =[4]IVA_Imposte!Z99 -> 0 | L97: =[4]IVA_Imposte!AC99 -> 0 | M97: =[4]IVA_Imposte!AF99 -> 0
B98: =[4]IVA_Imposte!B100 -> 0 | C98: =[4]IVA_Imposte!C100 -> 0 | D98: =[4]IVA_Imposte!E100 -> 0 | E98: =[4]IVA_Imposte!H100 -> 0 | F98: =[4]IVA_Imposte!K100 -> 0 | G98: =[4]IVA_Imposte!N100 -> 0 | H98: =[4]IVA_Imposte!Q100 -> 0 | I98: =[4]IVA_Imposte!T100 -> 0 | J98: =[4]IVA_Imposte!W100 -> 0 | K98: =[4]IVA_Imposte!Z100 -> 0 | L98: =[4]IVA_Imposte!AC100 -> 0 | M98: =[4]IVA_Imposte!AF100 -> 0
B99: =[4]IVA_Imposte!B101 -> 0 | C99: =[4]IVA_Imposte!C101 -> 0 | D99: =[4]IVA_Imposte!E101 -> 0 | E99: =[4]IVA_Imposte!H101 -> 0 | F99: =[4]IVA_Imposte!K101 -> 0 | G99: =[4]IVA_Imposte!N101 -> 0 | H99: =[4]IVA_Imposte!Q101 -> 0 | I99: =[4]IVA_Imposte!T101 -> 0 | J99: =[4]IVA_Imposte!W101 -> 0 | K99: =[4]IVA_Imposte!Z101 -> 0 | L99: =[4]IVA_Imposte!AC101 -> 0 | M99: =[4]IVA_Imposte!AF101 -> 0
B100: =[4]IVA_Imposte!B102 -> 0 | C100: =[4]IVA_Imposte!C102 -> 0 | D100: =[4]IVA_Imposte!E102 -> 0 | E100: =[4]IVA_Imposte!H102 -> 0 | F100: =[4]IVA_Imposte!K102 -> 0 | G100: =[4]IVA_Imposte!N102 -> 0 | H100: =[4]IVA_Imposte!Q102 -> 0 | I100: =[4]IVA_Imposte!T102 -> 0 | J100: =[4]IVA_Imposte!W102 -> 0 | K100: =[4]IVA_Imposte!Z102 -> 0 | L100: =[4]IVA_Imposte!AC102 -> 0 | M100: =[4]IVA_Imposte!AF102 -> 0
B101: =[4]IVA_Imposte!B103 -> 0 | C101: =[4]IVA_Imposte!C103 -> 0 | D101: =[4]IVA_Imposte!E103 -> 0 | E101: =[4]IVA_Imposte!H103 -> 0 | F101: =[4]IVA_Imposte!K103 -> 0 | G101: =[4]IVA_Imposte!N103 -> 0 | H101: =[4]IVA_Imposte!Q103 -> 0 | I101: =[4]IVA_Imposte!T103 -> 0 | J101: =[4]IVA_Imposte!W103 -> 0 | K101: =[4]IVA_Imposte!Z103 -> 0 | L101: =[4]IVA_Imposte!AC103 -> 0 | M101: =[4]IVA_Imposte!AF103 -> 0
B102: =[4]IVA_Imposte!B104 -> 0 | C102: =[4]IVA_Imposte!C104 -> 0 | D102: =[4]IVA_Imposte!E104 -> 0 | E102: =[4]IVA_Imposte!H104 -> 0 | F102: =[4]IVA_Imposte!K104 -> 0 | G102: =[4]IVA_Imposte!N104 -> 0 | H102: =[4]IVA_Imposte!Q104 -> 0 | I102: =[4]IVA_Imposte!T104 -> 0 | J102: =[4]IVA_Imposte!W104 -> 0 | K102: =[4]IVA_Imposte!Z104 -> 0 | L102: =[4]IVA_Imposte!AC104 -> 0 | M102: =[4]IVA_Imposte!AF104 -> 0
B103: =[4]IVA_Imposte!B105 -> 0 | C103: =[4]IVA_Imposte!C105 -> 0 | D103: =[4]IVA_Imposte!E105 -> 0 | E103: =[4]IVA_Imposte!H105 -> 0 | F103: =[4]IVA_Imposte!K105 -> 0 | G103: =[4]IVA_Imposte!N105 -> 0 | H103: =[4]IVA_Imposte!Q105 -> 0 | I103: =[4]IVA_Imposte!T105 -> 0 | J103: =[4]IVA_Imposte!W105 -> 0 | K103: =[4]IVA_Imposte!Z105 -> 0 | L103: =[4]IVA_Imposte!AC105 -> 0 | M103: =[4]IVA_Imposte!AF105 -> 0
B104: =[4]IVA_Imposte!B106 -> 0 | C104: =[4]IVA_Imposte!C106 -> 0 | D104: =[4]IVA_Imposte!E106 -> 0 | E104: =[4]IVA_Imposte!H106 -> 0 | F104: =[4]IVA_Imposte!K106 -> 0 | G104: =[4]IVA_Imposte!N106 -> 0 | H104: =[4]IVA_Imposte!Q106 -> 0 | I104: =[4]IVA_Imposte!T106 -> 0 | J104: =[4]IVA_Imposte!W106 -> 0 | K104: =[4]IVA_Imposte!Z106 -> 0 | L104: =[4]IVA_Imposte!AC106 -> 0 | M104: =[4]IVA_Imposte!AF106 -> 0
B105: =[4]IVA_Imposte!B107 -> 0 | C105: =[4]IVA_Imposte!C107 -> 0 | D105: =[4]IVA_Imposte!E107 -> 0 | E105: =[4]IVA_Imposte!H107 -> 0 | F105: =[4]IVA_Imposte!K107 -> 0 | G105: =[4]IVA_Imposte!N107 -> 0 | H105: =[4]IVA_Imposte!Q107 -> 0 | I105: =[4]IVA_Imposte!T107 -> 0 | J105: =[4]IVA_Imposte!W107 -> 0 | K105: =[4]IVA_Imposte!Z107 -> 0 | L105: =[4]IVA_Imposte!AC107 -> 0 | M105: =[4]IVA_Imposte!AF107 -> 0
B106: =[4]IVA_Imposte!B108 -> 0 | C106: =[4]IVA_Imposte!C108 -> 0 | D106: =[4]IVA_Imposte!E108 -> 0 | E106: =[4]IVA_Imposte!H108 -> 0 | F106: =[4]IVA_Imposte!K108 -> 0 | G106: =[4]IVA_Imposte!N108 -> 0 | H106: =[4]IVA_Imposte!Q108 -> 0 | I106: =[4]IVA_Imposte!T108 -> 0 | J106: =[4]IVA_Imposte!W108 -> 0 | K106: =[4]IVA_Imposte!Z108 -> 0 | L106: =[4]IVA_Imposte!AC108 -> 0 | M106: =[4]IVA_Imposte!AF108 -> 0
B107: =[4]IVA_Imposte!B109 -> 0 | C107: =[4]IVA_Imposte!C109 -> 0 | D107: =[4]IVA_Imposte!E109 -> 0 | E107: =[4]IVA_Imposte!H109 -> 0 | F107: =[4]IVA_Imposte!K109 -> 0 | G107: =[4]IVA_Imposte!N109 -> 0 | H107: =[4]IVA_Imposte!Q109 -> 0 | I107: =[4]IVA_Imposte!T109 -> 0 | J107: =[4]IVA_Imposte!W109 -> 0 | K107: =[4]IVA_Imposte!Z109 -> 0 | L107: =[4]IVA_Imposte!AC109 -> 0 | M107: =[4]IVA_Imposte!AF109 -> 0
B108: =[4]IVA_Imposte!B110 -> 0 | C108: =[4]IVA_Imposte!C110 -> 0 | D108: =[4]IVA_Imposte!E110 -> 0 | E108: =[4]IVA_Imposte!H110 -> 0 | F108: =[4]IVA_Imposte!K110 -> 0 | G108: =[4]IVA_Imposte!N110 -> 0 | H108: =[4]IVA_Imposte!Q110 -> 0 | I108: =[4]IVA_Imposte!T110 -> 0 | J108: =[4]IVA_Imposte!W110 -> 0 | K108: =[4]IVA_Imposte!Z110 -> 0 | L108: =[4]IVA_Imposte!AC110 -> 0 | M108: =[4]IVA_Imposte!AF110 -> 0
B109: =[4]IVA_Imposte!B111 -> 0 | C109: =[4]IVA_Imposte!C111 -> 0 | D109: =[4]IVA_Imposte!E111 -> 0 | E109: =[4]IVA_Imposte!H111 -> 0 | F109: =[4]IVA_Imposte!K111 -> 0 | G109: =[4]IVA_Imposte!N111 -> 0 | H109: =[4]IVA_Imposte!Q111 -> 0 | I109: =[4]IVA_Imposte!T111 -> 0 | J109: =[4]IVA_Imposte!W111 -> 0 | K109: =[4]IVA_Imposte!Z111 -> 0 | L109: =[4]IVA_Imposte!AC111 -> 0 | M109: =[4]IVA_Imposte!AF111 -> 0
B110: =[4]IVA_Imposte!B112 -> 0 | C110: =[4]IVA_Imposte!C112 -> 0 | D110: =[4]IVA_Imposte!E112 -> 0 | E110: =[4]IVA_Imposte!H112 -> 0 | F110: =[4]IVA_Imposte!K112 -> 0 | G110: =[4]IVA_Imposte!N112 -> 0 | H110: =[4]IVA_Imposte!Q112 -> 0 | I110: =[4]IVA_Imposte!T112 -> 0 | J110: =[4]IVA_Imposte!W112 -> 0 | K110: =[4]IVA_Imposte!Z112 -> 0 | L110: =[4]IVA_Imposte!AC112 -> 0 | M110: =[4]IVA_Imposte!AF112 -> 0
B111: =[4]IVA_Imposte!B113 -> 0 | C111: =[4]IVA_Imposte!C113 -> 0 | D111: =[4]IVA_Imposte!E113 -> 0 | E111: =[4]IVA_Imposte!H113 -> 0 | F111: =[4]IVA_Imposte!K113 -> 0 | G111: =[4]IVA_Imposte!N113 -> 0 | H111: =[4]IVA_Imposte!Q113 -> 0 | I111: =[4]IVA_Imposte!T113 -> 0 | J111: =[4]IVA_Imposte!W113 -> 0 | K111: =[4]IVA_Imposte!Z113 -> 0 | L111: =[4]IVA_Imposte!AC113 -> 0 | M111: =[4]IVA_Imposte!AF113 -> 0
B112: =[4]IVA_Imposte!B114 -> 0 | C112: =[4]IVA_Imposte!C114 -> 0 | D112: =[4]IVA_Imposte!E114 -> 0 | E112: =[4]IVA_Imposte!H114 -> 0 | F112: =[4]IVA_Imposte!K114 -> 0 | G112: =[4]IVA_Imposte!N114 -> 0 | H112: =[4]IVA_Imposte!Q114 -> 0 | I112: =[4]IVA_Imposte!T114 -> 0 | J112: =[4]IVA_Imposte!W114 -> 0 | K112: =[4]IVA_Imposte!Z114 -> 0 | L112: =[4]IVA_Imposte!AC114 -> 0 | M112: =[4]IVA_Imposte!AF114 -> 0
B113: =[4]IVA_Imposte!B115 -> 0 | C113: =[4]IVA_Imposte!C115 -> 0 | D113: =[4]IVA_Imposte!E115 -> 0 | E113: =[4]IVA_Imposte!H115 -> 0 | F113: =[4]IVA_Imposte!K115 -> 0 | G113: =[4]IVA_Imposte!N115 -> 0 | H113: =[4]IVA_Imposte!Q115 -> 0 | I113: =[4]IVA_Imposte!T115 -> 0 | J113: =[4]IVA_Imposte!W115 -> 0 | K113: =[4]IVA_Imposte!Z115 -> 0 | L113: =[4]IVA_Imposte!AC115 -> 0 | M113: =[4]IVA_Imposte!AF115 -> 0
B114: =[4]IVA_Imposte!B116 -> 0 | C114: =[4]IVA_Imposte!C116 -> 0 | D114: =[4]IVA_Imposte!E116 -> 0 | E114: =[4]IVA_Imposte!H116 -> 0 | F114: =[4]IVA_Imposte!K116 -> 0 | G114: =[4]IVA_Imposte!N116 -> 0 | H114: =[4]IVA_Imposte!Q116 -> 0 | I114: =[4]IVA_Imposte!T116 -> 0 | J114: =[4]IVA_Imposte!W116 -> 0 | K114: =[4]IVA_Imposte!Z116 -> 0 | L114: =[4]IVA_Imposte!AC116 -> 0 | M114: =[4]IVA_Imposte!AF116 -> 0
B115: =[4]IVA_Imposte!B117 -> 0 | C115: =[4]IVA_Imposte!C117 -> 0 | D115: =[4]IVA_Imposte!E117 -> 0 | E115: =[4]IVA_Imposte!H117 -> 0 | F115: =[4]IVA_Imposte!K117 -> 0 | G115: =[4]IVA_Imposte!N117 -> 0 | H115: =[4]IVA_Imposte!Q117 -> 0 | I115: =[4]IVA_Imposte!T117 -> 0 | J115: =[4]IVA_Imposte!W117 -> 0 | K115: =[4]IVA_Imposte!Z117 -> 0 | L115: =[4]IVA_Imposte!AC117 -> 0 | M115: =[4]IVA_Imposte!AF117 -> 0
B116: =[4]IVA_Imposte!B118 -> 0 | C116: =[4]IVA_Imposte!C118 -> 0 | D116: =[4]IVA_Imposte!E118 -> 0 | E116: =[4]IVA_Imposte!H118 -> 0 | F116: =[4]IVA_Imposte!K118 -> 0 | G116: =[4]IVA_Imposte!N118 -> 0 | H116: =[4]IVA_Imposte!Q118 -> 0 | I116: =[4]IVA_Imposte!T118 -> 0 | J116: =[4]IVA_Imposte!W118 -> 0 | K116: =[4]IVA_Imposte!Z118 -> 0 | L116: =[4]IVA_Imposte!AC118 -> 0 | M116: =[4]IVA_Imposte!AF118 -> 0
B117: =[4]IVA_Imposte!B119 -> 0 | C117: =[4]IVA_Imposte!C119 -> 0 | D117: =[4]IVA_Imposte!E119 -> 0 | E117: =[4]IVA_Imposte!H119 -> 0 | F117: =[4]IVA_Imposte!K119 -> 0 | G117: =[4]IVA_Imposte!N119 -> 0 | H117: =[4]IVA_Imposte!Q119 -> 0 | I117: =[4]IVA_Imposte!T119 -> 0 | J117: =[4]IVA_Imposte!W119 -> 0 | K117: =[4]IVA_Imposte!Z119 -> 0 | L117: =[4]IVA_Imposte!AC119 -> 0 | M117: =[4]IVA_Imposte!AF119 -> 0
B118: =[4]IVA_Imposte!B120 -> 0 | C118: =[4]IVA_Imposte!C120 -> 0 | D118: =[4]IVA_Imposte!E120 -> 0 | E118: =[4]IVA_Imposte!H120 -> 0 | F118: =[4]IVA_Imposte!K120 -> 0 | G118: =[4]IVA_Imposte!N120 -> 0 | H118: =[4]IVA_Imposte!Q120 -> 0 | I118: =[4]IVA_Imposte!T120 -> 0 | J118: =[4]IVA_Imposte!W120 -> 0 | K118: =[4]IVA_Imposte!Z120 -> 0 | L118: =[4]IVA_Imposte!AC120 -> 0 | M118: =[4]IVA_Imposte!AF120 -> 0
B119: =[4]IVA_Imposte!B121 -> 0 | C119: =[4]IVA_Imposte!C121 -> 0 | D119: =[4]IVA_Imposte!E121 -> 0 | E119: =[4]IVA_Imposte!H121 -> 0 | F119: =[4]IVA_Imposte!K121 -> 0 | G119: =[4]IVA_Imposte!N121 -> 0 | H119: =[4]IVA_Imposte!Q121 -> 0 | I119: =[4]IVA_Imposte!T121 -> 0 | J119: =[4]IVA_Imposte!W121 -> 0 | K119: =[4]IVA_Imposte!Z121 -> 0 | L119: =[4]IVA_Imposte!AC121 -> 0 | M119: =[4]IVA_Imposte!AF121 -> 0
B120: =[4]IVA_Imposte!B122 -> 0 | C120: =[4]IVA_Imposte!C122 -> 0 | D120: =[4]IVA_Imposte!E122 -> 0 | E120: =[4]IVA_Imposte!H122 -> 0 | F120: =[4]IVA_Imposte!K122 -> 0 | G120: =[4]IVA_Imposte!N122 -> 0 | H120: =[4]IVA_Imposte!Q122 -> 0 | I120: =[4]IVA_Imposte!T122 -> 0 | J120: =[4]IVA_Imposte!W122 -> 0 | K120: =[4]IVA_Imposte!Z122 -> 0 | L120: =[4]IVA_Imposte!AC122 -> 0 | M120: =[4]IVA_Imposte!AF122 -> 0
B121: =[4]IVA_Imposte!B123 -> 0 | C121: =[4]IVA_Imposte!C123 -> 0 | D121: =[4]IVA_Imposte!E123 -> 0 | E121: =[4]IVA_Imposte!H123 -> 0 | F121: =[4]IVA_Imposte!K123 -> 0 | G121: =[4]IVA_Imposte!N123 -> 0 | H121: =[4]IVA_Imposte!Q123 -> 0 | I121: =[4]IVA_Imposte!T123 -> 0 | J121: =[4]IVA_Imposte!W123 -> 0 | K121: =[4]IVA_Imposte!Z123 -> 0 | L121: =[4]IVA_Imposte!AC123 -> 0 | M121: =[4]IVA_Imposte!AF123 -> 0
B122: =[4]IVA_Imposte!B124 -> 0 | C122: =[4]IVA_Imposte!C124 -> 0 | D122: =[4]IVA_Imposte!E124 -> 0 | E122: =[4]IVA_Imposte!H124 -> 0 | F122: =[4]IVA_Imposte!K124 -> 0 | G122: =[4]IVA_Imposte!N124 -> 0 | H122: =[4]IVA_Imposte!Q124 -> 0 | I122: =[4]IVA_Imposte!T124 -> 0 | J122: =[4]IVA_Imposte!W124 -> 0 | K122: =[4]IVA_Imposte!Z124 -> 0 | L122: =[4]IVA_Imposte!AC124 -> 0 | M122: =[4]IVA_Imposte!AF124 -> 0
B123: =[4]IVA_Imposte!B125 -> 0 | C123: =[4]IVA_Imposte!C125 -> 0 | D123: =[4]IVA_Imposte!E125 -> 0 | E123: =[4]IVA_Imposte!H125 -> 0 | F123: =[4]IVA_Imposte!K125 -> 0 | G123: =[4]IVA_Imposte!N125 -> 0 | H123: =[4]IVA_Imposte!Q125 -> 0 | I123: =[4]IVA_Imposte!T125 -> 0 | J123: =[4]IVA_Imposte!W125 -> 0 | K123: =[4]IVA_Imposte!Z125 -> 0 | L123: =[4]IVA_Imposte!AC125 -> 0 | M123: =[4]IVA_Imposte!AF125 -> 0
B124: =[4]IVA_Imposte!B126 -> 0 | C124: =[4]IVA_Imposte!C126 -> 0 | D124: =[4]IVA_Imposte!E126 -> 0 | E124: =[4]IVA_Imposte!H126 -> 0 | F124: =[4]IVA_Imposte!K126 -> 0 | G124: =[4]IVA_Imposte!N126 -> 0 | H124: =[4]IVA_Imposte!Q126 -> 0 | I124: =[4]IVA_Imposte!T126 -> 0 | J124: =[4]IVA_Imposte!W126 -> 0 | K124: =[4]IVA_Imposte!Z126 -> 0 | L124: =[4]IVA_Imposte!AC126 -> 0 | M124: =[4]IVA_Imposte!AF126 -> 0
B125: =[4]IVA_Imposte!B127 -> 0 | C125: =[4]IVA_Imposte!C127 -> 0 | D125: =[4]IVA_Imposte!E127 -> 0 | E125: =[4]IVA_Imposte!H127 -> 0 | F125: =[4]IVA_Imposte!K127 -> 0 | G125: =[4]IVA_Imposte!N127 -> 0 | H125: =[4]IVA_Imposte!Q127 -> 0 | I125: =[4]IVA_Imposte!T127 -> 0 | J125: =[4]IVA_Imposte!W127 -> 0 | K125: =[4]IVA_Imposte!Z127 -> 0 | L125: =[4]IVA_Imposte!AC127 -> 0 | M125: =[4]IVA_Imposte!AF127 -> 0
B126: =[4]IVA_Imposte!B128 -> 0 | C126: =[4]IVA_Imposte!C128 -> 0 | D126: =[4]IVA_Imposte!E128 -> 0 | E126: =[4]IVA_Imposte!H128 -> 0 | F126: =[4]IVA_Imposte!K128 -> 0 | G126: =[4]IVA_Imposte!N128 -> 0 | H126: =[4]IVA_Imposte!Q128 -> 0 | I126: =[4]IVA_Imposte!T128 -> 0 | J126: =[4]IVA_Imposte!W128 -> 0 | K126: =[4]IVA_Imposte!Z128 -> 0 | L126: =[4]IVA_Imposte!AC128 -> 0 | M126: =[4]IVA_Imposte!AF128 -> 0
B127: =[4]IVA_Imposte!B129 -> 0 | C127: =[4]IVA_Imposte!C129 -> 0 | D127: =[4]IVA_Imposte!E129 -> 0 | E127: =[4]IVA_Imposte!H129 -> 0 | F127: =[4]IVA_Imposte!K129 -> 0 | G127: =[4]IVA_Imposte!N129 -> 0 | H127: =[4]IVA_Imposte!Q129 -> 0 | I127: =[4]IVA_Imposte!T129 -> 0 | J127: =[4]IVA_Imposte!W129 -> 0 | K127: =[4]IVA_Imposte!Z129 -> 0 | L127: =[4]IVA_Imposte!AC129 -> 0 | M127: =[4]IVA_Imposte!AF129 -> 0
B128: =[4]IVA_Imposte!B130 -> 0 | C128: =[4]IVA_Imposte!C130 -> 0 | D128: =[4]IVA_Imposte!E130 -> 0 | E128: =[4]IVA_Imposte!H130 -> 0 | F128: =[4]IVA_Imposte!K130 -> 0 | G128: =[4]IVA_Imposte!N130 -> 0 | H128: =[4]IVA_Imposte!Q130 -> 0 | I128: =[4]IVA_Imposte!T130 -> 0 | J128: =[4]IVA_Imposte!W130 -> 0 | K128: =[4]IVA_Imposte!Z130 -> 0 | L128: =[4]IVA_Imposte!AC130 -> 0 | M128: =[4]IVA_Imposte!AF130 -> 0
B129: =[4]IVA_Imposte!B131 -> 0 | C129: =[4]IVA_Imposte!C131 -> 0 | D129: =[4]IVA_Imposte!E131 -> 0 | E129: =[4]IVA_Imposte!H131 -> 0 | F129: =[4]IVA_Imposte!K131 -> 0 | G129: =[4]IVA_Imposte!N131 -> 0 | H129: =[4]IVA_Imposte!Q131 -> 0 | I129: =[4]IVA_Imposte!T131 -> 0 | J129: =[4]IVA_Imposte!W131 -> 0 | K129: =[4]IVA_Imposte!Z131 -> 0 | L129: =[4]IVA_Imposte!AC131 -> 0 | M129: =[4]IVA_Imposte!AF131 -> 0
B130: =[4]IVA_Imposte!B132 -> 0 | C130: =[4]IVA_Imposte!C132 -> 0 | D130: =[4]IVA_Imposte!E132 -> 0 | E130: =[4]IVA_Imposte!H132 -> 0 | F130: =[4]IVA_Imposte!K132 -> 0 | G130: =[4]IVA_Imposte!N132 -> 0 | H130: =[4]IVA_Imposte!Q132 -> 0 | I130: =[4]IVA_Imposte!T132 -> 0 | J130: =[4]IVA_Imposte!W132 -> 0 | K130: =[4]IVA_Imposte!Z132 -> 0 | L130: =[4]IVA_Imposte!AC132 -> 0 | M130: =[4]IVA_Imposte!AF132 -> 0
B131: =[4]IVA_Imposte!B133 -> 0 | C131: =[4]IVA_Imposte!C133 -> 0 | D131: =[4]IVA_Imposte!E133 -> 0 | E131: =[4]IVA_Imposte!H133 -> 0 | F131: =[4]IVA_Imposte!K133 -> 0 | G131: =[4]IVA_Imposte!N133 -> 0 | H131: =[4]IVA_Imposte!Q133 -> 0 | I131: =[4]IVA_Imposte!T133 -> 0 | J131: =[4]IVA_Imposte!W133 -> 0 | K131: =[4]IVA_Imposte!Z133 -> 0 | L131: =[4]IVA_Imposte!AC133 -> 0 | M131: =[4]IVA_Imposte!AF133 -> 0
B132: =[4]IVA_Imposte!B134 -> 0 | C132: =[4]IVA_Imposte!C134 -> 0 | D132: =[4]IVA_Imposte!E134 -> 0 | E132: =[4]IVA_Imposte!H134 -> 0 | F132: =[4]IVA_Imposte!K134 -> 0 | G132: =[4]IVA_Imposte!N134 -> 0 | H132: =[4]IVA_Imposte!Q134 -> 0 | I132: =[4]IVA_Imposte!T134 -> 0 | J132: =[4]IVA_Imposte!W134 -> 0 | K132: =[4]IVA_Imposte!Z134 -> 0 | L132: =[4]IVA_Imposte!AC134 -> 0 | M132: =[4]IVA_Imposte!AF134 -> 0
B133: =[4]IVA_Imposte!B135 -> 0 | C133: =[4]IVA_Imposte!C135 -> 0 | D133: =[4]IVA_Imposte!E135 -> 0 | E133: =[4]IVA_Imposte!H135 -> 0 | F133: =[4]IVA_Imposte!K135 -> 0 | G133: =[4]IVA_Imposte!N135 -> 0 | H133: =[4]IVA_Imposte!Q135 -> 0 | I133: =[4]IVA_Imposte!T135 -> 0 | J133: =[4]IVA_Imposte!W135 -> 0 | K133: =[4]IVA_Imposte!Z135 -> 0 | L133: =[4]IVA_Imposte!AC135 -> 0 | M133: =[4]IVA_Imposte!AF135 -> 0
B134: =[4]IVA_Imposte!B136 -> 0 | C134: =[4]IVA_Imposte!C136 -> 0 | D134: =[4]IVA_Imposte!E136 -> 0 | E134: =[4]IVA_Imposte!H136 -> 0 | F134: =[4]IVA_Imposte!K136 -> 0 | G134: =[4]IVA_Imposte!N136 -> 0 | H134: =[4]IVA_Imposte!Q136 -> 0 | I134: =[4]IVA_Imposte!T136 -> 0 | J134: =[4]IVA_Imposte!W136 -> 0 | K134: =[4]IVA_Imposte!Z136 -> 0 | L134: =[4]IVA_Imposte!AC136 -> 0 | M134: =[4]IVA_Imposte!AF136 -> 0
B135: =[4]IVA_Imposte!B137 -> 0 | C135: =[4]IVA_Imposte!C137 -> 0 | D135: =[4]IVA_Imposte!E137 -> 0 | E135: =[4]IVA_Imposte!H137 -> 0 | F135: =[4]IVA_Imposte!K137 -> 0 | G135: =[4]IVA_Imposte!N137 -> 0 | H135: =[4]IVA_Imposte!Q137 -> 0 | I135: =[4]IVA_Imposte!T137 -> 0 | J135: =[4]IVA_Imposte!W137 -> 0 | K135: =[4]IVA_Imposte!Z137 -> 0 | L135: =[4]IVA_Imposte!AC137 -> 0 | M135: =[4]IVA_Imposte!AF137 -> 0
B136: =[4]IVA_Imposte!B138 -> 0 | C136: =[4]IVA_Imposte!C138 -> 0 | D136: =[4]IVA_Imposte!E138 -> 0 | E136: =[4]IVA_Imposte!H138 -> 0 | F136: =[4]IVA_Imposte!K138 -> 0 | G136: =[4]IVA_Imposte!N138 -> 0 | H136: =[4]IVA_Imposte!Q138 -> 0 | I136: =[4]IVA_Imposte!T138 -> 0 | J136: =[4]IVA_Imposte!W138 -> 0 | K136: =[4]IVA_Imposte!Z138 -> 0 | L136: =[4]IVA_Imposte!AC138 -> 0 | M136: =[4]IVA_Imposte!AF138 -> 0
B137: =[4]IVA_Imposte!B139 -> 0 | C137: =[4]IVA_Imposte!C139 -> 0 | D137: =[4]IVA_Imposte!E139 -> 0 | E137: =[4]IVA_Imposte!H139 -> 0 | F137: =[4]IVA_Imposte!K139 -> 0 | G137: =[4]IVA_Imposte!N139 -> 0 | H137: =[4]IVA_Imposte!Q139 -> 0 | I137: =[4]IVA_Imposte!T139 -> 0 | J137: =[4]IVA_Imposte!W139 -> 0 | K137: =[4]IVA_Imposte!Z139 -> 0 | L137: =[4]IVA_Imposte!AC139 -> 0 | M137: =[4]IVA_Imposte!AF139 -> 0
B138: =[4]IVA_Imposte!B140 -> 0 | C138: =[4]IVA_Imposte!C140 -> 0 | D138: =[4]IVA_Imposte!E140 -> 0 | E138: =[4]IVA_Imposte!H140 -> 0 | F138: =[4]IVA_Imposte!K140 -> 0 | G138: =[4]IVA_Imposte!N140 -> 0 | H138: =[4]IVA_Imposte!Q140 -> 0 | I138: =[4]IVA_Imposte!T140 -> 0 | J138: =[4]IVA_Imposte!W140 -> 0 | K138: =[4]IVA_Imposte!Z140 -> 0 | L138: =[4]IVA_Imposte!AC140 -> 0 | M138: =[4]IVA_Imposte!AF140 -> 0
B139: =[4]IVA_Imposte!B141 -> 0 | C139: =[4]IVA_Imposte!C141 -> 0 | D139: =[4]IVA_Imposte!E141 -> 0 | E139: =[4]IVA_Imposte!H141 -> 0 | F139: =[4]IVA_Imposte!K141 -> 0 | G139: =[4]IVA_Imposte!N141 -> 0 | H139: =[4]IVA_Imposte!Q141 -> 0 | I139: =[4]IVA_Imposte!T141 -> 0 | J139: =[4]IVA_Imposte!W141 -> 0 | K139: =[4]IVA_Imposte!Z141 -> 0 | L139: =[4]IVA_Imposte!AC141 -> 0 | M139: =[4]IVA_Imposte!AF141 -> 0
B140: =[4]IVA_Imposte!B142 -> 0 | C140: =[4]IVA_Imposte!C142 -> 0 | D140: =[4]IVA_Imposte!E142 -> 0 | E140: =[4]IVA_Imposte!H142 -> 0 | F140: =[4]IVA_Imposte!K142 -> 0 | G140: =[4]IVA_Imposte!N142 -> 0 | H140: =[4]IVA_Imposte!Q142 -> 0 | I140: =[4]IVA_Imposte!T142 -> 0 | J140: =[4]IVA_Imposte!W142 -> 0 | K140: =[4]IVA_Imposte!Z142 -> 0 | L140: =[4]IVA_Imposte!AC142 -> 0 | M140: =[4]IVA_Imposte!AF142 -> 0
B141: =[4]IVA_Imposte!B143 -> 0 | C141: =[4]IVA_Imposte!C143 -> 0 | D141: =[4]IVA_Imposte!E143 -> 0 | E141: =[4]IVA_Imposte!H143 -> 0 | F141: =[4]IVA_Imposte!K143 -> 0 | G141: =[4]IVA_Imposte!N143 -> 0 | H141: =[4]IVA_Imposte!Q143 -> 0 | I141: =[4]IVA_Imposte!T143 -> 0 | J141: =[4]IVA_Imposte!W143 -> 0 | K141: =[4]IVA_Imposte!Z143 -> 0 | L141: =[4]IVA_Imposte!AC143 -> 0 | M141: =[4]IVA_Imposte!AF143 -> 0
B142: =[4]IVA_Imposte!B144 -> 0 | C142: =[4]IVA_Imposte!C144 -> 0 | D142: =[4]IVA_Imposte!E144 -> 0 | E142: =[4]IVA_Imposte!H144 -> 0 | F142: =[4]IVA_Imposte!K144 -> 0 | G142: =[4]IVA_Imposte!N144 -> 0 | H142: =[4]IVA_Imposte!Q144 -> 0 | I142: =[4]IVA_Imposte!T144 -> 0 | J142: =[4]IVA_Imposte!W144 -> 0 | K142: =[4]IVA_Imposte!Z144 -> 0 | L142: =[4]IVA_Imposte!AC144 -> 0 | M142: =[4]IVA_Imposte!AF144 -> 0
B143: =[4]IVA_Imposte!B145 -> 0 | C143: =[4]IVA_Imposte!C145 -> 0 | D143: =[4]IVA_Imposte!E145 -> 0 | E143: =[4]IVA_Imposte!H145 -> 0 | F143: =[4]IVA_Imposte!K145 -> 0 | G143: =[4]IVA_Imposte!N145 -> 0 | H143: =[4]IVA_Imposte!Q145 -> 0 | I143: =[4]IVA_Imposte!T145 -> 0 | J143: =[4]IVA_Imposte!W145 -> 0 | K143: =[4]IVA_Imposte!Z145 -> 0 | L143: =[4]IVA_Imposte!AC145 -> 0 | M143: =[4]IVA_Imposte!AF145 -> 0
B144: =[4]IVA_Imposte!B146 -> 0 | C144: =[4]IVA_Imposte!C146 -> 0 | D144: =[4]IVA_Imposte!E146 -> 0 | E144: =[4]IVA_Imposte!H146 -> 0 | F144: =[4]IVA_Imposte!K146 -> 0 | G144: =[4]IVA_Imposte!N146 -> 0 | H144: =[4]IVA_Imposte!Q146 -> 0 | I144: =[4]IVA_Imposte!T146 -> 0 | J144: =[4]IVA_Imposte!W146 -> 0 | K144: =[4]IVA_Imposte!Z146 -> 0 | L144: =[4]IVA_Imposte!AC146 -> 0 | M144: =[4]IVA_Imposte!AF146 -> 0
B145: =[4]IVA_Imposte!B147 -> 0 | C145: =[4]IVA_Imposte!C147 -> 0 | D145: =[4]IVA_Imposte!E147 -> 0 | E145: =[4]IVA_Imposte!H147 -> 0 | F145: =[4]IVA_Imposte!K147 -> 0 | G145: =[4]IVA_Imposte!N147 -> 0 | H145: =[4]IVA_Imposte!Q147 -> 0 | I145: =[4]IVA_Imposte!T147 -> 0 | J145: =[4]IVA_Imposte!W147 -> 0 | K145: =[4]IVA_Imposte!Z147 -> 0 | L145: =[4]IVA_Imposte!AC147 -> 0 | M145: =[4]IVA_Imposte!AF147 -> 0
B146: =[4]IVA_Imposte!B148 -> 0 | C146: =[4]IVA_Imposte!C148 -> 0 | D146: =[4]IVA_Imposte!E148 -> 0 | E146: =[4]IVA_Imposte!H148 -> 0 | F146: =[4]IVA_Imposte!K148 -> 0 | G146: =[4]IVA_Imposte!N148 -> 0 | H146: =[4]IVA_Imposte!Q148 -> 0 | I146: =[4]IVA_Imposte!T148 -> 0 | J146: =[4]IVA_Imposte!W148 -> 0 | K146: =[4]IVA_Imposte!Z148 -> 0 | L146: =[4]IVA_Imposte!AC148 -> 0 | M146: =[4]IVA_Imposte!AF148 -> 0
B147: =[4]IVA_Imposte!B149 -> 0 | C147: =[4]IVA_Imposte!C149 -> 0 | D147: =[4]IVA_Imposte!E149 -> 0 | E147: =[4]IVA_Imposte!H149 -> 0 | F147: =[4]IVA_Imposte!K149 -> 0 | G147: =[4]IVA_Imposte!N149 -> 0 | H147: =[4]IVA_Imposte!Q149 -> 0 | I147: =[4]IVA_Imposte!T149 -> 0 | J147: =[4]IVA_Imposte!W149 -> 0 | K147: =[4]IVA_Imposte!Z149 -> 0 | L147: =[4]IVA_Imposte!AC149 -> 0 | M147: =[4]IVA_Imposte!AF149 -> 0
B148: =[4]IVA_Imposte!B150 -> 0 | C148: =[4]IVA_Imposte!C150 -> 0 | D148: =[4]IVA_Imposte!E150 -> 0 | E148: =[4]IVA_Imposte!H150 -> 0 | F148: =[4]IVA_Imposte!K150 -> 0 | G148: =[4]IVA_Imposte!N150 -> 0 | H148: =[4]IVA_Imposte!Q150 -> 0 | I148: =[4]IVA_Imposte!T150 -> 0 | J148: =[4]IVA_Imposte!W150 -> 0 | K148: =[4]IVA_Imposte!Z150 -> 0 | L148: =[4]IVA_Imposte!AC150 -> 0 | M148: =[4]IVA_Imposte!AF150 -> 0
B149: =[4]IVA_Imposte!B151 -> 0 | C149: =[4]IVA_Imposte!C151 -> 0 | D149: =[4]IVA_Imposte!E151 -> 0 | E149: =[4]IVA_Imposte!H151 -> 0 | F149: =[4]IVA_Imposte!K151 -> 0 | G149: =[4]IVA_Imposte!N151 -> 0 | H149: =[4]IVA_Imposte!Q151 -> 0 | I149: =[4]IVA_Imposte!T151 -> 0 | J149: =[4]IVA_Imposte!W151 -> 0 | K149: =[4]IVA_Imposte!Z151 -> 0 | L149: =[4]IVA_Imposte!AC151 -> 0 | M149: =[4]IVA_Imposte!AF151 -> 0
B150: =[4]IVA_Imposte!B152 -> 0 | C150: =[4]IVA_Imposte!C152 -> 0 | D150: =[4]IVA_Imposte!E152 -> 0 | E150: =[4]IVA_Imposte!H152 -> 0 | F150: =[4]IVA_Imposte!K152 -> 0 | G150: =[4]IVA_Imposte!N152 -> 0 | H150: =[4]IVA_Imposte!Q152 -> 0 | I150: =[4]IVA_Imposte!T152 -> 0 | J150: =[4]IVA_Imposte!W152 -> 0 | K150: =[4]IVA_Imposte!Z152 -> 0 | L150: =[4]IVA_Imposte!AC152 -> 0 | M150: =[4]IVA_Imposte!AF152 -> 0
B151: =[4]IVA_Imposte!B153 -> 0 | C151: =[4]IVA_Imposte!C153 -> 0 | D151: =[4]IVA_Imposte!E153 -> 0 | E151: =[4]IVA_Imposte!H153 -> 0 | F151: =[4]IVA_Imposte!K153 -> 0 | G151: =[4]IVA_Imposte!N153 -> 0 | H151: =[4]IVA_Imposte!Q153 -> 0 | I151: =[4]IVA_Imposte!T153 -> 0 | J151: =[4]IVA_Imposte!W153 -> 0 | K151: =[4]IVA_Imposte!Z153 -> 0 | L151: =[4]IVA_Imposte!AC153 -> 0 | M151: =[4]IVA_Imposte!AF153 -> 0
B152: =[4]IVA_Imposte!B154 -> 0 | C152: =[4]IVA_Imposte!C154 -> 0 | D152: =[4]IVA_Imposte!E154 -> 0 | E152: =[4]IVA_Imposte!H154 -> 0 | F152: =[4]IVA_Imposte!K154 -> 0 | G152: =[4]IVA_Imposte!N154 -> 0 | H152: =[4]IVA_Imposte!Q154 -> 0 | I152: =[4]IVA_Imposte!T154 -> 0 | J152: =[4]IVA_Imposte!W154 -> 0 | K152: =[4]IVA_Imposte!Z154 -> 0 | L152: =[4]IVA_Imposte!AC154 -> 0 | M152: =[4]IVA_Imposte!AF154 -> 0
B153: =[4]IVA_Imposte!B155 -> 0 | C153: =[4]IVA_Imposte!C155 -> 0 | D153: =[4]IVA_Imposte!E155 -> 0 | E153: =[4]IVA_Imposte!H155 -> 0 | F153: =[4]IVA_Imposte!K155 -> 0 | G153: =[4]IVA_Imposte!N155 -> 0 | H153: =[4]IVA_Imposte!Q155 -> 0 | I153: =[4]IVA_Imposte!T155 -> 0 | J153: =[4]IVA_Imposte!W155 -> 0 | K153: =[4]IVA_Imposte!Z155 -> 0 | L153: =[4]IVA_Imposte!AC155 -> 0 | M153: =[4]IVA_Imposte!AF155 -> 0
B154: =[4]IVA_Imposte!B156 -> 0 | C154: =[4]IVA_Imposte!C156 -> 0 | D154: =[4]IVA_Imposte!E156 -> 0 | E154: =[4]IVA_Imposte!H156 -> 0 | F154: =[4]IVA_Imposte!K156 -> 0 | G154: =[4]IVA_Imposte!N156 -> 0 | H154: =[4]IVA_Imposte!Q156 -> 0 | I154: =[4]IVA_Imposte!T156 -> 0 | J154: =[4]IVA_Imposte!W156 -> 0 | K154: =[4]IVA_Imposte!Z156 -> 0 | L154: =[4]IVA_Imposte!AC156 -> 0 | M154: =[4]IVA_Imposte!AF156 -> 0
B155: =[4]IVA_Imposte!B157 -> 0 | C155: =[4]IVA_Imposte!C157 -> 0 | D155: =[4]IVA_Imposte!E157 -> 0 | E155: =[4]IVA_Imposte!H157 -> 0 | F155: =[4]IVA_Imposte!K157 -> 0 | G155: =[4]IVA_Imposte!N157 -> 0 | H155: =[4]IVA_Imposte!Q157 -> 0 | I155: =[4]IVA_Imposte!T157 -> 0 | J155: =[4]IVA_Imposte!W157 -> 0 | K155: =[4]IVA_Imposte!Z157 -> 0 | L155: =[4]IVA_Imposte!AC157 -> 0 | M155: =[4]IVA_Imposte!AF157 -> 0
B156: =[4]IVA_Imposte!B158 -> 0 | C156: =[4]IVA_Imposte!C158 -> 0 | D156: =[4]IVA_Imposte!E158 -> 0 | E156: =[4]IVA_Imposte!H158 -> 0 | F156: =[4]IVA_Imposte!K158 -> 0 | G156: =[4]IVA_Imposte!N158 -> 0 | H156: =[4]IVA_Imposte!Q158 -> 0 | I156: =[4]IVA_Imposte!T158 -> 0 | J156: =[4]IVA_Imposte!W158 -> 0 | K156: =[4]IVA_Imposte!Z158 -> 0 | L156: =[4]IVA_Imposte!AC158 -> 0 | M156: =[4]IVA_Imposte!AF158 -> 0
B157: =[4]IVA_Imposte!B159 -> 0 | C157: =[4]IVA_Imposte!C159 -> 0 | D157: =[4]IVA_Imposte!E159 -> 0 | E157: =[4]IVA_Imposte!H159 -> 0 | F157: =[4]IVA_Imposte!K159 -> 0 | G157: =[4]IVA_Imposte!N159 -> 0 | H157: =[4]IVA_Imposte!Q159 -> 0 | I157: =[4]IVA_Imposte!T159 -> 0 | J157: =[4]IVA_Imposte!W159 -> 0 | K157: =[4]IVA_Imposte!Z159 -> 0 | L157: =[4]IVA_Imposte!AC159 -> 0 | M157: =[4]IVA_Imposte!AF159 -> 0
B158: =[4]IVA_Imposte!B160 -> 0 | C158: =[4]IVA_Imposte!C160 -> 0 | D158: =[4]IVA_Imposte!E160 -> 0 | E158: =[4]IVA_Imposte!H160 -> 0 | F158: =[4]IVA_Imposte!K160 -> 0 | G158: =[4]IVA_Imposte!N160 -> 0 | H158: =[4]IVA_Imposte!Q160 -> 0 | I158: =[4]IVA_Imposte!T160 -> 0 | J158: =[4]IVA_Imposte!W160 -> 0 | K158: =[4]IVA_Imposte!Z160 -> 0 | L158: =[4]IVA_Imposte!AC160 -> 0 | M158: =[4]IVA_Imposte!AF160 -> 0
B159: =[4]IVA_Imposte!B161 -> 0 | C159: =[4]IVA_Imposte!C161 -> 0 | D159: =[4]IVA_Imposte!E161 -> 0 | E159: =[4]IVA_Imposte!H161 -> 0 | F159: =[4]IVA_Imposte!K161 -> 0 | G159: =[4]IVA_Imposte!N161 -> 0 | H159: =[4]IVA_Imposte!Q161 -> 0 | I159: =[4]IVA_Imposte!T161 -> 0 | J159: =[4]IVA_Imposte!W161 -> 0 | K159: =[4]IVA_Imposte!Z161 -> 0 | L159: =[4]IVA_Imposte!AC161 -> 0 | M159: =[4]IVA_Imposte!AF161 -> 0
B160: =[4]IVA_Imposte!B162 -> 0 | C160: =[4]IVA_Imposte!C162 -> 0 | D160: =[4]IVA_Imposte!E162 -> 0 | E160: =[4]IVA_Imposte!H162 -> 0 | F160: =[4]IVA_Imposte!K162 -> 0 | G160: =[4]IVA_Imposte!N162 -> 0 | H160: =[4]IVA_Imposte!Q162 -> 0 | I160: =[4]IVA_Imposte!T162 -> 0 | J160: =[4]IVA_Imposte!W162 -> 0 | K160: =[4]IVA_Imposte!Z162 -> 0 | L160: =[4]IVA_Imposte!AC162 -> 0 | M160: =[4]IVA_Imposte!AF162 -> 0
B161: =[4]IVA_Imposte!B163 -> 0 | C161: =[4]IVA_Imposte!C163 -> 0 | D161: =[4]IVA_Imposte!E163 -> 0 | E161: =[4]IVA_Imposte!H163 -> 0 | F161: =[4]IVA_Imposte!K163 -> 0 | G161: =[4]IVA_Imposte!N163 -> 0 | H161: =[4]IVA_Imposte!Q163 -> 0 | I161: =[4]IVA_Imposte!T163 -> 0 | J161: =[4]IVA_Imposte!W163 -> 0 | K161: =[4]IVA_Imposte!Z163 -> 0 | L161: =[4]IVA_Imposte!AC163 -> 0 | M161: =[4]IVA_Imposte!AF163 -> 0
B162: =[4]IVA_Imposte!B164 -> 0 | C162: =[4]IVA_Imposte!C164 -> 0 | D162: =[4]IVA_Imposte!E164 -> 0 | E162: =[4]IVA_Imposte!H164 -> 0 | F162: =[4]IVA_Imposte!K164 -> 0 | G162: =[4]IVA_Imposte!N164 -> 0 | H162: =[4]IVA_Imposte!Q164 -> 0 | I162: =[4]IVA_Imposte!T164 -> 0 | J162: =[4]IVA_Imposte!W164 -> 0 | K162: =[4]IVA_Imposte!Z164 -> 0 | L162: =[4]IVA_Imposte!AC164 -> 0 | M162: =[4]IVA_Imposte!AF164 -> 0
B163: =[4]IVA_Imposte!B165 -> 0 | C163: =[4]IVA_Imposte!C165 -> 0 | D163: =[4]IVA_Imposte!E165 -> 0 | E163: =[4]IVA_Imposte!H165 -> 0 | F163: =[4]IVA_Imposte!K165 -> 0 | G163: =[4]IVA_Imposte!N165 -> 0 | H163: =[4]IVA_Imposte!Q165 -> 0 | I163: =[4]IVA_Imposte!T165 -> 0 | J163: =[4]IVA_Imposte!W165 -> 0 | K163: =[4]IVA_Imposte!Z165 -> 0 | L163: =[4]IVA_Imposte!AC165 -> 0 | M163: =[4]IVA_Imposte!AF165 -> 0
B164: =[4]IVA_Imposte!B166 -> 0 | C164: =[4]IVA_Imposte!C166 -> 0 | D164: =[4]IVA_Imposte!E166 -> 0 | E164: =[4]IVA_Imposte!H166 -> 0 | F164: =[4]IVA_Imposte!K166 -> 0 | G164: =[4]IVA_Imposte!N166 -> 0 | H164: =[4]IVA_Imposte!Q166 -> 0 | I164: =[4]IVA_Imposte!T166 -> 0 | J164: =[4]IVA_Imposte!W166 -> 0 | K164: =[4]IVA_Imposte!Z166 -> 0 | L164: =[4]IVA_Imposte!AC166 -> 0 | M164: =[4]IVA_Imposte!AF166 -> 0
B165: =[4]IVA_Imposte!B167 -> 0 | C165: =[4]IVA_Imposte!C167 -> 0 | D165: =[4]IVA_Imposte!E167 -> 0 | E165: =[4]IVA_Imposte!H167 -> 0 | F165: =[4]IVA_Imposte!K167 -> 0 | G165: =[4]IVA_Imposte!N167 -> 0 | H165: =[4]IVA_Imposte!Q167 -> 0 | I165: =[4]IVA_Imposte!T167 -> 0 | J165: =[4]IVA_Imposte!W167 -> 0 | K165: =[4]IVA_Imposte!Z167 -> 0 | L165: =[4]IVA_Imposte!AC167 -> 0 | M165: =[4]IVA_Imposte!AF167 -> 0
B166: =[4]IVA_Imposte!B168 -> 0 | C166: =[4]IVA_Imposte!C168 -> 0 | D166: =[4]IVA_Imposte!E168 -> 0 | E166: =[4]IVA_Imposte!H168 -> 0 | F166: =[4]IVA_Imposte!K168 -> 0 | G166: =[4]IVA_Imposte!N168 -> 0 | H166: =[4]IVA_Imposte!Q168 -> 0 | I166: =[4]IVA_Imposte!T168 -> 0 | J166: =[4]IVA_Imposte!W168 -> 0 | K166: =[4]IVA_Imposte!Z168 -> 0 | L166: =[4]IVA_Imposte!AC168 -> 0 | M166: =[4]IVA_Imposte!AF168 -> 0
B167: =[4]IVA_Imposte!B169 -> 0 | C167: =[4]IVA_Imposte!C169 -> 0 | D167: =[4]IVA_Imposte!E169 -> 0 | E167: =[4]IVA_Imposte!H169 -> 0 | F167: =[4]IVA_Imposte!K169 -> 0 | G167: =[4]IVA_Imposte!N169 -> 0 | H167: =[4]IVA_Imposte!Q169 -> 0 | I167: =[4]IVA_Imposte!T169 -> 0 | J167: =[4]IVA_Imposte!W169 -> 0 | K167: =[4]IVA_Imposte!Z169 -> 0 | L167: =[4]IVA_Imposte!AC169 -> 0 | M167: =[4]IVA_Imposte!AF169 -> 0
B168: =[4]IVA_Imposte!B170 -> 0 | C168: =[4]IVA_Imposte!C170 -> 0 | D168: =[4]IVA_Imposte!E170 -> 0 | E168: =[4]IVA_Imposte!H170 -> 0 | F168: =[4]IVA_Imposte!K170 -> 0 | G168: =[4]IVA_Imposte!N170 -> 0 | H168: =[4]IVA_Imposte!Q170 -> 0 | I168: =[4]IVA_Imposte!T170 -> 0 | J168: =[4]IVA_Imposte!W170 -> 0 | K168: =[4]IVA_Imposte!Z170 -> 0 | L168: =[4]IVA_Imposte!AC170 -> 0 | M168: =[4]IVA_Imposte!AF170 -> 0
B169: =[4]IVA_Imposte!B171 -> 0 | C169: =[4]IVA_Imposte!C171 -> 0 | D169: =[4]IVA_Imposte!E171 -> 0 | E169: =[4]IVA_Imposte!H171 -> 0 | F169: =[4]IVA_Imposte!K171 -> 0 | G169: =[4]IVA_Imposte!N171 -> 0 | H169: =[4]IVA_Imposte!Q171 -> 0 | I169: =[4]IVA_Imposte!T171 -> 0 | J169: =[4]IVA_Imposte!W171 -> 0 | K169: =[4]IVA_Imposte!Z171 -> 0 | L169: =[4]IVA_Imposte!AC171 -> 0 | M169: =[4]IVA_Imposte!AF171 -> 0
B170: =[4]IVA_Imposte!B172 -> 0 | C170: =[4]IVA_Imposte!C172 -> 0 | D170: =[4]IVA_Imposte!E172 -> 0 | E170: =[4]IVA_Imposte!H172 -> 0 | F170: =[4]IVA_Imposte!K172 -> 0 | G170: =[4]IVA_Imposte!N172 -> 0 | H170: =[4]IVA_Imposte!Q172 -> 0 | I170: =[4]IVA_Imposte!T172 -> 0 | J170: =[4]IVA_Imposte!W172 -> 0 | K170: =[4]IVA_Imposte!Z172 -> 0 | L170: =[4]IVA_Imposte!AC172 -> 0 | M170: =[4]IVA_Imposte!AF172 -> 0
B171: =[4]IVA_Imposte!B173 -> 0 | C171: =[4]IVA_Imposte!C173 -> 0 | D171: =[4]IVA_Imposte!E173 -> 0 | E171: =[4]IVA_Imposte!H173 -> 0 | F171: =[4]IVA_Imposte!K173 -> 0 | G171: =[4]IVA_Imposte!N173 -> 0 | H171: =[4]IVA_Imposte!Q173 -> 0 | I171: =[4]IVA_Imposte!T173 -> 0 | J171: =[4]IVA_Imposte!W173 -> 0 | K171: =[4]IVA_Imposte!Z173 -> 0 | L171: =[4]IVA_Imposte!AC173 -> 0 | M171: =[4]IVA_Imposte!AF173 -> 0
B172: =[4]IVA_Imposte!B174 -> 0 | C172: =[4]IVA_Imposte!C174 -> 0 | D172: =[4]IVA_Imposte!E174 -> 0 | E172: =[4]IVA_Imposte!H174 -> 0 | F172: =[4]IVA_Imposte!K174 -> 0 | G172: =[4]IVA_Imposte!N174 -> 0 | H172: =[4]IVA_Imposte!Q174 -> 0 | I172: =[4]IVA_Imposte!T174 -> 0 | J172: =[4]IVA_Imposte!W174 -> 0 | K172: =[4]IVA_Imposte!Z174 -> 0 | L172: =[4]IVA_Imposte!AC174 -> 0 | M172: =[4]IVA_Imposte!AF174 -> 0
B173: =[4]IVA_Imposte!B175 -> 0 | C173: =[4]IVA_Imposte!C175 -> 0 | D173: =[4]IVA_Imposte!E175 -> 0 | E173: =[4]IVA_Imposte!H175 -> 0 | F173: =[4]IVA_Imposte!K175 -> 0 | G173: =[4]IVA_Imposte!N175 -> 0 | H173: =[4]IVA_Imposte!Q175 -> 0 | I173: =[4]IVA_Imposte!T175 -> 0 | J173: =[4]IVA_Imposte!W175 -> 0 | K173: =[4]IVA_Imposte!Z175 -> 0 | L173: =[4]IVA_Imposte!AC175 -> 0 | M173: =[4]IVA_Imposte!AF175 -> 0
B174: =[4]IVA_Imposte!B176 -> 0 | C174: =[4]IVA_Imposte!C176 -> 0 | D174: =[4]IVA_Imposte!E176 -> 0 | E174: =[4]IVA_Imposte!H176 -> 0 | F174: =[4]IVA_Imposte!K176 -> 0 | G174: =[4]IVA_Imposte!N176 -> 0 | H174: =[4]IVA_Imposte!Q176 -> 0 | I174: =[4]IVA_Imposte!T176 -> 0 | J174: =[4]IVA_Imposte!W176 -> 0 | K174: =[4]IVA_Imposte!Z176 -> 0 | L174: =[4]IVA_Imposte!AC176 -> 0 | M174: =[4]IVA_Imposte!AF176 -> 0
B175: =[4]IVA_Imposte!B177 -> 0 | C175: =[4]IVA_Imposte!C177 -> 0 | D175: =[4]IVA_Imposte!E177 -> 0 | E175: =[4]IVA_Imposte!H177 -> 0 | F175: =[4]IVA_Imposte!K177 -> 0 | G175: =[4]IVA_Imposte!N177 -> 0 | H175: =[4]IVA_Imposte!Q177 -> 0 | I175: =[4]IVA_Imposte!T177 -> 0 | J175: =[4]IVA_Imposte!W177 -> 0 | K175: =[4]IVA_Imposte!Z177 -> 0 | L175: =[4]IVA_Imposte!AC177 -> 0 | M175: =[4]IVA_Imposte!AF177 -> 0
B176: =[4]IVA_Imposte!B178 -> 0 | C176: =[4]IVA_Imposte!C178 -> 0 | D176: =[4]IVA_Imposte!E178 -> 0 | E176: =[4]IVA_Imposte!H178 -> 0 | F176: =[4]IVA_Imposte!K178 -> 0 | G176: =[4]IVA_Imposte!N178 -> 0 | H176: =[4]IVA_Imposte!Q178 -> 0 | I176: =[4]IVA_Imposte!T178 -> 0 | J176: =[4]IVA_Imposte!W178 -> 0 | K176: =[4]IVA_Imposte!Z178 -> 0 | L176: =[4]IVA_Imposte!AC178 -> 0 | M176: =[4]IVA_Imposte!AF178 -> 0
B177: =[4]IVA_Imposte!B179 -> 0 | C177: =[4]IVA_Imposte!C179 -> 0 | D177: =[4]IVA_Imposte!E179 -> 0 | E177: =[4]IVA_Imposte!H179 -> 0 | F177: =[4]IVA_Imposte!K179 -> 0 | G177: =[4]IVA_Imposte!N179 -> 0 | H177: =[4]IVA_Imposte!Q179 -> 0 | I177: =[4]IVA_Imposte!T179 -> 0 | J177: =[4]IVA_Imposte!W179 -> 0 | K177: =[4]IVA_Imposte!Z179 -> 0 | L177: =[4]IVA_Imposte!AC179 -> 0 | M177: =[4]IVA_Imposte!AF179 -> 0
B178: =[4]IVA_Imposte!B180 -> 0 | C178: =[4]IVA_Imposte!C180 -> 0 | D178: =[4]IVA_Imposte!E180 -> 0 | E178: =[4]IVA_Imposte!H180 -> 0 | F178: =[4]IVA_Imposte!K180 -> 0 | G178: =[4]IVA_Imposte!N180 -> 0 | H178: =[4]IVA_Imposte!Q180 -> 0 | I178: =[4]IVA_Imposte!T180 -> 0 | J178: =[4]IVA_Imposte!W180 -> 0 | K178: =[4]IVA_Imposte!Z180 -> 0 | L178: =[4]IVA_Imposte!AC180 -> 0 | M178: =[4]IVA_Imposte!AF180 -> 0
B179: =[4]IVA_Imposte!B181 -> 0 | C179: =[4]IVA_Imposte!C181 -> 0 | D179: =[4]IVA_Imposte!E181 -> 0 | E179: =[4]IVA_Imposte!H181 -> 0 | F179: =[4]IVA_Imposte!K181 -> 0 | G179: =[4]IVA_Imposte!N181 -> 0 | H179: =[4]IVA_Imposte!Q181 -> 0 | I179: =[4]IVA_Imposte!T181 -> 0 | J179: =[4]IVA_Imposte!W181 -> 0 | K179: =[4]IVA_Imposte!Z181 -> 0 | L179: =[4]IVA_Imposte!AC181 -> 0 | M179: =[4]IVA_Imposte!AF181 -> 0
B180: =[4]IVA_Imposte!B182 -> 0 | C180: =[4]IVA_Imposte!C182 -> 0 | D180: =[4]IVA_Imposte!E182 -> 0 | E180: =[4]IVA_Imposte!H182 -> 0 | F180: =[4]IVA_Imposte!K182 -> 0 | G180: =[4]IVA_Imposte!N182 -> 0 | H180: =[4]IVA_Imposte!Q182 -> 0 | I180: =[4]IVA_Imposte!T182 -> 0 | J180: =[4]IVA_Imposte!W182 -> 0 | K180: =[4]IVA_Imposte!Z182 -> 0 | L180: =[4]IVA_Imposte!AC182 -> 0 | M180: =[4]IVA_Imposte!AF182 -> 0
B181: =[4]IVA_Imposte!B183 -> 0 | C181: =[4]IVA_Imposte!C183 -> 0 | D181: =[4]IVA_Imposte!E183 -> 0 | E181: =[4]IVA_Imposte!H183 -> 0 | F181: =[4]IVA_Imposte!K183 -> 0 | G181: =[4]IVA_Imposte!N183 -> 0 | H181: =[4]IVA_Imposte!Q183 -> 0 | I181: =[4]IVA_Imposte!T183 -> 0 | J181: =[4]IVA_Imposte!W183 -> 0 | K181: =[4]IVA_Imposte!Z183 -> 0 | L181: =[4]IVA_Imposte!AC183 -> 0 | M181: =[4]IVA_Imposte!AF183 -> 0
B182: =[4]IVA_Imposte!B184 -> 0 | C182: =[4]IVA_Imposte!C184 -> 0 | D182: =[4]IVA_Imposte!E184 -> 0 | E182: =[4]IVA_Imposte!H184 -> 0 | F182: =[4]IVA_Imposte!K184 -> 0 | G182: =[4]IVA_Imposte!N184 -> 0 | H182: =[4]IVA_Imposte!Q184 -> 0 | I182: =[4]IVA_Imposte!T184 -> 0 | J182: =[4]IVA_Imposte!W184 -> 0 | K182: =[4]IVA_Imposte!Z184 -> 0 | L182: =[4]IVA_Imposte!AC184 -> 0 | M182: =[4]IVA_Imposte!AF184 -> 0
B183: =[4]IVA_Imposte!B185 -> 0 | C183: =[4]IVA_Imposte!C185 -> 0 | D183: =[4]IVA_Imposte!E185 -> 0 | E183: =[4]IVA_Imposte!H185 -> 0 | F183: =[4]IVA_Imposte!K185 -> 0 | G183: =[4]IVA_Imposte!N185 -> 0 | H183: =[4]IVA_Imposte!Q185 -> 0 | I183: =[4]IVA_Imposte!T185 -> 0 | J183: =[4]IVA_Imposte!W185 -> 0 | K183: =[4]IVA_Imposte!Z185 -> 0 | L183: =[4]IVA_Imposte!AC185 -> 0 | M183: =[4]IVA_Imposte!AF185 -> 0
B184: =[4]IVA_Imposte!B186 -> 0 | C184: =[4]IVA_Imposte!C186 -> 0 | D184: =[4]IVA_Imposte!E186 -> 0 | E184: =[4]IVA_Imposte!H186 -> 0 | F184: =[4]IVA_Imposte!K186 -> 0 | G184: =[4]IVA_Imposte!N186 -> 0 | H184: =[4]IVA_Imposte!Q186 -> 0 | I184: =[4]IVA_Imposte!T186 -> 0 | J184: =[4]IVA_Imposte!W186 -> 0 | K184: =[4]IVA_Imposte!Z186 -> 0 | L184: =[4]IVA_Imposte!AC186 -> 0 | M184: =[4]IVA_Imposte!AF186 -> 0
B185: =[4]IVA_Imposte!B187 -> 0 | C185: =[4]IVA_Imposte!C187 -> 0 | D185: =[4]IVA_Imposte!E187 -> 0 | E185: =[4]IVA_Imposte!H187 -> 0 | F185: =[4]IVA_Imposte!K187 -> 0 | G185: =[4]IVA_Imposte!N187 -> 0 | H185: =[4]IVA_Imposte!Q187 -> 0 | I185: =[4]IVA_Imposte!T187 -> 0 | J185: =[4]IVA_Imposte!W187 -> 0 | K185: =[4]IVA_Imposte!Z187 -> 0 | L185: =[4]IVA_Imposte!AC187 -> 0 | M185: =[4]IVA_Imposte!AF187 -> 0
B186: =[4]IVA_Imposte!B188 -> 0 | C186: =[4]IVA_Imposte!C188 -> 0 | D186: =[4]IVA_Imposte!E188 -> 0 | E186: =[4]IVA_Imposte!H188 -> 0 | F186: =[4]IVA_Imposte!K188 -> 0 | G186: =[4]IVA_Imposte!N188 -> 0 | H186: =[4]IVA_Imposte!Q188 -> 0 | I186: =[4]IVA_Imposte!T188 -> 0 | J186: =[4]IVA_Imposte!W188 -> 0 | K186: =[4]IVA_Imposte!Z188 -> 0 | L186: =[4]IVA_Imposte!AC188 -> 0 | M186: =[4]IVA_Imposte!AF188 -> 0
B187: =[4]IVA_Imposte!B189 -> 0 | C187: =[4]IVA_Imposte!C189 -> 0 | D187: =[4]IVA_Imposte!E189 -> 0 | E187: =[4]IVA_Imposte!H189 -> 0 | F187: =[4]IVA_Imposte!K189 -> 0 | G187: =[4]IVA_Imposte!N189 -> 0 | H187: =[4]IVA_Imposte!Q189 -> 0 | I187: =[4]IVA_Imposte!T189 -> 0 | J187: =[4]IVA_Imposte!W189 -> 0 | K187: =[4]IVA_Imposte!Z189 -> 0 | L187: =[4]IVA_Imposte!AC189 -> 0 | M187: =[4]IVA_Imposte!AF189 -> 0
B188: =[4]IVA_Imposte!B190 -> 0 | C188: =[4]IVA_Imposte!C190 -> 0 | D188: =[4]IVA_Imposte!E190 -> 0 | E188: =[4]IVA_Imposte!H190 -> 0 | F188: =[4]IVA_Imposte!K190 -> 0 | G188: =[4]IVA_Imposte!N190 -> 0 | H188: =[4]IVA_Imposte!Q190 -> 0 | I188: =[4]IVA_Imposte!T190 -> 0 | J188: =[4]IVA_Imposte!W190 -> 0 | K188: =[4]IVA_Imposte!Z190 -> 0 | L188: =[4]IVA_Imposte!AC190 -> 0 | M188: =[4]IVA_Imposte!AF190 -> 0
B189: =[4]IVA_Imposte!B191 -> 0 | C189: =[4]IVA_Imposte!C191 -> 0 | D189: =[4]IVA_Imposte!E191 -> 0 | E189: =[4]IVA_Imposte!H191 -> 0 | F189: =[4]IVA_Imposte!K191 -> 0 | G189: =[4]IVA_Imposte!N191 -> 0 | H189: =[4]IVA_Imposte!Q191 -> 0 | I189: =[4]IVA_Imposte!T191 -> 0 | J189: =[4]IVA_Imposte!W191 -> 0 | K189: =[4]IVA_Imposte!Z191 -> 0 | L189: =[4]IVA_Imposte!AC191 -> 0 | M189: =[4]IVA_Imposte!AF191 -> 0
B190: =[4]IVA_Imposte!B192 -> 0 | C190: =[4]IVA_Imposte!C192 -> 0 | D190: =[4]IVA_Imposte!E192 -> 0 | E190: =[4]IVA_Imposte!H192 -> 0 | F190: =[4]IVA_Imposte!K192 -> 0 | G190: =[4]IVA_Imposte!N192 -> 0 | H190: =[4]IVA_Imposte!Q192 -> 0 | I190: =[4]IVA_Imposte!T192 -> 0 | J190: =[4]IVA_Imposte!W192 -> 0 | K190: =[4]IVA_Imposte!Z192 -> 0 | L190: =[4]IVA_Imposte!AC192 -> 0 | M190: =[4]IVA_Imposte!AF192 -> 0
B191: =[4]IVA_Imposte!B193 -> 0 | C191: =[4]IVA_Imposte!C193 -> 0 | D191: =[4]IVA_Imposte!E193 -> 0 | E191: =[4]IVA_Imposte!H193 -> 0 | F191: =[4]IVA_Imposte!K193 -> 0 | G191: =[4]IVA_Imposte!N193 -> 0 | H191: =[4]IVA_Imposte!Q193 -> 0 | I191: =[4]IVA_Imposte!T193 -> 0 | J191: =[4]IVA_Imposte!W193 -> 0 | K191: =[4]IVA_Imposte!Z193 -> 0 | L191: =[4]IVA_Imposte!AC193 -> 0 | M191: =[4]IVA_Imposte!AF193 -> 0
B192: =[4]IVA_Imposte!B194 -> 0 | C192: =[4]IVA_Imposte!C194 -> 0 | D192: =[4]IVA_Imposte!E194 -> 0 | E192: =[4]IVA_Imposte!H194 -> 0 | F192: =[4]IVA_Imposte!K194 -> 0 | G192: =[4]IVA_Imposte!N194 -> 0 | H192: =[4]IVA_Imposte!Q194 -> 0 | I192: =[4]IVA_Imposte!T194 -> 0 | J192: =[4]IVA_Imposte!W194 -> 0 | K192: =[4]IVA_Imposte!Z194 -> 0 | L192: =[4]IVA_Imposte!AC194 -> 0 | M192: =[4]IVA_Imposte!AF194 -> 0
B193: =[4]IVA_Imposte!B195 -> 0 | C193: =[4]IVA_Imposte!C195 -> 0 | D193: =[4]IVA_Imposte!E195 -> 0 | E193: =[4]IVA_Imposte!H195 -> 0 | F193: =[4]IVA_Imposte!K195 -> 0 | G193: =[4]IVA_Imposte!N195 -> 0 | H193: =[4]IVA_Imposte!Q195 -> 0 | I193: =[4]IVA_Imposte!T195 -> 0 | J193: =[4]IVA_Imposte!W195 -> 0 | K193: =[4]IVA_Imposte!Z195 -> 0 | L193: =[4]IVA_Imposte!AC195 -> 0 | M193: =[4]IVA_Imposte!AF195 -> 0
B194: =[4]IVA_Imposte!B196 -> 0 | C194: =[4]IVA_Imposte!C196 -> 0 | D194: =[4]IVA_Imposte!E196 -> 0 | E194: =[4]IVA_Imposte!H196 -> 0 | F194: =[4]IVA_Imposte!K196 -> 0 | G194: =[4]IVA_Imposte!N196 -> 0 | H194: =[4]IVA_Imposte!Q196 -> 0 | I194: =[4]IVA_Imposte!T196 -> 0 | J194: =[4]IVA_Imposte!W196 -> 0 | K194: =[4]IVA_Imposte!Z196 -> 0 | L194: =[4]IVA_Imposte!AC196 -> 0 | M194: =[4]IVA_Imposte!AF196 -> 0
B195: =[4]IVA_Imposte!B197 -> 0 | C195: =[4]IVA_Imposte!C197 -> 0 | D195: =[4]IVA_Imposte!E197 -> 0 | E195: =[4]IVA_Imposte!H197 -> 0 | F195: =[4]IVA_Imposte!K197 -> 0 | G195: =[4]IVA_Imposte!N197 -> 0 | H195: =[4]IVA_Imposte!Q197 -> 0 | I195: =[4]IVA_Imposte!T197 -> 0 | J195: =[4]IVA_Imposte!W197 -> 0 | K195: =[4]IVA_Imposte!Z197 -> 0 | L195: =[4]IVA_Imposte!AC197 -> 0 | M195: =[4]IVA_Imposte!AF197 -> 0
B196: =[4]IVA_Imposte!B198 -> 0 | C196: =[4]IVA_Imposte!C198 -> 0 | D196: =[4]IVA_Imposte!E198 -> 0 | E196: =[4]IVA_Imposte!H198 -> 0 | F196: =[4]IVA_Imposte!K198 -> 0 | G196: =[4]IVA_Imposte!N198 -> 0 | H196: =[4]IVA_Imposte!Q198 -> 0 | I196: =[4]IVA_Imposte!T198 -> 0 | J196: =[4]IVA_Imposte!W198 -> 0 | K196: =[4]IVA_Imposte!Z198 -> 0 | L196: =[4]IVA_Imposte!AC198 -> 0 | M196: =[4]IVA_Imposte!AF198 -> 0
B197: =[4]IVA_Imposte!B199 -> 0 | C197: =[4]IVA_Imposte!C199 -> 0 | D197: =[4]IVA_Imposte!E199 -> 0 | E197: =[4]IVA_Imposte!H199 -> 0 | F197: =[4]IVA_Imposte!K199 -> 0 | G197: =[4]IVA_Imposte!N199 -> 0 | H197: =[4]IVA_Imposte!Q199 -> 0 | I197: =[4]IVA_Imposte!T199 -> 0 | J197: =[4]IVA_Imposte!W199 -> 0 | K197: =[4]IVA_Imposte!Z199 -> 0 | L197: =[4]IVA_Imposte!AC199 -> 0 | M197: =[4]IVA_Imposte!AF199 -> 0
B198: =[4]IVA_Imposte!B200 -> 0 | C198: =[4]IVA_Imposte!C200 -> 0 | D198: =[4]IVA_Imposte!E200 -> 0 | E198: =[4]IVA_Imposte!H200 -> 0 | F198: =[4]IVA_Imposte!K200 -> 0 | G198: =[4]IVA_Imposte!N200 -> 0 | H198: =[4]IVA_Imposte!Q200 -> 0 | I198: =[4]IVA_Imposte!T200 -> 0 | J198: =[4]IVA_Imposte!W200 -> 0 | K198: =[4]IVA_Imposte!Z200 -> 0 | L198: =[4]IVA_Imposte!AC200 -> 0 | M198: =[4]IVA_Imposte!AF200 -> 0
B199: =[4]IVA_Imposte!B201 -> 0 | C199: =[4]IVA_Imposte!C201 -> 0 | D199: =[4]IVA_Imposte!E201 -> 0 | E199: =[4]IVA_Imposte!H201 -> 0 | F199: =[4]IVA_Imposte!K201 -> 0 | G199: =[4]IVA_Imposte!N201 -> 0 | H199: =[4]IVA_Imposte!Q201 -> 0 | I199: =[4]IVA_Imposte!T201 -> 0 | J199: =[4]IVA_Imposte!W201 -> 0 | K199: =[4]IVA_Imposte!Z201 -> 0 | L199: =[4]IVA_Imposte!AC201 -> 0 | M199: =[4]IVA_Imposte!AF201 -> 0
B200: =[4]IVA_Imposte!B202 -> 0 | C200: =[4]IVA_Imposte!C202 -> 0 | D200: =[4]IVA_Imposte!E202 -> 0 | E200: =[4]IVA_Imposte!H202 -> 0 | F200: =[4]IVA_Imposte!K202 -> 0 | G200: =[4]IVA_Imposte!N202 -> 0 | H200: =[4]IVA_Imposte!Q202 -> 0 | I200: =[4]IVA_Imposte!T202 -> 0 | J200: =[4]IVA_Imposte!W202 -> 0 | K200: =[4]IVA_Imposte!Z202 -> 0 | L200: =[4]IVA_Imposte!AC202 -> 0 | M200: =[4]IVA_Imposte!AF202 -> 0
B201: =[4]IVA_Imposte!B203 -> 0 | C201: =[4]IVA_Imposte!C203 -> 0 | D201: =[4]IVA_Imposte!E203 -> 0 | E201: =[4]IVA_Imposte!H203 -> 0 | F201: =[4]IVA_Imposte!K203 -> 0 | G201: =[4]IVA_Imposte!N203 -> 0 | H201: =[4]IVA_Imposte!Q203 -> 0 | I201: =[4]IVA_Imposte!T203 -> 0 | J201: =[4]IVA_Imposte!W203 -> 0 | K201: =[4]IVA_Imposte!Z203 -> 0 | L201: =[4]IVA_Imposte!AC203 -> 0 | M201: =[4]IVA_Imposte!AF203 -> 0
B202: =[4]IVA_Imposte!B204 -> 0 | C202: =[4]IVA_Imposte!C204 -> 0 | D202: =[4]IVA_Imposte!E204 -> 0 | E202: =[4]IVA_Imposte!H204 -> 0 | F202: =[4]IVA_Imposte!K204 -> 0 | G202: =[4]IVA_Imposte!N204 -> 0 | H202: =[4]IVA_Imposte!Q204 -> 0 | I202: =[4]IVA_Imposte!T204 -> 0 | J202: =[4]IVA_Imposte!W204 -> 0 | K202: =[4]IVA_Imposte!Z204 -> 0 | L202: =[4]IVA_Imposte!AC204 -> 0 | M202: =[4]IVA_Imposte!AF204 -> 0
... 374 more rows

Sheet DatiContoEconomico_2017
B2: Art. 6 - Costi riconosciuti | T2: Art. 6 - Costi riconosciuti | AL2: Art. 6 - Costi riconosciuti
E3: Art. 6.4 riclassificazione costi per componente tariffaria | W3: Art. 6.4 riclassificazione costi per componente tariffaria | AO3: Art. 6.4 riclassificazione costi per componente tariffaria
B4: DATI DI CONTO ECONOMICO 2017 | T4: DATI DI CONTO ECONOMICO 2017 | AL4: DATI DI CONTO ECONOMICO 2017
E5: Art. 7.2 | F5: Art. 7.3 | G5: Art. 7.4 | H5: Art. 7.5 | I5: Art. 7.6 | J5: Art. 9.1 | K5: Art. 9.1 | L5: Art. 9.1 | M5: Art. 14 | N5: Art. 9.1 | W5: Art. 7.2 | X5: Art. 7.3 | Y5: Art. 7.4 | Z5: Art. 7.5 | AA5: Art. 7.6 | AB5: Art. 9.1 | AC5: Art. 9.1 | AD5: Art. 9.1 | AE5: Art. 14 | AF5: Art. 9.1 | AO5: Art. 7.2 | AP5: Art. 7.3 | AQ5: Art. 7.4 | AR5: Art. 7.5 | AS5: Art. 7.6 | AT5: Art. 9.1 | AU5: Art. 9.1 | AV5: Art. 9.1 | AW5: Art. 14 | AX5: Art. 9.1
B6: =DichiarazioneAttivita!$B$16&" - "&DichiarazioneAttivita!$C$16 -> Gestore 1 - Ascit | C6: =DichiarazioneAttivita!$C$16 -> Ascit | D6: =DichiarazioneAttivita!$C$16 -> Ascit | E6: CSL 2017 | F6: CRT 2017 | G6: CTS 2017 | H6: CRD 2017 | I6: CTR 2017 | J6: CARC 2017 | K6: CGG 2017 | L6: CCD 2017 | M6: ACC 2017 | N6: COal 2017 | O6: Attività esterne ciclo RU 2017 | P6: Attività diverse o extra perimetro 2017 | Q6: Poste straordinarie 2017 | R6: Totale 2017 | T6: =DichiarazioneAttivita!$B$17&" - "&DichiarazioneAttivita!$C$17 -> Gestore 2 - Capannori | U6: =DichiarazioneAttivita!$C$16 -> Ascit | V6: =DichiarazioneAttivita!$C$16 -> Ascit | W6: CSL 2017 | X6: CRT 2017 | Y6: CTS 2017 | Z6: CRD 2017 | AA6: CTR 2017 | AB6: CARC 2017 | AC6: CGG 2017 | AD6: CCD 2017 | AE6: ACC 2017 | AF6: COal 2017 | AG6: Attività esterne ciclo RU 2017 | AH6: Attività diverse o extra perimetro 2017 | AI6: Poste straordinarie 2017 | AJ6: Totale 2017 | AL6: =DichiarazioneAttivita!$B$18&" - "&DichiarazioneAttivita!$C$18 -> Gestore 3 - | AM6: =DichiarazioneAttivita!$C$16 -> Ascit | AN6: =DichiarazioneAttivita!$C$16 -> Ascit | AO6: CSL 2017 | AP6: CRT 2017 | AQ6: CTS 2017 | AR6: CRD 2017 | AS6: CTR 2017 | AT6: CARC 2017 | AU6: CGG 2017 | AV6: CCD 2017 | AW6: ACC 2017 | AX6: COal 2017 | AY6: Attività esterne ciclo RU 2017 | AZ6: Attività diverse o extra perimetro 2017 | BA6: Poste straordinarie 2017 | BB6: Totale 2017
B7: =DichiarazioneAttivita!$C$16 -> Ascit | C7: =DichiarazioneAttivita!$C$16 -> Ascit | D7: =DichiarazioneAttivita!$C$16 -> Ascit | E7: =DichiarazioneAttivita!$C$16 -> Ascit | F7: =DichiarazioneAttivita!$C$16 -> Ascit | G7: =DichiarazioneAttivita!$C$16 -> Ascit | H7: =DichiarazioneAttivita!$C$16 -> Ascit | I7: =DichiarazioneAttivita!$C$16 -> Ascit | J7: =DichiarazioneAttivita!$C$16 -> Ascit | K7: =DichiarazioneAttivita!$C$16 -> Ascit | L7: =DichiarazioneAttivita!$C$16 -> Ascit | M7: =DichiarazioneAttivita!$C$16 -> Ascit | N7: =DichiarazioneAttivita!$C$16 -> Ascit | O7: =DichiarazioneAttivita!$C$16 -> Ascit | P7: =DichiarazioneAttivita!$C$16 -> Ascit | Q7: =DichiarazioneAttivita!$C$16 -> Ascit | R7: =DichiarazioneAttivita!$C$16 -> Ascit | T7: =DichiarazioneAttivita!$C$16 -> Ascit | U7: =DichiarazioneAttivita!$C$16 -> Ascit | V7: =DichiarazioneAttivita!$C$16 -> Ascit | W7: =DichiarazioneAttivita!$C$17 -> Capannori | X7: =DichiarazioneAttivita!$C$17 -> Capannori | Y7: =DichiarazioneAttivita!$C$17 -> Capannori | Z7: =DichiarazioneAttivita!$C$17 -> Capannori | AA7: =DichiarazioneAttivita!$C$17 -> Capannori | AB7: =DichiarazioneAttivita!$C$17 -> Capannori | AC7: =DichiarazioneAttivita!$C$17 -> Capannori | AD7: =DichiarazioneAttivita!$C$17 -> Capannori | AE7: =DichiarazioneAttivita!$C$17 -> Capannori | AF7: =DichiarazioneAttivita!$C$17 -> Capannori | AG7: =DichiarazioneAttivita!$C$17 -> Capannori | AH7: =DichiarazioneAttivita!$C$17 -> Capannori | AI7: =DichiarazioneAttivita!$C$17 -> Capannori | AJ7: =DichiarazioneAttivita!$C$17 -> Capannori | AL7: =DichiarazioneAttivita!$C$16 -> Ascit | AM7: =DichiarazioneAttivita!$C$16 -> Ascit | AN7: =DichiarazioneAttivita!$C$16 -> Ascit | AO7: =DichiarazioneAttivita!$C$18 -> 0 | AP7: =DichiarazioneAttivita!$C$18 -> 0 | AQ7: =DichiarazioneAttivita!$C$18 -> 0 | AR7: =DichiarazioneAttivita!$C$18 -> 0 | AS7: =DichiarazioneAttivita!$C$18 -> 0 | AT7: =DichiarazioneAttivita!$C$18 -> 0 | AU7: =DichiarazioneAttivita!$C$18 -> 0 | AV7: =DichiarazioneAttivita!$C$18 -> 0 | AW7: =DichiarazioneAttivita!$C$18 -> 0 | AX7: =DichiarazioneAttivita!$C$18 -> 0 | AY7: =DichiarazioneAttivita!$C$18 -> 0 | AZ7: =DichiarazioneAttivita!$C$18 -> 0 | BA7: =DichiarazioneAttivita!$C$18 -> 0 | BB7: =DichiarazioneAttivita!$C$18 -> 0
B9: Art. 6.4 | C9: Macroclasse | D9: VALORE DELLA PRODUZIONE (Euro) | E9: =E10+E23+E24+E25+E26 -> 235442.9065 | F9: 513929.8775 | G9: 18341.41568 | H9: 4311800.31 | I9: 2132286.289 | J9: 729859.4644 | K9: 865303.1769 | L9: 0 | M9: 503519.3236 | N9: 27555.63358 | O9: 8285.852906 | P9: 161414.215 | Q9: 0 | R9: =SUM(E9:Q9) -> 9507738.465 | T9: Art. 6.4 | U9: Macroclasse | V9: VALORE DELLA PRODUZIONE (Euro) | W9: =W10+W23+W24+W25+W26 -> 0 | X9: 0 | Y9: 0 | Z9: 0 | AA9: 0 | AB9: 0 | AC9: 0 | AD9: 0 | AE9: 0 | AF9: 0 | AG9: 0 | AH9: 0 | AI9: 0 | AJ9: =SUM(W9:AI9) -> 0 | AL9: Art. 6.4 | AM9: Macroclasse | AN9: VALORE DELLA PRODUZIONE (Euro) | AO9: =AO10+AO23+AO24+AO25+AO26 -> 0 | AP9: 0 | AQ9: 0 | AR9: 0 | AS9: 0 | AT9: 0 | AU9: 0 | AV9: 0 | AW9: 0 | AX9: 0 | AY9: 0 | AZ9: 0 | BA9: 0 | BB9: =SUM(AO9:BA9) -> 0
B10: CCN | C10: A1 | D10: Ricavi delle vendite e delle prestazioni | E10: =SUM(E11:E22) -> 234552.3141 | F10: =SUM(F11:F22) -> 511985.8731 | G10: 18272.03697 | H10: 4295490.382 | I10: 2126861.961 | J10: 727098.6792 | K10: 862030.0588 | L10: 0 | M10: 501614.6984 | N10: 27451.40092 | O10: 8254.510625 | P10: 161414.215 | Q10: 0 | R10: =SUM(E10:Q10) -> 9475026.13 | T10: CCN | U10: A1 | V10: Ricavi delle vendite e delle prestazioni | W10: =SUM(W11:W22) -> 0 | X10: =SUM(X11:X22) -> 0 | Y10: 0 | Z10: 0 | AA10: 0 | AB10: 0 | AC10: 0 | AD10: 0 | AE10: 0 | AF10: 0 | AG10: 0 | AH10: 0 | AI10: 0 | AJ10: 0 | AL10: CCN | AM10: A1 | AN10: Ricavi delle vendite e delle prestazioni | AO10: =SUM(AO11:AO22) -> 0 | AP10: =SUM(AP11:AP22) -> 0 | AQ10: 0 | AR10: 0 | AS10: 0 | AT10: 0 | AU10: 0 | AV10: 0 | AW10: 0 | AX10: 0 | AY10: 0 | AZ10: 0 | BA10: 0 | BB10: 0
C11: A1 | D11: di cui ricavi per entrate tariffarie in applicazione dei corrispettivi all'utenza (art. 5 MTR) | E11: =[5]DatiContoEconomico!E11 -> 234025.9954 | F11: =[5]DatiContoEconomico!F11 -> 510837.0134 | G11: =[5]DatiContoEconomico!G11 -> 18231.03583 | H11: =[5]DatiContoEconomico!H11 -> 4285851.609 | I11: =[5]DatiContoEconomico!I11 -> 1425381.276 | J11: =[5]DatiContoEconomico!J11 -> 725467.1217 | K11: =[5]DatiContoEconomico!K11 -> 860095.725 | L11: =[5]DatiContoEconomico!L11 -> 0 | M11: =[5]DatiContoEconomico!M11 -> 500489.1109 | N11: =[5]DatiContoEconomico!N11 -> 27389.80194 | O11: =[5]DatiContoEconomico!O11 -> 8235.988093 | P11: =[5]DatiContoEconomico!P11 -> 0 | Q11: =[5]DatiContoEconomico!Q11 -> 0 | R11: 8596004.678 | U11: A1 | V11: di cui ricavi per entrate tariffarie in applicazione dei corrispettivi all'utenza (art. 5 MTR) | W11: =[4]DatiContoEconomico!E11 -> 0 | X11: =[4]DatiContoEconomico!F11 -> 0 | Y11: =[4]DatiContoEconomico!G11 -> 0 | Z11: =[4]DatiContoEconomico!H11 -> 0 | AA11: =[4]DatiContoEconomico!I11 -> 0 | AB11: =[4]DatiContoEconomico!J11 -> 0 | AC11: =[4]DatiContoEconomico!K11 -> 0 | AD11: =[4]DatiContoEconomico!L11 -> 0 | AE11: =[4]DatiContoEconomico!M11 -> 0 | AF11: =[4]DatiContoEconomico!N11 -> 0 | AG11: =[4]DatiContoEconomico!O11 -> 0 | AH11: =[4]DatiContoEconomico!P11 -> 0 | AI11: =[4]DatiContoEconomico!Q11 -> 0 | AJ11: 0 | AM11: A1 | AN11: di cui ricavi per entrate tariffarie in applicazione dei corrispettivi all'utenza (art. 5 MTR) | BB11: 0
B12: 𝐴𝑅𝑎 | C12: A1 | D12: di cui ricavi derivanti dal trattamento dei rifiuti speciali | E12: =[5]DatiContoEconomico!E12 -> 0 | F12: =[5]DatiContoEconomico!F12 -> 0 | G12: =[5]DatiContoEconomico!G12 -> 0 | H12: =[5]DatiContoEconomico!H12 -> 0 | I12: =[5]DatiContoEconomico!I12 -> 0 | J12: =[5]DatiContoEconomico!J12 -> 0 | K12: =[5]DatiContoEconomico!K12 -> 0 | L12: =[5]DatiContoEconomico!L12 -> 0 | M12: =[5]DatiContoEconomico!M12 -> 0 | N12: =[5]DatiContoEconomico!N12 -> 0 | O12: =[5]DatiContoEconomico!O12 -> 0 | P12: =[5]DatiContoEconomico!P12 -> 161414.215 | Q12: =[5]DatiContoEconomico!Q12 -> 0 | R12: 161414.215 | T12: 𝐴𝑅𝑎 | U12: A1 | V12: di cui ricavi derivanti dal trattamento dei rifiuti speciali | W12: =[4]DatiContoEconomico!E12 -> 0 | X12: =[4]DatiContoEconomico!F12 -> 0 | Y12: =[4]DatiContoEconomico!G12 -> 0 | Z12: =[4]DatiContoEconomico!H12 -> 0 | AA12: =[4]DatiContoEconomico!I12 -> 0 | AB12: =[4]DatiContoEconomico!J12 -> 0 | AC12: =[4]DatiContoEconomico!K12 -> 0 | AD12: =[4]DatiContoEconomico!L12 -> 0 | AE12: =[4]DatiContoEconomico!M12 -> 0 | AF12: =[4]DatiContoEconomico!N12 -> 0 | AG12: =[4]DatiContoEconomico!O12 -> 0 | AH12: =[4]DatiContoEconomico!P12 -> 0 | AI12: =[4]DatiContoEconomico!Q12 -> 0 | AJ12: 0 | AL12: 𝐴𝑅𝑎 | AM12: A1 | AN12: di cui ricavi derivanti dal trattamento dei rifiuti speciali | BB12: 0
B13: 𝐴𝑅𝑎 | C13: A1 | D13: di cui ricavi derivanti da vendita di energia termica | E13: =[5]DatiContoEconomico!E13 -> 0 | F13: =[5]DatiContoEconomico!F13 -> 0 | G13: =[5]DatiContoEconomico!G13 -> 0 | H13: =[5]DatiContoEconomico!H13 -> 0 | I13: =[5]DatiContoEconomico!I13 -> 0 | J13: =[5]DatiContoEconomico!J13 -> 0 | K13: =[5]DatiContoEconomico!K13 -> 0 | L13: =[5]DatiContoEconomico!L13 -> 0 | M13: =[5]DatiContoEconomico!M13 -> 0 | N13: =[5]DatiContoEconomico!N13 -> 0 | O13: =[5]DatiContoEconomico!O13 -> 0 | P13: =[5]DatiContoEconomico!P13 -> 0 | Q13: =[5]DatiContoEconomico!Q13 -> 0 | R13: 0 | T13: 𝐴𝑅𝑎 | U13: A1 | V13: di cui ricavi derivanti da vendita di energia termica | W13: =[4]DatiContoEconomico!E13 -> 0 | X13: =[4]DatiContoEconomico!F13 -> 0 | Y13: =[4]DatiContoEconomico!G13 -> 0 | Z13: =[4]DatiContoEconomico!H13 -> 0 | AA13: =[4]DatiContoEconomico!I13 -> 0 | AB13: =[4]DatiContoEconomico!J13 -> 0 | AC13: =[4]DatiContoEconomico!K13 -> 0 | AD13: =[4]DatiContoEconomico!L13 -> 0 | AE13: =[4]DatiContoEconomico!M13 -> 0 | AF13: =[4]DatiContoEconomico!N13 -> 0 | AG13: =[4]DatiContoEconomico!O13 -> 0 | AH13: =[4]DatiContoEconomico!P13 -> 0 | AI13: =[4]DatiContoEconomico!Q13 -> 0 | AJ13: 0 | AL13: 𝐴𝑅𝑎 | AM13: A1 | AN13: di cui ricavi derivanti da vendita di energia termica | BB13: 0
B14: 𝐴𝑅𝑎 | C14: A1 | D14: di cui ricavi derivanti da vendita di energia elettrica | E14: =[5]DatiContoEconomico!E14 -> 0 | F14: =[5]DatiContoEconomico!F14 -> 0 | G14: =[5]DatiContoEconomico!G14 -> 0 | H14: =[5]DatiContoEconomico!H14 -> 0 | I14: =[5]DatiContoEconomico!I14 -> 0 | J14: =[5]DatiContoEconomico!J14 -> 0 | K14: =[5]DatiContoEconomico!K14 -> 0 | L14: =[5]DatiContoEconomico!L14 -> 0 | M14: =[5]DatiContoEconomico!M14 -> 0 | N14: =[5]DatiContoEconomico!N14 -> 0 | O14: =[5]DatiContoEconomico!O14 -> 0 | P14: =[5]DatiContoEconomico!P14 -> 0 | Q14: =[5]DatiContoEconomico!Q14 -> 0 | R14: 0 | T14: 𝐴𝑅𝑎 | U14: A1 | V14: di cui ricavi derivanti da vendita di energia elettrica | W14: =[4]DatiContoEconomico!E14 -> 0 | X14: =[4]DatiContoEconomico!F14 -> 0 | Y14: =[4]DatiContoEconomico!G14 -> 0 | Z14: =[4]DatiContoEconomico!H14 -> 0 | AA14: =[4]DatiContoEconomico!I14 -> 0 | AB14: =[4]DatiContoEconomico!J14 -> 0 | AC14: =[4]DatiContoEconomico!K14 -> 0 | AD14: =[4]DatiContoEconomico!L14 -> 0 | AE14: =[4]DatiContoEconomico!M14 -> 0 | AF14: =[4]DatiContoEconomico!N14 -> 0 | AG14: =[4]DatiContoEconomico!O14 -> 0 | AH14: =[4]DatiContoEconomico!P14 -> 0 | AI14: =[4]DatiContoEconomico!Q14 -> 0 | AJ14: 0 | AL14: 𝐴𝑅𝑎 | AM14: A1 | AN14: di cui ricavi derivanti da vendita di energia elettrica | BB14: 0
B15: 𝐴𝑅𝑎 | C15: A1 | D15: di cui ricavi derivanti da recupero dei rifiuti | E15: =[5]DatiContoEconomico!E15 -> 0 | F15: =[5]DatiContoEconomico!F15 -> 0 | G15: =[5]DatiContoEconomico!G15 -> 0 | H15: =[5]DatiContoEconomico!H15 -> 0 | I15: =[5]DatiContoEconomico!I15 -> 220759.681 | J15: =[5]DatiContoEconomico!J15 -> 0 | K15: =[5]DatiContoEconomico!K15 -> 0 | L15: =[5]DatiContoEconomico!L15 -> 0 | M15: =[5]DatiContoEconomico!M15 -> 0 | N15: =[5]DatiContoEconomico!N15 -> 0 | O15: =[5]DatiContoEconomico!O15 -> 0 | P15: =[5]DatiContoEconomico!P15 -> 0 | Q15: =[5]DatiContoEconomico!Q15 -> 0 | R15: 220759.681 | T15: 𝐴𝑅𝑎 | U15: A1 | V15: di cui ricavi derivanti da recupero dei rifiuti | W15: =[4]DatiContoEconomico!E15 -> 0 | X15: =[4]DatiContoEconomico!F15 -> 0 | Y15: =[4]DatiContoEconomico!G15 -> 0 | Z15: =[4]DatiContoEconomico!H15 -> 0 | AA15: =[4]DatiContoEconomico!I15 -> 0 | AB15: =[4]DatiContoEconomico!J15 -> 0 | AC15: =[4]DatiContoEconomico!K15 -> 0 | AD15: =[4]DatiContoEconomico!L15 -> 0 | AE15: =[4]DatiContoEconomico!M15 -> 0 | AF15: =[4]DatiContoEconomico!N15 -> 0 | AG15: =[4]DatiContoEconomico!O15 -> 0 | AH15: =[4]DatiContoEconomico!P15 -> 0 | AI15: =[4]DatiContoEconomico!Q15 -> 0 | AJ15: 0 | AL15: 𝐴𝑅𝑎 | AM15: A1 | AN15: di cui ricavi derivanti da recupero dei rifiuti | BB15: 0
B16: 𝐴𝑅𝑎 | C16: A1 | D16: di cui ricavi da vendita di materiale | E16: =[5]DatiContoEconomico!E16 -> 0 | F16: =[5]DatiContoEconomico!F16 -> 0 | G16: =[5]DatiContoEconomico!G16 -> 0 | H16: =[5]DatiContoEconomico!H16 -> 0 | I16: =[5]DatiContoEconomico!I16 -> 0 | J16: =[5]DatiContoEconomico!J16 -> 0 | K16: =[5]DatiContoEconomico!K16 -> 0 | L16: =[5]DatiContoEconomico!L16 -> 0 | M16: =[5]DatiContoEconomico!M16 -> 0 | N16: =[5]DatiContoEconomico!N16 -> 0 | O16: =[5]DatiContoEconomico!O16 -> 0 | P16: =[5]DatiContoEconomico!P16 -> 0 | Q16: =[5]DatiContoEconomico!Q16 -> 0 | R16: 0 | T16: 𝐴𝑅𝑎 | U16: A1 | V16: di cui ricavi da vendita di materiale | W16: =[4]DatiContoEconomico!E16 -> 0 | X16: =[4]DatiContoEconomico!F16 -> 0 | Y16: =[4]DatiContoEconomico!G16 -> 0 | Z16: =[4]DatiContoEconomico!H16 -> 0 | AA16: =[4]DatiContoEconomico!I16 -> 0 | AB16: =[4]DatiContoEconomico!J16 -> 0 | AC16: =[4]DatiContoEconomico!K16 -> 0 | AD16: =[4]DatiContoEconomico!L16 -> 0 | AE16: =[4]DatiContoEconomico!M16 -> 0 | AF16: =[4]DatiContoEconomico!N16 -> 0 | AG16: =[4]DatiContoEconomico!O16 -> 0 | AH16: =[4]DatiContoEconomico!P16 -> 0 | AI16: =[4]DatiContoEconomico!Q16 -> 0 | AJ16: 0 | AL16: 𝐴𝑅𝑎 | AM16: A1 | AN16: di cui ricavi da vendita di materiale | BB16: 0
B17: 𝐴𝑅𝑎 | C17: A1 | D17: di cui ricavi da vendita biogas e biometano | E17: =[5]DatiContoEconomico!E17 -> 0 | F17: =[5]DatiContoEconomico!F17 -> 0 | G17: =[5]DatiContoEconomico!G17 -> 0 | H17: =[5]DatiContoEconomico!H17 -> 0 | I17: =[5]DatiContoEconomico!I17 -> 0 | J17: =[5]DatiContoEconomico!J17 -> 0 | K17: =[5]DatiContoEconomico!K17 -> 0 | L17: =[5]DatiContoEconomico!L17 -> 0 | M17: =[5]DatiContoEconomico!M17 -> 0 | N17: =[5]DatiContoEconomico!N17 -> 0 | O17: =[5]DatiContoEconomico!O17 -> 0 | P17: =[5]DatiContoEconomico!P17 -> 0 | Q17: =[5]DatiContoEconomico!Q17 -> 0 | R17: 0 | T17: 𝐴𝑅𝑎 | U17: A1 | V17: di cui ricavi da vendita biogas e biometano | W17: =[4]DatiContoEconomico!E17 -> 0 | X17: =[4]DatiContoEconomico!F17 -> 0 | Y17: =[4]DatiContoEconomico!G17 -> 0 | Z17: =[4]DatiContoEconomico!H17 -> 0 | AA17: =[4]DatiContoEconomico!I17 -> 0 | AB17: =[4]DatiContoEconomico!J17 -> 0 | AC17: =[4]DatiContoEconomico!K17 -> 0 | AD17: =[4]DatiContoEconomico!L17 -> 0 | AE17: =[4]DatiContoEconomico!M17 -> 0 | AF17: =[4]DatiContoEconomico!N17 -> 0 | AG17: =[4]DatiContoEconomico!O17 -> 0 | AH17: =[4]DatiContoEconomico!P17 -> 0 | AI17: =[4]DatiContoEconomico!Q17 -> 0 | AJ17: 0 | AL17: 𝐴𝑅𝑎 | AM17: A1 | AN17: di cui ricavi da vendita biogas e biometano | BB17: 0
B18: 𝐴𝑅𝑎 | C18: A1 | D18: di cui altri ricavi valorizzabili ai sensi dell'art. 2.2, Allegato A | E18: =[5]DatiContoEconomico!E18 -> 0 | F18: =[5]DatiContoEconomico!F18 -> 0 | G18: =[5]DatiContoEconomico!G18 -> 0 | H18: =[5]DatiContoEconomico!H18 -> 0 | I18: =[5]DatiContoEconomico!I18 -> 0 | J18: =[5]DatiContoEconomico!J18 -> 0 | K18: =[5]DatiContoEconomico!K18 -> 0 | L18: =[5]DatiContoEconomico!L18 -> 0 | M18: =[5]DatiContoEconomico!M18 -> 0 | N18: =[5]DatiContoEconomico!N18 -> 0 | O18: =[5]DatiContoEconomico!O18 -> 0 | P18: =[5]DatiContoEconomico!P18 -> 0 | Q18: =[5]DatiContoEconomico!Q18 -> 0 | R18: 0 | T18: 𝐴𝑅𝑎 | U18: A1 | V18: di cui altri ricavi valorizzabili ai sensi dell'art. 2.2, Allegato A | W18: =[4]DatiContoEconomico!E18 -> 0 | X18: =[4]DatiContoEconomico!F18 -> 0 | Y18: =[4]DatiContoEconomico!G18 -> 0 | Z18: =[4]DatiContoEconomico!H18 -> 0 | AA18: =[4]DatiContoEconomico!I18 -> 0 | AB18: =[4]DatiContoEconomico!J18 -> 0 | AC18: =[4]DatiContoEconomico!K18 -> 0 | AD18: =[4]DatiContoEconomico!L18 -> 0 | AE18: =[4]DatiContoEconomico!M18 -> 0 | AF18: =[4]DatiContoEconomico!N18 -> 0 | AG18: =[4]DatiContoEconomico!O18 -> 0 | AH18: =[4]DatiContoEconomico!P18 -> 0 | AI18: =[4]DatiContoEconomico!Q18 -> 0 | AJ18: 0 | AL18: 𝐴𝑅𝑎 | AM18: A1 | AN18: di cui altri ricavi valorizzabili ai sensi dell'art. 2.2, Allegato A | BB18: 0
B19: ARCONAI,a | C19: A1 | D19: di cui derivanti dai corrispettivi riconosciuti dal CONAI | E19: =[5]DatiContoEconomico!E19 -> 0 | F19: =[5]DatiContoEconomico!F19 -> 0 | G19: =[5]DatiContoEconomico!G19 -> 0 | H19: =[5]DatiContoEconomico!H19 -> 0 | I19: =[5]DatiContoEconomico!I19 -> 477515.3566 | J19: =[5]DatiContoEconomico!J19 -> 0 | K19: =[5]DatiContoEconomico!K19 -> 0 | L19: =[5]DatiContoEconomico!L19 -> 0 | M19: =[5]DatiContoEconomico!M19 -> 0 | N19: =[5]DatiContoEconomico!N19 -> 0 | O19: =[5]DatiContoEconomico!O19 -> 0 | P19: =[5]DatiContoEconomico!P19 -> 0 | Q19: =[5]DatiContoEconomico!Q19 -> 0 | R19: 477515.3566 | T19: ARCONAI,a | U19: A1 | V19: di cui derivanti dai corrispettivi riconosciuti dal CONAI | W19: =[4]DatiContoEconomico!E19 -> 0 | X19: =[4]DatiContoEconomico!F19 -> 0 | Y19: =[4]DatiContoEconomico!G19 -> 0 | Z19: =[4]DatiContoEconomico!H19 -> 0 | AA19: =[4]DatiContoEconomico!I19 -> 0 | AB19: =[4]DatiContoEconomico!J19 -> 0 | AC19: =[4]DatiContoEconomico!K19 -> 0 | AD19: =[4]DatiContoEconomico!L19 -> 0 | AE19: =[4]DatiContoEconomico!M19 -> 0 | AF19: =[4]DatiContoEconomico!N19 -> 0 | AG19: =[4]DatiContoEconomico!O19 -> 0 | AH19: =[4]DatiContoEconomico!P19 -> 0 | AI19: =[4]DatiContoEconomico!Q19 -> 0 | AJ19: 0 | AL19: ARCONAI,a | AM19: A1 | AN19: di cui derivanti dai corrispettivi riconosciuti dal CONAI | BB19: 0
C20: A1 | D20: di cui ricavi da incentivi da fonti rinnovabili | E20: =[5]DatiContoEconomico!E20 -> 0 | F20: =[5]DatiContoEconomico!F20 -> 0 | G20: =[5]DatiContoEconomico!G20 -> 0 | H20: =[5]DatiContoEconomico!H20 -> 0 | I20: =[5]DatiContoEconomico!I20 -> 0 | J20: =[5]DatiContoEconomico!J20 -> 0 | K20: =[5]DatiContoEconomico!K20 -> 0 | L20: =[5]DatiContoEconomico!L20 -> 0 | M20: =[5]DatiContoEconomico!M20 -> 0 | N20: =[5]DatiContoEconomico!N20 -> 0 | O20: =[5]DatiContoEconomico!O20 -> 0 | P20: =[5]DatiContoEconomico!P20 -> 0 | Q20: =[5]DatiContoEconomico!Q20 -> 0 | R20: 0 | U20: A1 | V20: di cui ricavi da incentivi da fonti rinnovabili | W20: =[4]DatiContoEconomico!E20 -> 0 | X20: =[4]DatiContoEconomico!F20 -> 0 | Y20: =[4]DatiContoEconomico!G20 -> 0 | Z20: =[4]DatiContoEconomico!H20 -> 0 | AA20: =[4]DatiContoEconomico!I20 -> 0 | AB20: =[4]DatiContoEconomico!J20 -> 0 | AC20: =[4]DatiContoEconomico!K20 -> 0 | AD20: =[4]DatiContoEconomico!L20 -> 0 | AE20: =[4]DatiContoEconomico!M20 -> 0 | AF20: =[4]DatiContoEconomico!N20 -> 0 | AG20: =[4]DatiContoEconomico!O20 -> 0 | AH20: =[4]DatiContoEconomico!P20 -> 0 | AI20: =[4]DatiContoEconomico!Q20 -> 0 | AJ20: 0 | AM20: A1 | AN20: di cui ricavi da incentivi da fonti rinnovabili | BB20: 0
C21: A1 | E21: =[5]DatiContoEconomico!E21 -> 0 | F21: =[5]DatiContoEconomico!F21 -> 0 | G21: =[5]DatiContoEconomico!G21 -> 0 | H21: =[5]DatiContoEconomico!H21 -> 0 | I21: =[5]DatiContoEconomico!I21 -> 0 | J21: =[5]DatiContoEconomico!J21 -> 0 | K21: =[5]DatiContoEconomico!K21 -> 0 | L21: =[5]DatiContoEconomico!L21 -> 0 | M21: =[5]DatiContoEconomico!M21 -> 0 | N21: =[5]DatiContoEconomico!N21 -> 0 | O21: =[5]DatiContoEconomico!O21 -> 0 | P21: =[5]DatiContoEconomico!P21 -> 0 | Q21: =[5]DatiContoEconomico!Q21 -> 0 | R21: 0 | U21: A1 | W21: =[4]DatiContoEconomico!E21 -> 0 | X21: =[4]DatiContoEconomico!F21 -> 0 | Y21: =[4]DatiContoEconomico!G21 -> 0 | Z21: =[4]DatiContoEconomico!H21 -> 0 | AA21: =[4]DatiContoEconomico!I21 -> 0 | AB21: =[4]DatiContoEconomico!J21 -> 0 | AC21: =[4]DatiContoEconomico!K21 -> 0 | AD21: =[4]DatiContoEconomico!L21 -> 0 | AE21: =[4]DatiContoEconomico!M21 -> 0 | AF21: =[4]DatiContoEconomico!N21 -> 0 | AG21: =[4]DatiContoEconomico!O21 -> 0 | AH21: =[4]DatiContoEconomico!P21 -> 0 | AI21: =[4]DatiContoEconomico!Q21 -> 0 | AJ21: 0 | AM21: A1 | BB21: 0
C22: A1 | D22: di cui altri ricavi di A1 | E22: =[5]DatiContoEconomico!E22 -> 526.3186152 | F22: =[5]DatiContoEconomico!F22 -> 1148.859677 | G22: =[5]DatiContoEconomico!G22 -> 41.00114396 | H22: =[5]DatiContoEconomico!H22 -> 9638.773162 | I22: =[5]DatiContoEconomico!I22 -> 3205.646869 | J22: =[5]DatiContoEconomico!J22 -> 1631.557427 | K22: =[5]DatiContoEconomico!K22 -> 1934.333791 | L22: =[5]DatiContoEconomico!L22 -> 0 | M22: =[5]DatiContoEconomico!M22 -> 1125.587503 | N22: =[5]DatiContoEconomico!N22 -> 61.59898008 | O22: =[5]DatiContoEconomico!O22 -> 18.5225314 | P22: =[5]DatiContoEconomico!P22 -> 0 | Q22: =[5]DatiContoEconomico!Q22 -> 0 | R22: 19332.1997 | U22: A1 | V22: di cui altri ricavi di A1 | W22: =[4]DatiContoEconomico!E22 -> 0 | X22: =[4]DatiContoEconomico!F22 -> 0 | Y22: =[4]DatiContoEconomico!G22 -> 0 | Z22: =[4]DatiContoEconomico!H22 -> 0 | AA22: =[4]DatiContoEconomico!I22 -> 0 | AB22: =[4]DatiContoEconomico!J22 -> 0 | AC22: =[4]DatiContoEconomico!K22 -> 0 | AD22: =[4]DatiContoEconomico!L22 -> 0 | AE22: =[4]DatiContoEconomico!M22 -> 0 | AF22: =[4]DatiContoEconomico!N22 -> 0 | AG22: =[4]DatiContoEconomico!O22 -> 0 | AH22: =[4]DatiContoEconomico!P22 -> 0 | AI22: =[4]DatiContoEconomico!Q22 -> 0 | AJ22: 0 | AM22: A1 | AN22: di cui altri ricavi di A1 | BB22: 0
C23: A2 | D23: Variazioni rimanenze di prodotti in corso di lavorazione, semilavorati e finiti | E23: =[5]DatiContoEconomico!E23 -> 0 | F23: =[5]DatiContoEconomico!F23 -> 0 | G23: =[5]DatiContoEconomico!G23 -> 0 | H23: =[5]DatiContoEconomico!H23 -> 0 | I23: =[5]DatiContoEconomico!I23 -> 0 | J23: =[5]DatiContoEconomico!J23 -> 0 | K23: =[5]DatiContoEconomico!K23 -> 0 | L23: =[5]DatiContoEconomico!L23 -> 0 | M23: =[5]DatiContoEconomico!M23 -> 0 | N23: =[5]DatiContoEconomico!N23 -> 0 | O23: =[5]DatiContoEconomico!O23 -> 0 | P23: =[5]DatiContoEconomico!P23 -> 0 | Q23: =[5]DatiContoEconomico!Q23 -> 0 | R23: 0 | U23: A2 | V23: Variazioni rimanenze di prodotti in corso di lavorazione, semilavorati e finiti | W23: =[4]DatiContoEconomico!E23 -> 0 | X23: =[4]DatiContoEconomico!F23 -> 0 | Y23: =[4]DatiContoEconomico!G23 -> 0 | Z23: =[4]DatiContoEconomico!H23 -> 0 | AA23: =[4]DatiContoEconomico!I23 -> 0 | AB23: =[4]DatiContoEconomico!J23 -> 0 | AC23: =[4]DatiContoEconomico!K23 -> 0 | AD23: =[4]DatiContoEconomico!L23 -> 0 | AE23: =[4]DatiContoEconomico!M23 -> 0 | AF23: =[4]DatiContoEconomico!N23 -> 0 | AG23: =[4]DatiContoEconomico!O23 -> 0 | AH23: =[4]DatiContoEconomico!P23 -> 0 | AI23: =[4]DatiContoEconomico!Q23 -> 0 | AJ23: 0 | AM23: A2 | AN23: Variazioni rimanenze di prodotti in corso di lavorazione, semilavorati e finiti | BB23: 0
C24: A3 | D24: Variazioni dei lavori in corso su ordinazione | E24: =[5]DatiContoEconomico!E24 -> 0 | F24: =[5]DatiContoEconomico!F24 -> 0 | G24: =[5]DatiContoEconomico!G24 -> 0 | H24: =[5]DatiContoEconomico!H24 -> 0 | I24: =[5]DatiContoEconomico!I24 -> 0 | J24: =[5]DatiContoEconomico!J24 -> 0 | K24: =[5]DatiContoEconomico!K24 -> 0 | L24: =[5]DatiContoEconomico!L24 -> 0 | M24: =[5]DatiContoEconomico!M24 -> 0 | N24: =[5]DatiContoEconomico!N24 -> 0 | O24: =[5]DatiContoEconomico!O24 -> 0 | P24: =[5]DatiContoEconomico!P24 -> 0 | Q24: =[5]DatiContoEconomico!Q24 -> 0 | R24: 0 | U24: A3 | V24: Variazioni dei lavori in corso su ordinazione | W24: =[4]DatiContoEconomico!E24 -> 0 | X24: =[4]DatiContoEconomico!F24 -> 0 | Y24: =[4]DatiContoEconomico!G24 -> 0 | Z24: =[4]DatiContoEconomico!H24 -> 0 | AA24: =[4]DatiContoEconomico!I24 -> 0 | AB24: =[4]DatiContoEconomico!J24 -> 0 | AC24: =[4]DatiContoEconomico!K24 -> 0 | AD24: =[4]DatiContoEconomico!L24 -> 0 | AE24: =[4]DatiContoEconomico!M24 -> 0 | AF24: =[4]DatiContoEconomico!N24 -> 0 | AG24: =[4]DatiContoEconomico!O24 -> 0 | AH24: =[4]DatiContoEconomico!P24 -> 0 | AI24: =[4]DatiContoEconomico!Q24 -> 0 | AJ24: 0 | AM24: A3 | AN24: Variazioni dei lavori in corso su ordinazione | BB24: 0
C25: A4 | D25: Incrementi di immobilizzazioni per lavori interni (inclusi costi del personale) | E25: =[5]DatiContoEconomico!E25 -> 0 | F25: =[5]DatiContoEconomico!F25 -> 0 | G25: =[5]DatiContoEconomico!G25 -> 0 | H25: =[5]DatiContoEconomico!H25 -> 0 | I25: =[5]DatiContoEconomico!I25 -> 0 | J25: =[5]DatiContoEconomico!J25 -> 0 | K25: =[5]DatiContoEconomico!K25 -> 0 | L25: =[5]DatiContoEconomico!L25 -> 0 | M25: =[5]DatiContoEconomico!M25 -> 0 | N25: =[5]DatiContoEconomico!N25 -> 0 | O25: =[5]DatiContoEconomico!O25 -> 0 | P25: =[5]DatiContoEconomico!P25 -> 0 | Q25: =[5]DatiContoEconomico!Q25 -> 0 | R25: 0 | U25: A4 | V25: Incrementi di immobilizzazioni per lavori interni (inclusi costi del personale) | W25: =[4]DatiContoEconomico!E25 -> 0 | X25: =[4]DatiContoEconomico!F25 -> 0 | Y25: =[4]DatiContoEconomico!G25 -> 0 | Z25: =[4]DatiContoEconomico!H25 -> 0 | AA25: =[4]DatiContoEconomico!I25 -> 0 | AB25: =[4]DatiContoEconomico!J25 -> 0 | AC25: =[4]DatiContoEconomico!K25 -> 0 | AD25: =[4]DatiContoEconomico!L25 -> 0 | AE25: =[4]DatiContoEconomico!M25 -> 0 | AF25: =[4]DatiContoEconomico!N25 -> 0 | AG25: =[4]DatiContoEconomico!O25 -> 0 | AH25: =[4]DatiContoEconomico!P25 -> 0 | AI25: =[4]DatiContoEconomico!Q25 -> 0 | AJ25: 0 | AM25: A4 | AN25: Incrementi di immobilizzazioni per lavori interni (inclusi costi del personale) | BB25: 0
C26: A5 | D26: Altri ricavi e proventi | E26: =SUM(E27:E33) -> 890.5924206 | F26: =SUM(F27:F33) -> 1944.004432 | G26: 69.3787128 | H26: 16309.92724 | I26: 5424.328006 | J26: 2760.785266 | K26: 3273.118152 | L26: 0 | M26: 1904.625202 | N26: 104.2326514 | O26: 31.34228126 | P26: 0 | Q26: 0 | R26: 32712.33437 | U26: A5 | V26: Altri ricavi e proventi | W26: =SUM(W27:W33) -> 0 | X26: =SUM(X27:X33) -> 0 | Y26: 0 | Z26: 0 | AA26: 0 | AB26: 0 | AC26: 0 | AD26: 0 | AE26: 0 | AF26: 0 | AG26: 0 | AH26: 0 | AI26: 0 | AJ26: 0 | AM26: A5 | AN26: Altri ricavi e proventi | BB26: 0
C27: A5 | D27: di cui contributi per conto terzi | E27: =[5]DatiContoEconomico!E27 -> 0 | F27: =[5]DatiContoEconomico!F27 -> 0 | G27: =[5]DatiContoEconomico!G27 -> 0 | H27: =[5]DatiContoEconomico!H27 -> 0 | I27: =[5]DatiContoEconomico!I27 -> 0 | J27: =[5]DatiContoEconomico!J27 -> 0 | K27: =[5]DatiContoEconomico!K27 -> 0 | L27: =[5]DatiContoEconomico!L27 -> 0 | M27: =[5]DatiContoEconomico!M27 -> 0 | N27: =[5]DatiContoEconomico!N27 -> 0 | O27: =[5]DatiContoEconomico!O27 -> 0 | P27: =[5]DatiContoEconomico!P27 -> 0 | Q27: =[5]DatiContoEconomico!Q27 -> 0 | R27: 0 | U27: A5 | V27: di cui contributi per conto terzi | W27: =[4]DatiContoEconomico!E27 -> 0 | X27: =[4]DatiContoEconomico!F27 -> 0 | Y27: =[4]DatiContoEconomico!G27 -> 0 | Z27: =[4]DatiContoEconomico!H27 -> 0 | AA27: =[4]DatiContoEconomico!I27 -> 0 | AB27: =[4]DatiContoEconomico!J27 -> 0 | AC27: =[4]DatiContoEconomico!K27 -> 0 | AD27: =[4]DatiContoEconomico!L27 -> 0 | AE27: =[4]DatiContoEconomico!M27 -> 0 | AF27: =[4]DatiContoEconomico!N27 -> 0 | AG27: =[4]DatiContoEconomico!O27 -> 0 | AH27: =[4]DatiContoEconomico!P27 -> 0 | AI27: =[4]DatiContoEconomico!Q27 -> 0 | AJ27: 0 | AM27: A5 | AN27: di cui contributi per conto terzi | BB27: 0
C28: A5 | D28: di cui rilascio fondo post-mortem | E28: =[5]DatiContoEconomico!E28 -> 0 | F28: =[5]DatiContoEconomico!F28 -> 0 | G28: =[5]DatiContoEconomico!G28 -> 0 | H28: =[5]DatiContoEconomico!H28 -> 0 | I28: =[5]DatiContoEconomico!I28 -> 0 | J28: =[5]DatiContoEconomico!J28 -> 0 | K28: =[5]DatiContoEconomico!K28 -> 0 | L28: =[5]DatiContoEconomico!L28 -> 0 | M28: =[5]DatiContoEconomico!M28 -> 0 | N28: =[5]DatiContoEconomico!N28 -> 0 | O28: =[5]DatiContoEconomico!O28 -> 0 | P28: =[5]DatiContoEconomico!P28 -> 0 | Q28: =[5]DatiContoEconomico!Q28 -> 0 | R28: 0 | U28: A5 | V28: di cui rilascio fondo post-mortem | W28: =[4]DatiContoEconomico!E28 -> 0 | X28: =[4]DatiContoEconomico!F28 -> 0 | Y28: =[4]DatiContoEconomico!G28 -> 0 | Z28: =[4]DatiContoEconomico!H28 -> 0 | AA28: =[4]DatiContoEconomico!I28 -> 0 | AB28: =[4]DatiContoEconomico!J28 -> 0 | AC28: =[4]DatiContoEconomico!K28 -> 0 | AD28: =[4]DatiContoEconomico!L28 -> 0 | AE28: =[4]DatiContoEconomico!M28 -> 0 | AF28: =[4]DatiContoEconomico!N28 -> 0 | AG28: =[4]DatiContoEconomico!O28 -> 0 | AH28: =[4]DatiContoEconomico!P28 -> 0 | AI28: =[4]DatiContoEconomico!Q28 -> 0 | AJ28: 0 | AM28: A5 | AN28: di cui rilascio fondo post-mortem | BB28: 0
C29: A5 | D29: di cui quote contributi conto impianti | E29: =[5]DatiContoEconomico!E29 -> 0 | F29: =[5]DatiContoEconomico!F29 -> 0 | G29: =[5]DatiContoEconomico!G29 -> 0 | H29: =[5]DatiContoEconomico!H29 -> 0 | I29: =[5]DatiContoEconomico!I29 -> 0 | J29: =[5]DatiContoEconomico!J29 -> 0 | K29: =[5]DatiContoEconomico!K29 -> 0 | L29: =[5]DatiContoEconomico!L29 -> 0 | M29: =[5]DatiContoEconomico!M29 -> 0 | N29: =[5]DatiContoEconomico!N29 -> 0 | O29: =[5]DatiContoEconomico!O29 -> 0 | P29: =[5]DatiContoEconomico!P29 -> 0 | Q29: =[5]DatiContoEconomico!Q29 -> 0 | R29: 0 | U29: A5 | V29: di cui quote contributi conto impianti | W29: =[4]DatiContoEconomico!E29 -> 0 | X29: =[4]DatiContoEconomico!F29 -> 0 | Y29: =[4]DatiContoEconomico!G29 -> 0 | Z29: =[4]DatiContoEconomico!H29 -> 0 | AA29: =[4]DatiContoEconomico!I29 -> 0 | AB29: =[4]DatiContoEconomico!J29 -> 0 | AC29: =[4]DatiContoEconomico!K29 -> 0 | AD29: =[4]DatiContoEconomico!L29 -> 0 | AE29: =[4]DatiContoEconomico!M29 -> 0 | AF29: =[4]DatiContoEconomico!N29 -> 0 | AG29: =[4]DatiContoEconomico!O29 -> 0 | AH29: =[4]DatiContoEconomico!P29 -> 0 | AI29: =[4]DatiContoEconomico!Q29 -> 0 | AJ29: 0 | AM29: A5 | AN29: di cui quote contributi conto impianti | BB29: 0
B30: PR art. 1 | C30: A5 | D30: di cui contributi in conto esercizio | E30: =[5]DatiContoEconomico!E30 -> 416.9522656 | F30: =[5]DatiContoEconomico!F30 -> 910.1324393 | G30: =[5]DatiContoEconomico!G30 -> 32.48131336 | H30: =[5]DatiContoEconomico!H30 -> 7635.884788 | I30: =[5]DatiContoEconomico!I30 -> 2539.529643 | J30: =[5]DatiContoEconomico!J30 -> 1292.528035 | K30: =[5]DatiContoEconomico!K30 -> 1532.389 | L30: =[5]DatiContoEconomico!L30 -> 0 | M30: =[5]DatiContoEconomico!M30 -> 891.6961055 | N30: =[5]DatiContoEconomico!N30 -> 48.79902318 | O30: =[5]DatiContoEconomico!O30 -> 14.67364294 | P30: =[5]DatiContoEconomico!P30 -> 0 | Q30: =[5]DatiContoEconomico!Q30 -> 0 | R30: 15315.06626 | T30: PR art. 1 | U30: A5 | V30: di cui contributi in conto esercizio | W30: =[4]DatiContoEconomico!E30 -> 0 | X30: =[4]DatiContoEconomico!F30 -> 0 | Y30: =[4]DatiContoEconomico!G30 -> 0 | Z30: =[4]DatiContoEconomico!H30 -> 0 | AA30: =[4]DatiContoEconomico!I30 -> 0 | AB30: =[4]DatiContoEconomico!J30 -> 0 | AC30: =[4]DatiContoEconomico!K30 -> 0 | AD30: =[4]DatiContoEconomico!L30 -> 0 | AE30: =[4]DatiContoEconomico!M30 -> 0 | AF30: =[4]DatiContoEconomico!N30 -> 0 | AG30: =[4]DatiContoEconomico!O30 -> 0 | AH30: =[4]DatiContoEconomico!P30 -> 0 | AI30: =[4]DatiContoEconomico!Q30 -> 0 | AJ30: 0 | AL30: PR art. 1 | AM30: A5 | AN30: di cui contributi in conto esercizio | BB30: 0
B31: PR art. 1 | C31: A5 | D31: di cui rimborsi e indennizzi corrisposti a vario titolo | E31: =[5]DatiContoEconomico!E31 -> 0 | F31: =[5]DatiContoEconomico!F31 -> 0 | G31: =[5]DatiContoEconomico!G31 -> 0 | H31: =[5]DatiContoEconomico!H31 -> 0 | I31: =[5]DatiContoEconomico!I31 -> 0 | J31: =[5]DatiContoEconomico!J31 -> 0 | K31: =[5]DatiContoEconomico!K31 -> 0 | L31: =[5]DatiContoEconomico!L31 -> 0 | M31: =[5]DatiContoEconomico!M31 -> 0 | N31: =[5]DatiContoEconomico!N31 -> 0 | O31: =[5]DatiContoEconomico!O31 -> 0 | P31: =[5]DatiContoEconomico!P31 -> 0 | Q31: =[5]DatiContoEconomico!Q31 -> 0 | R31: 0 | T31: PR art. 1 | U31: A5 | V31: di cui rimborsi e indennizzi corrisposti a vario titolo | W31: =[4]DatiContoEconomico!E31 -> 0 | X31: =[4]DatiContoEconomico!F31 -> 0 | Y31: =[4]DatiContoEconomico!G31 -> 0 | Z31: =[4]DatiContoEconomico!H31 -> 0 | AA31: =[4]DatiContoEconomico!I31 -> 0 | AB31: =[4]DatiContoEconomico!J31 -> 0 | AC31: =[4]DatiContoEconomico!K31 -> 0 | AD31: =[4]DatiContoEconomico!L31 -> 0 | AE31: =[4]DatiContoEconomico!M31 -> 0 | AF31: =[4]DatiContoEconomico!N31 -> 0 | AG31: =[4]DatiContoEconomico!O31 -> 0 | AH31: =[4]DatiContoEconomico!P31 -> 0 | AI31: =[4]DatiContoEconomico!Q31 -> 0 | AJ31: 0 | AL31: PR art. 1 | AM31: A5 | AN31: di cui rimborsi e indennizzi corrisposti a vario titolo | BB31: 0
B32: PR vendite interne | C32: A5 | D32: di cui per vendite di servizi a Gestori che operano all'interno del ciclo RU del =DichiarazioneAttivita!$B$10 (poste da consolidare con i costi) | E32: =[5]DatiContoEconomico!E32 -> 0 | F32: =[5]DatiContoEconomico!F32 -> 0 | G32: =[5]DatiContoEconomico!G32 -> 0 | H32: =[5]DatiContoEconomico!H32 -> 0 | I32: =[5]DatiContoEconomico!I32 -> 0 | J32: =[5]DatiContoEconomico!J32 -> 0 | K32: =[5]DatiContoEconomico!K32 -> 0 | L32: =[5]DatiContoEconomico!L32 -> 0 | M32: =[5]DatiContoEconomico!M32 -> 0 | N32: =[5]DatiContoEconomico!N32 -> 0 | O32: =[5]DatiContoEconomico!O32 -> 0 | P32: =[5]DatiContoEconomico!P32 -> 0 | Q32: =[5]DatiContoEconomico!Q32 -> 0 | R32: 0 | T32: PR vendite interne | U32: A5 | V32: di cui per vendite di servizi a Gestori che operano all'interno del ciclo RU del =DichiarazioneAttivita!$B$10 (poste da consolidare con i costi) | W32: =[4]DatiContoEconomico!E32 -> 0 | X32: =[4]DatiContoEconomico!F32 -> 0 | Y32: =[4]DatiContoEconomico!G32 -> 0 | Z32: =[4]DatiContoEconomico!H32 -> 0 | AA32: =[4]DatiContoEconomico!I32 -> 0 | AB32: =[4]DatiContoEconomico!J32 -> 0 | AC32: =[4]DatiContoEconomico!K32 -> 0 | AD32: =[4]DatiContoEconomico!L32 -> 0 | AE32: =[4]DatiContoEconomico!M32 -> 0 | AF32: =[4]DatiContoEconomico!N32 -> 0 | AG32: =[4]DatiContoEconomico!O32 -> 0 | AH32: =[4]DatiContoEconomico!P32 -> 0 | AI32: =[4]DatiContoEconomico!Q32 -> 0 | AJ32: 0 | AL32: PR vendite interne | AM32: A5 | AN32: di cui per vendite di servizi a Gestori che operano all'interno del ciclo RU del =DichiarazioneAttivita!$B$10 (poste da consolidare con i costi) | BB32: 0
C33: A5 | D33: di cui altri ricavi di A5 | E33: =[5]DatiContoEconomico!E33 -> 473.6401549 | F33: =[5]DatiContoEconomico!F33 -> 1033.871992 | G33: =[5]DatiContoEconomico!G33 -> 36.89739944 | H33: =[5]DatiContoEconomico!H33 -> 8674.042456 | I33: =[5]DatiContoEconomico!I33 -> 2884.798363 | J33: =[5]DatiContoEconomico!J33 -> 1468.257231 | K33: =[5]DatiContoEconomico!K33 -> 1740.729151 | L33: =[5]DatiContoEconomico!L33 -> 0 | M33: =[5]DatiContoEconomico!M33 -> 1012.929096 | N33: =[5]DatiContoEconomico!N33 -> 55.43362827 | O33: =[5]DatiContoEconomico!O33 -> 16.66863832 | P33: =[5]DatiContoEconomico!P33 -> 0 | Q33: =[5]DatiContoEconomico!Q33 -> 0 | R33: 17397.26811 | U33: A5 | V33: di cui altri ricavi di A5 | W33: =[4]DatiContoEconomico!E33 -> 0 | X33: =[4]DatiContoEconomico!F33 -> 0 | Y33: =[4]DatiContoEconomico!G33 -> 0 | Z33: =[4]DatiContoEconomico!H33 -> 0 | AA33: =[4]DatiContoEconomico!I33 -> 0 | AB33: =[4]DatiContoEconomico!J33 -> 0 | AC33: =[4]DatiContoEconomico!K33 -> 0 | AD33: =[4]DatiContoEconomico!L33 -> 0 | AE33: =[4]DatiContoEconomico!M33 -> 0 | AF33: =[4]DatiContoEconomico!N33 -> 0 | AG33: =[4]DatiContoEconomico!O33 -> 0 | AH33: =[4]DatiContoEconomico!P33 -> 0 | AI33: =[4]DatiContoEconomico!Q33 -> 0 | AJ33: 0 | AM33: A5 | AN33: di cui altri ricavi di A5 | BB33: 0
B35: Art. 6.4 | C35: Macroclasse | D35: COSTI DELLA PRODUZIONE (Euro) | E35: =E36+E40+E44+E47+E50+E55+E56+E59+E66 -> 241125.9682 | F35: 526449.8058 | G35: 18784.13617 | H35: 4416594.746 | I35: 1468625.055 | J35: 754563.181 | K35: 920052.3008 | L35: 0 | M35: 515673.1466 | N35: 28220.76454 | O35: 8524.167997 | P35: 217799.3483 | Q35: 0 | R35: =SUM(E35:Q35) -> 9116412.62 | T35: Art. 6.4 | U35: Macroclasse | V35: COSTI DELLA PRODUZIONE (Euro) | W35: =W36+W40+W44+W47+W50+W55+W56+W59+W66 -> 0 | X35: 0 | Y35: 0 | Z35: 0 | AA35: 0 | AB35: 0 | AC35: 0 | AD35: 0 | AE35: 0 | AF35: 15605.53 | AG35: 0 | AH35: 0 | AI35: 0 | AJ35: 15605.53 | AL35: Art. 6.4 | AM35: Macroclasse | AN35: COSTI DELLA PRODUZIONE (Euro) | AO35: =AO36+AO40+AO44+AO47+AO50+AO55+AO56+AO59+AO66 -> 0 | AP35: 0 | AQ35: 0 | AR35: 0 | AS35: 0 | AT35: 0 | AU35: 0 | AV35: 0 | AW35: 0 | AX35: 0 | AY35: 0 | AZ35: 0 | BA35: 0 | BB35: 0
B36: CCN | C36: B6 | D36: Per materie prime, sussidiarie, di consumo e merci | E36: =SUM(E37:E39) -> 25803.57572 | F36: =SUM(F37:F39) -> 62281.60033 | G36: 0 | H36: 527145.674 | I36: 0 | J36: 0 | K36: 34661.36409 | L36: 0 | M36: 0 | N36: 0 | O36: 500.4381634 | P36: 14021.01082 | Q36: 0 | R36: 664413.6631 | T36: CCN | U36: B6 | V36: Per materie prime, sussidiarie, di consumo e merci | W36: =SUM(W37:W39) -> 0 | X36: =SUM(X37:X39) -> 0 | Y36: 0 | Z36: 0 | AA36: 0 | AB36: 0 | AC36: 0 | AD36: 0 | AE36: 0 | AF36: 0 | AG36: 0 | AH36: 0 | AI36: 0 | AJ36: 0 | AL36: CCN | AM36: B6 | AN36: Per materie prime, sussidiarie, di consumo e merci | AO36: =SUM(AO37:AO39) -> 0 | AP36: =SUM(AP37:AP39) -> 0 | AQ36: 0 | AR36: 0 | AS36: 0 | AT36: 0 | AU36: 0 | AV36: 0 | AW36: 0 | AX36: 0 | AY36: 0 | AZ36: 0 | BA36: 0 | BB36: 0
C37: B6 | D37: di cui fornitura di energia elettrica | E37: =[5]DatiContoEconomico!E37 -> 0 | F37: =[5]DatiContoEconomico!F37 -> 0 | G37: =[5]DatiContoEconomico!G37 -> 0 | H37: =[5]DatiContoEconomico!H37 -> 0 | I37: =[5]DatiContoEconomico!I37 -> 0 | J37: =[5]DatiContoEconomico!J37 -> 0 | K37: =[5]DatiContoEconomico!K37 -> 0 | L37: =[5]DatiContoEconomico!L37 -> 0 | M37: =[5]DatiContoEconomico!M37 -> 0 | N37: =[5]DatiContoEconomico!N37 -> 0 | O37: =[5]DatiContoEconomico!O37 -> 0 | P37: =[5]DatiContoEconomico!P37 -> 0 | Q37: =[5]DatiContoEconomico!Q37 -> 0 | R37: 0 | U37: B6 | V37: di cui fornitura di energia elettrica | W37: =[4]DatiContoEconomico!E37 -> 0 | X37: =[4]DatiContoEconomico!F37 -> 0 | Y37: =[4]DatiContoEconomico!G37 -> 0 | Z37: =[4]DatiContoEconomico!H37 -> 0 | AA37: =[4]DatiContoEconomico!I37 -> 0 | AB37: =[4]DatiContoEconomico!J37 -> 0 | AC37: =[4]DatiContoEconomico!K37 -> 0 | AD37: =[4]DatiContoEconomico!L37 -> 0 | AE37: =[4]DatiContoEconomico!M37 -> 0 | AF37: =[4]DatiContoEconomico!N37 -> 0 | AG37: =[4]DatiContoEconomico!O37 -> 0 | AH37: =[4]DatiContoEconomico!P37 -> 0 | AI37: =[4]DatiContoEconomico!Q37 -> 0 | AJ37: 0 | AM37: B6 | AN37: di cui fornitura di energia elettrica | BB37: 0
C38: B6 | D38: di cui carburanti | E38: =[5]DatiContoEconomico!E38 -> 13911.72575 | F38: =[5]DatiContoEconomico!F38 -> 20900.09536 | G38: =[5]DatiContoEconomico!G38 -> 0 | H38: =[5]DatiContoEconomico!H38 -> 235891.8756 | I38: =[5]DatiContoEconomico!I38 -> 0 | J38: =[5]DatiContoEconomico!J38 -> 0 | K38: =[5]DatiContoEconomico!K38 -> 0 | L38: =[5]DatiContoEconomico!L38 -> 0 | M38: =[5]DatiContoEconomico!M38 -> 0 | N38: =[5]DatiContoEconomico!N38 -> 0 | O38: =[5]DatiContoEconomico!O38 -> 296.1079692 | P38: =[5]DatiContoEconomico!P38 -> 8325.641146 | Q38: =[5]DatiContoEconomico!Q38 -> 0 | R38: 279325.4459 | U38: B6 | V38: di cui carburanti | W38: =[4]DatiContoEconomico!E38 -> 0 | X38: =[4]DatiContoEconomico!F38 -> 0 | Y38: =[4]DatiContoEconomico!G38 -> 0 | Z38: =[4]DatiContoEconomico!H38 -> 0 | AA38: =[4]DatiContoEconomico!I38 -> 0 | AB38: =[4]DatiContoEconomico!J38 -> 0 | AC38: =[4]DatiContoEconomico!K38 -> 0 | AD38: =[4]DatiContoEconomico!L38 -> 0 | AE38: =[4]DatiContoEconomico!M38 -> 0 | AF38: =[4]DatiContoEconomico!N38 -> 0 | AG38: =[4]DatiContoEconomico!O38 -> 0 | AH38: =[4]DatiContoEconomico!P38 -> 0 | AI38: =[4]DatiContoEconomico!Q38 -> 0 | AJ38: 0 | AM38: B6 | AN38: di cui carburanti | BB38: 0
C39: B6 | D39: di cui altri costi di B6 | E39: =[5]DatiContoEconomico!E39 -> 11891.84997 | F39: =[5]DatiContoEconomico!F39 -> 41381.50497 | G39: =[5]DatiContoEconomico!G39 -> 0 | H39: =[5]DatiContoEconomico!H39 -> 291253.7984 | I39: =[5]DatiContoEconomico!I39 -> 0 | J39: =[5]DatiContoEconomico!J39 -> 0 | K39: =[5]DatiContoEconomico!K39 -> 34661.36409 | L39: =[5]DatiContoEconomico!L39 -> 0 | M39: =[5]DatiContoEconomico!M39 -> 0 | N39: =[5]DatiContoEconomico!N39 -> 0 | O39: =[5]DatiContoEconomico!O39 -> 204.3301942 | P39: =[5]DatiContoEconomico!P39 -> 5695.369678 | Q39: =[5]DatiContoEconomico!Q39 -> 0 | R39: 385088.2173 | U39: B6 | V39: di cui altri costi di B6 | W39: =[4]DatiContoEconomico!E39 -> 0 | X39: =[4]DatiContoEconomico!F39 -> 0 | Y39: =[4]DatiContoEconomico!G39 -> 0 | Z39: =[4]DatiContoEconomico!H39 -> 0 | AA39: =[4]DatiContoEconomico!I39 -> 0 | AB39: =[4]DatiContoEconomico!J39 -> 0 | AC39: =[4]DatiContoEconomico!K39 -> 0 | AD39: =[4]DatiContoEconomico!L39 -> 0 | AE39: =[4]DatiContoEconomico!M39 -> 0 | AF39: =[4]DatiContoEconomico!N39 -> 0 | AG39: =[4]DatiContoEconomico!O39 -> 0 | AH39: =[4]DatiContoEconomico!P39 -> 0 | AI39: =[4]DatiContoEconomico!Q39 -> 0 | AJ39: 0 | AM39: B6 | AN39: di cui altri costi di B6 | BB39: 0
B40: CCN | C40: B7 | D40: Per servizi | E40: =SUM(E41:E43) -> 41967.42748 | F40: =SUM(F41:F43) -> 87748.71723 | G40: =SUM(G41:G43) -> 18784.13617 | H40: 634564.2166 | I40: 1468625.055 | J40: 369174.7164 | K40: 411825.4502 | L40: 0 | M40: 0 | N40: 4410.667227 | O40: 1365.748861 | P40: 97180.10702 | Q40: 0 | R40: 3135646.242 | T40: CCN | U40: B7 | V40: Per servizi | W40: =SUM(W41:W43) -> 0 | X40: =SUM(X41:X43) -> 0 | Y40: =SUM(Y41:Y43) -> 0 | Z40: 0 | AA40: 0 | AB40: 0 | AC40: 0 | AD40: 0 | AE40: 0 | AF40: 0 | AG40: 0 | AH40: 0 | AI40: 0 | AJ40: 0 | AL40: CCN | AM40: B7 | AN40: Per servizi | BB40: 0
B41: Servizi CTS & CTR | C41: B7 | D41: di cui per l’attività di trattamento e smaltimento e l’attività di trattamento e recupero per la parte affidata all'esterno (art. 7.7) | E41: =[5]DatiContoEconomico!E41 -> 0 | F41: =[5]DatiContoEconomico!F41 -> 0 | G41: =[5]DatiContoEconomico!G41 -> 18784.13617 | H41: =[5]DatiContoEconomico!H41 -> 0 | I41: =[5]DatiContoEconomico!I41 -> 1468625.055 | J41: =[5]DatiContoEconomico!J41 -> 0 | K41: =[5]DatiContoEconomico!K41 -> 0 | L41: =[5]DatiContoEconomico!L41 -> 0 | M41: =[5]DatiContoEconomico!M41 -> 0 | N41: =[5]DatiContoEconomico!N41 -> 0 | O41: =[5]DatiContoEconomico!O41 -> 0 | P41: =[5]DatiContoEconomico!P41 -> 79986.61658 | Q41: =[5]DatiContoEconomico!Q41 -> 0 | R41: 1567395.807 | T41: Servizi CTS & CTR | U41: B7 | V41: di cui per l’attività di trattamento e smaltimento e l’attività di trattamento e recupero per la parte affidata all'esterno (art. 7.7) | W41: =[4]DatiContoEconomico!E41 -> 0 | X41: =[4]DatiContoEconomico!F41 -> 0 | Y41: =[4]DatiContoEconomico!G41 -> 0 | Z41: =[4]DatiContoEconomico!H41 -> 0 | AA41: =[4]DatiContoEconomico!I41 -> 0 | AB41: =[4]DatiContoEconomico!J41 -> 0 | AC41: =[4]DatiContoEconomico!K41 -> 0 | AD41: =[4]DatiContoEconomico!L41 -> 0 | AE41: =[4]DatiContoEconomico!M41 -> 0 | AF41: =[4]DatiContoEconomico!N41 -> 0 | AG41: =[4]DatiContoEconomico!O41 -> 0 | AH41: =[4]DatiContoEconomico!P41 -> 0 | AI41: =[4]DatiContoEconomico!Q41 -> 0 | AJ41: 0 | AL41: Servizi CTS & CTR | AM41: B7 | AN41: di cui per l’attività di trattamento e smaltimento e l’attività di trattamento e recupero per la parte affidata all'esterno (art. 7.7) | BB41: 0
B42: PR acquisti interni | C42: B7 | D42: di cui per acquisiti da Gestori/Comuni che operano all'interno del ciclo RU del Comune (poste da consolidare con i ricavi) | E42: =[5]DatiContoEconomico!E42 -> 0 | F42: =[5]DatiContoEconomico!F42 -> 0 | G42: =[5]DatiContoEconomico!G42 -> 0 | H42: =[5]DatiContoEconomico!H42 -> 0 | I42: =[5]DatiContoEconomico!I42 -> 0 | J42: =[5]DatiContoEconomico!J42 -> 0 | K42: =[5]DatiContoEconomico!K42 -> 0 | L42: =[5]DatiContoEconomico!L42 -> 0 | M42: =[5]DatiContoEconomico!M42 -> 0 | N42: =[5]DatiContoEconomico!N42 -> 0 | O42: =[5]DatiContoEconomico!O42 -> 0 | P42: =[5]DatiContoEconomico!P42 -> 0 | Q42: =[5]DatiContoEconomico!Q42 -> 0 | R42: 0 | T42: PR acquisti interni | U42: B7 | V42: di cui per acquisiti da Gestori/Comuni che operano all'interno del ciclo RU del Comune (poste da consolidare con i ricavi) | W42: =[4]DatiContoEconomico!E42 -> 0 | X42: =[4]DatiContoEconomico!F42 -> 0 | Y42: =[4]DatiContoEconomico!G42 -> 0 | Z42: =[4]DatiContoEconomico!H42 -> 0 | AA42: =[4]DatiContoEconomico!I42 -> 0 | AB42: =[4]DatiContoEconomico!J42 -> 0 | AC42: =[4]DatiContoEconomico!K42 -> 0 | AD42: =[4]DatiContoEconomico!L42 -> 0 | AE42: =[4]DatiContoEconomico!M42 -> 0 | AF42: =[4]DatiContoEconomico!N42 -> 0 | AG42: =[4]DatiContoEconomico!O42 -> 0 | AH42: =[4]DatiContoEconomico!P42 -> 0 | AI42: =[4]DatiContoEconomico!Q42 -> 0 | AJ42: 0 | AL42: PR acquisti interni | AM42: B7 | AN42: di cui per acquisiti da Gestori/Comuni che operano all'interno del ciclo RU del Comune (poste da consolidare con i ricavi) | BB42: 0
C43: B7 | D43: di cui altri costi di B7 | E43: =[5]DatiContoEconomico!E43 -> 41967.42748 | F43: =[5]DatiContoEconomico!F43 -> 87748.71723 | G43: =[5]DatiContoEconomico!G43 -> 0 | H43: =[5]DatiContoEconomico!H43 -> 634564.2166 | I43: =[5]DatiContoEconomico!I43 -> 0 | J43: =[5]DatiContoEconomico!J43 -> 369174.7164 | K43: =[5]DatiContoEconomico!K43 -> 411825.4502 | L43: =[5]DatiContoEconomico!L43 -> 0 | M43: =[5]DatiContoEconomico!M43 -> 0 | N43: =[5]DatiContoEconomico!N43 -> 4410.667227 | O43: =[5]DatiContoEconomico!O43 -> 1365.748861 | P43: =[5]DatiContoEconomico!P43 -> 17193.49044 | Q43: =[5]DatiContoEconomico!Q43 -> 0 | R43: 1568250.434 | U43: B7 | V43: di cui altri costi di B7 | W43: =[4]DatiContoEconomico!E43 -> 0 | X43: =[4]DatiContoEconomico!F43 -> 0 | Y43: =[4]DatiContoEconomico!G43 -> 0 | Z43: =[4]DatiContoEconomico!H43 -> 0 | AA43: =[4]DatiContoEconomico!I43 -> 0 | AB43: =[4]DatiContoEconomico!J43 -> 0 | AC43: =[4]DatiContoEconomico!K43 -> 0 | AD43: =[4]DatiContoEconomico!L43 -> 0 | AE43: =[4]DatiContoEconomico!M43 -> 0 | AF43: =[4]DatiContoEconomico!N43 -> 0 | AG43: =[4]DatiContoEconomico!O43 -> 0 | AH43: =[4]DatiContoEconomico!P43 -> 0 | AI43: =[4]DatiContoEconomico!Q43 -> 0 | AJ43: 0 | AM43: B7 | AN43: di cui altri costi di B7 | BB43: 0
C44: B8 | D44: Per godimento beni di terzi | E44: =SUM(E45:E46) -> 22287.05895 | F44: =SUM(F45:F46) -> 47671.05836 | G44: 0 | H44: 459565.6861 | I44: 0 | J44: 22109.2964 | K44: 0 | L44: 0 | M44: 0 | N44: 0 | O44: 112.5219391 | P44: 8948.839196 | Q44: 0 | R44: 560694.461 | U44: B8 | V44: Per godimento beni di terzi | W44: =SUM(W45:W46) -> 0 | X44: =SUM(X45:X46) -> 0 | Y44: 0 | Z44: 0 | AA44: 0 | AB44: 0 | AC44: 0 | AD44: 0 | AE44: 0 | AF44: 0 | AG44: 0 | AH44: 0 | AI44: 0 | AJ44: 0 | AM44: B8 | AN44: Per godimento beni di terzi | BB44: 0
C45: B8 | D45: di cui altre spese verso altre imprese del gruppo | E45: =[5]DatiContoEconomico!E45 -> 0 | F45: =[5]DatiContoEconomico!F45 -> 0 | G45: =[5]DatiContoEconomico!G45 -> 0 | H45: =[5]DatiContoEconomico!H45 -> 0 | I45: =[5]DatiContoEconomico!I45 -> 0 | J45: =[5]DatiContoEconomico!J45 -> 0 | K45: =[5]DatiContoEconomico!K45 -> 0 | L45: =[5]DatiContoEconomico!L45 -> 0 | M45: =[5]DatiContoEconomico!M45 -> 0 | N45: =[5]DatiContoEconomico!N45 -> 0 | O45: =[5]DatiContoEconomico!O45 -> 0 | P45: =[5]DatiContoEconomico!P45 -> 0 | Q45: =[5]DatiContoEconomico!Q45 -> 0 | R45: 0 | U45: B8 | V45: di cui altre spese verso altre imprese del gruppo | W45: =[4]DatiContoEconomico!E45 -> 0 | X45: =[4]DatiContoEconomico!F45 -> 0 | Y45: =[4]DatiContoEconomico!G45 -> 0 | Z45: =[4]DatiContoEconomico!H45 -> 0 | AA45: =[4]DatiContoEconomico!I45 -> 0 | AB45: =[4]DatiContoEconomico!J45 -> 0 | AC45: =[4]DatiContoEconomico!K45 -> 0 | AD45: =[4]DatiContoEconomico!L45 -> 0 | AE45: =[4]DatiContoEconomico!M45 -> 0 | AF45: =[4]DatiContoEconomico!N45 -> 0 | AG45: =[4]DatiContoEconomico!O45 -> 0 | AH45: =[4]DatiContoEconomico!P45 -> 0 | AI45: =[4]DatiContoEconomico!Q45 -> 0 | AJ45: 0 | AM45: B8 | AN45: di cui altre spese verso altre imprese del gruppo | BB45: 0
C46: B8 | D46: di cui altri costi di B8 | E46: =[5]DatiContoEconomico!E46 -> 22287.05895 | F46: =[5]DatiContoEconomico!F46 -> 47671.05836 | G46: =[5]DatiContoEconomico!G46 -> 0 | H46: =[5]DatiContoEconomico!H46 -> 459565.6861 | I46: =[5]DatiContoEconomico!I46 -> 0 | J46: =[5]DatiContoEconomico!J46 -> 22109.2964 | K46: =[5]DatiContoEconomico!K46 -> 0 | L46: =[5]DatiContoEconomico!L46 -> 0 | M46: =[5]DatiContoEconomico!M46 -> 0 | N46: =[5]DatiContoEconomico!N46 -> 0 | O46: =[5]DatiContoEconomico!O46 -> 112.5219391 | P46: =[5]DatiContoEconomico!P46 -> 8948.839196 | Q46: =[5]DatiContoEconomico!Q46 -> 0 | R46: 560694.461 | U46: B8 | V46: di cui altri costi di B8 | W46: =[4]DatiContoEconomico!E46 -> 0 | X46: =[4]DatiContoEconomico!F46 -> 0 | Y46: =[4]DatiContoEconomico!G46 -> 0 | Z46: =[4]DatiContoEconomico!H46 -> 0 | AA46: =[4]DatiContoEconomico!I46 -> 0 | AB46: =[4]DatiContoEconomico!J46 -> 0 | AC46: =[4]DatiContoEconomico!K46 -> 0 | AD46: =[4]DatiContoEconomico!L46 -> 0 | AE46: =[4]DatiContoEconomico!M46 -> 0 | AF46: =[4]DatiContoEconomico!N46 -> 0 | AG46: =[4]DatiContoEconomico!O46 -> 0 | AH46: =[4]DatiContoEconomico!P46 -> 0 | AI46: =[4]DatiContoEconomico!Q46 -> 0 | AJ46: 0 | AM46: B8 | AN46: di cui altri costi di B8 | BB46: 0
C47: B9 | D47: Per il personale | E47: =SUM(E48:E49) -> 149871.7623 | F47: =SUM(F48:F49) -> 324160.4097 | G47: 0 | H47: 2767065.047 | I47: 0 | J47: 363279.1682 | K47: 376248.4719 | L47: 0 | M47: 0 | N47: 0 | O47: 6134.088692 | P47: 87384.57454 | Q47: 0 | R47: 4074143.522 | U47: B9 | V47: Per il personale | W47: =SUM(W48:W49) -> 0 | X47: =SUM(X48:X49) -> 0 | Y47: 0 | Z47: 0 | AA47: 0 | AB47: 0 | AC47: 0 | AD47: 0 | AE47: 0 | AF47: 0 | AG47: 0 | AH47: 0 | AI47: 0 | AJ47: 0 | AM47: B9 | AN47: Per il personale | BB47: 0
C48: B9 | D48: di cui per trattamento di fine rapporto (inclusa rivalutazione) | E48: =[5]DatiContoEconomico!E48 -> 6753.283096 | F48: =[5]DatiContoEconomico!F48 -> 14606.80105 | G48: =[5]DatiContoEconomico!G48 -> 0 | H48: =[5]DatiContoEconomico!H48 -> 124685.0862 | I48: =[5]DatiContoEconomico!I48 -> 0 | J48: =[5]DatiContoEconomico!J48 -> 16369.50836 | K48: =[5]DatiContoEconomico!K48 -> 16953.9105 | L48: =[5]DatiContoEconomico!L48 -> 0 | M48: =[5]DatiContoEconomico!M48 -> 0 | N48: =[5]DatiContoEconomico!N48 -> 0 | O48: =[5]DatiContoEconomico!O48 -> 276.404553 | P48: =[5]DatiContoEconomico!P48 -> 3937.584779 | Q48: =[5]DatiContoEconomico!Q48 -> 0 | R48: 183582.5786 | U48: B9 | V48: di cui per trattamento di fine rapporto (inclusa rivalutazione) | W48: =[4]DatiContoEconomico!E48 -> 0 | X48: =[4]DatiContoEconomico!F48 -> 0 | Y48: =[4]DatiContoEconomico!G48 -> 0 | Z48: =[4]DatiContoEconomico!H48 -> 0 | AA48: =[4]DatiContoEconomico!I48 -> 0 | AB48: =[4]DatiContoEconomico!J48 -> 0 | AC48: =[4]DatiContoEconomico!K48 -> 0 | AD48: =[4]DatiContoEconomico!L48 -> 0 | AE48: =[4]DatiContoEconomico!M48 -> 0 | AF48: =[4]DatiContoEconomico!N48 -> 0 | AG48: =[4]DatiContoEconomico!O48 -> 0 | AH48: =[4]DatiContoEconomico!P48 -> 0 | AI48: =[4]DatiContoEconomico!Q48 -> 0 | AJ48: 0 | AM48: B9 | AN48: di cui per trattamento di fine rapporto (inclusa rivalutazione) | BB48: 0
C49: B9 | D49: di cui altri costi di B9 | E49: =[5]DatiContoEconomico!E49 -> 143118.4792 | F49: =[5]DatiContoEconomico!F49 -> 309553.6087 | G49: =[5]DatiContoEconomico!G49 -> 0 | H49: =[5]DatiContoEconomico!H49 -> 2642379.961 | I49: =[5]DatiContoEconomico!I49 -> 0 | J49: =[5]DatiContoEconomico!J49 -> 346909.6598 | K49: =[5]DatiContoEconomico!K49 -> 359294.5614 | L49: =[5]DatiContoEconomico!L49 -> 0 | M49: =[5]DatiContoEconomico!M49 -> 0 | N49: =[5]DatiContoEconomico!N49 -> 0 | O49: =[5]DatiContoEconomico!O49 -> 5857.684139 | P49: =[5]DatiContoEconomico!P49 -> 83446.98976 | Q49: =[5]DatiContoEconomico!Q49 -> 0 | R49: 3890560.944 | U49: B9 | V49: di cui altri costi di B9 | W49: =[4]DatiContoEconomico!E49 -> 0 | X49: =[4]DatiContoEconomico!F49 -> 0 | Y49: =[4]DatiContoEconomico!G49 -> 0 | Z49: =[4]DatiContoEconomico!H49 -> 0 | AA49: =[4]DatiContoEconomico!I49 -> 0 | AB49: =[4]DatiContoEconomico!J49 -> 0 | AC49: =[4]DatiContoEconomico!K49 -> 0 | AD49: =[4]DatiContoEconomico!L49 -> 0 | AE49: =[4]DatiContoEconomico!M49 -> 0 | AF49: =[4]DatiContoEconomico!N49 -> 0 | AG49: =[4]DatiContoEconomico!O49 -> 0 | AH49: =[4]DatiContoEconomico!P49 -> 0 | AI49: =[4]DatiContoEconomico!Q49 -> 0 | AJ49: 0 | AM49: B9 | AN49: di cui altri costi di B9 | BB49: 0
C50: B10.d | D50: Accantonamenti per svalutazione dei crediti iscritti a bilancio | E50: =SUM(E51:E54) -> 0 | F50: =SUM(F51:F54) -> 0 | G50: 0 | H50: 0 | I50: 0 | J50: 0 | K50: 0 | L50: 0 | M50: 502269.7779 | N50: 0 | O50: 256.7346996 | P50: 6664.245614 | Q50: 0 | R50: 509190.7582 | U50: B10.d | V50: Accantonamenti per svalutazione dei crediti iscritti a bilancio | W50: =SUM(W51:W54) -> 0 | X50: =SUM(X51:X54) -> 0 | Y50: 0 | Z50: 0 | AA50: 0 | AB50: 0 | AC50: 0 | AD50: 0 | AE50: 0 | AF50: 0 | AG50: 0 | AH50: 0 | AI50: 0 | AJ50: 0 | AM50: B10.d | AN50: Accantonamenti per svalutazione dei crediti iscritti a bilancio | BB50: 0
B51: Acc art. 14 | C51: B10.d | D51: di cui valore massimo pari all’80% di quanto previsto dalle norme sul fondo crediti di dubbia esigibilità di cui al punto 3.3 dell’allegato n. 4/2 al Dlgs 118/2011 (TARI tributo) | E51: =[5]DatiContoEconomico!E51 -> 0 | F51: =[5]DatiContoEconomico!F51 -> 0 | G51: =[5]DatiContoEconomico!G51 -> 0 | H51: =[5]DatiContoEconomico!H51 -> 0 | I51: =[5]DatiContoEconomico!I51 -> 0 | J51: =[5]DatiContoEconomico!J51 -> 0 | K51: =[5]DatiContoEconomico!K51 -> 0 | L51: =[5]DatiContoEconomico!L51 -> 0 | M51: =[5]DatiContoEconomico!M51 -> 0 | N51: =[5]DatiContoEconomico!N51 -> 0 | O51: =[5]DatiContoEconomico!O51 -> 0 | P51: =[5]DatiContoEconomico!P51 -> 0 | Q51: =[5]DatiContoEconomico!Q51 -> 0 | R51: 0 | T51: Acc art. 14 | U51: B10.d | V51: di cui valore massimo pari all’80% di quanto previsto dalle norme sul fondo crediti di dubbia esigibilità di cui al punto 3.3 dell’allegato n. 4/2 al Dlgs 118/2011 (TARI tributo) | W51: =[4]DatiContoEconomico!E51 -> 0 | X51: =[4]DatiContoEconomico!F51 -> 0 | Y51: =[4]DatiContoEconomico!G51 -> 0 | Z51: =[4]DatiContoEconomico!H51 -> 0 | AA51: =[4]DatiContoEconomico!I51 -> 0 | AB51: =[4]DatiContoEconomico!J51 -> 0 | AC51: =[4]DatiContoEconomico!K51 -> 0 | AD51: =[4]DatiContoEconomico!L51 -> 0 | AE51: =[4]DatiContoEconomico!M51 -> 0 | AF51: =[4]DatiContoEconomico!N51 -> 0 | AG51: =[4]DatiContoEconomico!O51 -> 0 | AH51: =[4]DatiContoEconomico!P51 -> 0 | AI51: =[4]DatiContoEconomico!Q51 -> 0 | AJ51: 0 | AL51: Acc art. 14 | AM51: B10.d | AN51: di cui valore massimo pari all’80% di quanto previsto dalle norme sul fondo crediti di dubbia esigibilità di cui al punto 3.3 dell’allegato n. 4/2 al Dlgs 118/2011 (TARI tributo) | BB51: 0
C52: B10.d | D52: di cui importi eccedenti il valore massimo dell’80% di quanto previsto dalle norme sul fondo crediti di dubbia esigibilità di cui al punto 3.3 dell’allegato n. 4/2 al Dlgs 118/2011 (TARI tributo) | E52: =[5]DatiContoEconomico!E52 -> 0 | F52: =[5]DatiContoEconomico!F52 -> 0 | G52: =[5]DatiContoEconomico!G52 -> 0 | H52: =[5]DatiContoEconomico!H52 -> 0 | I52: =[5]DatiContoEconomico!I52 -> 0 | J52: =[5]DatiContoEconomico!J52 -> 0 | K52: =[5]DatiContoEconomico!K52 -> 0 | L52: =[5]DatiContoEconomico!L52 -> 0 | M52: =[5]DatiContoEconomico!M52 -> 0 | N52: =[5]DatiContoEconomico!N52 -> 0 | O52: =[5]DatiContoEconomico!O52 -> 0 | P52: =[5]DatiContoEconomico!P52 -> 0 | Q52: =[5]DatiContoEconomico!Q52 -> 0 | R52: 0 | U52: B10.d | V52: di cui importi eccedenti il valore massimo dell’80% di quanto previsto dalle norme sul fondo crediti di dubbia esigibilità di cui al punto 3.3 dell’allegato n. 4/2 al Dlgs 118/2011 (TARI tributo) | W52: =[4]DatiContoEconomico!E52 -> 0 | X52: =[4]DatiContoEconomico!F52 -> 0 | Y52: =[4]DatiContoEconomico!G52 -> 0 | Z52: =[4]DatiContoEconomico!H52 -> 0 | AA52: =[4]DatiContoEconomico!I52 -> 0 | AB52: =[4]DatiContoEconomico!J52 -> 0 | AC52: =[4]DatiContoEconomico!K52 -> 0 | AD52: =[4]DatiContoEconomico!L52 -> 0 | AE52: =[4]DatiContoEconomico!M52 -> 0 | AF52: =[4]DatiContoEconomico!N52 -> 0 | AG52: =[4]DatiContoEconomico!O52 -> 0 | AH52: =[4]DatiContoEconomico!P52 -> 0 | AI52: =[4]DatiContoEconomico!Q52 -> 0 | AJ52: 0 | AM52: B10.d | AN52: di cui importi eccedenti il valore massimo dell’80% di quanto previsto dalle norme sul fondo crediti di dubbia esigibilità di cui al punto 3.3 dell’allegato n. 4/2 al Dlgs 118/2011 (TARI tributo) | BB52: 0
B53: Acc art. 14 | C53: B10.d | D53: di cui valore massimo previsto dalle norme fiscali (tariffa corrispettiva) | E53: =[5]DatiContoEconomico!E53 -> 0 | F53: =[5]DatiContoEconomico!F53 -> 0 | G53: =[5]DatiContoEconomico!G53 -> 0 | H53: =[5]DatiContoEconomico!H53 -> 0 | I53: =[5]DatiContoEconomico!I53 -> 0 | J53: =[5]DatiContoEconomico!J53 -> 0 | K53: =[5]DatiContoEconomico!K53 -> 0 | L53: =[5]DatiContoEconomico!L53 -> 0 | M53: =[5]DatiContoEconomico!M53 -> 502269.7779 | N53: =[5]DatiContoEconomico!N53 -> 0 | O53: =[5]DatiContoEconomico!O53 -> 256.7346996 | P53: =[5]DatiContoEconomico!P53 -> 6664.245614 | Q53: =[5]DatiContoEconomico!Q53 -> 0 | R53: 509190.7582 | T53: Acc art. 14 | U53: B10.d | V53: di cui valore massimo previsto dalle norme fiscali (tariffa corrispettiva) | W53: =[4]DatiContoEconomico!E53 -> 0 | X53: =[4]DatiContoEconomico!F53 -> 0 | Y53: =[4]DatiContoEconomico!G53 -> 0 | Z53: =[4]DatiContoEconomico!H53 -> 0 | AA53: =[4]DatiContoEconomico!I53 -> 0 | AB53: =[4]DatiContoEconomico!J53 -> 0 | AC53: =[4]DatiContoEconomico!K53 -> 0 | AD53: =[4]DatiContoEconomico!L53 -> 0 | AE53: =[4]DatiContoEconomico!M53 -> 0 | AF53: =[4]DatiContoEconomico!N53 -> 0 | AG53: =[4]DatiContoEconomico!O53 -> 0 | AH53: =[4]DatiContoEconomico!P53 -> 0 | AI53: =[4]DatiContoEconomico!Q53 -> 0 | AJ53: 0 | AL53: Acc art. 14 | AM53: B10.d | AN53: di cui valore massimo previsto dalle norme fiscali (tariffa corrispettiva) | BB53: 0
C54: B10.d | D54: di cui altri costi di B10.d | E54: =[5]DatiContoEconomico!E54 -> 0 | F54: =[5]DatiContoEconomico!F54 -> 0 | G54: =[5]DatiContoEconomico!G54 -> 0 | H54: =[5]DatiContoEconomico!H54 -> 0 | I54: =[5]DatiContoEconomico!I54 -> 0 | J54: =[5]DatiContoEconomico!J54 -> 0 | K54: =[5]DatiContoEconomico!K54 -> 0 | L54: =[5]DatiContoEconomico!L54 -> 0 | M54: =[5]DatiContoEconomico!M54 -> 0 | N54: =[5]DatiContoEconomico!N54 -> 0 | O54: =[5]DatiContoEconomico!O54 -> 0 | P54: =[5]DatiContoEconomico!P54 -> 0 | Q54: =[5]DatiContoEconomico!Q54 -> 0 | R54: 0 | U54: B10.d | V54: di cui altri costi di B10.d | W54: =[4]DatiContoEconomico!E54 -> 0 | X54: =[4]DatiContoEconomico!F54 -> 0 | Y54: =[4]DatiContoEconomico!G54 -> 0 | Z54: =[4]DatiContoEconomico!H54 -> 0 | AA54: =[4]DatiContoEconomico!I54 -> 0 | AB54: =[4]DatiContoEconomico!J54 -> 0 | AC54: =[4]DatiContoEconomico!K54 -> 0 | AD54: =[4]DatiContoEconomico!L54 -> 0 | AE54: =[4]DatiContoEconomico!M54 -> 0 | AF54: =[4]DatiContoEconomico!N54 -> 0 | AG54: =[4]DatiContoEconomico!O54 -> 0 | AH54: =[4]DatiContoEconomico!P54 -> 0 | AI54: =[4]DatiContoEconomico!Q54 -> 0 | AJ54: 0 | AM54: B10.d | AN54: di cui altri costi di B10.d | BB54: 0
C55: B11 | D55: Variazione delle rimanenze | E55: =[5]DatiContoEconomico!E55 -> 733.9334731 | F55: =[5]DatiContoEconomico!F55 -> 2815.131182 | G55: =[5]DatiContoEconomico!G55 -> 0 | H55: =[5]DatiContoEconomico!H55 -> 17336.24939 | I55: =[5]DatiContoEconomico!I55 -> 0 | J55: =[5]DatiContoEconomico!J55 -> 0 | K55: =[5]DatiContoEconomico!K55 -> 0 | L55: =[5]DatiContoEconomico!L55 -> 0 | M55: =[5]DatiContoEconomico!M55 -> 0 | N55: =[5]DatiContoEconomico!N55 -> 0 | O55: =[5]DatiContoEconomico!O55 -> 20.74466529 | P55: =[5]DatiContoEconomico!P55 -> 584.4614347 | Q55: =[5]DatiContoEconomico!Q55 -> 0 | R55: 21490.52014 | U55: B11 | V55: Variazione delle rimanenze | W55: =[4]DatiContoEconomico!E55 -> 0 | X55: =[4]DatiContoEconomico!F55 -> 0 | Y55: =[4]DatiContoEconomico!G55 -> 0 | Z55: =[4]DatiContoEconomico!H55 -> 0 | AA55: =[4]DatiContoEconomico!I55 -> 0 | AB55: =[4]DatiContoEconomico!J55 -> 0 | AC55: =[4]DatiContoEconomico!K55 -> 0 | AD55: =[4]DatiContoEconomico!L55 -> 0 | AE55: =[4]DatiContoEconomico!M55 -> 0 | AF55: =[4]DatiContoEconomico!N55 -> 0 | AG55: =[4]DatiContoEconomico!O55 -> 0 | AH55: =[4]DatiContoEconomico!P55 -> 0 | AI55: =[4]DatiContoEconomico!Q55 -> 0 | AJ55: 0 | AM55: B11 | AN55: Variazione delle rimanenze | BB55: 0
C56: B12 | D56: Accantonamenti per rischi | E56: =SUM(E57:E58) -> 0 | F56: =SUM(F57:F58) -> 0 | G56: 0 | H56: 0 | I56: 0 | J56: 0 | K56: 0 | L56: 0 | M56: 0 | N56: 0 | O56: 0 | P56: 0 | Q56: 0 | R56: 0 | U56: B12 | V56: Accantonamenti per rischi | W56: =SUM(W57:W58) -> 0 | X56: =SUM(X57:X58) -> 0 | Y56: 0 | Z56: 0 | AA56: 0 | AB56: 0 | AC56: 0 | AD56: 0 | AE56: 0 | AF56: 0 | AG56: 0 | AH56: 0 | AI56: 0 | AJ56: 0 | AM56: B12 | AN56: Accantonamenti per rischi | BB56: 0
B57: Acc art. 14 | C57: B12 | D57: di cui per oneri previsti dalla normativa di settore e/o dai contratti di affidamento | E57: =[5]DatiContoEconomico!E57 -> 0 | F57: =[5]DatiContoEconomico!F57 -> 0 | G57: =[5]DatiContoEconomico!G57 -> 0 | H57: =[5]DatiContoEconomico!H57 -> 0 | I57: =[5]DatiContoEconomico!I57 -> 0 | J57: =[5]DatiContoEconomico!J57 -> 0 | K57: =[5]DatiContoEconomico!K57 -> 0 | L57: =[5]DatiContoEconomico!L57 -> 0 | M57: =[5]DatiContoEconomico!M57 -> 0 | N57: =[5]DatiContoEconomico!N57 -> 0 | O57: =[5]DatiContoEconomico!O57 -> 0 | P57: =[5]DatiContoEconomico!P57 -> 0 | Q57: =[5]DatiContoEconomico!Q57 -> 0 | R57: 0 | T57: Acc art. 14 | U57: B12 | V57: di cui per oneri previsti dalla normativa di settore e/o dai contratti di affidamento | W57: =[4]DatiContoEconomico!E57 -> 0 | X57: =[4]DatiContoEconomico!F57 -> 0 | Y57: =[4]DatiContoEconomico!G57 -> 0 | Z57: =[4]DatiContoEconomico!H57 -> 0 | AA57: =[4]DatiContoEconomico!I57 -> 0 | AB57: =[4]DatiContoEconomico!J57 -> 0 | AC57: =[4]DatiContoEconomico!K57 -> 0 | AD57: =[4]DatiContoEconomico!L57 -> 0 | AE57: =[4]DatiContoEconomico!M57 -> 0 | AF57: =[4]DatiContoEconomico!N57 -> 0 | AG57: =[4]DatiContoEconomico!O57 -> 0 | AH57: =[4]DatiContoEconomico!P57 -> 0 | AI57: =[4]DatiContoEconomico!Q57 -> 0 | AJ57: 0 | AL57: Acc art. 14 | AM57: B12 | AN57: di cui per oneri previsti dalla normativa di settore e/o dai contratti di affidamento | BB57: 0
C58: B12 | D58: di cui altri costi di B12 | E58: =[5]DatiContoEconomico!E58 -> 0 | F58: =[5]DatiContoEconomico!F58 -> 0 | G58: =[5]DatiContoEconomico!G58 -> 0 | H58: =[5]DatiContoEconomico!H58 -> 0 | I58: =[5]DatiContoEconomico!I58 -> 0 | J58: =[5]DatiContoEconomico!J58 -> 0 | K58: =[5]DatiContoEconomico!K58 -> 0 | L58: =[5]DatiContoEconomico!L58 -> 0 | M58: =[5]DatiContoEconomico!M58 -> 0 | N58: =[5]DatiContoEconomico!N58 -> 0 | O58: =[5]DatiContoEconomico!O58 -> 0 | P58: =[5]DatiContoEconomico!P58 -> 0 | Q58: =[5]DatiContoEconomico!Q58 -> 0 | R58: 0 | U58: B12 | V58: di cui altri costi di B12 | W58: =[4]DatiContoEconomico!E58 -> 0 | X58: =[4]DatiContoEconomico!F58 -> 0 | Y58: =[4]DatiContoEconomico!G58 -> 0 | Z58: =[4]DatiContoEconomico!H58 -> 0 | AA58: =[4]DatiContoEconomico!I58 -> 0 | AB58: =[4]DatiContoEconomico!J58 -> 0 | AC58: =[4]DatiContoEconomico!K58 -> 0 | AD58: =[4]DatiContoEconomico!L58 -> 0 | AE58: =[4]DatiContoEconomico!M58 -> 0 | AF58: =[4]DatiContoEconomico!N58 -> 0 | AG58: =[4]DatiContoEconomico!O58 -> 0 | AH58: =[4]DatiContoEconomico!P58 -> 0 | AI58: =[4]DatiContoEconomico!Q58 -> 0 | AJ58: 0 | AM58: B12 | AN58: di cui altri costi di B12 | BB58: 0
C59: B13 | D59: Altri accantonamenti | E59: =SUM(E60:E65) -> 0 | F59: =SUM(F60:F65) -> 0 | G59: 0 | H59: =SUM(H60:H65) -> 0 | I59: 0 | J59: 0 | K59: 0 | L59: 0 | M59: 13403.36867 | N59: 0 | O59: 7.552875725 | P59: 212.7951703 | Q59: 0 | R59: 13623.71672 | U59: B13 | V59: Altri accantonamenti | W59: =SUM(W60:W65) -> 0 | X59: =SUM(X60:X65) -> 0 | Y59: 0 | Z59: =SUM(Z60:Z65) -> 0 | AA59: =SUM(AA60:AA65) -> 0 | AB59: 0 | AC59: 0 | AD59: 0 | AE59: 0 | AF59: 0 | AG59: 0 | AH59: 0 | AI59: 0 | AJ59: 0 | AM59: B13 | AN59: Altri accantonamenti | BB59: 0
B60: Acc art. 14 | C60: B13 | D60: di cui costituzione di un fondo per la chiusura a fine vita dell'impianto | E60: =[5]DatiContoEconomico!E60 -> 0 | F60: =[5]DatiContoEconomico!F60 -> 0 | G60: =[5]DatiContoEconomico!G60 -> 0 | H60: =[5]DatiContoEconomico!H60 -> 0 | I60: =[5]DatiContoEconomico!I60 -> 0 | J60: =[5]DatiContoEconomico!J60 -> 0 | K60: =[5]DatiContoEconomico!K60 -> 0 | L60: =[5]DatiContoEconomico!L60 -> 0 | M60: =[5]DatiContoEconomico!M60 -> 0 | N60: =[5]DatiContoEconomico!N60 -> 0 | O60: =[5]DatiContoEconomico!O60 -> 0 | P60: =[5]DatiContoEconomico!P60 -> 0 | Q60: =[5]DatiContoEconomico!Q60 -> 0 | R60: 0 | T60: Acc art. 14 | U60: B13 | V60: di cui costituzione di un fondo per la chiusura a fine vita dell'impianto | W60: =[4]DatiContoEconomico!E60 -> 0 | X60: =[4]DatiContoEconomico!F60 -> 0 | Y60: =[4]DatiContoEconomico!G60 -> 0 | Z60: =[4]DatiContoEconomico!H60 -> 0 | AA60: =[4]DatiContoEconomico!I60 -> 0 | AB60: =[4]DatiContoEconomico!J60 -> 0 | AC60: =[4]DatiContoEconomico!K60 -> 0 | AD60: =[4]DatiContoEconomico!L60 -> 0 | AE60: =[4]DatiContoEconomico!M60 -> 0 | AF60: =[4]DatiContoEconomico!N60 -> 0 | AG60: =[4]DatiContoEconomico!O60 -> 0 | AH60: =[4]DatiContoEconomico!P60 -> 0 | AI60: =[4]DatiContoEconomico!Q60 -> 0 | AJ60: 0 | AL60: Acc art. 14 | AM60: B13 | AN60: di cui costituzione di un fondo per la chiusura a fine vita dell'impianto | BB60: 0
B61: Acc art. 14 | C61: B13 | D61: di cui costituzione di un fondo per il ripristino dei siti | E61: =[5]DatiContoEconomico!E61 -> 0 | F61: =[5]DatiContoEconomico!F61 -> 0 | G61: =[5]DatiContoEconomico!G61 -> 0 | H61: =[5]DatiContoEconomico!H61 -> 0 | I61: =[5]DatiContoEconomico!I61 -> 0 | J61: =[5]DatiContoEconomico!J61 -> 0 | K61: =[5]DatiContoEconomico!K61 -> 0 | L61: =[5]DatiContoEconomico!L61 -> 0 | M61: =[5]DatiContoEconomico!M61 -> 13403.36867 | N61: =[5]DatiContoEconomico!N61 -> 0 | O61: =[5]DatiContoEconomico!O61 -> 7.552875725 | P61: =[5]DatiContoEconomico!P61 -> 212.7951703 | Q61: =[5]DatiContoEconomico!Q61 -> 0 | R61: 13623.71672 | T61: Acc art. 14 | U61: B13 | V61: di cui costituzione di un fondo per il ripristino dei siti | W61: =[4]DatiContoEconomico!E61 -> 0 | X61: =[4]DatiContoEconomico!F61 -> 0 | Y61: =[4]DatiContoEconomico!G61 -> 0 | Z61: =[4]DatiContoEconomico!H61 -> 0 | AA61: =[4]DatiContoEconomico!I61 -> 0 | AB61: =[4]DatiContoEconomico!J61 -> 0 | AC61: =[4]DatiContoEconomico!K61 -> 0 | AD61: =[4]DatiContoEconomico!L61 -> 0 | AE61: =[4]DatiContoEconomico!M61 -> 0 | AF61: =[4]DatiContoEconomico!N61 -> 0 | AG61: =[4]DatiContoEconomico!O61 -> 0 | AH61: =[4]DatiContoEconomico!P61 -> 0 | AI61: =[4]DatiContoEconomico!Q61 -> 0 | AJ61: 0 | AL61: Acc art. 14 | AM61: B13 | AN61: di cui costituzione di un fondo per il ripristino dei siti | BB61: 0
B62: Acc art. 14 | C62: B13 | D62: di cui costituzione di un fondo per la gestione post operativa della discarica | E62: =[5]DatiContoEconomico!E62 -> 0 | F62: =[5]DatiContoEconomico!F62 -> 0 | G62: =[5]DatiContoEconomico!G62 -> 0 | H62: =[5]DatiContoEconomico!H62 -> 0 | I62: =[5]DatiContoEconomico!I62 -> 0 | J62: =[5]DatiContoEconomico!J62 -> 0 | K62: =[5]DatiContoEconomico!K62 -> 0 | L62: =[5]DatiContoEconomico!L62 -> 0 | M62: =[5]DatiContoEconomico!M62 -> 0 | N62: =[5]DatiContoEconomico!N62 -> 0 | O62: =[5]DatiContoEconomico!O62 -> 0 | P62: =[5]DatiContoEconomico!P62 -> 0 | Q62: =[5]DatiContoEconomico!Q62 -> 0 | R62: 0 | T62: Acc art. 14 | U62: B13 | V62: di cui costituzione di un fondo per la gestione post operativa della discarica | W62: =[4]DatiContoEconomico!E62 -> 0 | X62: =[4]DatiContoEconomico!F62 -> 0 | Y62: =[4]DatiContoEconomico!G62 -> 0 | Z62: =[4]DatiContoEconomico!H62 -> 0 | AA62: =[4]DatiContoEconomico!I62 -> 0 | AB62: =[4]DatiContoEconomico!J62 -> 0 | AC62: =[4]DatiContoEconomico!K62 -> 0 | AD62: =[4]DatiContoEconomico!L62 -> 0 | AE62: =[4]DatiContoEconomico!M62 -> 0 | AF62: =[4]DatiContoEconomico!N62 -> 0 | AG62: =[4]DatiContoEconomico!O62 -> 0 | AH62: =[4]DatiContoEconomico!P62 -> 0 | AI62: =[4]DatiContoEconomico!Q62 -> 0 | AJ62: 0 | AL62: Acc art. 14 | AM62: B13 | AN62: di cui costituzione di un fondo per la gestione post operativa della discarica | BB62: 0
B63: Acc art. 14 | C63: B13 | D63: di cui altri accantonamenti non in eccesso rispetto all'applicazione di norme tributarie | E63: =[5]DatiContoEconomico!E63 -> 0 | F63: =[5]DatiContoEconomico!F63 -> 0 | G63: =[5]DatiContoEconomico!G63 -> 0 | H63: =[5]DatiContoEconomico!H63 -> 0 | I63: =[5]DatiContoEconomico!I63 -> 0 | J63: =[5]DatiContoEconomico!J63 -> 0 | K63: =[5]DatiContoEconomico!K63 -> 0 | L63: =[5]DatiContoEconomico!L63 -> 0 | M63: =[5]DatiContoEconomico!M63 -> 0 | N63: =[5]DatiContoEconomico!N63 -> 0 | O63: =[5]DatiContoEconomico!O63 -> 0 | P63: =[5]DatiContoEconomico!P63 -> 0 | Q63: =[5]DatiContoEconomico!Q63 -> 0 | R63: 0 | T63: Acc art. 14 | U63: B13 | V63: di cui altri accantonamenti non in eccesso rispetto all'applicazione di norme tributarie | W63: =[4]DatiContoEconomico!E63 -> 0 | X63: =[4]DatiContoEconomico!F63 -> 0 | Y63: =[4]DatiContoEconomico!G63 -> 0 | Z63: =[4]DatiContoEconomico!H63 -> 0 | AA63: =[4]DatiContoEconomico!I63 -> 0 | AB63: =[4]DatiContoEconomico!J63 -> 0 | AC63: =[4]DatiContoEconomico!K63 -> 0 | AD63: =[4]DatiContoEconomico!L63 -> 0 | AE63: =[4]DatiContoEconomico!M63 -> 0 | AF63: =[4]DatiContoEconomico!N63 -> 0 | AG63: =[4]DatiContoEconomico!O63 -> 0 | AH63: =[4]DatiContoEconomico!P63 -> 0 | AI63: =[4]DatiContoEconomico!Q63 -> 0 | AJ63: 0 | AL63: Acc art. 14 | AM63: B13 | AN63: di cui altri accantonamenti non in eccesso rispetto all'applicazione di norme tributarie | BB63: 0
C64: B13 | D64: di cui altri accantonamenti in eccesso rispetto all'applicazione di norme tributarie | E64: =[5]DatiContoEconomico!E64 -> 0 | F64: =[5]DatiContoEconomico!F64 -> 0 | G64: =[5]DatiContoEconomico!G64 -> 0 | H64: =[5]DatiContoEconomico!H64 -> 0 | I64: =[5]DatiContoEconomico!I64 -> 0 | J64: =[5]DatiContoEconomico!J64 -> 0 | K64: =[5]DatiContoEconomico!K64 -> 0 | L64: =[5]DatiContoEconomico!L64 -> 0 | M64: =[5]DatiContoEconomico!M64 -> 0 | N64: =[5]DatiContoEconomico!N64 -> 0 | O64: =[5]DatiContoEconomico!O64 -> 0 | P64: =[5]DatiContoEconomico!P64 -> 0 | Q64: =[5]DatiContoEconomico!Q64 -> 0 | R64: 0 | U64: B13 | V64: di cui altri accantonamenti in eccesso rispetto all'applicazione di norme tributarie | W64: =[4]DatiContoEconomico!E64 -> 0 | X64: =[4]DatiContoEconomico!F64 -> 0 | Y64: =[4]DatiContoEconomico!G64 -> 0 | Z64: =[4]DatiContoEconomico!H64 -> 0 | AA64: =[4]DatiContoEconomico!I64 -> 0 | AB64: =[4]DatiContoEconomico!J64 -> 0 | AC64: =[4]DatiContoEconomico!K64 -> 0 | AD64: =[4]DatiContoEconomico!L64 -> 0 | AE64: =[4]DatiContoEconomico!M64 -> 0 | AF64: =[4]DatiContoEconomico!N64 -> 0 | AG64: =[4]DatiContoEconomico!O64 -> 0 | AH64: =[4]DatiContoEconomico!P64 -> 0 | AI64: =[4]DatiContoEconomico!Q64 -> 0 | AJ64: 0 | AM64: B13 | AN64: di cui altri accantonamenti in eccesso rispetto all'applicazione di norme tributarie | BB64: 0
C65: B13 | D65: di cui altri costi di B13 | E65: =[5]DatiContoEconomico!E65 -> 0 | F65: =[5]DatiContoEconomico!F65 -> 0 | G65: =[5]DatiContoEconomico!G65 -> 0 | H65: =[5]DatiContoEconomico!H65 -> 0 | I65: =[5]DatiContoEconomico!I65 -> 0 | J65: =[5]DatiContoEconomico!J65 -> 0 | K65: =[5]DatiContoEconomico!K65 -> 0 | L65: =[5]DatiContoEconomico!L65 -> 0 | M65: =[5]DatiContoEconomico!M65 -> 0 | N65: =[5]DatiContoEconomico!N65 -> 0 | O65: =[5]DatiContoEconomico!O65 -> 0 | P65: =[5]DatiContoEconomico!P65 -> 0 | Q65: =[5]DatiContoEconomico!Q65 -> 0 | R65: 0 | U65: B13 | V65: di cui altri costi di B13 | W65: =[4]DatiContoEconomico!E65 -> 0 | X65: =[4]DatiContoEconomico!F65 -> 0 | Y65: =[4]DatiContoEconomico!G65 -> 0 | Z65: =[4]DatiContoEconomico!H65 -> 0 | AA65: =[4]DatiContoEconomico!I65 -> 0 | AB65: =[4]DatiContoEconomico!J65 -> 0 | AC65: =[4]DatiContoEconomico!K65 -> 0 | AD65: =[4]DatiContoEconomico!L65 -> 0 | AE65: =[4]DatiContoEconomico!M65 -> 0 | AF65: =[4]DatiContoEconomico!N65 -> 0 | AG65: =[4]DatiContoEconomico!O65 -> 0 | AH65: =[4]DatiContoEconomico!P65 -> 0 | AI65: =[4]DatiContoEconomico!Q65 -> 0 | AJ65: 0 | AM65: B13 | AN65: di cui altri costi di B13 | BB65: 0
C66: B14 | D66: Oneri diversi di gestione | E66: =[5]DatiContoEconomico!E66 -> 462.2102723 | F66: =[5]DatiContoEconomico!F66 -> 1772.888958 | G66: =[5]DatiContoEconomico!G66 -> 0 | H66: =[5]DatiContoEconomico!H66 -> 10917.87314 | I66: =[5]DatiContoEconomico!I66 -> 0 | J66: =[5]DatiContoEconomico!J66 -> 0 | K66: =[5]DatiContoEconomico!K66 -> 97317.01463 | L66: =[5]DatiContoEconomico!L66 -> 0 | M66: =[5]DatiContoEconomico!M66 -> 0 | N66: =[5]DatiContoEconomico!N66 -> 23810.09731 | O66: =[5]DatiContoEconomico!O66 -> 126.3381012 | P66: =[5]DatiContoEconomico!P66 -> 2803.314541 | Q66: =[5]DatiContoEconomico!Q66 -> 0 | R66: 137209.7369 | U66: B14 | V66: Oneri diversi di gestione | W66: =[4]DatiContoEconomico!E66 -> 0 | X66: =[4]DatiContoEconomico!F66 -> 0 | Y66: =[4]DatiContoEconomico!G66 -> 0 | Z66: =[4]DatiContoEconomico!H66 -> 0 | AA66: =[4]DatiContoEconomico!I66 -> 0 | AB66: =[4]DatiContoEconomico!J66 -> 0 | AC66: =[4]DatiContoEconomico!K66 -> 0 | AD66: =[4]DatiContoEconomico!L66 -> 0 | AE66: =[4]DatiContoEconomico!M66 -> 0 | AF66: =[4]DatiContoEconomico!N66 -> 15605.53 | AG66: =[4]DatiContoEconomico!O66 -> 0 | AH66: =[4]DatiContoEconomico!P66 -> 0 | AI66: =[4]DatiContoEconomico!Q66 -> 0 | AJ66: 15605.53 | AM66: B14 | AN66: Oneri diversi di gestione | BB66: 0
C68: Macroclasse | D68: ULTERIORI SPECIFICHE DEI COSTI se già presenti nei costi della produzione (Euro): | E68: =E69+E73+E81+E87+E90+E93 -> 453.5665436 | F68: 1561.603512 | G68: 0 | H68: 9020.618621 | I68: 0 | J68: 761649.7332 | K68: 953914.9539 | L68: 0 | M68: 0 | N68: 28220.76454 | O68: 1476.852701 | P68: 25985.66536 | Q68: 0 | R68: =SUM(E68:Q68) -> 1782283.758 | U68: Macroclasse | V68: ULTERIORI SPECIFICHE DEI COSTI se già presenti nei costi della produzione (Euro): | W68: =W69+W73+W81+W87+W90+W93 -> 0 | X68: 0 | Y68: 0 | Z68: 0 | AA68: 0 | AB68: 0 | AC68: 0 | AD68: 0 | AE68: 0 | AF68: 0 | AG68: 0 | AH68: 0 | AI68: 0 | AJ68: 0 | AM68: Macroclasse | AN68: ULTERIORI SPECIFICHE DEI COSTI se già presenti nei costi della produzione (Euro): | AO68: =AO69+AO73+AO81+AO87+AO90+AO93 -> 0 | AP68: 0 | AQ68: 0 | AR68: 0 | AS68: 0 | AT68: 0 | AU68: 0 | AV68: 0 | AW68: 0 | AX68: 0 | AY68: 0 | AZ68: 0 | BA68: 0 | BB68: 0
D69: Uso infrastrutture di terzi | E69: =SUM(E70:E72) -> 453.5665436 | F69: 1446.785486 | G69: 0 | H69: 8303.334744 | I69: 0 | J69: 0 | K69: 0 | L69: 0 | M69: 0 | N69: 0 | O69: 14.96994122 | P69: 284.9453004 | Q69: 0 | R69: 10503.60202 | V69: Uso infrastrutture di terzi | W69: =SUM(W70:W72) -> 0 | X69: 0 | Y69: 0 | Z69: 0 | AA69: 0 | AB69: 0 | AC69: 0 | AD69: 0 | AE69: 0 | AF69: 0 | AG69: 0 | AH69: 0 | AI69: 0 | AJ69: 0 | AN69: Uso infrastrutture di terzi | AO69: =SUM(AO70:AO72) -> 0 | AP69: 0 | AQ69: 0 | AR69: 0 | AS69: 0 | AT69: 0 | AU69: 0 | AV69: 0 | AW69: 0 | AX69: 0 | AY69: 0 | AZ69: 0 | BA69: 0 | BB69: 0
B70: PR art. 1 | D70: rimborso mutui di comuni, aziende speciali, società patrimoniali | E70: =[5]DatiContoEconomico!E70 -> 0 | F70: =[5]DatiContoEconomico!F70 -> 0 | G70: =[5]DatiContoEconomico!G70 -> 0 | H70: =[5]DatiContoEconomico!H70 -> 0 | I70: =[5]DatiContoEconomico!I70 -> 0 | J70: =[5]DatiContoEconomico!J70 -> 0 | K70: =[5]DatiContoEconomico!K70 -> 0 | L70: =[5]DatiContoEconomico!L70 -> 0 | M70: =[5]DatiContoEconomico!M70 -> 0 | N70: =[5]DatiContoEconomico!N70 -> 0 | O70: =[5]DatiContoEconomico!O70 -> 0 | P70: =[5]DatiContoEconomico!P70 -> 0 | Q70: =[5]DatiContoEconomico!Q70 -> 0 | R70: 0 | T70: PR art. 1 | V70: rimborso mutui di comuni, aziende speciali, società patrimoniali | W70: =[4]DatiContoEconomico!E70 -> 0 | X70: =[4]DatiContoEconomico!F70 -> 0 | Y70: =[4]DatiContoEconomico!G70 -> 0 | Z70: =[4]DatiContoEconomico!H70 -> 0 | AA70: =[4]DatiContoEconomico!I70 -> 0 | AB70: =[4]DatiContoEconomico!J70 -> 0 | AC70: =[4]DatiContoEconomico!K70 -> 0 | AD70: =[4]DatiContoEconomico!L70 -> 0 | AE70: =[4]DatiContoEconomico!M70 -> 0 | AF70: =[4]DatiContoEconomico!N70 -> 0 | AG70: =[4]DatiContoEconomico!O70 -> 0 | AH70: =[4]DatiContoEconomico!P70 -> 0 | AI70: =[4]DatiContoEconomico!Q70 -> 0 | AJ70: 0 | AL70: PR art. 1 | AN70: rimborso mutui di comuni, aziende speciali, società patrimoniali | BB70: 0
D71: Canoni di locazione immobili, noleggio a lungo termine | E71: =[5]DatiContoEconomico!E71 -> 453.5665436 | F71: =[5]DatiContoEconomico!F71 -> 1446.785486 | G71: =[5]DatiContoEconomico!G71 -> 0 | H71: =[5]DatiContoEconomico!H71 -> 8303.334744 | I71: =[5]DatiContoEconomico!I71 -> 0 | J71: =[5]DatiContoEconomico!J71 -> 0 | K71: =[5]DatiContoEconomico!K71 -> 0 | L71: =[5]DatiContoEconomico!L71 -> 0 | M71: =[5]DatiContoEconomico!M71 -> 0 | N71: =[5]DatiContoEconomico!N71 -> 0 | O71: =[5]DatiContoEconomico!O71 -> 14.96994122 | P71: =[5]DatiContoEconomico!P71 -> 284.9453004 | Q71: =[5]DatiContoEconomico!Q71 -> 0 | R71: 10503.60202 | V71: Canoni di locazione immobili, noleggio a lungo termine | W71: =[4]DatiContoEconomico!E71 -> 0 | X71: =[4]DatiContoEconomico!F71 -> 0 | Y71: =[4]DatiContoEconomico!G71 -> 0 | Z71: =[4]DatiContoEconomico!H71 -> 0 | AA71: =[4]DatiContoEconomico!I71 -> 0 | AB71: =[4]DatiContoEconomico!J71 -> 0 | AC71: =[4]DatiContoEconomico!K71 -> 0 | AD71: =[4]DatiContoEconomico!L71 -> 0 | AE71: =[4]DatiContoEconomico!M71 -> 0 | AF71: =[4]DatiContoEconomico!N71 -> 0 | AG71: =[4]DatiContoEconomico!O71 -> 0 | AH71: =[4]DatiContoEconomico!P71 -> 0 | AI71: =[4]DatiContoEconomico!Q71 -> 0 | AJ71: 0 | AN71: Canoni di locazione immobili, noleggio a lungo termine | BB71: 0
B72: PR art. 1 (Art. 11.12) | D72: Canoni per beni in leasing operativo, finanziario, in costruendo | E72: =[5]DatiContoEconomico!E72 -> 0 | F72: =[5]DatiContoEconomico!F72 -> 0 | G72: =[5]DatiContoEconomico!G72 -> 0 | H72: =[5]DatiContoEconomico!H72 -> 0 | I72: =[5]DatiContoEconomico!I72 -> 0 | J72: =[5]DatiContoEconomico!J72 -> 0 | K72: =[5]DatiContoEconomico!K72 -> 0 | L72: =[5]DatiContoEconomico!L72 -> 0 | M72: =[5]DatiContoEconomico!M72 -> 0 | N72: =[5]DatiContoEconomico!N72 -> 0 | O72: =[5]DatiContoEconomico!O72 -> 0 | P72: =[5]DatiContoEconomico!P72 -> 0 | Q72: =[5]DatiContoEconomico!Q72 -> 0 | R72: 0 | T72: PR art. 1 (Art. 11.12) | V72: Canoni per beni in leasing operativo, finanziario, in costruendo | W72: =[4]DatiContoEconomico!E72 -> 0 | X72: =[4]DatiContoEconomico!F72 -> 0 | Y72: =[4]DatiContoEconomico!G72 -> 0 | Z72: =[4]DatiContoEconomico!H72 -> 0 | AA72: =[4]DatiContoEconomico!I72 -> 0 | AB72: =[4]DatiContoEconomico!J72 -> 0 | AC72: =[4]DatiContoEconomico!K72 -> 0 | AD72: =[4]DatiContoEconomico!L72 -> 0 | AE72: =[4]DatiContoEconomico!M72 -> 0 | AF72: =[4]DatiContoEconomico!N72 -> 0 | AG72: =[4]DatiContoEconomico!O72 -> 0 | AH72: =[4]DatiContoEconomico!P72 -> 0 | AI72: =[4]DatiContoEconomico!Q72 -> 0 | AJ72: 0 | AL72: PR art. 1 (Art. 11.12) | AN72: Canoni per beni in leasing operativo, finanziario, in costruendo | BB72: 0
D73: Totale poste rettificative (art. 1.1) | E73: =SUM(E74:E80) -> 0 | F73: 114.8180258 | G73: 0 | H73: 717.2838767 | I73: 0 | J73: 7086.552197 | K73: 33862.65315 | L73: 0 | M73: 0 | N73: 0 | O73: 38.31325462 | P73: 952.3074189 | Q73: 0 | R73: 42771.92792 | V73: Totale poste rettificative (art. 1.1) | W73: =SUM(W74:W80) -> 0 | X73: 0 | Y73: 0 | Z73: 0 | AA73: 0 | AB73: 0 | AC73: 0 | AD73: 0 | AE73: 0 | AF73: 0 | AG73: 0 | AH73: 0 | AI73: 0 | AJ73: =SUM(W73:AI73) -> 0 | AN73: Totale poste rettificative (art. 1.1) | BB73: =SUM(AO73:BA73) -> 0
B74: PR art. 1 | D74: Oneri per assicurazioni qualora non espressamente previste da obblighi normativi | E74: =[5]DatiContoEconomico!E74 -> 0 | F74: =[5]DatiContoEconomico!F74 -> 0 | G74: =[5]DatiContoEconomico!G74 -> 0 | H74: =[5]DatiContoEconomico!H74 -> 0 | I74: =[5]DatiContoEconomico!I74 -> 0 | J74: =[5]DatiContoEconomico!J74 -> 0 | K74: =[5]DatiContoEconomico!K74 -> 26662.21994 | L74: =[5]DatiContoEconomico!L74 -> 0 | M74: =[5]DatiContoEconomico!M74 -> 0 | N74: =[5]DatiContoEconomico!N74 -> 0 | O74: =[5]DatiContoEconomico!O74 -> 26.61356563 | P74: =[5]DatiContoEconomico!P74 -> 749.8121822 | Q74: =[5]DatiContoEconomico!Q74 -> 0 | R74: 27438.64569 | T74: PR art. 1 | V74: Oneri per assicurazioni qualora non espressamente previste da obblighi normativi | W74: =[4]DatiContoEconomico!E74 -> 0 | X74: =[4]DatiContoEconomico!F74 -> 0 | Y74: =[4]DatiContoEconomico!G74 -> 0 | Z74: =[4]DatiContoEconomico!H74 -> 0 | AA74: =[4]DatiContoEconomico!I74 -> 0 | AB74: =[4]DatiContoEconomico!J74 -> 0 | AC74: =[4]DatiContoEconomico!K74 -> 0 | AD74: =[4]DatiContoEconomico!L74 -> 0 | AE74: =[4]DatiContoEconomico!M74 -> 0 | AF74: =[4]DatiContoEconomico!N74 -> 0 | AG74: =[4]DatiContoEconomico!O74 -> 0 | AH74: =[4]DatiContoEconomico!P74 -> 0 | AI74: =[4]DatiContoEconomico!Q74 -> 0 | AJ74: 0 | AL74: PR art. 1 | AN74: Oneri per assicurazioni qualora non espressamente previste da obblighi normativi | BB74: 0
B75: PR art. 1 | D75: Costi connessi all'erogazione di liberalità | E75: =[5]DatiContoEconomico!E75 -> 0 | F75: =[5]DatiContoEconomico!F75 -> 0 | G75: =[5]DatiContoEconomico!G75 -> 0 | H75: =[5]DatiContoEconomico!H75 -> 0 | I75: =[5]DatiContoEconomico!I75 -> 0 | J75: =[5]DatiContoEconomico!J75 -> 0 | K75: =[5]DatiContoEconomico!K75 -> 818.7957364 | L75: =[5]DatiContoEconomico!L75 -> 0 | M75: =[5]DatiContoEconomico!M75 -> 0 | N75: =[5]DatiContoEconomico!N75 -> 0 | O75: =[5]DatiContoEconomico!O75 -> 0.8173015643 | P75: =[5]DatiContoEconomico!P75 -> 23.02670292 | Q75: =[5]DatiContoEconomico!Q75 -> 0 | R75: 842.6397409 | T75: PR art. 1 | V75: Costi connessi all'erogazione di liberalità | W75: =[4]DatiContoEconomico!E75 -> 0 | X75: =[4]DatiContoEconomico!F75 -> 0 | Y75: =[4]DatiContoEconomico!G75 -> 0 | Z75: =[4]DatiContoEconomico!H75 -> 0 | AA75: =[4]DatiContoEconomico!I75 -> 0 | AB75: =[4]DatiContoEconomico!J75 -> 0 | AC75: =[4]DatiContoEconomico!K75 -> 0 | AD75: =[4]DatiContoEconomico!L75 -> 0 | AE75: =[4]DatiContoEconomico!M75 -> 0 | AF75: =[4]DatiContoEconomico!N75 -> 0 | AG75: =[4]DatiContoEconomico!O75 -> 0 | AH75: =[4]DatiContoEconomico!P75 -> 0 | AI75: =[4]DatiContoEconomico!Q75 -> 0 | AJ75: 0 | AL75: PR art. 1 | AN75: Costi connessi all'erogazione di liberalità | BB75: 0
B76: PR art. 1 | D76: Spese processuali in cui la parte è risultata soccombente | E76: =[5]DatiContoEconomico!E76 -> 0 | F76: =[5]DatiContoEconomico!F76 -> 0 | G76: =[5]DatiContoEconomico!G76 -> 0 | H76: =[5]DatiContoEconomico!H76 -> 0 | I76: =[5]DatiContoEconomico!I76 -> 0 | J76: =[5]DatiContoEconomico!J76 -> 7086.552197 | K76: =[5]DatiContoEconomico!K76 -> 0 | L76: =[5]DatiContoEconomico!L76 -> 0 | M76: =[5]DatiContoEconomico!M76 -> 0 | N76: =[5]DatiContoEconomico!N76 -> 0 | O76: =[5]DatiContoEconomico!O76 -> 4.512395426 | P76: =[5]DatiContoEconomico!P76 -> 0 | Q76: =[5]DatiContoEconomico!Q76 -> 0 | R76: 7091.064593 | T76: PR art. 1 | V76: Spese processuali in cui la parte è risultata soccombente | W76: =[4]DatiContoEconomico!E76 -> 0 | X76: =[4]DatiContoEconomico!F76 -> 0 | Y76: =[4]DatiContoEconomico!G76 -> 0 | Z76: =[4]DatiContoEconomico!H76 -> 0 | AA76: =[4]DatiContoEconomico!I76 -> 0 | AB76: =[4]DatiContoEconomico!J76 -> 0 | AC76: =[4]DatiContoEconomico!K76 -> 0 | AD76: =[4]DatiContoEconomico!L76 -> 0 | AE76: =[4]DatiContoEconomico!M76 -> 0 | AF76: =[4]DatiContoEconomico!N76 -> 0 | AG76: =[4]DatiContoEconomico!O76 -> 0 | AH76: =[4]DatiContoEconomico!P76 -> 0 | AI76: =[4]DatiContoEconomico!Q76 -> 0 | AJ76: 0 | AL76: PR art. 1 | AN76: Spese processuali in cui la parte è risultata soccombente | BB76: 0
B77: PR art. 1 | D77: Oneri per sanzioni, penalità, risarcimenti e simili | E77: =[5]DatiContoEconomico!E77 -> 0 | F77: =[5]DatiContoEconomico!F77 -> 0 | G77: =[5]DatiContoEconomico!G77 -> 0 | H77: =[5]DatiContoEconomico!H77 -> 0 | I77: =[5]DatiContoEconomico!I77 -> 0 | J77: =[5]DatiContoEconomico!J77 -> 0 | K77: =[5]DatiContoEconomico!K77 -> 6143.876737 | L77: =[5]DatiContoEconomico!L77 -> 0 | M77: =[5]DatiContoEconomico!M77 -> 0 | N77: =[5]DatiContoEconomico!N77 -> 0 | O77: =[5]DatiContoEconomico!O77 -> 6.132665138 | P77: =[5]DatiContoEconomico!P77 -> 172.7820727 | Q77: =[5]DatiContoEconomico!Q77 -> 0 | R77: 6322.791474 | T77: PR art. 1 | V77: Oneri per sanzioni, penalità, risarcimenti e simili | W77: =[4]DatiContoEconomico!E77 -> 0 | X77: =[4]DatiContoEconomico!F77 -> 0 | Y77: =[4]DatiContoEconomico!G77 -> 0 | Z77: =[4]DatiContoEconomico!H77 -> 0 | AA77: =[4]DatiContoEconomico!I77 -> 0 | AB77: =[4]DatiContoEconomico!J77 -> 0 | AC77: =[4]DatiContoEconomico!K77 -> 0 | AD77: =[4]DatiContoEconomico!L77 -> 0 | AE77: =[4]DatiContoEconomico!M77 -> 0 | AF77: =[4]DatiContoEconomico!N77 -> 0 | AG77: =[4]DatiContoEconomico!O77 -> 0 | AH77: =[4]DatiContoEconomico!P77 -> 0 | AI77: =[4]DatiContoEconomico!Q77 -> 0 | AJ77: 0 | AL77: PR art. 1 | AN77: Oneri per sanzioni, penalità, risarcimenti e simili | BB77: 0
B78: PR art. 1 | D78: Costi pubblicitari e di marketing (incluse le imposte connesse), ad esclusione di oneri che derivino da obblighi posti in capo ai concessionari | E78: =[5]DatiContoEconomico!E78 -> 0 | F78: =[5]DatiContoEconomico!F78 -> 114.8180258 | G78: =[5]DatiContoEconomico!G78 -> 0 | H78: =[5]DatiContoEconomico!H78 -> 717.2838767 | I78: =[5]DatiContoEconomico!I78 -> 0 | J78: =[5]DatiContoEconomico!J78 -> 0 | K78: =[5]DatiContoEconomico!K78 -> 0 | L78: =[5]DatiContoEconomico!L78 -> 0 | M78: =[5]DatiContoEconomico!M78 -> 0 | N78: =[5]DatiContoEconomico!N78 -> 0 | O78: =[5]DatiContoEconomico!O78 -> 0 | P78: =[5]DatiContoEconomico!P78 -> 0 | Q78: =[5]DatiContoEconomico!Q78 -> 0 | R78: 832.1019025 | T78: PR art. 1 | V78: Costi pubblicitari e di marketing (incluse le imposte connesse), ad esclusione di oneri che derivino da obblighi posti in capo ai concessionari | W78: =[4]DatiContoEconomico!E78 -> 0 | X78: =[4]DatiContoEconomico!F78 -> 0 | Y78: =[4]DatiContoEconomico!G78 -> 0 | Z78: =[4]DatiContoEconomico!H78 -> 0 | AA78: =[4]DatiContoEconomico!I78 -> 0 | AB78: =[4]DatiContoEconomico!J78 -> 0 | AC78: =[4]DatiContoEconomico!K78 -> 0 | AD78: =[4]DatiContoEconomico!L78 -> 0 | AE78: =[4]DatiContoEconomico!M78 -> 0 | AF78: =[4]DatiContoEconomico!N78 -> 0 | AG78: =[4]DatiContoEconomico!O78 -> 0 | AH78: =[4]DatiContoEconomico!P78 -> 0 | AI78: =[4]DatiContoEconomico!Q78 -> 0 | AJ78: 0 | AL78: PR art. 1 | AN78: Costi pubblicitari e di marketing (incluse le imposte connesse), ad esclusione di oneri che derivino da obblighi posti in capo ai concessionari | BB78: 0
B79: PR art. 1 | D79: Spese di rappresentanza | E79: =[5]DatiContoEconomico!E79 -> 0 | F79: =[5]DatiContoEconomico!F79 -> 0 | G79: =[5]DatiContoEconomico!G79 -> 0 | H79: =[5]DatiContoEconomico!H79 -> 0 | I79: =[5]DatiContoEconomico!I79 -> 0 | J79: =[5]DatiContoEconomico!J79 -> 0 | K79: =[5]DatiContoEconomico!K79 -> 237.7607386 | L79: =[5]DatiContoEconomico!L79 -> 0 | M79: =[5]DatiContoEconomico!M79 -> 0 | N79: =[5]DatiContoEconomico!N79 -> 0 | O79: =[5]DatiContoEconomico!O79 -> 0.2373268631 | P79: =[5]DatiContoEconomico!P79 -> 6.686461168 | Q79: =[5]DatiContoEconomico!Q79 -> 0 | R79: 244.6845267 | T79: PR art. 1 | V79: Spese di rappresentanza | W79: =[4]DatiContoEconomico!E79 -> 0 | X79: =[4]DatiContoEconomico!F79 -> 0 | Y79: =[4]DatiContoEconomico!G79 -> 0 | Z79: =[4]DatiContoEconomico!H79 -> 0 | AA79: =[4]DatiContoEconomico!I79 -> 0 | AB79: =[4]DatiContoEconomico!J79 -> 0 | AC79: =[4]DatiContoEconomico!K79 -> 0 | AD79: =[4]DatiContoEconomico!L79 -> 0 | AE79: =[4]DatiContoEconomico!M79 -> 0 | AF79: =[4]DatiContoEconomico!N79 -> 0 | AG79: =[4]DatiContoEconomico!O79 -> 0 | AH79: =[4]DatiContoEconomico!P79 -> 0 | AI79: =[4]DatiContoEconomico!Q79 -> 0 | AJ79: 0 | AL79: PR art. 1 | AN79: Spese di rappresentanza | BB79: 0
B80: PR art. 1 | D80: Costi di strutturazione dei progetti di finanziamento (non capitalizzati) | E80: =[5]DatiContoEconomico!E80 -> 0 | F80: =[5]DatiContoEconomico!F80 -> 0 | G80: =[5]DatiContoEconomico!G80 -> 0 | H80: =[5]DatiContoEconomico!H80 -> 0 | I80: =[5]DatiContoEconomico!I80 -> 0 | J80: =[5]DatiContoEconomico!J80 -> 0 | K80: =[5]DatiContoEconomico!K80 -> 0 | L80: =[5]DatiContoEconomico!L80 -> 0 | M80: =[5]DatiContoEconomico!M80 -> 0 | N80: =[5]DatiContoEconomico!N80 -> 0 | O80: =[5]DatiContoEconomico!O80 -> 0 | P80: =[5]DatiContoEconomico!P80 -> 0 | Q80: =[5]DatiContoEconomico!Q80 -> 0 | R80: 0 | T80: PR art. 1 | V80: Costi di strutturazione dei progetti di finanziamento (non capitalizzati) | W80: =[4]DatiContoEconomico!E80 -> 0 | X80: =[4]DatiContoEconomico!F80 -> 0 | Y80: =[4]DatiContoEconomico!G80 -> 0 | Z80: =[4]DatiContoEconomico!H80 -> 0 | AA80: =[4]DatiContoEconomico!I80 -> 0 | AB80: =[4]DatiContoEconomico!J80 -> 0 | AC80: =[4]DatiContoEconomico!K80 -> 0 | AD80: =[4]DatiContoEconomico!L80 -> 0 | AE80: =[4]DatiContoEconomico!M80 -> 0 | AF80: =[4]DatiContoEconomico!N80 -> 0 | AG80: =[4]DatiContoEconomico!O80 -> 0 | AH80: =[4]DatiContoEconomico!P80 -> 0 | AI80: =[4]DatiContoEconomico!Q80 -> 0 | AJ80: 0 | AL80: PR art. 1 | AN80: Costi di strutturazione dei progetti di finanziamento (non capitalizzati) | BB80: 0
D81: Totale CARC (art. 9.1) | E81: =SUM(E82:E86) -> 0 | F81: 0 | G81: 0 | H81: 0 | I81: 0 | J81: 754563.181 | K81: 0 | L81: 0 | M81: 0 | N81: 0 | O81: 518.3199347 | P81: 0 | Q81: 0 | R81: 755081.501 | V81: Totale CARC (art. 9.1) | W81: =SUM(W82:W86) -> 0 | X81: 0 | Y81: 0 | Z81: 0 | AA81: 0 | AB81: 0 | AC81: 0 | AD81: 0 | AE81: 0 | AF81: 0 | AG81: 0 | AH81: 0 | AI81: 0 | AJ81: 0 | AN81: Totale CARC (art. 9.1) | BB81: 0
B82: CARC | D82: accertamento, riscossione (incluse le attività di bollettazione e l'invio degli avvisi di pagamento); | E82: =[5]DatiContoEconomico!E82 -> 0 | F82: =[5]DatiContoEconomico!F82 -> 0 | G82: =[5]DatiContoEconomico!G82 -> 0 | H82: =[5]DatiContoEconomico!H82 -> 0 | I82: =[5]DatiContoEconomico!I82 -> 0 | J82: =[5]DatiContoEconomico!J82 -> 754563.181 | K82: =[5]DatiContoEconomico!K82 -> 0 | L82: =[5]DatiContoEconomico!L82 -> 0 | M82: =[5]DatiContoEconomico!M82 -> 0 | N82: =[5]DatiContoEconomico!N82 -> 0 | O82: =[5]DatiContoEconomico!O82 -> 518.3199347 | P82: =[5]DatiContoEconomico!P82 -> 0 | Q82: =[5]DatiContoEconomico!Q82 -> 0 | R82: 755081.501 | T82: CARC | V82: accertamento, riscossione (incluse le attività di bollettazione e l'invio degli avvisi di pagamento); | W82: =[4]DatiContoEconomico!E82 -> 0 | X82: =[4]DatiContoEconomico!F82 -> 0 | Y82: =[4]DatiContoEconomico!G82 -> 0 | Z82: =[4]DatiContoEconomico!H82 -> 0 | AA82: =[4]DatiContoEconomico!I82 -> 0 | AB82: =[4]DatiContoEconomico!J82 -> 0 | AC82: =[4]DatiContoEconomico!K82 -> 0 | AD82: =[4]DatiContoEconomico!L82 -> 0 | AE82: =[4]DatiContoEconomico!M82 -> 0 | AF82: =[4]DatiContoEconomico!N82 -> 0 | AG82: =[4]DatiContoEconomico!O82 -> 0 | AH82: =[4]DatiContoEconomico!P82 -> 0 | AI82: =[4]DatiContoEconomico!Q82 -> 0 | AJ82: 0 | AL82: CARC | AN82: accertamento, riscossione (incluse le attività di bollettazione e l'invio degli avvisi di pagamento); | BB82: 0
B83: CARC | D83: gestione del rapporto con gli utenti (inclusa la gestione reclami) anche mediante sportelli dedicati o call-center | E83: =[5]DatiContoEconomico!E83 -> 0 | F83: =[5]DatiContoEconomico!F83 -> 0 | G83: =[5]DatiContoEconomico!G83 -> 0 | H83: =[5]DatiContoEconomico!H83 -> 0 | I83: =[5]DatiContoEconomico!I83 -> 0 | J83: =[5]DatiContoEconomico!J83 -> 0 | K83: =[5]DatiContoEconomico!K83 -> 0 | L83: =[5]DatiContoEconomico!L83 -> 0 | M83: =[5]DatiContoEconomico!M83 -> 0 | N83: =[5]DatiContoEconomico!N83 -> 0 | O83: =[5]DatiContoEconomico!O83 -> 0 | P83: =[5]DatiContoEconomico!P83 -> 0 | Q83: =[5]DatiContoEconomico!Q83 -> 0 | R83: 0 | T83: CARC | V83: gestione del rapporto con gli utenti (inclusa la gestione reclami) anche mediante sportelli dedicati o call-center | W83: =[4]DatiContoEconomico!E83 -> 0 | X83: =[4]DatiContoEconomico!F83 -> 0 | Y83: =[4]DatiContoEconomico!G83 -> 0 | Z83: =[4]DatiContoEconomico!H83 -> 0 | AA83: =[4]DatiContoEconomico!I83 -> 0 | AB83: =[4]DatiContoEconomico!J83 -> 0 | AC83: =[4]DatiContoEconomico!K83 -> 0 | AD83: =[4]DatiContoEconomico!L83 -> 0 | AE83: =[4]DatiContoEconomico!M83 -> 0 | AF83: =[4]DatiContoEconomico!N83 -> 0 | AG83: =[4]DatiContoEconomico!O83 -> 0 | AH83: =[4]DatiContoEconomico!P83 -> 0 | AI83: =[4]DatiContoEconomico!Q83 -> 0 | AJ83: 0 | AL83: CARC | AN83: gestione del rapporto con gli utenti (inclusa la gestione reclami) anche mediante sportelli dedicati o call-center | BB83: 0
B84: CARC | D84: gestione della banca dati degli utenti e delle utenze, dei crediti e del contenzioso; | E84: =[5]DatiContoEconomico!E84 -> 0 | F84: =[5]DatiContoEconomico!F84 -> 0 | G84: =[5]DatiContoEconomico!G84 -> 0 | H84: =[5]DatiContoEconomico!H84 -> 0 | I84: =[5]DatiContoEconomico!I84 -> 0 | J84: =[5]DatiContoEconomico!J84 -> 0 | K84: =[5]DatiContoEconomico!K84 -> 0 | L84: =[5]DatiContoEconomico!L84 -> 0 | M84: =[5]DatiContoEconomico!M84 -> 0 | N84: =[5]DatiContoEconomico!N84 -> 0 | O84: =[5]DatiContoEconomico!O84 -> 0 | P84: =[5]DatiContoEconomico!P84 -> 0 | Q84: =[5]DatiContoEconomico!Q84 -> 0 | R84: 0 | T84: CARC | V84: gestione della banca dati degli utenti e delle utenze, dei crediti e del contenzioso; | W84: =[4]DatiContoEconomico!E84 -> 0 | X84: =[4]DatiContoEconomico!F84 -> 0 | Y84: =[4]DatiContoEconomico!G84 -> 0 | Z84: =[4]DatiContoEconomico!H84 -> 0 | AA84: =[4]DatiContoEconomico!I84 -> 0 | AB84: =[4]DatiContoEconomico!J84 -> 0 | AC84: =[4]DatiContoEconomico!K84 -> 0 | AD84: =[4]DatiContoEconomico!L84 -> 0 | AE84: =[4]DatiContoEconomico!M84 -> 0 | AF84: =[4]DatiContoEconomico!N84 -> 0 | AG84: =[4]DatiContoEconomico!O84 -> 0 | AH84: =[4]DatiContoEconomico!P84 -> 0 | AI84: =[4]DatiContoEconomico!Q84 -> 0 | AJ84: 0 | AL84: CARC | AN84: gestione della banca dati degli utenti e delle utenze, dei crediti e del contenzioso; | BB84: 0
B85: CARC | D85: promozione di campagne ambientali di cui al comma 9.2, lett. a); | E85: =[5]DatiContoEconomico!E85 -> 0 | F85: =[5]DatiContoEconomico!F85 -> 0 | G85: =[5]DatiContoEconomico!G85 -> 0 | H85: =[5]DatiContoEconomico!H85 -> 0 | I85: =[5]DatiContoEconomico!I85 -> 0 | J85: =[5]DatiContoEconomico!J85 -> 0 | K85: =[5]DatiContoEconomico!K85 -> 0 | L85: =[5]DatiContoEconomico!L85 -> 0 | M85: =[5]DatiContoEconomico!M85 -> 0 | N85: =[5]DatiContoEconomico!N85 -> 0 | O85: =[5]DatiContoEconomico!O85 -> 0 | P85: =[5]DatiContoEconomico!P85 -> 0 | Q85: =[5]DatiContoEconomico!Q85 -> 0 | R85: 0 | T85: CARC | V85: promozione di campagne ambientali di cui al comma 9.2, lett. a); | W85: =[4]DatiContoEconomico!E85 -> 0 | X85: =[4]DatiContoEconomico!F85 -> 0 | Y85: =[4]DatiContoEconomico!G85 -> 0 | Z85: =[4]DatiContoEconomico!H85 -> 0 | AA85: =[4]DatiContoEconomico!I85 -> 0 | AB85: =[4]DatiContoEconomico!J85 -> 0 | AC85: =[4]DatiContoEconomico!K85 -> 0 | AD85: =[4]DatiContoEconomico!L85 -> 0 | AE85: =[4]DatiContoEconomico!M85 -> 0 | AF85: =[4]DatiContoEconomico!N85 -> 0 | AG85: =[4]DatiContoEconomico!O85 -> 0 | AH85: =[4]DatiContoEconomico!P85 -> 0 | AI85: =[4]DatiContoEconomico!Q85 -> 0 | AJ85: 0 | AL85: CARC | AN85: promozione di campagne ambientali di cui al comma 9.2, lett. a); | BB85: 0
B86: CARC | D86: prevenzione della produzione di rifiuti urbani di cui al comma 9.2, lett. b); | E86: =[5]DatiContoEconomico!E86 -> 0 | F86: =[5]DatiContoEconomico!F86 -> 0 | G86: =[5]DatiContoEconomico!G86 -> 0 | H86: =[5]DatiContoEconomico!H86 -> 0 | I86: =[5]DatiContoEconomico!I86 -> 0 | J86: =[5]DatiContoEconomico!J86 -> 0 | K86: =[5]DatiContoEconomico!K86 -> 0 | L86: =[5]DatiContoEconomico!L86 -> 0 | M86: =[5]DatiContoEconomico!M86 -> 0 | N86: =[5]DatiContoEconomico!N86 -> 0 | O86: =[5]DatiContoEconomico!O86 -> 0 | P86: =[5]DatiContoEconomico!P86 -> 0 | Q86: =[5]DatiContoEconomico!Q86 -> 0 | R86: 0 | T86: CARC | V86: prevenzione della produzione di rifiuti urbani di cui al comma 9.2, lett. b); | W86: =[4]DatiContoEconomico!E86 -> 0 | X86: =[4]DatiContoEconomico!F86 -> 0 | Y86: =[4]DatiContoEconomico!G86 -> 0 | Z86: =[4]DatiContoEconomico!H86 -> 0 | AA86: =[4]DatiContoEconomico!I86 -> 0 | AB86: =[4]DatiContoEconomico!J86 -> 0 | AC86: =[4]DatiContoEconomico!K86 -> 0 | AD86: =[4]DatiContoEconomico!L86 -> 0 | AE86: =[4]DatiContoEconomico!M86 -> 0 | AF86: =[4]DatiContoEconomico!N86 -> 0 | AG86: =[4]DatiContoEconomico!O86 -> 0 | AH86: =[4]DatiContoEconomico!P86 -> 0 | AI86: =[4]DatiContoEconomico!Q86 -> 0 | AJ86: 0 | AL86: CARC | AN86: prevenzione della produzione di rifiuti urbani di cui al comma 9.2, lett. b); | BB86: 0
D87: Totale CGG (art. 9.1) | E87: =SUM(E88:E89) -> 0 | F87: 0 | G87: 0 | H87: 0 | I87: 0 | J87: 0 | K87: 920052.3008 | L87: 0 | M87: 0 | N87: 0 | O87: 883.5271552 | P87: 24136.40402 | Q87: 0 | R87: 945072.232 | V87: Totale CGG (art. 9.1) | W87: =SUM(W88:W89) -> 0 | X87: 0 | Y87: 0 | Z87: 0 | AA87: 0 | AB87: 0 | AC87: 0 | AD87: 0 | AE87: 0 | AF87: 0 | AG87: 0 | AH87: 0 | AI87: 0 | AJ87: 0 | AN87: Totale CGG (art. 9.1) | BB87: 0
B88: CGG | D88: costi generali di gestione relativi al personale non direttamente impiegato nelle attività operative del servizio integrato di gestione dei RU | E88: =[5]DatiContoEconomico!E88 -> 0 | F88: =[5]DatiContoEconomico!F88 -> 0 | G88: =[5]DatiContoEconomico!G88 -> 0 | H88: =[5]DatiContoEconomico!H88 -> 0 | I88: =[5]DatiContoEconomico!I88 -> 0 | J88: =[5]DatiContoEconomico!J88 -> 0 | K88: =[5]DatiContoEconomico!K88 -> 376248.4719 | L88: =[5]DatiContoEconomico!L88 -> 0 | M88: =[5]DatiContoEconomico!M88 -> 0 | N88: =[5]DatiContoEconomico!N88 -> 0 | O88: =[5]DatiContoEconomico!O88 -> 375.5618782 | P88: =[5]DatiContoEconomico!P88 -> 10581.10271 | Q88: =[5]DatiContoEconomico!Q88 -> 0 | R88: 387205.1365 | T88: CGG | V88: costi generali di gestione relativi al personale non direttamente impiegato nelle attività operative del servizio integrato di gestione dei RU | W88: =[4]DatiContoEconomico!E88 -> 0 | X88: =[4]DatiContoEconomico!F88 -> 0 | Y88: =[4]DatiContoEconomico!G88 -> 0 | Z88: =[4]DatiContoEconomico!H88 -> 0 | AA88: =[4]DatiContoEconomico!I88 -> 0 | AB88: =[4]DatiContoEconomico!J88 -> 0 | AC88: =[4]DatiContoEconomico!K88 -> 0 | AD88: =[4]DatiContoEconomico!L88 -> 0 | AE88: =[4]DatiContoEconomico!M88 -> 0 | AF88: =[4]DatiContoEconomico!N88 -> 0 | AG88: =[4]DatiContoEconomico!O88 -> 0 | AH88: =[4]DatiContoEconomico!P88 -> 0 | AI88: =[4]DatiContoEconomico!Q88 -> 0 | AJ88: 0 | AL88: CGG | AN88: costi generali di gestione relativi al personale non direttamente impiegato nelle attività operative del servizio integrato di gestione dei RU | BB88: 0
B89: CGG | D89: Costi generali di struttura | E89: =[5]DatiContoEconomico!E89 -> 0 | F89: =[5]DatiContoEconomico!F89 -> 0 | G89: =[5]DatiContoEconomico!G89 -> 0 | H89: =[5]DatiContoEconomico!H89 -> 0 | I89: =[5]DatiContoEconomico!I89 -> 0 | J89: =[5]DatiContoEconomico!J89 -> 0 | K89: =[5]DatiContoEconomico!K89 -> 543803.8289 | L89: =[5]DatiContoEconomico!L89 -> 0 | M89: =[5]DatiContoEconomico!M89 -> 0 | N89: =[5]DatiContoEconomico!N89 -> 0 | O89: =[5]DatiContoEconomico!O89 -> 507.965277 | P89: =[5]DatiContoEconomico!P89 -> 13555.30131 | Q89: =[5]DatiContoEconomico!Q89 -> 0 | R89: 557867.0955 | T89: CGG | V89: Costi generali di struttura | W89: =[4]DatiContoEconomico!E89 -> 0 | X89: =[4]DatiContoEconomico!F89 -> 0 | Y89: =[4]DatiContoEconomico!G89 -> 0 | Z89: =[4]DatiContoEconomico!H89 -> 0 | AA89: =[4]DatiContoEconomico!I89 -> 0 | AB89: =[4]DatiContoEconomico!J89 -> 0 | AC89: =[4]DatiContoEconomico!K89 -> 0 | AD89: =[4]DatiContoEconomico!L89 -> 0 | AE89: =[4]DatiContoEconomico!M89 -> 0 | AF89: =[4]DatiContoEconomico!N89 -> 0 | AG89: =[4]DatiContoEconomico!O89 -> 0 | AH89: =[4]DatiContoEconomico!P89 -> 0 | AI89: =[4]DatiContoEconomico!Q89 -> 0 | AJ89: 0 | AL89: CGG | AN89: Costi generali di struttura | BB89: 0
D90: Totale CCD (art. 9.1) | E90: =SUM(E91:E92) -> 0 | F90: 0 | G90: 0 | H90: 0 | I90: 0 | J90: 0 | K90: 0 | L90: 0 | M90: 0 | N90: 0 | O90: 0 | P90: 0 | Q90: 0 | R90: 0 | V90: Totale CCD (art. 9.1) | W90: =SUM(W91:W92) -> 0 | X90: 0 | Y90: 0 | Z90: 0 | AA90: 0 | AB90: 0 | AC90: 0 | AD90: 0 | AE90: 0 | AF90: 0 | AG90: 0 | AH90: 0 | AI90: 0 | AJ90: 0 | AN90: Totale CCD (art. 9.1) | BB90: 0
B91: CCD | D91: Crediti inesigibili secondo normativa vigente (TARI tributo) | E91: =[5]DatiContoEconomico!E91 -> 0 | F91: =[5]DatiContoEconomico!F91 -> 0 | G91: =[5]DatiContoEconomico!G91 -> 0 | H91: =[5]DatiContoEconomico!H91 -> 0 | I91: =[5]DatiContoEconomico!I91 -> 0 | J91: =[5]DatiContoEconomico!J91 -> 0 | K91: =[5]DatiContoEconomico!K91 -> 0 | L91: =[5]DatiContoEconomico!L91 -> 0 | M91: =[5]DatiContoEconomico!M91 -> 0 | N91: =[5]DatiContoEconomico!N91 -> 0 | O91: =[5]DatiContoEconomico!O91 -> 0 | P91: =[5]DatiContoEconomico!P91 -> 0 | Q91: =[5]DatiContoEconomico!Q91 -> 0 | R91: 0 | T91: CCD | V91: Crediti inesigibili secondo normativa vigente (TARI tributo) | W91: =[4]DatiContoEconomico!E91 -> 0 | X91: =[4]DatiContoEconomico!F91 -> 0 | Y91: =[4]DatiContoEconomico!G91 -> 0 | Z91: =[4]DatiContoEconomico!H91 -> 0 | AA91: =[4]DatiContoEconomico!I91 -> 0 | AB91: =[4]DatiContoEconomico!J91 -> 0 | AC91: =[4]DatiContoEconomico!K91 -> 0 | AD91: =[4]DatiContoEconomico!L91 -> 0 | AE91: =[4]DatiContoEconomico!M91 -> 0 | AF91: =[4]DatiContoEconomico!N91 -> 0 | AG91: =[4]DatiContoEconomico!O91 -> 0 | AH91: =[4]DatiContoEconomico!P91 -> 0 | AI91: =[4]DatiContoEconomico!Q91 -> 0 | AJ91: 0 | AL91: CCD | AN91: Crediti inesigibili secondo normativa vigente (TARI tributo) | BB91: 0
B92: CCD | D92: Perdite su crediti per la sola quota parte eccedente l'utilizzo del fondo perdite su crediti o da garanzia assicurativa | E92: =[5]DatiContoEconomico!E92 -> 0 | F92: =[5]DatiContoEconomico!F92 -> 0 | G92: =[5]DatiContoEconomico!G92 -> 0 | H92: =[5]DatiContoEconomico!H92 -> 0 | I92: =[5]DatiContoEconomico!I92 -> 0 | J92: =[5]DatiContoEconomico!J92 -> 0 | K92: =[5]DatiContoEconomico!K92 -> 0 | L92: =[5]DatiContoEconomico!L92 -> 0 | M92: =[5]DatiContoEconomico!M92 -> 0 | N92: =[5]DatiContoEconomico!N92 -> 0 | O92: =[5]DatiContoEconomico!O92 -> 0 | P92: =[5]DatiContoEconomico!P92 -> 0 | Q92: =[5]DatiContoEconomico!Q92 -> 0 | R92: 0 | T92: CCD | V92: Perdite su crediti per la sola quota parte eccedente l'utilizzo del fondo perdite su crediti o da garanzia assicurativa | W92: =[4]DatiContoEconomico!E92 -> 0 | X92: =[4]DatiContoEconomico!F92 -> 0 | Y92: =[4]DatiContoEconomico!G92 -> 0 | Z92: =[4]DatiContoEconomico!H92 -> 0 | AA92: =[4]DatiContoEconomico!I92 -> 0 | AB92: =[4]DatiContoEconomico!J92 -> 0 | AC92: =[4]DatiContoEconomico!K92 -> 0 | AD92: =[4]DatiContoEconomico!L92 -> 0 | AE92: =[4]DatiContoEconomico!M92 -> 0 | AF92: =[4]DatiContoEconomico!N92 -> 0 | AG92: =[4]DatiContoEconomico!O92 -> 0 | AH92: =[4]DatiContoEconomico!P92 -> 0 | AI92: =[4]DatiContoEconomico!Q92 -> 0 | AJ92: 0 | AL92: CCD | AN92: Perdite su crediti per la sola quota parte eccedente l'utilizzo del fondo perdite su crediti o da garanzia assicurativa | BB92: 0
D93: Totale COal (art. 9.1) | E93: =SUM(E94:E102) -> 0 | F93: 0 | G93: 0 | H93: 0 | I93: 0 | J93: 0 | K93: 0 | L93: 0 | M93: 0 | N93: 28220.76454 | O93: 21.7224152 | P93: 612.008619 | Q93: 0 | R93: 28854.49557 | V93: Totale COal (art. 9.1) | W93: =SUM(W94:W102) -> 0 | X93: 0 | Y93: 0 | Z93: 0 | AA93: 0 | AB93: 0 | AC93: 0 | AD93: 0 | AE93: 0 | AF93: 0 | AG93: 0 | AH93: 0 | AI93: 0 | AJ93: 0 | AN93: Totale COal (art. 9.1) | BB93: 0
B94: COal | D94: Contributo funzionamento EGATO | E94: =[5]DatiContoEconomico!E94 -> 0 | F94: =[5]DatiContoEconomico!F94 -> 0 | G94: =[5]DatiContoEconomico!G94 -> 0 | H94: =[5]DatiContoEconomico!H94 -> 0 | I94: =[5]DatiContoEconomico!I94 -> 0 | J94: =[5]DatiContoEconomico!J94 -> 0 | K94: =[5]DatiContoEconomico!K94 -> 0 | L94: =[5]DatiContoEconomico!L94 -> 0 | M94: =[5]DatiContoEconomico!M94 -> 0 | N94: =[5]DatiContoEconomico!N94 -> 0 | O94: =[5]DatiContoEconomico!O94 -> 0 | P94: =[5]DatiContoEconomico!P94 -> 0 | Q94: =[5]DatiContoEconomico!Q94 -> 0 | R94: 0 | T94: COal | V94: Contributo funzionamento EGATO | W94: =[4]DatiContoEconomico!E94 -> 0 | X94: =[4]DatiContoEconomico!F94 -> 0 | Y94: =[4]DatiContoEconomico!G94 -> 0 | Z94: =[4]DatiContoEconomico!H94 -> 0 | AA94: =[4]DatiContoEconomico!I94 -> 0 | AB94: =[4]DatiContoEconomico!J94 -> 0 | AC94: =[4]DatiContoEconomico!K94 -> 0 | AD94: =[4]DatiContoEconomico!L94 -> 0 | AE94: =[4]DatiContoEconomico!M94 -> 0 | AF94: =[4]DatiContoEconomico!N94 -> 0 | AG94: =[4]DatiContoEconomico!O94 -> 0 | AH94: =[4]DatiContoEconomico!P94 -> 0 | AI94: =[4]DatiContoEconomico!Q94 -> 0 | AJ94: 0 | AL94: COal | AN94: Contributo funzionamento EGATO | BB94: 0
B95: COal | D95: Oneri di mitigazione ambientale | E95: =[5]DatiContoEconomico!E95 -> 0 | F95: =[5]DatiContoEconomico!F95 -> 0 | G95: =[5]DatiContoEconomico!G95 -> 0 | H95: =[5]DatiContoEconomico!H95 -> 0 | I95: =[5]DatiContoEconomico!I95 -> 0 | J95: =[5]DatiContoEconomico!J95 -> 0 | K95: =[5]DatiContoEconomico!K95 -> 0 | L95: =[5]DatiContoEconomico!L95 -> 0 | M95: =[5]DatiContoEconomico!M95 -> 0 | N95: =[5]DatiContoEconomico!N95 -> 0 | O95: =[5]DatiContoEconomico!O95 -> 0 | P95: =[5]DatiContoEconomico!P95 -> 0 | Q95: =[5]DatiContoEconomico!Q95 -> 0 | R95: 0 | T95: COal | V95: Oneri di mitigazione ambientale | W95: =[4]DatiContoEconomico!E95 -> 0 | X95: =[4]DatiContoEconomico!F95 -> 0 | Y95: =[4]DatiContoEconomico!G95 -> 0 | Z95: =[4]DatiContoEconomico!H95 -> 0 | AA95: =[4]DatiContoEconomico!I95 -> 0 | AB95: =[4]DatiContoEconomico!J95 -> 0 | AC95: =[4]DatiContoEconomico!K95 -> 0 | AD95: =[4]DatiContoEconomico!L95 -> 0 | AE95: =[4]DatiContoEconomico!M95 -> 0 | AF95: =[4]DatiContoEconomico!N95 -> 0 | AG95: =[4]DatiContoEconomico!O95 -> 0 | AH95: =[4]DatiContoEconomico!P95 -> 0 | AI95: =[4]DatiContoEconomico!Q95 -> 0 | AJ95: 0 | AL95: COal | AN95: Oneri di mitigazione ambientale | BB95: 0
B96: COal | D96: Oneri ambientali (tasse SO2 e Nox) | E96: =[5]DatiContoEconomico!E96 -> 0 | F96: =[5]DatiContoEconomico!F96 -> 0 | G96: =[5]DatiContoEconomico!G96 -> 0 | H96: =[5]DatiContoEconomico!H96 -> 0 | I96: =[5]DatiContoEconomico!I96 -> 0 | J96: =[5]DatiContoEconomico!J96 -> 0 | K96: =[5]DatiContoEconomico!K96 -> 0 | L96: =[5]DatiContoEconomico!L96 -> 0 | M96: =[5]DatiContoEconomico!M96 -> 0 | N96: =[5]DatiContoEconomico!N96 -> 0 | O96: =[5]DatiContoEconomico!O96 -> 0 | P96: =[5]DatiContoEconomico!P96 -> 0 | Q96: =[5]DatiContoEconomico!Q96 -> 0 | R96: 0 | T96: COal | V96: Oneri ambientali (tasse SO2 e Nox) | W96: =[4]DatiContoEconomico!E96 -> 0 | X96: =[4]DatiContoEconomico!F96 -> 0 | Y96: =[4]DatiContoEconomico!G96 -> 0 | Z96: =[4]DatiContoEconomico!H96 -> 0 | AA96: =[4]DatiContoEconomico!I96 -> 0 | AB96: =[4]DatiContoEconomico!J96 -> 0 | AC96: =[4]DatiContoEconomico!K96 -> 0 | AD96: =[4]DatiContoEconomico!L96 -> 0 | AE96: =[4]DatiContoEconomico!M96 -> 0 | AF96: =[4]DatiContoEconomico!N96 -> 0 | AG96: =[4]DatiContoEconomico!O96 -> 0 | AH96: =[4]DatiContoEconomico!P96 -> 0 | AI96: =[4]DatiContoEconomico!Q96 -> 0 | AJ96: 0 | AL96: COal | AN96: Oneri ambientali (tasse SO2 e Nox) | BB96: 0
B97: COal | D97: Oneri tributari locali (IMU,...) | E97: =[5]DatiContoEconomico!E97 -> 0 | F97: =[5]DatiContoEconomico!F97 -> 0 | G97: =[5]DatiContoEconomico!G97 -> 0 | H97: =[5]DatiContoEconomico!H97 -> 0 | I97: =[5]DatiContoEconomico!I97 -> 0 | J97: =[5]DatiContoEconomico!J97 -> 0 | K97: =[5]DatiContoEconomico!K97 -> 0 | L97: =[5]DatiContoEconomico!L97 -> 0 | M97: =[5]DatiContoEconomico!M97 -> 0 | N97: =[5]DatiContoEconomico!N97 -> 28220.76454 | O97: =[5]DatiContoEconomico!O97 -> 21.7224152 | P97: =[5]DatiContoEconomico!P97 -> 612.008619 | Q97: =[5]DatiContoEconomico!Q97 -> 0 | R97: 28854.49557 | T97: COal | V97: Oneri tributari locali (IMU,...) | W97: =[4]DatiContoEconomico!E97 -> 0 | X97: =[4]DatiContoEconomico!F97 -> 0 | Y97: =[4]DatiContoEconomico!G97 -> 0 | Z97: =[4]DatiContoEconomico!H97 -> 0 | AA97: =[4]DatiContoEconomico!I97 -> 0 | AB97: =[4]DatiContoEconomico!J97 -> 0 | AC97: =[4]DatiContoEconomico!K97 -> 0 | AD97: =[4]DatiContoEconomico!L97 -> 0 | AE97: =[4]DatiContoEconomico!M97 -> 0 | AF97: =[4]DatiContoEconomico!N97 -> 0 | AG97: =[4]DatiContoEconomico!O97 -> 0 | AH97: =[4]DatiContoEconomico!P97 -> 0 | AI97: =[4]DatiContoEconomico!Q97 -> 0 | AJ97: 0 | AL97: COal | AN97: Oneri tributari locali (IMU,...) | BB97: 0
B98: COal | D98: Oneri per compensazioni territoriali | E98: =[5]DatiContoEconomico!E98 -> 0 | F98: =[5]DatiContoEconomico!F98 -> 0 | G98: =[5]DatiContoEconomico!G98 -> 0 | H98: =[5]DatiContoEconomico!H98 -> 0 | I98: =[5]DatiContoEconomico!I98 -> 0 | J98: =[5]DatiContoEconomico!J98 -> 0 | K98: =[5]DatiContoEconomico!K98 -> 0 | L98: =[5]DatiContoEconomico!L98 -> 0 | M98: =[5]DatiContoEconomico!M98 -> 0 | N98: =[5]DatiContoEconomico!N98 -> 0 | O98: =[5]DatiContoEconomico!O98 -> 0 | P98: =[5]DatiContoEconomico!P98 -> 0 | Q98: =[5]DatiContoEconomico!Q98 -> 0 | R98: 0 | T98: COal | V98: Oneri per compensazioni territoriali | W98: =[4]DatiContoEconomico!E98 -> 0 | X98: =[4]DatiContoEconomico!F98 -> 0 | Y98: =[4]DatiContoEconomico!G98 -> 0 | Z98: =[4]DatiContoEconomico!H98 -> 0 | AA98: =[4]DatiContoEconomico!I98 -> 0 | AB98: =[4]DatiContoEconomico!J98 -> 0 | AC98: =[4]DatiContoEconomico!K98 -> 0 | AD98: =[4]DatiContoEconomico!L98 -> 0 | AE98: =[4]DatiContoEconomico!M98 -> 0 | AF98: =[4]DatiContoEconomico!N98 -> 0 | AG98: =[4]DatiContoEconomico!O98 -> 0 | AH98: =[4]DatiContoEconomico!P98 -> 0 | AI98: =[4]DatiContoEconomico!Q98 -> 0 | AJ98: 0 | AL98: COal | AN98: Oneri per compensazioni territoriali | BB98: 0
B99: COal | D99: Oneri relativi a fondi perequativi fissati dall’Ente territorialmente competente | E99: =[5]DatiContoEconomico!E99 -> 0 | F99: =[5]DatiContoEconomico!F99 -> 0 | G99: =[5]DatiContoEconomico!G99 -> 0 | H99: =[5]DatiContoEconomico!H99 -> 0 | I99: =[5]DatiContoEconomico!I99 -> 0 | J99: =[5]DatiContoEconomico!J99 -> 0 | K99: =[5]DatiContoEconomico!K99 -> 0 | L99: =[5]DatiContoEconomico!L99 -> 0 | M99: =[5]DatiContoEconomico!M99 -> 0 | N99: =[5]DatiContoEconomico!N99 -> 0 | O99: =[5]DatiContoEconomico!O99 -> 0 | P99: =[5]DatiContoEconomico!P99 -> 0 | Q99: =[5]DatiContoEconomico!Q99 -> 0 | R99: 0 | T99: COal | V99: Oneri relativi a fondi perequativi fissati dall’Ente territorialmente competente | W99: =[4]DatiContoEconomico!E99 -> 0 | X99: =[4]DatiContoEconomico!F99 -> 0 | Y99: =[4]DatiContoEconomico!G99 -> 0 | Z99: =[4]DatiContoEconomico!H99 -> 0 | AA99: =[4]DatiContoEconomico!I99 -> 0 | AB99: =[4]DatiContoEconomico!J99 -> 0 | AC99: =[4]DatiContoEconomico!K99 -> 0 | AD99: =[4]DatiContoEconomico!L99 -> 0 | AE99: =[4]DatiContoEconomico!M99 -> 0 | AF99: =[4]DatiContoEconomico!N99 -> 0 | AG99: =[4]DatiContoEconomico!O99 -> 0 | AH99: =[4]DatiContoEconomico!P99 -> 0 | AI99: =[4]DatiContoEconomico!Q99 -> 0 | AJ99: 0 | AL99: COal | AN99: Oneri relativi a fondi perequativi fissati dall’Ente territorialmente competente | BB99: 0
B100: COal | D100: Oneri per lo svolgimento di campagne informative e di educazione ambientale sulle fase del ciclo integrato di gestione dei rifiuti, attività necessarie alla chiusura del ciclo, sull'impatto ambientale nel territorio di riferimento (art. 9.2 a) | E100: =[5]DatiContoEconomico!E100 -> 0 | F100: =[5]DatiContoEconomico!F100 -> 0 | G100: =[5]DatiContoEconomico!G100 -> 0 | H100: =[5]DatiContoEconomico!H100 -> 0 | I100: =[5]DatiContoEconomico!I100 -> 0 | J100: =[5]DatiContoEconomico!J100 -> 0 | K100: =[5]DatiContoEconomico!K100 -> 0 | L100: =[5]DatiContoEconomico!L100 -> 0 | M100: =[5]DatiContoEconomico!M100 -> 0 | N100: =[5]DatiContoEconomico!N100 -> 0 | O100: =[5]DatiContoEconomico!O100 -> 0 | P100: =[5]DatiContoEconomico!P100 -> 0 | Q100: =[5]DatiContoEconomico!Q100 -> 0 | R100: 0 | T100: COal | V100: Oneri per lo svolgimento di campagne informative e di educazione ambientale sulle fase del ciclo integrato di gestione dei rifiuti, attività necessarie alla chiusura del ciclo, sull'impatto ambientale nel territorio di riferimento (art. 9.2 a) | W100: =[4]DatiContoEconomico!E100 -> 0 | X100: =[4]DatiContoEconomico!F100 -> 0 | Y100: =[4]DatiContoEconomico!G100 -> 0 | Z100: =[4]DatiContoEconomico!H100 -> 0 | AA100: =[4]DatiContoEconomico!I100 -> 0 | AB100: =[4]DatiContoEconomico!J100 -> 0 | AC100: =[4]DatiContoEconomico!K100 -> 0 | AD100: =[4]DatiContoEconomico!L100 -> 0 | AE100: =[4]DatiContoEconomico!M100 -> 0 | AF100: =[4]DatiContoEconomico!N100 -> 0 | AG100: =[4]DatiContoEconomico!O100 -> 0 | AH100: =[4]DatiContoEconomico!P100 -> 0 | AI100: =[4]DatiContoEconomico!Q100 -> 0 | AJ100: 0 | AL100: COal | AN100: Oneri per lo svolgimento di campagne informative e di educazione ambientale sulle fase del ciclo integrato di gestione dei rifiuti, attività necessarie alla chiusura del ciclo, sull'impatto ambientale nel territorio di riferimento (art. 9.2 a) | BB100: 0
B101: COal | D101: Oneri sostenuti in favore di misure di prevenzione a riduzione della quantità dei rifiuti, degli impatti negativi dei rifiuti sull'ambiente e la salute umana, il contenuto di sostanze pericolose in materiali e prodotti (art. 9.2 b) | E101: =[5]DatiContoEconomico!E101 -> 0 | F101: =[5]DatiContoEconomico!F101 -> 0 | G101: =[5]DatiContoEconomico!G101 -> 0 | H101: =[5]DatiContoEconomico!H101 -> 0 | I101: =[5]DatiContoEconomico!I101 -> 0 | J101: =[5]DatiContoEconomico!J101 -> 0 | K101: =[5]DatiContoEconomico!K101 -> 0 | L101: =[5]DatiContoEconomico!L101 -> 0 | M101: =[5]DatiContoEconomico!M101 -> 0 | N101: =[5]DatiContoEconomico!N101 -> 0 | O101: =[5]DatiContoEconomico!O101 -> 0 | P101: =[5]DatiContoEconomico!P101 -> 0 | Q101: =[5]DatiContoEconomico!Q101 -> 0 | R101: 0 | T101: COal | V101: Oneri sostenuti in favore di misure di prevenzione a riduzione della quantità dei rifiuti, degli impatti negativi dei rifiuti sull'ambiente e la salute umana, il contenuto di sostanze pericolose in materiali e prodotti (art. 9.2 b) | W101: =[4]DatiContoEconomico!E101 -> 0 | X101: =[4]DatiContoEconomico!F101 -> 0 | Y101: =[4]DatiContoEconomico!G101 -> 0 | Z101: =[4]DatiContoEconomico!H101 -> 0 | AA101: =[4]DatiContoEconomico!I101 -> 0 | AB101: =[4]DatiContoEconomico!J101 -> 0 | AC101: =[4]DatiContoEconomico!K101 -> 0 | AD101: =[4]DatiContoEconomico!L101 -> 0 | AE101: =[4]DatiContoEconomico!M101 -> 0 | AF101: =[4]DatiContoEconomico!N101 -> 0 | AG101: =[4]DatiContoEconomico!O101 -> 0 | AH101: =[4]DatiContoEconomico!P101 -> 0 | AI101: =[4]DatiContoEconomico!Q101 -> 0 | AJ101: 0 | AL101: COal | AN101: Oneri sostenuti in favore di misure di prevenzione a riduzione della quantità dei rifiuti, degli impatti negativi dei rifiuti sull'ambiente e la salute umana, il contenuto di sostanze pericolose in materiali e prodotti (art. 9.2 b) | BB101: 0
B102: COal | D102: Oneri per la gestione post-operativa delle discariche autorizzate e dei costi di chiusura nel caso in cui le risorse accantonate in conformità alla normativa vigente risultatino insufficienti a garantire il ripristino ambientale del sito medesimo (art. 9.3) | E102: =[5]DatiContoEconomico!E102 -> 0 | F102: =[5]DatiContoEconomico!F102 -> 0 | G102: =[5]DatiContoEconomico!G102 -> 0 | H102: =[5]DatiContoEconomico!H102 -> 0 | I102: =[5]DatiContoEconomico!I102 -> 0 | J102: =[5]DatiContoEconomico!J102 -> 0 | K102: =[5]DatiContoEconomico!K102 -> 0 | L102: =[5]DatiContoEconomico!L102 -> 0 | M102: =[5]DatiContoEconomico!M102 -> 0 | N102: =[5]DatiContoEconomico!N102 -> 0 | O102: =[5]DatiContoEconomico!O102 -> 0 | P102: =[5]DatiContoEconomico!P102 -> 0 | Q102: =[5]DatiContoEconomico!Q102 -> 0 | R102: 0 | T102: COal | V102: Oneri per la gestione post-operativa delle discariche autorizzate e dei costi di chiusura nel caso in cui le risorse accantonate in conformità alla normativa vigente risultatino insufficienti a garantire il ripristino ambientale del sito medesimo (art. 9.3) | W102: =[4]DatiContoEconomico!E102 -> 0 | X102: =[4]DatiContoEconomico!F102 -> 0 | Y102: =[4]DatiContoEconomico!G102 -> 0 | Z102: =[4]DatiContoEconomico!H102 -> 0 | AA102: =[4]DatiContoEconomico!I102 -> 0 | AB102: =[4]DatiContoEconomico!J102 -> 0 | AC102: =[4]DatiContoEconomico!K102 -> 0 | AD102: =[4]DatiContoEconomico!L102 -> 0 | AE102: =[4]DatiContoEconomico!M102 -> 0 | AF102: =[4]DatiContoEconomico!N102 -> 0 | AG102: =[4]DatiContoEconomico!O102 -> 0 | AH102: =[4]DatiContoEconomico!P102 -> 0 | AI102: =[4]DatiContoEconomico!Q102 -> 0 | AJ102: 0 | AL102: COal | AN102: Oneri per la gestione post-operativa delle discariche autorizzate e dei costi di chiusura nel caso in cui le risorse accantonate in conformità alla normativa vigente risultatino insufficienti a garantire il ripristino ambientale del sito medesimo (art. 9.3) | BB102: 0
B104: IVA e imposte Parte variabile | C104: IVA e imposte Parte fissa | D104: Art. 6.3 - IVA e Imposte indetraibili (art. 18.3, Allegato A MTR) | E104: CSL 2017 | F104: CRT 2017 | G104: CTS 2017 | H104: CRD 2017 | I104: CTR 2017 | J104: CARC 2017 | K104: CGG 2017 | L104: CCD 2017 | M104: ACC 2017 | N104: COal 2017 | O104: Attività esterne ciclo RU 2017 | P104: Attività diverse o extra perimetro 2017 | Q104: Poste straordinarie 2017 | R104: Totale 2017 | T104: IVA e imposte Parte variabile | U104: IVA e imposte Parte fissa | V104: Art. 6.3 - IVA e Imposte indetraibili (art. 18.3, Allegato A MTR) | W104: CSL 2017 | X104: CRT 2017 | Y104: CTS 2017 | Z104: CRD 2017 | AA104: CTR 2017 | AB104: CARC 2017 | AC104: CGG 2017 | AD104: CCD 2017 | AE104: ACC 2017 | AF104: COal 2017 | AG104: Attività esterne ciclo RU 2017 | AH104: Attività diverse o extra perimetro 2017 | AI104: Poste straordinarie 2017 | AJ104: Totale 2017 | AL104: IVA e imposte Parte variabile | AM104: IVA e imposte Parte fissa | AN104: Art. 6.3 - IVA e Imposte indetraibili (art. 18.3, Allegato A MTR) | AO104: CSL 2017 | AP104: CRT 2017 | AQ104: CTS 2017 | AR104: CRD 2017 | AS104: CTR 2017 | AT104: CARC 2017 | AU104: CGG 2017 | AV104: CCD 2017 | AW104: ACC 2017 | AX104: COal 2017 | AY104: Attività esterne ciclo RU 2017 | AZ104: Attività diverse o extra perimetro 2017 | BA104: Poste straordinarie 2017 | BB104: Totale 2017
E105: =DichiarazioneAttivita!$C$16 -> Ascit | F105: =DichiarazioneAttivita!$C$16 -> Ascit | G105: =DichiarazioneAttivita!$C$16 -> Ascit | H105: =DichiarazioneAttivita!$C$16 -> Ascit | I105: =DichiarazioneAttivita!$C$16 -> Ascit | J105: =DichiarazioneAttivita!$C$16 -> Ascit | K105: =DichiarazioneAttivita!$C$16 -> Ascit | L105: =DichiarazioneAttivita!$C$16 -> Ascit | M105: =DichiarazioneAttivita!$C$16 -> Ascit | N105: =DichiarazioneAttivita!$C$16 -> Ascit | O105: =DichiarazioneAttivita!$C$16 -> Ascit | P105: =DichiarazioneAttivita!$C$16 -> Ascit | Q105: =DichiarazioneAttivita!$C$16 -> Ascit | R105: =DichiarazioneAttivita!$C$16 -> Ascit | W105: =DichiarazioneAttivita!$C$17 -> Capannori | X105: =DichiarazioneAttivita!$C$17 -> Capannori | Y105: =DichiarazioneAttivita!$C$17 -> Capannori | Z105: =DichiarazioneAttivita!$C$17 -> Capannori | AA105: =DichiarazioneAttivita!$C$17 -> Capannori | AB105: =DichiarazioneAttivita!$C$17 -> Capannori | AC105: =DichiarazioneAttivita!$C$17 -> Capannori | AD105: =DichiarazioneAttivita!$C$17 -> Capannori | AE105: =DichiarazioneAttivita!$C$17 -> Capannori | AF105: =DichiarazioneAttivita!$C$17 -> Capannori | AG105: =DichiarazioneAttivita!$C$17 -> Capannori | AH105: =DichiarazioneAttivita!$C$17 -> Capannori | AI105: =DichiarazioneAttivita!$C$17 -> Capannori | AJ105: =DichiarazioneAttivita!$C$17 -> Capannori | AO105: =DichiarazioneAttivita!$C$18 -> 0 | AP105: =DichiarazioneAttivita!$C$18 -> 0 | AQ105: =DichiarazioneAttivita!$C$18 -> 0 | AR105: =DichiarazioneAttivita!$C$18 -> 0 | AS105: =DichiarazioneAttivita!$C$18 -> 0 | AT105: =DichiarazioneAttivita!$C$18 -> 0 | AU105: =DichiarazioneAttivita!$C$18 -> 0 | AV105: =DichiarazioneAttivita!$C$18 -> 0 | AW105: =DichiarazioneAttivita!$C$18 -> 0 | AX105: =DichiarazioneAttivita!$C$18 -> 0 | AY105: =DichiarazioneAttivita!$C$18 -> 0 | AZ105: =DichiarazioneAttivita!$C$18 -> 0 | BA105: =DichiarazioneAttivita!$C$18 -> 0 | BB105: =DichiarazioneAttivita!$C$18 -> 0
B106: =F106+G106+H106+I106 -> 0 | C106: =SUM(E106,J106:N106) -> 0 | D106: IVA indetraibile (art. 18.3, Allegato A MTR) | R106: =SUM(E106:Q106) -> 0 | T106: =X106+Y106+Z106+AA106 -> 0 | U106: =SUM(W106,AB106:AF106) -> 0 | V106: IVA indetraibile (art. 18.3, Allegato A MTR) | W106: =SUMIF(IVA_Imposte!$C$6:$C$1000,2017,IVA_Imposte!D6:D1000) -> 0 | X106: =SUMIF(IVA_Imposte!$C$6:$C$1000,2017,IVA_Imposte!E6:E1000) -> 0 | Y106: =SUMIF(IVA_Imposte!$C$6:$C$1000,2017,IVA_Imposte!F6:F1000) -> 0 | Z106: =SUMIF(IVA_Imposte!$C$6:$C$1000,2017,IVA_Imposte!G6:G1000) -> 0 | AA106: =SUMIF(IVA_Imposte!$C$6:$C$1000,2017,IVA_Imposte!H6:H1000) -> 0 | AB106: =SUMIF(IVA_Imposte!$C$6:$C$1000,2017,IVA_Imposte!I6:I1000) -> 0 | AC106: =SUMIF(IVA_Imposte!$C$6:$C$1000,2017,IVA_Imposte!J6:J1000) -> 0 | AD106: =SUMIF(IVA_Imposte!$C$6:$C$1000,2017,IVA_Imposte!K6:K1000) -> 0 | AE106: =SUMIF(IVA_Imposte!$C$6:$C$1000,2017,IVA_Imposte!L6:L1000) -> 0 | AF106: =SUMIF(IVA_Imposte!$C$6:$C$1000,2017,IVA_Imposte!M6:M1000) -> 0 | AJ106: =SUM(W106:AI106) -> 0 | AL106: =AP106+AQ106+AR106+AS106 -> 0 | AM106: =SUM(AO106,AT106:AX106) -> 0 | AN106: IVA indetraibile (art. 18.3, Allegato A MTR) | BB106: =SUM(AO106:BA106) -> 0
B107: =F107+G107+H107+I107 -> 0 | C107: =SUM(E107,J107:N107) -> 0 | D107: Imposte indetraibili (art. 18.3, Allegato A MTR) | R107: 0 | T107: =X107+Y107+Z107+AA107 -> 0 | U107: =SUM(W107,AB107:AF107) -> 0 | V107: Imposte indetraibili (art. 18.3, Allegato A MTR) | AJ107: 0 | AL107: =AP107+AQ107+AR107+AS107 -> 0 | AM107: =SUM(AO107,AT107:AX107) -> 0 | AN107: Imposte indetraibili (art. 18.3, Allegato A MTR) | BB107: 0
D109: Art. 6.3 - Ricavi riconosciuti | E109: CSL 2017 | F109: CRT 2017 | G109: CTS 2017 | H109: CRD 2017 | I109: CTR 2017 | J109: CARC 2017 | K109: CGG 2017 | L109: CCD 2017 | M109: ACC 2017 | N109: COal 2017 | O109: Attività esterne ciclo RU 2017 | P109: Attività diverse o extra perimetro 2017 | Q109: Poste straordinarie 2017 | R109: Totale 2017 | V109: Art. 6.3 - Ricavi riconosciuti | W109: CSL 2017 | X109: CRT 2017 | Y109: CTS 2017 | Z109: CRD 2017 | AA109: CTR 2017 | AB109: CARC 2017 | AC109: CGG 2017 | AD109: CCD 2017 | AE109: ACC 2017 | AF109: COal 2017 | AG109: Attività esterne ciclo RU 2017 | AH109: Attività diverse o extra perimetro 2017 | AI109: Poste straordinarie 2017 | AJ109: Totale 2017 | AN109: Art. 6.3 - Ricavi riconosciuti | AO109: CSL 2017 | AP109: CRT 2017 | AQ109: CTS 2017 | AR109: CRD 2017 | AS109: CTR 2017 | AT109: CARC 2017 | AU109: CGG 2017 | AV109: CCD 2017 | AW109: ACC 2017 | AX109: COal 2017 | AY109: Attività esterne ciclo RU 2017 | AZ109: Attività diverse o extra perimetro 2017 | BA109: Poste straordinarie 2017 | BB109: Totale 2017
E110: =DichiarazioneAttivita!$C$16 -> Ascit | F110: =DichiarazioneAttivita!$C$16 -> Ascit | G110: =DichiarazioneAttivita!$C$16 -> Ascit | H110: =DichiarazioneAttivita!$C$16 -> Ascit | I110: =DichiarazioneAttivita!$C$16 -> Ascit | J110: =DichiarazioneAttivita!$C$16 -> Ascit | K110: =DichiarazioneAttivita!$C$16 -> Ascit | L110: =DichiarazioneAttivita!$C$16 -> Ascit | M110: =DichiarazioneAttivita!$C$16 -> Ascit | N110: =DichiarazioneAttivita!$C$16 -> Ascit | O110: =DichiarazioneAttivita!$C$16 -> Ascit | P110: =DichiarazioneAttivita!$C$16 -> Ascit | Q110: =DichiarazioneAttivita!$C$16 -> Ascit | R110: =DichiarazioneAttivita!$C$16 -> Ascit | W110: =DichiarazioneAttivita!$C$17 -> Capannori | X110: =DichiarazioneAttivita!$C$17 -> Capannori | Y110: =DichiarazioneAttivita!$C$17 -> Capannori | Z110: =DichiarazioneAttivita!$C$17 -> Capannori | AA110: =DichiarazioneAttivita!$C$17 -> Capannori | AB110: =DichiarazioneAttivita!$C$17 -> Capannori | AC110: =DichiarazioneAttivita!$C$17 -> Capannori | AD110: =DichiarazioneAttivita!$C$17 -> Capannori | AE110: =DichiarazioneAttivita!$C$17 -> Capannori | AF110: =DichiarazioneAttivita!$C$17 -> Capannori | AG110: =DichiarazioneAttivita!$C$17 -> Capannori | AH110: =DichiarazioneAttivita!$C$17 -> Capannori | AI110: =DichiarazioneAttivita!$C$17 -> Capannori | AJ110: =DichiarazioneAttivita!$C$17 -> Capannori | AO110: =DichiarazioneAttivita!$C$18 -> 0 | AP110: =DichiarazioneAttivita!$C$18 -> 0 | AQ110: =DichiarazioneAttivita!$C$18 -> 0 | AR110: =DichiarazioneAttivita!$C$18 -> 0 | AS110: =DichiarazioneAttivita!$C$18 -> 0 | AT110: =DichiarazioneAttivita!$C$18 -> 0 | AU110: =DichiarazioneAttivita!$C$18 -> 0 | AV110: =DichiarazioneAttivita!$C$18 -> 0 | AW110: =DichiarazioneAttivita!$C$18 -> 0 | AX110: =DichiarazioneAttivita!$C$18 -> 0 | AY110: =DichiarazioneAttivita!$C$18 -> 0 | AZ110: =DichiarazioneAttivita!$C$18 -> 0 | BA110: =DichiarazioneAttivita!$C$18 -> 0 | BB110: =DichiarazioneAttivita!$C$18 -> 0
D111: 𝐴𝑅𝑎 | E111: =+SUM(E12:E18) -> 0 | F111: 0 | G111: 0 | H111: 0 | I111: 220759.681 | J111: 0 | K111: 0 | L111: 0 | M111: 0 | N111: 0 | O111: 0 | P111: 161414.215 | Q111: 0 | R111: =SUM(E111:Q111) -> 382173.896 | V111: 𝐴𝑅𝑎 | W111: =+SUM(W12:W18) -> 0 | X111: 0 | Y111: 0 | Z111: 0 | AA111: 0 | AB111: 0 | AC111: 0 | AD111: 0 | AE111: 0 | AF111: 0 | AG111: 0 | AH111: 0 | AI111: 0 | AJ111: =SUM(W111:AI111) -> 0 | AN111: 𝐴𝑅𝑎 | AO111: =+SUM(AO12:AO18) -> 0 | AP111: 0 | AQ111: 0 | AR111: 0 | AS111: 0 | AT111: 0 | AU111: 0 | AV111: 0 | AW111: 0 | AX111: 0 | AY111: 0 | AZ111: 0 | BA111: 0 | BB111: =SUM(AO111:BA111) -> 0
D112: ARCONAI,a | E112: =+E19 -> 0 | F112: 0 | G112: 0 | H112: 0 | I112: 477515.3566 | J112: 0 | K112: 0 | L112: 0 | M112: 0 | N112: 0 | O112: 0 | P112: 0 | Q112: 0 | R112: 477515.3566 | V112: ARCONAI,a | W112: =+W19 -> 0 | X112: 0 | Y112: 0 | Z112: 0 | AA112: 0 | AB112: 0 | AC112: 0 | AD112: 0 | AE112: 0 | AF112: 0 | AG112: 0 | AH112: 0 | AI112: 0 | AJ112: 0 | AN112: ARCONAI,a | AO112: =+AO19 -> 0 | AP112: 0 | AQ112: 0 | AR112: 0 | AS112: 0 | AT112: 0 | AU112: 0 | AV112: 0 | AW112: 0 | AX112: 0 | AY112: 0 | AZ112: 0 | BA112: 0 | BB112: 0
D114: Art. 6.3 - Costi riconosciuti (senza IVA e imposte) | E114: CSL 2017 | F114: CRT 2017 | G114: CTS 2017 | H114: CRD 2017 | I114: CTR 2017 | J114: CARC 2017 | K114: CGG 2017 | L114: CCD 2017 | M114: ACC 2017 | N114: COal 2017 | O114: Attività esterne ciclo RU 2017 | P114: Attività diverse o extra perimetro 2017 | Q114: Poste straordinarie 2017 | R114: Totale 2017 | V114: Art. 6.3 - Costi riconosciuti (senza IVA e imposte) | W114: CSL 2017 | X114: CRT 2017 | Y114: CTS 2017 | Z114: CRD 2017 | AA114: CTR 2017 | AB114: CARC 2017 | AC114: CGG 2017 | AD114: CCD 2017 | AE114: ACC 2017 | AF114: COal 2017 | AG114: Attività esterne ciclo RU 2017 | AH114: Attività diverse o extra perimetro 2017 | AI114: Poste straordinarie 2017 | AJ114: Totale 2017 | AN114: Art. 6.3 - Costi riconosciuti (senza IVA e imposte) | AO114: CSL 2017 | AP114: CRT 2017 | AQ114: CTS 2017 | AR114: CRD 2017 | AS114: CTR 2017 | AT114: CARC 2017 | AU114: CGG 2017 | AV114: CCD 2017 | AW114: ACC 2017 | AX114: COal 2017 | AY114: Attività esterne ciclo RU 2017 | AZ114: Attività diverse o extra perimetro 2017 | BA114: Poste straordinarie 2017 | BB114: Totale 2017
E115: =DichiarazioneAttivita!$C$16 -> Ascit | F115: =DichiarazioneAttivita!$C$16 -> Ascit | G115: =DichiarazioneAttivita!$C$16 -> Ascit | H115: =DichiarazioneAttivita!$C$16 -> Ascit | I115: =DichiarazioneAttivita!$C$16 -> Ascit | J115: =DichiarazioneAttivita!$C$16 -> Ascit | K115: =DichiarazioneAttivita!$C$16 -> Ascit | L115: =DichiarazioneAttivita!$C$16 -> Ascit | M115: =DichiarazioneAttivita!$C$16 -> Ascit | N115: =DichiarazioneAttivita!$C$16 -> Ascit | O115: =DichiarazioneAttivita!$C$16 -> Ascit | P115: =DichiarazioneAttivita!$C$16 -> Ascit | Q115: =DichiarazioneAttivita!$C$16 -> Ascit | R115: =DichiarazioneAttivita!$C$16 -> Ascit | W115: =DichiarazioneAttivita!$C$17 -> Capannori | X115: =DichiarazioneAttivita!$C$17 -> Capannori | Y115: =DichiarazioneAttivita!$C$17 -> Capannori | Z115: =DichiarazioneAttivita!$C$17 -> Capannori | AA115: =DichiarazioneAttivita!$C$17 -> Capannori | AB115: =DichiarazioneAttivita!$C$17 -> Capannori | AC115: =DichiarazioneAttivita!$C$17 -> Capannori | AD115: =DichiarazioneAttivita!$C$17 -> Capannori | AE115: =DichiarazioneAttivita!$C$17 -> Capannori | AF115: =DichiarazioneAttivita!$C$17 -> Capannori | AG115: =DichiarazioneAttivita!$C$17 -> Capannori | AH115: =DichiarazioneAttivita!$C$17 -> Capannori | AI115: =DichiarazioneAttivita!$C$17 -> Capannori | AJ115: =DichiarazioneAttivita!$C$17 -> Capannori | AO115: =DichiarazioneAttivita!$C$18 -> 0 | AP115: =DichiarazioneAttivita!$C$18 -> 0 | AQ115: =DichiarazioneAttivita!$C$18 -> 0 | AR115: =DichiarazioneAttivita!$C$18 -> 0 | AS115: =DichiarazioneAttivita!$C$18 -> 0 | AT115: =DichiarazioneAttivita!$C$18 -> 0 | AU115: =DichiarazioneAttivita!$C$18 -> 0 | AV115: =DichiarazioneAttivita!$C$18 -> 0 | AW115: =DichiarazioneAttivita!$C$18 -> 0 | AX115: =DichiarazioneAttivita!$C$18 -> 0 | AY115: =DichiarazioneAttivita!$C$18 -> 0 | AZ115: =DichiarazioneAttivita!$C$18 -> 0 | BA115: =DichiarazioneAttivita!$C$18 -> 0 | BB115: =DichiarazioneAttivita!$C$18 -> 0
D116: Costi della produzione (senza B.10d, B12, B13) | E116: =E36+E40+E44+E47+E55+E66 -> 241125.9682 | F116: 526449.8058 | G116: 18784.13617 | H116: 4416594.746 | I116: 1468625.055 | J116: 754563.181 | K116: 920052.3008 | L116: 0 | M116: 0 | N116: 28220.76454 | O116: 8259.880421 | P116: 210922.3076 | Q116: 0 | R116: =SUM(E116:Q116) -> 8593598.145 | V116: Costi della produzione (senza B.10d, B12, B13) | W116: =W36+W40+W44+W47+W55+W66 -> 0 | X116: 0 | Y116: 0 | Z116: 0 | AA116: 0 | AB116: 0 | AC116: 0 | AD116: 0 | AE116: 0 | AF116: 15605.53 | AG116: 0 | AH116: 0 | AI116: 0 | AJ116: =SUM(W116:AI116) -> 15605.53 | AN116: Costi della produzione (senza B.10d, B12, B13) | AO116: =AO36+AO40+AO44+AO47+AO55+AO66 -> 0 | AP116: 0 | AQ116: 0 | AR116: 0 | AS116: 0 | AT116: 0 | AU116: 0 | AV116: 0 | AW116: 0 | AX116: 0 | AY116: 0 | AZ116: 0 | BA116: 0 | BB116: =SUM(AO116:BA116) -> 0
D117: Costi attribuibili alle attività capitalizzabili | E117: =+SUM(E23:E25) -> 0 | F117: 0 | G117: 0 | H117: 0 | I117: 0 | J117: 0 | K117: 0 | L117: 0 | M117: 0 | N117: 0 | O117: 0 | P117: 0 | Q117: 0 | R117: 0 | V117: Costi attribuibili alle attività capitalizzabili | W117: =+SUM(W23:W25) -> 0 | X117: 0 | Y117: 0 | Z117: 0 | AA117: 0 | AB117: 0 | AC117: 0 | AD117: 0 | AE117: 0 | AF117: 0 | AG117: 0 | AH117: 0 | AI117: 0 | AJ117: 0 | AN117: Costi attribuibili alle attività capitalizzabili | AO117: =+SUM(AO23:AO25) -> 0 | AP117: 0 | AQ117: 0 | AR117: 0 | AS117: 0 | AT117: 0 | AU117: 0 | AV117: 0 | AW117: 0 | AX117: 0 | AY117: 0 | AZ117: 0 | BA117: 0 | BB117: 0
D118: Poste rettificative (art. 1.1 e acquisti interni da Gestori del ciclo RU) | E118: =+SUM(E30,E31,E42,E70,E72,E74:E80) -> 416.9522656 | F118: =+SUM(F30,F31,F42,F70,F72,F74:F80) -> 1024.950465 | G118: 32.48131336 | H118: 8353.168665 | I118: 2539.529643 | J118: 8379.080232 | K118: 35395.04215 | L118: 0 | M118: 891.6961055 | N118: 48.79902318 | O118: 52.98689755 | P118: 952.3074189 | Q118: 0 | R118: 58086.99418 | V118: Poste rettificative (art. 1.1 e acquisti interni da Gestori del ciclo RU) | W118: =+SUM(W30,W31,W42,W70,W72,W74:W80) -> 0 | X118: =+SUM(X30,X31,X42,X70,X72,X74:X80) -> 0 | Y118: 0 | Z118: 0 | AA118: 0 | AB118: 0 | AC118: 0 | AD118: 0 | AE118: 0 | AF118: 0 | AG118: 0 | AH118: 0 | AI118: 0 | AJ118: 0 | AN118: Poste rettificative (art. 1.1 e acquisti interni da Gestori del ciclo RU) | AO118: =+SUM(AO30,AO31,AO42,AO70,AO72,AO74:AO80) -> 0 | AP118: =+SUM(AP30,AP31,AP42,AP70,AP72,AP74:AP80) -> 0 | AQ118: 0 | AR118: 0 | AS118: 0 | AT118: 0 | AU118: 0 | AV118: 0 | AW118: 0 | AX118: 0 | AY118: 0 | AZ118: 0 | BA118: 0 | BB118: 0
D119: Costi riconosciuti | E119: =E116-E117-E118 -> 240709.0159 | F119: 525424.8553 | G119: 18751.65485 | H119: 4408241.578 | I119: 1466085.525 | J119: 746184.1008 | K119: 884657.2586 | L119: 0 | M119: -891.6961055 | N119: 28171.96551 | O119: 8206.893524 | P119: 209970.0001 | Q119: 0 | R119: =SUM(E119:Q119) -> 8535511.151 | V119: Costi riconosciuti | W119: =W116-W117-W118 -> 0 | X119: 0 | Y119: 0 | Z119: 0 | AA119: 0 | AB119: 0 | AC119: 0 | AD119: 0 | AE119: 0 | AF119: 15605.53 | AG119: 0 | AH119: 0 | AI119: 0 | AJ119: 15605.53 | AN119: Costi riconosciuti | AO119: =AO116-AO117-AO118 -> 0 | AP119: 0 | AQ119: 0 | AR119: 0 | AS119: 0 | AT119: 0 | AU119: 0 | AV119: 0 | AW119: 0 | AX119: 0 | AY119: 0 | AZ119: 0 | BA119: 0 | BB119: 0
I121: Verifica | J121: =IF(ABS(J122-J123)<=1,"OK","Ricontrollare") -> OK | K121: =IF(ABS(K122-K123)<=1,"OK","Ricontrollare") -> OK | L121: OK | N121: =IF(ABS(N122-N123)<=1,"OK","Ricontrollare") -> OK | AA121: Verifica | AB121: =IF(ABS(AB122-AB123)<=1,"OK","Ricontrollare") -> OK | AC121: =IF(ABS(AC122-AC123)<=1,"OK","Ricontrollare") -> OK | AD121: OK | AF121: =IF(ABS(AF122-AF123)<=1,"OK","Ricontrollare") -> Ricontrollare | AS121: Verifica | AT121: =IF(ABS(AT122-AT123)<=1,"OK","Ricontrollare") -> OK | AU121: =IF(ABS(AU122-AU123)<=1,"OK","Ricontrollare") -> OK | AV121: OK | AX121: =IF(ABS(AX122-AX123)<=1,"OK","Ricontrollare") -> OK
I122: Macroclassi | J122: =J119 -> 746184.1008 | K122: 884657.2586 | L122: 0 | N122: =N119 -> 28171.96551 | AA122: Macroclassi | AB122: =AB119 -> 0 | AC122: 0 | AD122: 0 | AF122: =AF119 -> 15605.53 | AS122: Macroclassi | AT122: =AT119 -> 0 | AU122: 0 | AV122: 0 | AX122: =AX119 -> 0
I123: Analitico | J123: =J81-J117-J118 -> 746184.1008 | K123: =K87-K117-K118 -> 884657.2586 | L123: =L90-L117-L118 -> 0 | N123: =N93-N117-N118 -> 28171.96551 | AA123: Analitico | AB123: =AB81-AB117-AB118 -> 0 | AC123: =AC87-AC117-AC118 -> 0 | AD123: =AD90-AD117-AD118 -> 0 | AF123: =AF93-AF117-AF118 -> 0 | AS123: Analitico | AT123: =AT81-AT117-AT118 -> 0 | AU123: =AU87-AU117-AU118 -> 0 | AV123: =AV90-AV117-AV118 -> 0 | AX123: =AX93-AX117-AX118 -> 0

Sheet DatiContoEconomico_2018
B2: Art. 6 - Costi riconosciuti | T2: Art. 6 - Costi riconosciuti | AL2: Art. 6 - Costi riconosciuti
E3: Art. 6.4 riclassificazione costi per componente tariffaria | W3: Art. 6.4 riclassificazione costi per componente tariffaria | AO3: Art. 6.4 riclassificazione costi per componente tariffaria
B4: DATI DI CONTO ECONOMICO 2018 | T4: DATI DI CONTO ECONOMICO 2018 | AL4: DATI DI CONTO ECONOMICO 2018
E5: Art. 7.2 | F5: Art. 7.3 | G5: Art. 7.4 | H5: Art. 7.5 | I5: Art. 7.6 | J5: Art. 9.1 | K5: Art. 9.1 | L5: Art. 9.1 | M5: Art. 14 | N5: Art. 9.1 | W5: Art. 7.2 | X5: Art. 7.3 | Y5: Art. 7.4 | Z5: Art. 7.5 | AA5: Art. 7.6 | AB5: Art. 9.1 | AC5: Art. 9.1 | AD5: Art. 9.1 | AE5: Art. 14 | AF5: Art. 9.1 | AO5: Art. 7.2 | AP5: Art. 7.3 | AQ5: Art. 7.4 | AR5: Art. 7.5 | AS5: Art. 7.6 | AT5: Art. 9.1 | AU5: Art. 9.1 | AV5: Art. 9.1 | AW5: Art. 14 | AX5: Art. 9.1
B6: =DichiarazioneAttivita!$B$16&" - "&DichiarazioneAttivita!$C$16 -> Gestore 1 - Ascit | C6: =DichiarazioneAttivita!$C$16 -> Ascit | D6: =DichiarazioneAttivita!$C$16 -> Ascit | E6: CSL 2018 | F6: CRT 2018 | G6: CTS 2018 | H6: CRD 2018 | I6: CTR 2018 | J6: CARC 2018 | K6: CGG 2018 | L6: CCD 2018 | M6: ACC 2018 | N6: COal 2018 | O6: Attività esterne ciclo RU 2018 | P6: Attività diverse o extra perimetro 2018 | Q6: Poste straordinarie 2018 | R6: Totale 2018 | T6: =DichiarazioneAttivita!$B$17&" - "&DichiarazioneAttivita!$C$17 -> Gestore 2 - Capannori | U6: =DichiarazioneAttivita!$C$16 -> Ascit | V6: =DichiarazioneAttivita!$C$16 -> Ascit | W6: CSL 2018 | X6: CRT 2018 | Y6: CTS 2018 | Z6: CRD 2018 | AA6: CTR 2018 | AB6: CARC 2018 | AC6: CGG 2018 | AD6: CCD 2018 | AE6: ACC 2018 | AF6: COal 2018 | AG6: Attività esterne ciclo RU 2018 | AH6: Attività diverse o extra perimetro 2018 | AI6: Poste straordinarie 2018 | AJ6: Totale 2018 | AL6: =DichiarazioneAttivita!$B$18&" - "&DichiarazioneAttivita!$C$18 -> Gestore 3 - | AM6: =DichiarazioneAttivita!$C$16 -> Ascit | AN6: =DichiarazioneAttivita!$C$16 -> Ascit | AO6: CSL 2018 | AP6: CRT 2018 | AQ6: CTS 2018 | AR6: CRD 2018 | AS6: CTR 2018 | AT6: CARC 2018 | AU6: CGG 2018 | AV6: CCD 2018 | AW6: ACC 2018 | AX6: COal 2018 | AY6: Attività esterne ciclo RU 2018 | AZ6: Attività diverse o extra perimetro 2018 | BA6: Poste straordinarie 2018 | BB6: Totale 2018
B7: =DichiarazioneAttivita!$C$16 -> Ascit | C7: =DichiarazioneAttivita!$C$16 -> Ascit | D7: =DichiarazioneAttivita!$C$16 -> Ascit | E7: =DichiarazioneAttivita!$C$16 -> Ascit | F7: =DichiarazioneAttivita!$C$16 -> Ascit | G7: =DichiarazioneAttivita!$C$16 -> Ascit | H7: =DichiarazioneAttivita!$C$16 -> Ascit | I7: =DichiarazioneAttivita!$C$16 -> Ascit | J7: =DichiarazioneAttivita!$C$16 -> Ascit | K7: =DichiarazioneAttivita!$C$16 -> Ascit | L7: =DichiarazioneAttivita!$C$16 -> Ascit | M7: =DichiarazioneAttivita!$C$16 -> Ascit | N7: =DichiarazioneAttivita!$C$16 -> Ascit | O7: =DichiarazioneAttivita!$C$16 -> Ascit | P7: =DichiarazioneAttivita!$C$16 -> Ascit | Q7: =DichiarazioneAttivita!$C$16 -> Ascit | R7: =DichiarazioneAttivita!$C$16 -> Ascit | T7: =DichiarazioneAttivita!$C$16 -> Ascit | U7: =DichiarazioneAttivita!$C$16 -> Ascit | V7: =DichiarazioneAttivita!$C$16 -> Ascit | W7: =DichiarazioneAttivita!$C$17 -> Capannori | X7: =DichiarazioneAttivita!$C$17 -> Capannori | Y7: =DichiarazioneAttivita!$C$17 -> Capannori | Z7: =DichiarazioneAttivita!$C$17 -> Capannori | AA7: =DichiarazioneAttivita!$C$17 -> Capannori | AB7: =DichiarazioneAttivita!$C$17 -> Capannori | AC7: =DichiarazioneAttivita!$C$17 -> Capannori | AD7: =DichiarazioneAttivita!$C$17 -> Capannori | AE7: =DichiarazioneAttivita!$C$17 -> Capannori | AF7: =DichiarazioneAttivita!$C$17 -> Capannori | AG7: =DichiarazioneAttivita!$C$17 -> Capannori | AH7: =DichiarazioneAttivita!$C$17 -> Capannori | AI7: =DichiarazioneAttivita!$C$17 -> Capannori | AJ7: =DichiarazioneAttivita!$C$17 -> Capannori | AL7: =DichiarazioneAttivita!$C$16 -> Ascit | AM7: =DichiarazioneAttivita!$C$16 -> Ascit | AN7: =DichiarazioneAttivita!$C$16 -> Ascit | AO7: =DichiarazioneAttivita!$C$18 -> 0 | AP7: =DichiarazioneAttivita!$C$18 -> 0 | AQ7: =DichiarazioneAttivita!$C$18 -> 0 | AR7: =DichiarazioneAttivita!$C$18 -> 0 | AS7: =DichiarazioneAttivita!$C$18 -> 0 | AT7: =DichiarazioneAttivita!$C$18 -> 0 | AU7: =DichiarazioneAttivita!$C$18 -> 0 | AV7: =DichiarazioneAttivita!$C$18 -> 0 | AW7: =DichiarazioneAttivita!$C$18 -> 0 | AX7: =DichiarazioneAttivita!$C$18 -> 0 | AY7: =DichiarazioneAttivita!$C$18 -> 0 | AZ7: =DichiarazioneAttivita!$C$18 -> 0 | BA7: =DichiarazioneAttivita!$C$18 -> 0 | BB7: =DichiarazioneAttivita!$C$18 -> 0
B9: Art. 6.4 | C9: Macroclasse | D9: VALORE DELLA PRODUZIONE (Euro) | E9: =E10+E23+E24+E25+E26 -> 212998.3204 | F9: 589509.0792 | G9: 21008.04712 | H9: 4342155.064 | I9: 2193068.153 | J9: 643429.4287 | K9: 1219820.132 | L9: 0 | M9: 718518.9074 | N9: 30847.19431 | O9: 9604.897479 | P9: 200207.7544 | Q9: 0 | R9: =SUM(E9:Q9) -> 10181166.98 | T9: Art. 6.4 | U9: Macroclasse | V9: VALORE DELLA PRODUZIONE (Euro) | W9: =W10+W23+W24+W25+W26 -> 0 | X9: 0 | Y9: 0 | Z9: 0 | AA9: 0 | AB9: 0 | AC9: 0 | AD9: 0 | AE9: 0 | AF9: 0 | AG9: 0 | AH9: 0 | AI9: 0 | AJ9: =SUM(W9:AI9) -> 0 | AL9: Art. 6.4 | AM9: Macroclasse | AN9: VALORE DELLA PRODUZIONE (Euro) | AO9: =AO10+AO23+AO24+AO25+AO26 -> 0 | AP9: 0 | AQ9: 0 | AR9: 0 | AS9: 0 | AT9: 0 | AU9: 0 | AV9: 0 | AW9: 0 | AX9: 0 | AY9: 0 | AZ9: 0 | BA9: 0 | BB9: =SUM(AO9:BA9) -> 0
B10: CCN | C10: A1 | D10: Ricavi delle vendite e delle prestazioni | E10: =SUM(E11:E22) -> 210571.7776 | F10: =SUM(F11:F22) -> 582793.2093 | G10: 20768.71695 | H10: 4292687.89 | I10: 2176573.921 | J10: 636099.2815 | K10: 1205923.564 | L10: 0 | M10: 710333.3176 | N10: 30495.77352 | O10: 9495.475513 | P10: 200207.7544 | Q10: 0 | R10: =SUM(E10:Q10) -> 10075950.68 | T10: CCN | U10: A1 | V10: Ricavi delle vendite e delle prestazioni | W10: =SUM(W11:W22) -> 0 | X10: =SUM(X11:X22) -> 0 | Y10: 0 | Z10: 0 | AA10: 0 | AB10: 0 | AC10: 0 | AD10: 0 | AE10: 0 | AF10: 0 | AG10: 0 | AH10: 0 | AI10: 0 | AJ10: =SUM(W10:AI10) -> 0 | AL10: CCN | AM10: A1 | AN10: Ricavi delle vendite e delle prestazioni | AO10: =SUM(AO11:AO22) -> 0 | AP10: =SUM(AP11:AP22) -> 0 | AQ10: 0 | AR10: 0 | AS10: 0 | AT10: 0 | AU10: 0 | AV10: 0 | AW10: 0 | AX10: 0 | AY10: 0 | AZ10: 0 | BA10: 0 | BB10: =SUM(AO10:BA10) -> 0
C11: A1 | D11: di cui ricavi per entrate tariffarie in applicazione dei corrispettivi all'utenza (art. 5 MTR) | E11: =[5]DatiContoEconomico!W11 -> 209888.827 | F11: =[5]DatiContoEconomico!X11 -> 580903.0274 | G11: =[5]DatiContoEconomico!Y11 -> 20701.35746 | H11: =[5]DatiContoEconomico!Z11 -> 4278765.351 | I11: =[5]DatiContoEconomico!AA11 -> 1426702.579 | J11: =[5]DatiContoEconomico!AB11 -> 634036.2113 | K11: =[5]DatiContoEconomico!AC11 -> 1202012.374 | L11: =[5]DatiContoEconomico!AD11 -> 0 | M11: =[5]DatiContoEconomico!AE11 -> 708029.483 | N11: =[5]DatiContoEconomico!AF11 -> 30396.86613 | O11: =[5]DatiContoEconomico!AG11 -> 9464.678697 | P11: =[5]DatiContoEconomico!AH11 -> 0 | Q11: =[5]DatiContoEconomico!AI11 -> 0 | R11: 9100900.756 | U11: A1 | V11: di cui ricavi per entrate tariffarie in applicazione dei corrispettivi all'utenza (art. 5 MTR) | W11: =[4]DatiContoEconomico!W11 -> 0 | X11: =[4]DatiContoEconomico!X11 -> 0 | Y11: =[4]DatiContoEconomico!Y11 -> 0 | Z11: =[4]DatiContoEconomico!Z11 -> 0 | AA11: =[4]DatiContoEconomico!AA11 -> 0 | AB11: =[4]DatiContoEconomico!AB11 -> 0 | AC11: =[4]DatiContoEconomico!AC11 -> 0 | AD11: =[4]DatiContoEconomico!AD11 -> 0 | AE11: =[4]DatiContoEconomico!AE11 -> 0 | AF11: =[4]DatiContoEconomico!AF11 -> 0 | AG11: =[4]DatiContoEconomico!AG11 -> 0 | AH11: =[4]DatiContoEconomico!AH11 -> 0 | AI11: =[4]DatiContoEconomico!AI11 -> 0 | AJ11: 0 | AM11: A1 | AN11: di cui ricavi per entrate tariffarie in applicazione dei corrispettivi all'utenza (art. 5 MTR) | BB11: 0
B12: 𝐴𝑅𝑎 | C12: A1 | D12: di cui ricavi derivanti dal trattamento dei rifiuti speciali | E12: =[5]DatiContoEconomico!W12 -> 0 | F12: =[5]DatiContoEconomico!X12 -> 0 | G12: =[5]DatiContoEconomico!Y12 -> 0 | H12: =[5]DatiContoEconomico!Z12 -> 0 | I12: =[5]DatiContoEconomico!AA12 -> 0 | J12: =[5]DatiContoEconomico!AB12 -> 0 | K12: =[5]DatiContoEconomico!AC12 -> 0 | L12: =[5]DatiContoEconomico!AD12 -> 0 | M12: =[5]DatiContoEconomico!AE12 -> 0 | N12: =[5]DatiContoEconomico!AF12 -> 0 | O12: =[5]DatiContoEconomico!AG12 -> 0 | P12: =[5]DatiContoEconomico!AH12 -> 200207.7544 | Q12: =[5]DatiContoEconomico!AI12 -> 0 | R12: 200207.7544 | T12: 𝐴𝑅𝑎 | U12: A1 | V12: di cui ricavi derivanti dal trattamento dei rifiuti speciali | W12: =[4]DatiContoEconomico!W12 -> 0 | X12: =[4]DatiContoEconomico!X12 -> 0 | Y12: =[4]DatiContoEconomico!Y12 -> 0 | Z12: =[4]DatiContoEconomico!Z12 -> 0 | AA12: =[4]DatiContoEconomico!AA12 -> 0 | AB12: =[4]DatiContoEconomico!AB12 -> 0 | AC12: =[4]DatiContoEconomico!AC12 -> 0 | AD12: =[4]DatiContoEconomico!AD12 -> 0 | AE12: =[4]DatiContoEconomico!AE12 -> 0 | AF12: =[4]DatiContoEconomico!AF12 -> 0 | AG12: =[4]DatiContoEconomico!AG12 -> 0 | AH12: =[4]DatiContoEconomico!AH12 -> 0 | AI12: =[4]DatiContoEconomico!AI12 -> 0 | AJ12: 0 | AL12: 𝐴𝑅𝑎 | AM12: A1 | AN12: di cui ricavi derivanti dal trattamento dei rifiuti speciali | BB12: 0
B13: 𝐴𝑅𝑎 | C13: A1 | D13: di cui ricavi derivanti da vendita di energia termica | E13: =[5]DatiContoEconomico!W13 -> 0 | F13: =[5]DatiContoEconomico!X13 -> 0 | G13: =[5]DatiContoEconomico!Y13 -> 0 | H13: =[5]DatiContoEconomico!Z13 -> 0 | I13: =[5]DatiContoEconomico!AA13 -> 0 | J13: =[5]DatiContoEconomico!AB13 -> 0 | K13: =[5]DatiContoEconomico!AC13 -> 0 | L13: =[5]DatiContoEconomico!AD13 -> 0 | M13: =[5]DatiContoEconomico!AE13 -> 0 | N13: =[5]DatiContoEconomico!AF13 -> 0 | O13: =[5]DatiContoEconomico!AG13 -> 0 | P13: =[5]DatiContoEconomico!AH13 -> 0 | Q13: =[5]DatiContoEconomico!AI13 -> 0 | R13: 0 | T13: 𝐴𝑅𝑎 | U13: A1 | V13: di cui ricavi derivanti da vendita di energia termica | W13: =[4]DatiContoEconomico!W13 -> 0 | X13: =[4]DatiContoEconomico!X13 -> 0 | Y13: =[4]DatiContoEconomico!Y13 -> 0 | Z13: =[4]DatiContoEconomico!Z13 -> 0 | AA13: =[4]DatiContoEconomico!AA13 -> 0 | AB13: =[4]DatiContoEconomico!AB13 -> 0 | AC13: =[4]DatiContoEconomico!AC13 -> 0 | AD13: =[4]DatiContoEconomico!AD13 -> 0 | AE13: =[4]DatiContoEconomico!AE13 -> 0 | AF13: =[4]DatiContoEconomico!AF13 -> 0 | AG13: =[4]DatiContoEconomico!AG13 -> 0 | AH13: =[4]DatiContoEconomico!AH13 -> 0 | AI13: =[4]DatiContoEconomico!AI13 -> 0 | AJ13: 0 | AL13: 𝐴𝑅𝑎 | AM13: A1 | AN13: di cui ricavi derivanti da vendita di energia termica | BB13: 0
B14: 𝐴𝑅𝑎 | C14: A1 | D14: di cui ricavi derivanti da vendita di energia elettrica | E14: =[5]DatiContoEconomico!W14 -> 0 | F14: =[5]DatiContoEconomico!X14 -> 0 | G14: =[5]DatiContoEconomico!Y14 -> 0 | H14: =[5]DatiContoEconomico!Z14 -> 0 | I14: =[5]DatiContoEconomico!AA14 -> 0 | J14: =[5]DatiContoEconomico!AB14 -> 0 | K14: =[5]DatiContoEconomico!AC14 -> 0 | L14: =[5]DatiContoEconomico!AD14 -> 0 | M14: =[5]DatiContoEconomico!AE14 -> 0 | N14: =[5]DatiContoEconomico!AF14 -> 0 | O14: =[5]DatiContoEconomico!AG14 -> 0 | P14: =[5]DatiContoEconomico!AH14 -> 0 | Q14: =[5]DatiContoEconomico!AI14 -> 0 | R14: 0 | T14: 𝐴𝑅𝑎 | U14: A1 | V14: di cui ricavi derivanti da vendita di energia elettrica | W14: =[4]DatiContoEconomico!W14 -> 0 | X14: =[4]DatiContoEconomico!X14 -> 0 | Y14: =[4]DatiContoEconomico!Y14 -> 0 | Z14: =[4]DatiContoEconomico!Z14 -> 0 | AA14: =[4]DatiContoEconomico!AA14 -> 0 | AB14: =[4]DatiContoEconomico!AB14 -> 0 | AC14: =[4]DatiContoEconomico!AC14 -> 0 | AD14: =[4]DatiContoEconomico!AD14 -> 0 | AE14: =[4]DatiContoEconomico!AE14 -> 0 | AF14: =[4]DatiContoEconomico!AF14 -> 0 | AG14: =[4]DatiContoEconomico!AG14 -> 0 | AH14: =[4]DatiContoEconomico!AH14 -> 0 | AI14: =[4]DatiContoEconomico!AI14 -> 0 | AJ14: 0 | AL14: 𝐴𝑅𝑎 | AM14: A1 | AN14: di cui ricavi derivanti da vendita di energia elettrica | BB14: 0
B15: 𝐴𝑅𝑎 | C15: A1 | D15: di cui ricavi derivanti da recupero dei rifiuti | E15: =[5]DatiContoEconomico!W15 -> 0 | F15: =[5]DatiContoEconomico!X15 -> 0 | G15: =[5]DatiContoEconomico!Y15 -> 0 | H15: =[5]DatiContoEconomico!Z15 -> 0 | I15: =[5]DatiContoEconomico!AA15 -> 0 | J15: =[5]DatiContoEconomico!AB15 -> 0 | K15: =[5]DatiContoEconomico!AC15 -> 0 | L15: =[5]DatiContoEconomico!AD15 -> 0 | M15: =[5]DatiContoEconomico!AE15 -> 0 | N15: =[5]DatiContoEconomico!AF15 -> 0 | O15: =[5]DatiContoEconomico!AG15 -> 0 | P15: =[5]DatiContoEconomico!AH15 -> 0 | Q15: =[5]DatiContoEconomico!AI15 -> 0 | R15: 0 | T15: 𝐴𝑅𝑎 | U15: A1 | V15: di cui ricavi derivanti da recupero dei rifiuti | W15: =[4]DatiContoEconomico!W15 -> 0 | X15: =[4]DatiContoEconomico!X15 -> 0 | Y15: =[4]DatiContoEconomico!Y15 -> 0 | Z15: =[4]DatiContoEconomico!Z15 -> 0 | AA15: =[4]DatiContoEconomico!AA15 -> 0 | AB15: =[4]DatiContoEconomico!AB15 -> 0 | AC15: =[4]DatiContoEconomico!AC15 -> 0 | AD15: =[4]DatiContoEconomico!AD15 -> 0 | AE15: =[4]DatiContoEconomico!AE15 -> 0 | AF15: =[4]DatiContoEconomico!AF15 -> 0 | AG15: =[4]DatiContoEconomico!AG15 -> 0 | AH15: =[4]DatiContoEconomico!AH15 -> 0 | AI15: =[4]DatiContoEconomico!AI15 -> 0 | AJ15: 0 | AL15: 𝐴𝑅𝑎 | AM15: A1 | AN15: di cui ricavi derivanti da recupero dei rifiuti | BB15: 0
B16: 𝐴𝑅𝑎 | C16: A1 | D16: di cui ricavi da vendita di materiale | E16: =[5]DatiContoEconomico!W16 -> 0 | F16: =[5]DatiContoEconomico!X16 -> 0 | G16: =[5]DatiContoEconomico!Y16 -> 0 | H16: =[5]DatiContoEconomico!Z16 -> 0 | I16: =[5]DatiContoEconomico!AA16 -> 301776.2603 | J16: =[5]DatiContoEconomico!AB16 -> 0 | K16: =[5]DatiContoEconomico!AC16 -> 0 | L16: =[5]DatiContoEconomico!AD16 -> 0 | M16: =[5]DatiContoEconomico!AE16 -> 0 | N16: =[5]DatiContoEconomico!AF16 -> 0 | O16: =[5]DatiContoEconomico!AG16 -> 0 | P16: =[5]DatiContoEconomico!AH16 -> 0 | Q16: =[5]DatiContoEconomico!AI16 -> 0 | R16: 301776.2603 | T16: 𝐴𝑅𝑎 | U16: A1 | V16: di cui ricavi da vendita di materiale | W16: =[4]DatiContoEconomico!W16 -> 0 | X16: =[4]DatiContoEconomico!X16 -> 0 | Y16: =[4]DatiContoEconomico!Y16 -> 0 | Z16: =[4]DatiContoEconomico!Z16 -> 0 | AA16: =[4]DatiContoEconomico!AA16 -> 0 | AB16: =[4]DatiContoEconomico!AB16 -> 0 | AC16: =[4]DatiContoEconomico!AC16 -> 0 | AD16: =[4]DatiContoEconomico!AD16 -> 0 | AE16: =[4]DatiContoEconomico!AE16 -> 0 | AF16: =[4]DatiContoEconomico!AF16 -> 0 | AG16: =[4]DatiContoEconomico!AG16 -> 0 | AH16: =[4]DatiContoEconomico!AH16 -> 0 | AI16: =[4]DatiContoEconomico!AI16 -> 0 | AJ16: 0 | AL16: 𝐴𝑅𝑎 | AM16: A1 | AN16: di cui ricavi da vendita di materiale | BB16: 0
B17: 𝐴𝑅𝑎 | C17: A1 | D17: di cui ricavi da vendita biogas e biometano | E17: =[5]DatiContoEconomico!W17 -> 0 | F17: =[5]DatiContoEconomico!X17 -> 0 | G17: =[5]DatiContoEconomico!Y17 -> 0 | H17: =[5]DatiContoEconomico!Z17 -> 0 | I17: =[5]DatiContoEconomico!AA17 -> 0 | J17: =[5]DatiContoEconomico!AB17 -> 0 | K17: =[5]DatiContoEconomico!AC17 -> 0 | L17: =[5]DatiContoEconomico!AD17 -> 0 | M17: =[5]DatiContoEconomico!AE17 -> 0 | N17: =[5]DatiContoEconomico!AF17 -> 0 | O17: =[5]DatiContoEconomico!AG17 -> 0 | P17: =[5]DatiContoEconomico!AH17 -> 0 | Q17: =[5]DatiContoEconomico!AI17 -> 0 | R17: 0 | T17: 𝐴𝑅𝑎 | U17: A1 | V17: di cui ricavi da vendita biogas e biometano | W17: =[4]DatiContoEconomico!W17 -> 0 | X17: =[4]DatiContoEconomico!X17 -> 0 | Y17: =[4]DatiContoEconomico!Y17 -> 0 | Z17: =[4]DatiContoEconomico!Z17 -> 0 | AA17: =[4]DatiContoEconomico!AA17 -> 0 | AB17: =[4]DatiContoEconomico!AB17 -> 0 | AC17: =[4]DatiContoEconomico!AC17 -> 0 | AD17: =[4]DatiContoEconomico!AD17 -> 0 | AE17: =[4]DatiContoEconomico!AE17 -> 0 | AF17: =[4]DatiContoEconomico!AF17 -> 0 | AG17: =[4]DatiContoEconomico!AG17 -> 0 | AH17: =[4]DatiContoEconomico!AH17 -> 0 | AI17: =[4]DatiContoEconomico!AI17 -> 0 | AJ17: 0 | AL17: 𝐴𝑅𝑎 | AM17: A1 | AN17: di cui ricavi da vendita biogas e biometano | BB17: 0
B18: 𝐴𝑅𝑎 | C18: A1 | D18: di cui altri ricavi valorizzabili ai sensi dell'art. 2.2, Allegato A | E18: =[5]DatiContoEconomico!W18 -> 0 | F18: =[5]DatiContoEconomico!X18 -> 0 | G18: =[5]DatiContoEconomico!Y18 -> 0 | H18: =[5]DatiContoEconomico!Z18 -> 0 | I18: =[5]DatiContoEconomico!AA18 -> 0 | J18: =[5]DatiContoEconomico!AB18 -> 0 | K18: =[5]DatiContoEconomico!AC18 -> 0 | L18: =[5]DatiContoEconomico!AD18 -> 0 | M18: =[5]DatiContoEconomico!AE18 -> 0 | N18: =[5]DatiContoEconomico!AF18 -> 0 | O18: =[5]DatiContoEconomico!AG18 -> 0 | P18: =[5]DatiContoEconomico!AH18 -> 0 | Q18: =[5]DatiContoEconomico!AI18 -> 0 | R18: 0 | T18: 𝐴𝑅𝑎 | U18: A1 | V18: di cui altri ricavi valorizzabili ai sensi dell'art. 2.2, Allegato A | W18: =[4]DatiContoEconomico!W18 -> 0 | X18: =[4]DatiContoEconomico!X18 -> 0 | Y18: =[4]DatiContoEconomico!Y18 -> 0 | Z18: =[4]DatiContoEconomico!Z18 -> 0 | AA18: =[4]DatiContoEconomico!AA18 -> 0 | AB18: =[4]DatiContoEconomico!AB18 -> 0 | AC18: =[4]DatiContoEconomico!AC18 -> 0 | AD18: =[4]DatiContoEconomico!AD18 -> 0 | AE18: =[4]DatiContoEconomico!AE18 -> 0 | AF18: =[4]DatiContoEconomico!AF18 -> 0 | AG18: =[4]DatiContoEconomico!AG18 -> 0 | AH18: =[4]DatiContoEconomico!AH18 -> 0 | AI18: =[4]DatiContoEconomico!AI18 -> 0 | AJ18: 0 | AL18: 𝐴𝑅𝑎 | AM18: A1 | AN18: di cui altri ricavi valorizzabili ai sensi dell'art. 2.2, Allegato A | BB18: 0
B19: ARCONAI,a | C19: A1 | D19: di cui derivanti dai corrispettivi riconosciuti dal CONAI | E19: =[5]DatiContoEconomico!W19 -> 0 | F19: =[5]DatiContoEconomico!X19 -> 0 | G19: =[5]DatiContoEconomico!Y19 -> 0 | H19: =[5]DatiContoEconomico!Z19 -> 0 | I19: =[5]DatiContoEconomico!AA19 -> 443452.7798 | J19: =[5]DatiContoEconomico!AB19 -> 0 | K19: =[5]DatiContoEconomico!AC19 -> 0 | L19: =[5]DatiContoEconomico!AD19 -> 0 | M19: =[5]DatiContoEconomico!AE19 -> 0 | N19: =[5]DatiContoEconomico!AF19 -> 0 | O19: =[5]DatiContoEconomico!AG19 -> 0 | P19: =[5]DatiContoEconomico!AH19 -> 0 | Q19: =[5]DatiContoEconomico!AI19 -> 0 | R19: 443452.7798 | T19: ARCONAI,a | U19: A1 | V19: di cui derivanti dai corrispettivi riconosciuti dal CONAI | W19: =[4]DatiContoEconomico!W19 -> 0 | X19: =[4]DatiContoEconomico!X19 -> 0 | Y19: =[4]DatiContoEconomico!Y19 -> 0 | Z19: =[4]DatiContoEconomico!Z19 -> 0 | AA19: =[4]DatiContoEconomico!AA19 -> 0 | AB19: =[4]DatiContoEconomico!AB19 -> 0 | AC19: =[4]DatiContoEconomico!AC19 -> 0 | AD19: =[4]DatiContoEconomico!AD19 -> 0 | AE19: =[4]DatiContoEconomico!AE19 -> 0 | AF19: =[4]DatiContoEconomico!AF19 -> 0 | AG19: =[4]DatiContoEconomico!AG19 -> 0 | AH19: =[4]DatiContoEconomico!AH19 -> 0 | AI19: =[4]DatiContoEconomico!AI19 -> 0 | AJ19: 0 | AL19: ARCONAI,a | AM19: A1 | AN19: di cui derivanti dai corrispettivi riconosciuti dal CONAI | BB19: 0
C20: A1 | D20: di cui ricavi da incentivi da fonti rinnovabili | E20: =[5]DatiContoEconomico!W20 -> 0 | F20: =[5]DatiContoEconomico!X20 -> 0 | G20: =[5]DatiContoEconomico!Y20 -> 0 | H20: =[5]DatiContoEconomico!Z20 -> 0 | I20: =[5]DatiContoEconomico!AA20 -> 0 | J20: =[5]DatiContoEconomico!AB20 -> 0 | K20: =[5]DatiContoEconomico!AC20 -> 0 | L20: =[5]DatiContoEconomico!AD20 -> 0 | M20: =[5]DatiContoEconomico!AE20 -> 0 | N20: =[5]DatiContoEconomico!AF20 -> 0 | O20: =[5]DatiContoEconomico!AG20 -> 0 | P20: =[5]DatiContoEconomico!AH20 -> 0 | Q20: =[5]DatiContoEconomico!AI20 -> 0 | R20: 0 | U20: A1 | V20: di cui ricavi da incentivi da fonti rinnovabili | W20: =[4]DatiContoEconomico!W20 -> 0 | X20: =[4]DatiContoEconomico!X20 -> 0 | Y20: =[4]DatiContoEconomico!Y20 -> 0 | Z20: =[4]DatiContoEconomico!Z20 -> 0 | AA20: =[4]DatiContoEconomico!AA20 -> 0 | AB20: =[4]DatiContoEconomico!AB20 -> 0 | AC20: =[4]DatiContoEconomico!AC20 -> 0 | AD20: =[4]DatiContoEconomico!AD20 -> 0 | AE20: =[4]DatiContoEconomico!AE20 -> 0 | AF20: =[4]DatiContoEconomico!AF20 -> 0 | AG20: =[4]DatiContoEconomico!AG20 -> 0 | AH20: =[4]DatiContoEconomico!AH20 -> 0 | AI20: =[4]DatiContoEconomico!AI20 -> 0 | AJ20: 0 | AM20: A1 | AN20: di cui ricavi da incentivi da fonti rinnovabili | BB20: 0
C21: A1 | E21: =[5]DatiContoEconomico!W21 -> 0 | F21: =[5]DatiContoEconomico!X21 -> 0 | G21: =[5]DatiContoEconomico!Y21 -> 0 | H21: =[5]DatiContoEconomico!Z21 -> 0 | I21: =[5]DatiContoEconomico!AA21 -> 0 | J21: =[5]DatiContoEconomico!AB21 -> 0 | K21: =[5]DatiContoEconomico!AC21 -> 0 | L21: =[5]DatiContoEconomico!AD21 -> 0 | M21: =[5]DatiContoEconomico!AE21 -> 0 | N21: =[5]DatiContoEconomico!AF21 -> 0 | O21: =[5]DatiContoEconomico!AG21 -> 0 | P21: =[5]DatiContoEconomico!AH21 -> 0 | Q21: =[5]DatiContoEconomico!AI21 -> 0 | R21: 0 | U21: A1 | W21: =[4]DatiContoEconomico!W21 -> 0 | X21: =[4]DatiContoEconomico!X21 -> 0 | Y21: =[4]DatiContoEconomico!Y21 -> 0 | Z21: =[4]DatiContoEconomico!Z21 -> 0 | AA21: =[4]DatiContoEconomico!AA21 -> 0 | AB21: =[4]DatiContoEconomico!AB21 -> 0 | AC21: =[4]DatiContoEconomico!AC21 -> 0 | AD21: =[4]DatiContoEconomico!AD21 -> 0 | AE21: =[4]DatiContoEconomico!AE21 -> 0 | AF21: =[4]DatiContoEconomico!AF21 -> 0 | AG21: =[4]DatiContoEconomico!AG21 -> 0 | AH21: =[4]DatiContoEconomico!AH21 -> 0 | AI21: =[4]DatiContoEconomico!AI21 -> 0 | AJ21: 0 | AM21: A1 | BB21: 0
C22: A1 | D22: di cui altri ricavi di A1 | E22: =[5]DatiContoEconomico!W22 -> 682.950565 | F22: =[5]DatiContoEconomico!X22 -> 1890.181847 | G22: =[5]DatiContoEconomico!Y22 -> 67.35948728 | H22: =[5]DatiContoEconomico!Z22 -> 13922.53821 | I22: =[5]DatiContoEconomico!AA22 -> 4642.302053 | J22: =[5]DatiContoEconomico!AB22 -> 2063.070221 | K22: =[5]DatiContoEconomico!AC22 -> 3911.189756 | L22: =[5]DatiContoEconomico!AD22 -> 0 | M22: =[5]DatiContoEconomico!AE22 -> 2303.83457 | N22: =[5]DatiContoEconomico!AF22 -> 98.90739394 | O22: =[5]DatiContoEconomico!AG22 -> 30.79681637 | P22: =[5]DatiContoEconomico!AH22 -> 0 | Q22: =[5]DatiContoEconomico!AI22 -> 0 | R22: 29613.13092 | U22: A1 | V22: di cui altri ricavi di A1 | W22: =[4]DatiContoEconomico!W22 -> 0 | X22: =[4]DatiContoEconomico!X22 -> 0 | Y22: =[4]DatiContoEconomico!Y22 -> 0 | Z22: =[4]DatiContoEconomico!Z22 -> 0 | AA22: =[4]DatiContoEconomico!AA22 -> 0 | AB22: =[4]DatiContoEconomico!AB22 -> 0 | AC22: =[4]DatiContoEconomico!AC22 -> 0 | AD22: =[4]DatiContoEconomico!AD22 -> 0 | AE22: =[4]DatiContoEconomico!AE22 -> 0 | AF22: =[4]DatiContoEconomico!AF22 -> 0 | AG22: =[4]DatiContoEconomico!AG22 -> 0 | AH22: =[4]DatiContoEconomico!AH22 -> 0 | AI22: =[4]DatiContoEconomico!AI22 -> 0 | AJ22: 0 | AM22: A1 | AN22: di cui altri ricavi di A1 | BB22: 0
C23: A2 | D23: Variazioni rimanenze di prodotti in corso di lavorazione, semilavorati e finiti | E23: =[5]DatiContoEconomico!W23 -> 0 | F23: =[5]DatiContoEconomico!X23 -> 0 | G23: =[5]DatiContoEconomico!Y23 -> 0 | H23: =[5]DatiContoEconomico!Z23 -> 0 | I23: =[5]DatiContoEconomico!AA23 -> 0 | J23: =[5]DatiContoEconomico!AB23 -> 0 | K23: =[5]DatiContoEconomico!AC23 -> 0 | L23: =[5]DatiContoEconomico!AD23 -> 0 | M23: =[5]DatiContoEconomico!AE23 -> 0 | N23: =[5]DatiContoEconomico!AF23 -> 0 | O23: =[5]DatiContoEconomico!AG23 -> 0 | P23: =[5]DatiContoEconomico!AH23 -> 0 | Q23: =[5]DatiContoEconomico!AI23 -> 0 | R23: 0 | U23: A2 | V23: Variazioni rimanenze di prodotti in corso di lavorazione, semilavorati e finiti | W23: =[4]DatiContoEconomico!W23 -> 0 | X23: =[4]DatiContoEconomico!X23 -> 0 | Y23: =[4]DatiContoEconomico!Y23 -> 0 | Z23: =[4]DatiContoEconomico!Z23 -> 0 | AA23: =[4]DatiContoEconomico!AA23 -> 0 | AB23: =[4]DatiContoEconomico!AB23 -> 0 | AC23: =[4]DatiContoEconomico!AC23 -> 0 | AD23: =[4]DatiContoEconomico!AD23 -> 0 | AE23: =[4]DatiContoEconomico!AE23 -> 0 | AF23: =[4]DatiContoEconomico!AF23 -> 0 | AG23: =[4]DatiContoEconomico!AG23 -> 0 | AH23: =[4]DatiContoEconomico!AH23 -> 0 | AI23: =[4]DatiContoEconomico!AI23 -> 0 | AJ23: 0 | AM23: A2 | AN23: Variazioni rimanenze di prodotti in corso di lavorazione, semilavorati e finiti | BB23: 0
C24: A3 | D24: Variazioni dei lavori in corso su ordinazione | E24: =[5]DatiContoEconomico!W24 -> 0 | F24: =[5]DatiContoEconomico!X24 -> 0 | G24: =[5]DatiContoEconomico!Y24 -> 0 | H24: =[5]DatiContoEconomico!Z24 -> 0 | I24: =[5]DatiContoEconomico!AA24 -> 0 | J24: =[5]DatiContoEconomico!AB24 -> 0 | K24: =[5]DatiContoEconomico!AC24 -> 0 | L24: =[5]DatiContoEconomico!AD24 -> 0 | M24: =[5]DatiContoEconomico!AE24 -> 0 | N24: =[5]DatiContoEconomico!AF24 -> 0 | O24: =[5]DatiContoEconomico!AG24 -> 0 | P24: =[5]DatiContoEconomico!AH24 -> 0 | Q24: =[5]DatiContoEconomico!AI24 -> 0 | R24: 0 | U24: A3 | V24: Variazioni dei lavori in corso su ordinazione | W24: =[4]DatiContoEconomico!W24 -> 0 | X24: =[4]DatiContoEconomico!X24 -> 0 | Y24: =[4]DatiContoEconomico!Y24 -> 0 | Z24: =[4]DatiContoEconomico!Z24 -> 0 | AA24: =[4]DatiContoEconomico!AA24 -> 0 | AB24: =[4]DatiContoEconomico!AB24 -> 0 | AC24: =[4]DatiContoEconomico!AC24 -> 0 | AD24: =[4]DatiContoEconomico!AD24 -> 0 | AE24: =[4]DatiContoEconomico!AE24 -> 0 | AF24: =[4]DatiContoEconomico!AF24 -> 0 | AG24: =[4]DatiContoEconomico!AG24 -> 0 | AH24: =[4]DatiContoEconomico!AH24 -> 0 | AI24: =[4]DatiContoEconomico!AI24 -> 0 | AJ24: 0 | AM24: A3 | AN24: Variazioni dei lavori in corso su ordinazione | BB24: 0
C25: A4 | D25: Incrementi di immobilizzazioni per lavori interni (inclusi costi del personale) | E25: =[5]DatiContoEconomico!W25 -> 0 | F25: =[5]DatiContoEconomico!X25 -> 0 | G25: =[5]DatiContoEconomico!Y25 -> 0 | H25: =[5]DatiContoEconomico!Z25 -> 0 | I25: =[5]DatiContoEconomico!AA25 -> 0 | J25: =[5]DatiContoEconomico!AB25 -> 0 | K25: =[5]DatiContoEconomico!AC25 -> 0 | L25: =[5]DatiContoEconomico!AD25 -> 0 | M25: =[5]DatiContoEconomico!AE25 -> 0 | N25: =[5]DatiContoEconomico!AF25 -> 0 | O25: =[5]DatiContoEconomico!AG25 -> 0 | P25: =[5]DatiContoEconomico!AH25 -> 0 | Q25: =[5]DatiContoEconomico!AI25 -> 0 | R25: 0 | U25: A4 | V25: Incrementi di immobilizzazioni per lavori interni (inclusi costi del personale) | W25: =[4]DatiContoEconomico!W25 -> 0 | X25: =[4]DatiContoEconomico!X25 -> 0 | Y25: =[4]DatiContoEconomico!Y25 -> 0 | Z25: =[4]DatiContoEconomico!Z25 -> 0 | AA25: =[4]DatiContoEconomico!AA25 -> 0 | AB25: =[4]DatiContoEconomico!AB25 -> 0 | AC25: =[4]DatiContoEconomico!AC25 -> 0 | AD25: =[4]DatiContoEconomico!AD25 -> 0 | AE25: =[4]DatiContoEconomico!AE25 -> 0 | AF25: =[4]DatiContoEconomico!AF25 -> 0 | AG25: =[4]DatiContoEconomico!AG25 -> 0 | AH25: =[4]DatiContoEconomico!AH25 -> 0 | AI25: =[4]DatiContoEconomico!AI25 -> 0 | AJ25: 0 | AM25: A4 | AN25: Incrementi di immobilizzazioni per lavori interni (inclusi costi del personale) | BB25: 0
C26: A5 | D26: Altri ricavi e proventi | E26: =SUM(E27:E33) -> 2426.542802 | F26: =SUM(F27:F33) -> 6715.86992 | G26: 239.3301761 | H26: 49467.17466 | I26: 16494.23137 | J26: 7330.147234 | K26: 13896.56856 | L26: 0 | M26: 8185.58982 | N26: 351.4207867 | O26: 109.4219654 | P26: 0 | Q26: 0 | R26: 105216.2973 | U26: A5 | V26: Altri ricavi e proventi | W26: =SUM(W27:W33) -> 0 | X26: =SUM(X27:X33) -> 0 | Y26: 0 | Z26: 0 | AA26: 0 | AB26: 0 | AC26: 0 | AD26: 0 | AE26: 0 | AF26: 0 | AG26: 0 | AH26: 0 | AI26: 0 | AJ26: 0 | AM26: A5 | AN26: Altri ricavi e proventi | AO26: =SUM(AO27:AO33) -> 0 | AP26: =SUM(AP27:AP33) -> 0 | AQ26: 0 | AR26: 0 | AS26: 0 | AT26: 0 | AU26: 0 | AV26: 0 | AW26: 0 | AX26: 0 | AY26: 0 | AZ26: 0 | BA26: 0 | BB26: 0
C27: A5 | D27: di cui contributi per conto terzi | E27: =[5]DatiContoEconomico!W27 -> 0 | F27: =[5]DatiContoEconomico!X27 -> 0 | G27: =[5]DatiContoEconomico!Y27 -> 0 | H27: =[5]DatiContoEconomico!Z27 -> 0 | I27: =[5]DatiContoEconomico!AA27 -> 0 | J27: =[5]DatiContoEconomico!AB27 -> 0 | K27: =[5]DatiContoEconomico!AC27 -> 0 | L27: =[5]DatiContoEconomico!AD27 -> 0 | M27: =[5]DatiContoEconomico!AE27 -> 0 | N27: =[5]DatiContoEconomico!AF27 -> 0 | O27: =[5]DatiContoEconomico!AG27 -> 0 | P27: =[5]DatiContoEconomico!AH27 -> 0 | Q27: =[5]DatiContoEconomico!AI27 -> 0 | R27: 0 | U27: A5 | V27: di cui contributi per conto terzi | W27: =[4]DatiContoEconomico!W27 -> 0 | X27: =[4]DatiContoEconomico!X27 -> 0 | Y27: =[4]DatiContoEconomico!Y27 -> 0 | Z27: =[4]DatiContoEconomico!Z27 -> 0 | AA27: =[4]DatiContoEconomico!AA27 -> 0 | AB27: =[4]DatiContoEconomico!AB27 -> 0 | AC27: =[4]DatiContoEconomico!AC27 -> 0 | AD27: =[4]DatiContoEconomico!AD27 -> 0 | AE27: =[4]DatiContoEconomico!AE27 -> 0 | AF27: =[4]DatiContoEconomico!AF27 -> 0 | AG27: =[4]DatiContoEconomico!AG27 -> 0 | AH27: =[4]DatiContoEconomico!AH27 -> 0 | AI27: =[4]DatiContoEconomico!AI27 -> 0 | AJ27: 0 | AM27: A5 | AN27: di cui contributi per conto terzi | BB27: 0
C28: A5 | D28: di cui rilascio fondo post-mortem | E28: =[5]DatiContoEconomico!W28 -> 0 | F28: =[5]DatiContoEconomico!X28 -> 0 | G28: =[5]DatiContoEconomico!Y28 -> 0 | H28: =[5]DatiContoEconomico!Z28 -> 0 | I28: =[5]DatiContoEconomico!AA28 -> 0 | J28: =[5]DatiContoEconomico!AB28 -> 0 | K28: =[5]DatiContoEconomico!AC28 -> 0 | L28: =[5]DatiContoEconomico!AD28 -> 0 | M28: =[5]DatiContoEconomico!AE28 -> 0 | N28: =[5]DatiContoEconomico!AF28 -> 0 | O28: =[5]DatiContoEconomico!AG28 -> 0 | P28: =[5]DatiContoEconomico!AH28 -> 0 | Q28: =[5]DatiContoEconomico!AI28 -> 0 | R28: 0 | U28: A5 | V28: di cui rilascio fondo post-mortem | W28: =[4]DatiContoEconomico!W28 -> 0 | X28: =[4]DatiContoEconomico!X28 -> 0 | Y28: =[4]DatiContoEconomico!Y28 -> 0 | Z28: =[4]DatiContoEconomico!Z28 -> 0 | AA28: =[4]DatiContoEconomico!AA28 -> 0 | AB28: =[4]DatiContoEconomico!AB28 -> 0 | AC28: =[4]DatiContoEconomico!AC28 -> 0 | AD28: =[4]DatiContoEconomico!AD28 -> 0 | AE28: =[4]DatiContoEconomico!AE28 -> 0 | AF28: =[4]DatiContoEconomico!AF28 -> 0 | AG28: =[4]DatiContoEconomico!AG28 -> 0 | AH28: =[4]DatiContoEconomico!AH28 -> 0 | AI28: =[4]DatiContoEconomico!AI28 -> 0 | AJ28: 0 | AM28: A5 | AN28: di cui rilascio fondo post-mortem | BB28: 0
C29: A5 | D29: di cui quote contributi conto impianti | E29: =[5]DatiContoEconomico!W29 -> 0 | F29: =[5]DatiContoEconomico!X29 -> 0 | G29: =[5]DatiContoEconomico!Y29 -> 0 | H29: =[5]DatiContoEconomico!Z29 -> 0 | I29: =[5]DatiContoEconomico!AA29 -> 0 | J29: =[5]DatiContoEconomico!AB29 -> 0 | K29: =[5]DatiContoEconomico!AC29 -> 0 | L29: =[5]DatiContoEconomico!AD29 -> 0 | M29: =[5]DatiContoEconomico!AE29 -> 0 | N29: =[5]DatiContoEconomico!AF29 -> 0 | O29: =[5]DatiContoEconomico!AG29 -> 0 | P29: =[5]DatiContoEconomico!AH29 -> 0 | Q29: =[5]DatiContoEconomico!AI29 -> 0 | R29: 0 | U29: A5 | V29: di cui quote contributi conto impianti | W29: =[4]DatiContoEconomico!W29 -> 0 | X29: =[4]DatiContoEconomico!X29 -> 0 | Y29: =[4]DatiContoEconomico!Y29 -> 0 | Z29: =[4]DatiContoEconomico!Z29 -> 0 | AA29: =[4]DatiContoEconomico!AA29 -> 0 | AB29: =[4]DatiContoEconomico!AB29 -> 0 | AC29: =[4]DatiContoEconomico!AC29 -> 0 | AD29: =[4]DatiContoEconomico!AD29 -> 0 | AE29: =[4]DatiContoEconomico!AE29 -> 0 | AF29: =[4]DatiContoEconomico!AF29 -> 0 | AG29: =[4]DatiContoEconomico!AG29 -> 0 | AH29: =[4]DatiContoEconomico!AH29 -> 0 | AI29: =[4]DatiContoEconomico!AI29 -> 0 | AJ29: 0 | AM29: A5 | AN29: di cui quote contributi conto impianti | BB29: 0
B30: PR art. 1 | C30: A5 | D30: di cui contributi in conto esercizio | E30: =[5]DatiContoEconomico!W30 -> 366.9510034 | F30: =[5]DatiContoEconomico!X30 -> 1015.599315 | G30: =[5]DatiContoEconomico!Y30 -> 36.19241672 | H30: =[5]DatiContoEconomico!Z30 -> 7480.613721 | I30: =[5]DatiContoEconomico!AA30 -> 2494.32021 | J30: =[5]DatiContoEconomico!AB30 -> 1108.492659 | K30: =[5]DatiContoEconomico!AC30 -> 2101.49179 | L30: =[5]DatiContoEconomico!AD30 -> 0 | M30: =[5]DatiContoEconomico!AE30 -> 1237.855931 | N30: =[5]DatiContoEconomico!AF30 -> 53.14318388 | O30: =[5]DatiContoEconomico!AG30 -> 16.54720451 | P30: =[5]DatiContoEconomico!AH30 -> 0 | Q30: =[5]DatiContoEconomico!AI30 -> 0 | R30: 15911.20743 | T30: PR art. 1 | U30: A5 | V30: di cui contributi in conto esercizio | W30: =[4]DatiContoEconomico!W30 -> 0 | X30: =[4]DatiContoEconomico!X30 -> 0 | Y30: =[4]DatiContoEconomico!Y30 -> 0 | Z30: =[4]DatiContoEconomico!Z30 -> 0 | AA30: =[4]DatiContoEconomico!AA30 -> 0 | AB30: =[4]DatiContoEconomico!AB30 -> 0 | AC30: =[4]DatiContoEconomico!AC30 -> 0 | AD30: =[4]DatiContoEconomico!AD30 -> 0 | AE30: =[4]DatiContoEconomico!AE30 -> 0 | AF30: =[4]DatiContoEconomico!AF30 -> 0 | AG30: =[4]DatiContoEconomico!AG30 -> 0 | AH30: =[4]DatiContoEconomico!AH30 -> 0 | AI30: =[4]DatiContoEconomico!AI30 -> 0 | AJ30: 0 | AL30: PR art. 1 | AM30: A5 | AN30: di cui contributi in conto esercizio | BB30: 0
B31: PR art. 1 | C31: A5 | D31: di cui rimborsi e indennizzi corrisposti a vario titolo | E31: =[5]DatiContoEconomico!W31 -> 0 | F31: =[5]DatiContoEconomico!X31 -> 0 | G31: =[5]DatiContoEconomico!Y31 -> 0 | H31: =[5]DatiContoEconomico!Z31 -> 0 | I31: =[5]DatiContoEconomico!AA31 -> 0 | J31: =[5]DatiContoEconomico!AB31 -> 0 | K31: =[5]DatiContoEconomico!AC31 -> 0 | L31: =[5]DatiContoEconomico!AD31 -> 0 | M31: =[5]DatiContoEconomico!AE31 -> 0 | N31: =[5]DatiContoEconomico!AF31 -> 0 | O31: =[5]DatiContoEconomico!AG31 -> 0 | P31: =[5]DatiContoEconomico!AH31 -> 0 | Q31: =[5]DatiContoEconomico!AI31 -> 0 | R31: 0 | T31: PR art. 1 | U31: A5 | V31: di cui rimborsi e indennizzi corrisposti a vario titolo | W31: =[4]DatiContoEconomico!W31 -> 0 | X31: =[4]DatiContoEconomico!X31 -> 0 | Y31: =[4]DatiContoEconomico!Y31 -> 0 | Z31: =[4]DatiContoEconomico!Z31 -> 0 | AA31: =[4]DatiContoEconomico!AA31 -> 0 | AB31: =[4]DatiContoEconomico!AB31 -> 0 | AC31: =[4]DatiContoEconomico!AC31 -> 0 | AD31: =[4]DatiContoEconomico!AD31 -> 0 | AE31: =[4]DatiContoEconomico!AE31 -> 0 | AF31: =[4]DatiContoEconomico!AF31 -> 0 | AG31: =[4]DatiContoEconomico!AG31 -> 0 | AH31: =[4]DatiContoEconomico!AH31 -> 0 | AI31: =[4]DatiContoEconomico!AI31 -> 0 | AJ31: 0 | AL31: PR art. 1 | AM31: A5 | AN31: di cui rimborsi e indennizzi corrisposti a vario titolo | BB31: 0
B32: PR vendite interne | C32: A5 | D32: di cui per vendite di servizi a Gestori che operano all'interno del ciclo RU del =DichiarazioneAttivita!$B$10 (poste da consolidare con i costi) | E32: =[5]DatiContoEconomico!W32 -> 0 | F32: =[5]DatiContoEconomico!X32 -> 0 | G32: =[5]DatiContoEconomico!Y32 -> 0 | H32: =[5]DatiContoEconomico!Z32 -> 0 | I32: =[5]DatiContoEconomico!AA32 -> 0 | J32: =[5]DatiContoEconomico!AB32 -> 0 | K32: =[5]DatiContoEconomico!AC32 -> 0 | L32: =[5]DatiContoEconomico!AD32 -> 0 | M32: =[5]DatiContoEconomico!AE32 -> 0 | N32: =[5]DatiContoEconomico!AF32 -> 0 | O32: =[5]DatiContoEconomico!AG32 -> 0 | P32: =[5]DatiContoEconomico!AH32 -> 0 | Q32: =[5]DatiContoEconomico!AI32 -> 0 | R32: 0 | T32: PR vendite interne | U32: A5 | V32: di cui per vendite di servizi a Gestori che operano all'interno del ciclo RU del =DichiarazioneAttivita!$B$10 (poste da consolidare con i costi) | W32: =[4]DatiContoEconomico!W32 -> 0 | X32: =[4]DatiContoEconomico!X32 -> 0 | Y32: =[4]DatiContoEconomico!Y32 -> 0 | Z32: =[4]DatiContoEconomico!Z32 -> 0 | AA32: =[4]DatiContoEconomico!AA32 -> 0 | AB32: =[4]DatiContoEconomico!AB32 -> 0 | AC32: =[4]DatiContoEconomico!AC32 -> 0 | AD32: =[4]DatiContoEconomico!AD32 -> 0 | AE32: =[4]DatiContoEconomico!AE32 -> 0 | AF32: =[4]DatiContoEconomico!AF32 -> 0 | AG32: =[4]DatiContoEconomico!AG32 -> 0 | AH32: =[4]DatiContoEconomico!AH32 -> 0 | AI32: =[4]DatiContoEconomico!AI32 -> 0 | AJ32: 0 | AL32: PR vendite interne | AM32: A5 | AN32: di cui per vendite di servizi a Gestori che operano all'interno del ciclo RU del =DichiarazioneAttivita!$B$10 (poste da consolidare con i costi) | BB32: 0
C33: A5 | D33: di cui altri ricavi di A5 | E33: =[5]DatiContoEconomico!W33 -> 2059.591798 | F33: =[5]DatiContoEconomico!X33 -> 5700.270606 | G33: =[5]DatiContoEconomico!Y33 -> 203.1377594 | H33: =[5]DatiContoEconomico!Z33 -> 41986.56094 | I33: =[5]DatiContoEconomico!AA33 -> 13999.91116 | J33: =[5]DatiContoEconomico!AB33 -> 6221.654575 | K33: =[5]DatiContoEconomico!AC33 -> 11795.07677 | L33: =[5]DatiContoEconomico!AD33 -> 0 | M33: =[5]DatiContoEconomico!AE33 -> 6947.733889 | N33: =[5]DatiContoEconomico!AF33 -> 298.2776028 | O33: =[5]DatiContoEconomico!AG33 -> 92.87476088 | P33: =[5]DatiContoEconomico!AH33 -> 0 | Q33: =[5]DatiContoEconomico!AI33 -> 0 | R33: 89305.08986 | U33: A5 | V33: di cui altri ricavi di A5 | W33: =[4]DatiContoEconomico!W33 -> 0 | X33: =[4]DatiContoEconomico!X33 -> 0 | Y33: =[4]DatiContoEconomico!Y33 -> 0 | Z33: =[4]DatiContoEconomico!Z33 -> 0 | AA33: =[4]DatiContoEconomico!AA33 -> 0 | AB33: =[4]DatiContoEconomico!AB33 -> 0 | AC33: =[4]DatiContoEconomico!AC33 -> 0 | AD33: =[4]DatiContoEconomico!AD33 -> 0 | AE33: =[4]DatiContoEconomico!AE33 -> 0 | AF33: =[4]DatiContoEconomico!AF33 -> 0 | AG33: =[4]DatiContoEconomico!AG33 -> 0 | AH33: =[4]DatiContoEconomico!AH33 -> 0 | AI33: =[4]DatiContoEconomico!AI33 -> 0 | AJ33: 0 | AM33: A5 | AN33: di cui altri ricavi di A5 | BB33: 0
B35: Art. 6.4 | C35: Macroclasse | D35: COSTI DELLA PRODUZIONE (Euro) | E35: =E36+E40+E44+E47+E50+E55+E56+E59+E66 -> 215887.2408 | F35: 598019.7682 | G35: 21292.98165 | H35: 4403483.553 | I35: 1467476.319 | J35: 672328.7057 | K35: 1284176.673 | L35: 0 | M35: 728264.2609 | N35: 31265.57831 | O35: 9797.674873 | P35: 346600.5333 | Q35: 0 | R35: =SUM(E35:Q35) -> 9778593.288 | T35: Art. 6.4 | U35: Macroclasse | V35: COSTI DELLA PRODUZIONE (Euro) | W35: =W36+W40+W44+W47+W50+W55+W56+W59+W66 -> 0 | X35: 0 | Y35: 0 | Z35: 0 | AA35: 0 | AB35: 0 | AC35: 0 | AD35: 0 | AE35: 0 | AF35: 15605.53 | AG35: 0 | AH35: 0 | AI35: 0 | AJ35: =SUM(W35:AI35) -> 15605.53 | AL35: Art. 6.4 | AM35: Macroclasse | AN35: COSTI DELLA PRODUZIONE (Euro) | AO35: =AO36+AO40+AO44+AO47+AO50+AO55+AO56+AO59+AO66 -> 0 | AP35: 0 | AQ35: 0 | AR35: 0 | AS35: 0 | AT35: 0 | AU35: 0 | AV35: 0 | AW35: 0 | AX35: 0 | AY35: 0 | AZ35: 0 | BA35: 0 | BB35: =SUM(AO35:BA35) -> 0
B36: CCN | C36: B6 | D36: Per materie prime, sussidiarie, di consumo e merci | E36: =SUM(E37:E39) -> 21279.31177 | F36: =SUM(F37:F39) -> 72069.62547 | G36: 0 | H36: 570533.863 | I36: 0 | J36: 0 | K36: 25060.08052 | L36: 0 | M36: 0 | N36: 0 | O36: 440.4086242 | P36: 19479.45908 | Q36: 0 | R36: 708862.7484 | T36: CCN | U36: B6 | V36: Per materie prime, sussidiarie, di consumo e merci | W36: =SUM(W37:W39) -> 0 | X36: =SUM(X37:X39) -> 0 | Y36: 0 | Z36: 0 | AA36: 0 | AB36: 0 | AC36: 0 | AD36: 0 | AE36: 0 | AF36: 0 | AG36: 0 | AH36: 0 | AI36: 0 | AJ36: 0 | AL36: CCN | AM36: B6 | AN36: Per materie prime, sussidiarie, di consumo e merci | AO36: =SUM(AO37:AO39) -> 0 | AP36: =SUM(AP37:AP39) -> 0 | AQ36: 0 | AR36: 0 | AS36: 0 | AT36: 0 | AU36: 0 | AV36: 0 | AW36: 0 | AX36: 0 | AY36: 0 | AZ36: 0 | BA36: 0 | BB36: 0
C37: B6 | D37: di cui fornitura di energia elettrica | E37: =[5]DatiContoEconomico!W37 -> 0 | F37: =[5]DatiContoEconomico!X37 -> 0 | G37: =[5]DatiContoEconomico!Y37 -> 0 | H37: =[5]DatiContoEconomico!Z37 -> 0 | I37: =[5]DatiContoEconomico!AA37 -> 0 | J37: =[5]DatiContoEconomico!AB37 -> 0 | K37: =[5]DatiContoEconomico!AC37 -> 0 | L37: =[5]DatiContoEconomico!AD37 -> 0 | M37: =[5]DatiContoEconomico!AE37 -> 0 | N37: =[5]DatiContoEconomico!AF37 -> 0 | O37: =[5]DatiContoEconomico!AG37 -> 0 | P37: =[5]DatiContoEconomico!AH37 -> 0 | Q37: =[5]DatiContoEconomico!AI37 -> 0 | R37: 0 | U37: B6 | V37: di cui fornitura di energia elettrica | W37: =[4]DatiContoEconomico!W37 -> 0 | X37: =[4]DatiContoEconomico!X37 -> 0 | Y37: =[4]DatiContoEconomico!Y37 -> 0 | Z37: =[4]DatiContoEconomico!Z37 -> 0 | AA37: =[4]DatiContoEconomico!AA37 -> 0 | AB37: =[4]DatiContoEconomico!AB37 -> 0 | AC37: =[4]DatiContoEconomico!AC37 -> 0 | AD37: =[4]DatiContoEconomico!AD37 -> 0 | AE37: =[4]DatiContoEconomico!AE37 -> 0 | AF37: =[4]DatiContoEconomico!AF37 -> 0 | AG37: =[4]DatiContoEconomico!AG37 -> 0 | AH37: =[4]DatiContoEconomico!AH37 -> 0 | AI37: =[4]DatiContoEconomico!AI37 -> 0 | AJ37: 0 | AM37: B6 | AN37: di cui fornitura di energia elettrica | BB37: 0
C38: B6 | D38: di cui carburanti | E38: =[5]DatiContoEconomico!W38 -> 12876.73369 | F38: =[5]DatiContoEconomico!X38 -> 23426.00175 | G38: =[5]DatiContoEconomico!Y38 -> 0 | H38: =[5]DatiContoEconomico!Z38 -> 256667.5026 | I38: =[5]DatiContoEconomico!AA38 -> 0 | J38: =[5]DatiContoEconomico!AB38 -> 0 | K38: =[5]DatiContoEconomico!AC38 -> 0 | L38: =[5]DatiContoEconomico!AD38 -> 0 | M38: =[5]DatiContoEconomico!AE38 -> 0 | N38: =[5]DatiContoEconomico!AF38 -> 0 | O38: =[5]DatiContoEconomico!AG38 -> 258.0315186 | P38: =[5]DatiContoEconomico!AH38 -> 12956.32335 | Q38: =[5]DatiContoEconomico!AI38 -> 0 | R38: 306184.5929 | U38: B6 | V38: di cui carburanti | W38: =[4]DatiContoEconomico!W38 -> 0 | X38: =[4]DatiContoEconomico!X38 -> 0 | Y38: =[4]DatiContoEconomico!Y38 -> 0 | Z38: =[4]DatiContoEconomico!Z38 -> 0 | AA38: =[4]DatiContoEconomico!AA38 -> 0 | AB38: =[4]DatiContoEconomico!AB38 -> 0 | AC38: =[4]DatiContoEconomico!AC38 -> 0 | AD38: =[4]DatiContoEconomico!AD38 -> 0 | AE38: =[4]DatiContoEconomico!AE38 -> 0 | AF38: =[4]DatiContoEconomico!AF38 -> 0 | AG38: =[4]DatiContoEconomico!AG38 -> 0 | AH38: =[4]DatiContoEconomico!AH38 -> 0 | AI38: =[4]DatiContoEconomico!AI38 -> 0 | AJ38: 0 | AM38: B6 | AN38: di cui carburanti | BB38: 0
C39: B6 | D39: di cui altri costi di B6 | E39: =[5]DatiContoEconomico!W39 -> 8402.57808 | F39: =[5]DatiContoEconomico!X39 -> 48643.62372 | G39: =[5]DatiContoEconomico!Y39 -> 0 | H39: =[5]DatiContoEconomico!Z39 -> 313866.3603 | I39: =[5]DatiContoEconomico!AA39 -> 0 | J39: =[5]DatiContoEconomico!AB39 -> 0 | K39: =[5]DatiContoEconomico!AC39 -> 25060.08052 | L39: =[5]DatiContoEconomico!AD39 -> 0 | M39: =[5]DatiContoEconomico!AE39 -> 0 | N39: =[5]DatiContoEconomico!AF39 -> 0 | O39: =[5]DatiContoEconomico!AG39 -> 182.3771057 | P39: =[5]DatiContoEconomico!AH39 -> 6523.135733 | Q39: =[5]DatiContoEconomico!AI39 -> 0 | R39: 402678.1555 | U39: B6 | V39: di cui altri costi di B6 | W39: =[4]DatiContoEconomico!W39 -> 0 | X39: =[4]DatiContoEconomico!X39 -> 0 | Y39: =[4]DatiContoEconomico!Y39 -> 0 | Z39: =[4]DatiContoEconomico!Z39 -> 0 | AA39: =[4]DatiContoEconomico!AA39 -> 0 | AB39: =[4]DatiContoEconomico!AB39 -> 0 | AC39: =[4]DatiContoEconomico!AC39 -> 0 | AD39: =[4]DatiContoEconomico!AD39 -> 0 | AE39: =[4]DatiContoEconomico!AE39 -> 0 | AF39: =[4]DatiContoEconomico!AF39 -> 0 | AG39: =[4]DatiContoEconomico!AG39 -> 0 | AH39: =[4]DatiContoEconomico!AH39 -> 0 | AI39: =[4]DatiContoEconomico!AI39 -> 0 | AJ39: 0 | AM39: B6 | AN39: di cui altri costi di B6 | BB39: 0
B40: CCN | C40: B7 | D40: Per servizi | E40: =SUM(E41:E43) -> 31296.81606 | F40: =SUM(F41:F43) -> 91794.26976 | G40: =SUM(G41:G43) -> 21292.98165 | H40: 588724.9067 | I40: 1467476.319 | J40: 261143.5979 | K40: 443852.4154 | L40: 0 | M40: 0 | N40: 3024.708818 | O40: 1482.209046 | P40: 179220.3369 | Q40: 0 | R40: 3089308.561 | T40: CCN | U40: B7 | V40: Per servizi | W40: =SUM(W41:W43) -> 0 | X40: =SUM(X41:X43) -> 0 | Y40: =SUM(Y41:Y43) -> 0 | Z40: 0 | AA40: 0 | AB40: 0 | AC40: 0 | AD40: 0 | AE40: 0 | AF40: 0 | AG40: 0 | AH40: 0 | AI40: 0 | AJ40: 0 | AL40: CCN | AM40: B7 | AN40: Per servizi | AO40: =SUM(AO41:AO43) -> 0 | AP40: =SUM(AP41:AP43) -> 0 | AQ40: =SUM(AQ41:AQ43) -> 0 | AR40: 0 | AS40: 0 | AT40: 0 | AU40: 0 | AV40: 0 | AW40: 0 | AX40: 0 | AY40: 0 | AZ40: 0 | BA40: 0 | BB40: 0
B41: Servizi CTS & CTR | C41: B7 | D41: di cui per l’attività di trattamento e smaltimento e l’attività di trattamento e recupero per la parte affidata all'esterno (art. 7.7) | E41: =[5]DatiContoEconomico!W41 -> 0 | F41: =[5]DatiContoEconomico!X41 -> 0 | G41: =[5]DatiContoEconomico!Y41 -> 21292.98165 | H41: =[5]DatiContoEconomico!Z41 -> 0 | I41: =[5]DatiContoEconomico!AA41 -> 1467476.319 | J41: =[5]DatiContoEconomico!AB41 -> 0 | K41: =[5]DatiContoEconomico!AC41 -> 0 | L41: =[5]DatiContoEconomico!AD41 -> 0 | M41: =[5]DatiContoEconomico!AE41 -> 0 | N41: =[5]DatiContoEconomico!AF41 -> 0 | O41: =[5]DatiContoEconomico!AG41 -> 0 | P41: =[5]DatiContoEconomico!AH41 -> 155428.0878 | Q41: =[5]DatiContoEconomico!AI41 -> 0 | R41: 1644197.388 | T41: Servizi CTS & CTR | U41: B7 | V41: di cui per l’attività di trattamento e smaltimento e l’attività di trattamento e recupero per la parte affidata all'esterno (art. 7.7) | W41: =[4]DatiContoEconomico!W41 -> 0 | X41: =[4]DatiContoEconomico!X41 -> 0 | Y41: =[4]DatiContoEconomico!Y41 -> 0 | Z41: =[4]DatiContoEconomico!Z41 -> 0 | AA41: =[4]DatiContoEconomico!AA41 -> 0 | AB41: =[4]DatiContoEconomico!AB41 -> 0 | AC41: =[4]DatiContoEconomico!AC41 -> 0 | AD41: =[4]DatiContoEconomico!AD41 -> 0 | AE41: =[4]DatiContoEconomico!AE41 -> 0 | AF41: =[4]DatiContoEconomico!AF41 -> 0 | AG41: =[4]DatiContoEconomico!AG41 -> 0 | AH41: =[4]DatiContoEconomico!AH41 -> 0 | AI41: =[4]DatiContoEconomico!AI41 -> 0 | AJ41: 0 | AL41: Servizi CTS & CTR | AM41: B7 | AN41: di cui per l’attività di trattamento e smaltimento e l’attività di trattamento e recupero per la parte affidata all'esterno (art. 7.7) | BB41: 0
B42: PR acquisti interni | C42: B7 | D42: di cui per acquisiti da Gestori/Comuni che operano all'interno del ciclo RU del Comune (poste da consolidare con i ricavi) | E42: =[5]DatiContoEconomico!W42 -> 0 | F42: =[5]DatiContoEconomico!X42 -> 0 | G42: =[5]DatiContoEconomico!Y42 -> 0 | H42: =[5]DatiContoEconomico!Z42 -> 0 | I42: =[5]DatiContoEconomico!AA42 -> 0 | J42: =[5]DatiContoEconomico!AB42 -> 0 | K42: =[5]DatiContoEconomico!AC42 -> 0 | L42: =[5]DatiContoEconomico!AD42 -> 0 | M42: =[5]DatiContoEconomico!AE42 -> 0 | N42: =[5]DatiContoEconomico!AF42 -> 0 | O42: =[5]DatiContoEconomico!AG42 -> 0 | P42: =[5]DatiContoEconomico!AH42 -> 0 | Q42: =[5]DatiContoEconomico!AI42 -> 0 | R42: 0 | T42: PR acquisti interni | U42: B7 | V42: di cui per acquisiti da Gestori/Comuni che operano all'interno del ciclo RU del Comune (poste da consolidare con i ricavi) | W42: =[4]DatiContoEconomico!W42 -> 0 | X42: =[4]DatiContoEconomico!X42 -> 0 | Y42: =[4]DatiContoEconomico!Y42 -> 0 | Z42: =[4]DatiContoEconomico!Z42 -> 0 | AA42: =[4]DatiContoEconomico!AA42 -> 0 | AB42: =[4]DatiContoEconomico!AB42 -> 0 | AC42: =[4]DatiContoEconomico!AC42 -> 0 | AD42: =[4]DatiContoEconomico!AD42 -> 0 | AE42: =[4]DatiContoEconomico!AE42 -> 0 | AF42: =[4]DatiContoEconomico!AF42 -> 0 | AG42: =[4]DatiContoEconomico!AG42 -> 0 | AH42: =[4]DatiContoEconomico!AH42 -> 0 | AI42: =[4]DatiContoEconomico!AI42 -> 0 | AJ42: 0 | AL42: PR acquisti interni | AM42: B7 | AN42: di cui per acquisiti da Gestori/Comuni che operano all'interno del ciclo RU del Comune (poste da consolidare con i ricavi) | BB42: 0
C43: B7 | D43: di cui altri costi di B7 | E43: =[5]DatiContoEconomico!W43 -> 31296.81606 | F43: =[5]DatiContoEconomico!X43 -> 91794.26976 | G43: =[5]DatiContoEconomico!Y43 -> 0 | H43: =[5]DatiContoEconomico!Z43 -> 588724.9067 | I43: =[5]DatiContoEconomico!AA43 -> 0 | J43: =[5]DatiContoEconomico!AB43 -> 261143.5979 | K43: =[5]DatiContoEconomico!AC43 -> 443852.4154 | L43: =[5]DatiContoEconomico!AD43 -> 0 | M43: =[5]DatiContoEconomico!AE43 -> 0 | N43: =[5]DatiContoEconomico!AF43 -> 3024.708818 | O43: =[5]DatiContoEconomico!AG43 -> 1482.209046 | P43: =[5]DatiContoEconomico!AH43 -> 23792.24912 | Q43: =[5]DatiContoEconomico!AI43 -> 0 | R43: 1445111.173 | U43: B7 | V43: di cui altri costi di B7 | W43: =[4]DatiContoEconomico!W43 -> 0 | X43: =[4]DatiContoEconomico!X43 -> 0 | Y43: =[4]DatiContoEconomico!Y43 -> 0 | Z43: =[4]DatiContoEconomico!Z43 -> 0 | AA43: =[4]DatiContoEconomico!AA43 -> 0 | AB43: =[4]DatiContoEconomico!AB43 -> 0 | AC43: =[4]DatiContoEconomico!AC43 -> 0 | AD43: =[4]DatiContoEconomico!AD43 -> 0 | AE43: =[4]DatiContoEconomico!AE43 -> 0 | AF43: =[4]DatiContoEconomico!AF43 -> 0 | AG43: =[4]DatiContoEconomico!AG43 -> 0 | AH43: =[4]DatiContoEconomico!AH43 -> 0 | AI43: =[4]DatiContoEconomico!AI43 -> 0 | AJ43: 0 | AM43: B7 | AN43: di cui altri costi di B7 | BB43: 0
C44: B8 | D44: Per godimento beni di terzi | E44: =SUM(E45:E46) -> 11342.17039 | F44: =SUM(F45:F46) -> 62980.04003 | G44: 0 | H44: 502886.3413 | I44: 0 | J44: 23975.57329 | K44: 9356.634853 | L44: 0 | M44: 0 | N44: 0 | O44: 443.0557403 | P44: 15126.158 | Q44: 0 | R44: 626109.9736 | U44: B8 | V44: Per godimento beni di terzi | W44: =SUM(W45:W46) -> 0 | X44: =SUM(X45:X46) -> 0 | Y44: 0 | Z44: 0 | AA44: 0 | AB44: 0 | AC44: 0 | AD44: 0 | AE44: 0 | AF44: 0 | AG44: 0 | AH44: 0 | AI44: 0 | AJ44: 0 | AM44: B8 | AN44: Per godimento beni di terzi | AO44: =SUM(AO45:AO46) -> 0 | AP44: =SUM(AP45:AP46) -> 0 | AQ44: 0 | AR44: 0 | AS44: 0 | AT44: 0 | AU44: 0 | AV44: 0 | AW44: 0 | AX44: 0 | AY44: 0 | AZ44: 0 | BA44: 0 | BB44: 0
C45: B8 | D45: di cui altre spese verso altre imprese del gruppo | E45: =[5]DatiContoEconomico!W45 -> 0 | F45: =[5]DatiContoEconomico!X45 -> 0 | G45: =[5]DatiContoEconomico!Y45 -> 0 | H45: =[5]DatiContoEconomico!Z45 -> 0 | I45: =[5]DatiContoEconomico!AA45 -> 0 | J45: =[5]DatiContoEconomico!AB45 -> 0 | K45: =[5]DatiContoEconomico!AC45 -> 0 | L45: =[5]DatiContoEconomico!AD45 -> 0 | M45: =[5]DatiContoEconomico!AE45 -> 0 | N45: =[5]DatiContoEconomico!AF45 -> 0 | O45: =[5]DatiContoEconomico!AG45 -> 0 | P45: =[5]DatiContoEconomico!AH45 -> 0 | Q45: =[5]DatiContoEconomico!AI45 -> 0 | R45: 0 | U45: B8 | V45: di cui altre spese verso altre imprese del gruppo | W45: =[4]DatiContoEconomico!W45 -> 0 | X45: =[4]DatiContoEconomico!X45 -> 0 | Y45: =[4]DatiContoEconomico!Y45 -> 0 | Z45: =[4]DatiContoEconomico!Z45 -> 0 | AA45: =[4]DatiContoEconomico!AA45 -> 0 | AB45: =[4]DatiContoEconomico!AB45 -> 0 | AC45: =[4]DatiContoEconomico!AC45 -> 0 | AD45: =[4]DatiContoEconomico!AD45 -> 0 | AE45: =[4]DatiContoEconomico!AE45 -> 0 | AF45: =[4]DatiContoEconomico!AF45 -> 0 | AG45: =[4]DatiContoEconomico!AG45 -> 0 | AH45: =[4]DatiContoEconomico!AH45 -> 0 | AI45: =[4]DatiContoEconomico!AI45 -> 0 | AJ45: 0 | AM45: B8 | AN45: di cui altre spese verso altre imprese del gruppo | BB45: 0
C46: B8 | D46: di cui altri costi di B8 | E46: =[5]DatiContoEconomico!W46 -> 11342.17039 | F46: =[5]DatiContoEconomico!X46 -> 62980.04003 | G46: =[5]DatiContoEconomico!Y46 -> 0 | H46: =[5]DatiContoEconomico!Z46 -> 502886.3413 | I46: =[5]DatiContoEconomico!AA46 -> 0 | J46: =[5]DatiContoEconomico!AB46 -> 23975.57329 | K46: =[5]DatiContoEconomico!AC46 -> 9356.634853 | L46: =[5]DatiContoEconomico!AD46 -> 0 | M46: =[5]DatiContoEconomico!AE46 -> 0 | N46: =[5]DatiContoEconomico!AF46 -> 0 | O46: =[5]DatiContoEconomico!AG46 -> 443.0557403 | P46: =[5]DatiContoEconomico!AH46 -> 15126.158 | Q46: =[5]DatiContoEconomico!AI46 -> 0 | R46: 626109.9736 | U46: B8 | V46: di cui altri costi di B8 | W46: =[4]DatiContoEconomico!W46 -> 0 | X46: =[4]DatiContoEconomico!X46 -> 0 | Y46: =[4]DatiContoEconomico!Y46 -> 0 | Z46: =[4]DatiContoEconomico!Z46 -> 0 | AA46: =[4]DatiContoEconomico!AA46 -> 0 | AB46: =[4]DatiContoEconomico!AB46 -> 0 | AC46: =[4]DatiContoEconomico!AC46 -> 0 | AD46: =[4]DatiContoEconomico!AD46 -> 0 | AE46: =[4]DatiContoEconomico!AE46 -> 0 | AF46: =[4]DatiContoEconomico!AF46 -> 0 | AG46: =[4]DatiContoEconomico!AG46 -> 0 | AH46: =[4]DatiContoEconomico!AH46 -> 0 | AI46: =[4]DatiContoEconomico!AI46 -> 0 | AJ46: 0 | AM46: B8 | AN46: di cui altri costi di B8 | BB46: 0
C47: B9 | D47: Per il personale | E47: =SUM(E48:E49) -> 151812.6527 | F47: =SUM(F48:F49) -> 370357.5376 | G47: 0 | H47: 2737361.048 | I47: 0 | J47: 387209.5345 | K47: 471968.778 | L47: 0 | M47: 0 | N47: 0 | O47: 6442.865638 | P47: 103646.3865 | Q47: 0 | R47: 4228798.803 | U47: B9 | V47: Per il personale | W47: =SUM(W48:W49) -> 0 | X47: =SUM(X48:X49) -> 0 | Y47: 0 | Z47: 0 | AA47: 0 | AB47: 0 | AC47: 0 | AD47: 0 | AE47: 0 | AF47: 0 | AG47: 0 | AH47: 0 | AI47: 0 | AJ47: 0 | AM47: B9 | AN47: Per il personale | AO47: =SUM(AO48:AO49) -> 0 | AP47: =SUM(AP48:AP49) -> 0 | AQ47: 0 | AR47: 0 | AS47: 0 | AT47: 0 | AU47: 0 | AV47: 0 | AW47: 0 | AX47: 0 | AY47: 0 | AZ47: 0 | BA47: 0 | BB47: 0
C48: B9 | D48: di cui per trattamento di fine rapporto (inclusa rivalutazione) | E48: =[5]DatiContoEconomico!W48 -> 6740.921806 | F48: =[5]DatiContoEconomico!X48 -> 16444.94814 | G48: =[5]DatiContoEconomico!Y48 -> 0 | H48: =[5]DatiContoEconomico!Z48 -> 121546.7647 | I48: =[5]DatiContoEconomico!AA48 -> 0 | J48: =[5]DatiContoEconomico!AB48 -> 17193.22565 | K48: =[5]DatiContoEconomico!AC48 -> 20956.78173 | L48: =[5]DatiContoEconomico!AD48 -> 0 | M48: =[5]DatiContoEconomico!AE48 -> 0 | N48: =[5]DatiContoEconomico!AF48 -> 0 | O48: =[5]DatiContoEconomico!AG48 -> 286.0819087 | P48: =[5]DatiContoEconomico!AH48 -> 4602.199976 | Q48: =[5]DatiContoEconomico!AI48 -> 0 | R48: 187770.9239 | U48: B9 | V48: di cui per trattamento di fine rapporto (inclusa rivalutazione) | W48: =[4]DatiContoEconomico!W48 -> 0 | X48: =[4]DatiContoEconomico!X48 -> 0 | Y48: =[4]DatiContoEconomico!Y48 -> 0 | Z48: =[4]DatiContoEconomico!Z48 -> 0 | AA48: =[4]DatiContoEconomico!AA48 -> 0 | AB48: =[4]DatiContoEconomico!AB48 -> 0 | AC48: =[4]DatiContoEconomico!AC48 -> 0 | AD48: =[4]DatiContoEconomico!AD48 -> 0 | AE48: =[4]DatiContoEconomico!AE48 -> 0 | AF48: =[4]DatiContoEconomico!AF48 -> 0 | AG48: =[4]DatiContoEconomico!AG48 -> 0 | AH48: =[4]DatiContoEconomico!AH48 -> 0 | AI48: =[4]DatiContoEconomico!AI48 -> 0 | AJ48: 0 | AM48: B9 | AN48: di cui per trattamento di fine rapporto (inclusa rivalutazione) | BB48: 0
C49: B9 | D49: di cui altri costi di B9 | E49: =[5]DatiContoEconomico!W49 -> 145071.7309 | F49: =[5]DatiContoEconomico!X49 -> 353912.5895 | G49: =[5]DatiContoEconomico!Y49 -> 0 | H49: =[5]DatiContoEconomico!Z49 -> 2615814.283 | I49: =[5]DatiContoEconomico!AA49 -> 0 | J49: =[5]DatiContoEconomico!AB49 -> 370016.3088 | K49: =[5]DatiContoEconomico!AC49 -> 451011.9962 | L49: =[5]DatiContoEconomico!AD49 -> 0 | M49: =[5]DatiContoEconomico!AE49 -> 0 | N49: =[5]DatiContoEconomico!AF49 -> 0 | O49: =[5]DatiContoEconomico!AG49 -> 6156.783729 | P49: =[5]DatiContoEconomico!AH49 -> 99044.18652 | Q49: =[5]DatiContoEconomico!AI49 -> 0 | R49: 4041027.879 | U49: B9 | V49: di cui altri costi di B9 | W49: =[4]DatiContoEconomico!W49 -> 0 | X49: =[4]DatiContoEconomico!X49 -> 0 | Y49: =[4]DatiContoEconomico!Y49 -> 0 | Z49: =[4]DatiContoEconomico!Z49 -> 0 | AA49: =[4]DatiContoEconomico!AA49 -> 0 | AB49: =[4]DatiContoEconomico!AB49 -> 0 | AC49: =[4]DatiContoEconomico!AC49 -> 0 | AD49: =[4]DatiContoEconomico!AD49 -> 0 | AE49: =[4]DatiContoEconomico!AE49 -> 0 | AF49: =[4]DatiContoEconomico!AF49 -> 0 | AG49: =[4]DatiContoEconomico!AG49 -> 0 | AH49: =[4]DatiContoEconomico!AH49 -> 0 | AI49: =[4]DatiContoEconomico!AI49 -> 0 | AJ49: 0 | AM49: B9 | AN49: di cui altri costi di B9 | BB49: 0
C50: B10.d | D50: Accantonamenti per svalutazione dei crediti iscritti a bilancio | E50: =SUM(E51:E54) -> 0 | F50: =SUM(F51:F54) -> 0 | G50: 0 | H50: 0 | I50: 0 | J50: 0 | K50: 0 | L50: 0 | M50: 717345.9927 | N50: 0 | O50: 596.1343084 | P50: 24420.56353 | Q50: 0 | R50: 742362.6906 | U50: B10.d | V50: Accantonamenti per svalutazione dei crediti iscritti a bilancio | W50: =SUM(W51:W54) -> 0 | X50: =SUM(X51:X54) -> 0 | Y50: 0 | Z50: 0 | AA50: 0 | AB50: 0 | AC50: 0 | AD50: 0 | AE50: 0 | AF50: 0 | AG50: 0 | AH50: 0 | AI50: 0 | AJ50: 0 | AM50: B10.d | AN50: Accantonamenti per svalutazione dei crediti iscritti a bilancio | AO50: =SUM(AO51:AO54) -> 0 | AP50: =SUM(AP51:AP54) -> 0 | AQ50: 0 | AR50: 0 | AS50: 0 | AT50: 0 | AU50: 0 | AV50: 0 | AW50: 0 | AX50: 0 | AY50: 0 | AZ50: 0 | BA50: 0 | BB50: 0
B51: Acc art. 14 | C51: B10.d | D51: di cui valore massimo pari all’80% di quanto previsto dalle norme sul fondo crediti di dubbia esigibilità di cui al punto 3.3 dell’allegato n. 4/2 al Dlgs 118/2011 (TARI tributo) | E51: =[5]DatiContoEconomico!W51 -> 0 | F51: =[5]DatiContoEconomico!X51 -> 0 | G51: =[5]DatiContoEconomico!Y51 -> 0 | H51: =[5]DatiContoEconomico!Z51 -> 0 | I51: =[5]DatiContoEconomico!AA51 -> 0 | J51: =[5]DatiContoEconomico!AB51 -> 0 | K51: =[5]DatiContoEconomico!AC51 -> 0 | L51: =[5]DatiContoEconomico!AD51 -> 0 | M51: =[5]DatiContoEconomico!AE51 -> 0 | N51: =[5]DatiContoEconomico!AF51 -> 0 | O51: =[5]DatiContoEconomico!AG51 -> 0 | P51: =[5]DatiContoEconomico!AH51 -> 0 | Q51: =[5]DatiContoEconomico!AI51 -> 0 | R51: 0 | T51: Acc art. 14 | U51: B10.d | V51: di cui valore massimo pari all’80% di quanto previsto dalle norme sul fondo crediti di dubbia esigibilità di cui al punto 3.3 dell’allegato n. 4/2 al Dlgs 118/2011 (TARI tributo) | W51: =[4]DatiContoEconomico!W51 -> 0 | X51: =[4]DatiContoEconomico!X51 -> 0 | Y51: =[4]DatiContoEconomico!Y51 -> 0 | Z51: =[4]DatiContoEconomico!Z51 -> 0 | AA51: =[4]DatiContoEconomico!AA51 -> 0 | AB51: =[4]DatiContoEconomico!AB51 -> 0 | AC51: =[4]DatiContoEconomico!AC51 -> 0 | AD51: =[4]DatiContoEconomico!AD51 -> 0 | AE51: =[4]DatiContoEconomico!AE51 -> 0 | AF51: =[4]DatiContoEconomico!AF51 -> 0 | AG51: =[4]DatiContoEconomico!AG51 -> 0 | AH51: =[4]DatiContoEconomico!AH51 -> 0 | AI51: =[4]DatiContoEconomico!AI51 -> 0 | AJ51: 0 | AL51: Acc art. 14 | AM51: B10.d | AN51: di cui valore massimo pari all’80% di quanto previsto dalle norme sul fondo crediti di dubbia esigibilità di cui al punto 3.3 dell’allegato n. 4/2 al Dlgs 118/2011 (TARI tributo) | BB51: 0
C52: B10.d | D52: di cui importi eccedenti il valore massimo dell’80% di quanto previsto dalle norme sul fondo crediti di dubbia esigibilità di cui al punto 3.3 dell’allegato n. 4/2 al Dlgs 118/2011 (TARI tributo) | E52: =[5]DatiContoEconomico!W52 -> 0 | F52: =[5]DatiContoEconomico!X52 -> 0 | G52: =[5]DatiContoEconomico!Y52 -> 0 | H52: =[5]DatiContoEconomico!Z52 -> 0 | I52: =[5]DatiContoEconomico!AA52 -> 0 | J52: =[5]DatiContoEconomico!AB52 -> 0 | K52: =[5]DatiContoEconomico!AC52 -> 0 | L52: =[5]DatiContoEconomico!AD52 -> 0 | M52: =[5]DatiContoEconomico!AE52 -> 0 | N52: =[5]DatiContoEconomico!AF52 -> 0 | O52: =[5]DatiContoEconomico!AG52 -> 0 | P52: =[5]DatiContoEconomico!AH52 -> 0 | Q52: =[5]DatiContoEconomico!AI52 -> 0 | R52: 0 | U52: B10.d | V52: di cui importi eccedenti il valore massimo dell’80% di quanto previsto dalle norme sul fondo crediti di dubbia esigibilità di cui al punto 3.3 dell’allegato n. 4/2 al Dlgs 118/2011 (TARI tributo) | W52: =[4]DatiContoEconomico!W52 -> 0 | X52: =[4]DatiContoEconomico!X52 -> 0 | Y52: =[4]DatiContoEconomico!Y52 -> 0 | Z52: =[4]DatiContoEconomico!Z52 -> 0 | AA52: =[4]DatiContoEconomico!AA52 -> 0 | AB52: =[4]DatiContoEconomico!AB52 -> 0 | AC52: =[4]DatiContoEconomico!AC52 -> 0 | AD52: =[4]DatiContoEconomico!AD52 -> 0 | AE52: =[4]DatiContoEconomico!AE52 -> 0 | AF52: =[4]DatiContoEconomico!AF52 -> 0 | AG52: =[4]DatiContoEconomico!AG52 -> 0 | AH52: =[4]DatiContoEconomico!AH52 -> 0 | AI52: =[4]DatiContoEconomico!AI52 -> 0 | AJ52: 0 | AM52: B10.d | AN52: di cui importi eccedenti il valore massimo dell’80% di quanto previsto dalle norme sul fondo crediti di dubbia esigibilità di cui al punto 3.3 dell’allegato n. 4/2 al Dlgs 118/2011 (TARI tributo) | BB52: 0
B53: Acc art. 14 | C53: B10.d | D53: di cui valore massimo previsto dalle norme fiscali (tariffa corrispettiva) | E53: =[5]DatiContoEconomico!W53 -> 0 | F53: =[5]DatiContoEconomico!X53 -> 0 | G53: =[5]DatiContoEconomico!Y53 -> 0 | H53: =[5]DatiContoEconomico!Z53 -> 0 | I53: =[5]DatiContoEconomico!AA53 -> 0 | J53: =[5]DatiContoEconomico!AB53 -> 0 | K53: =[5]DatiContoEconomico!AC53 -> 0 | L53: =[5]DatiContoEconomico!AD53 -> 0 | M53: =[5]DatiContoEconomico!AE53 -> 717345.9927 | N53: =[5]DatiContoEconomico!AF53 -> 0 | O53: =[5]DatiContoEconomico!AG53 -> 596.1343084 | P53: =[5]DatiContoEconomico!AH53 -> 24420.56353 | Q53: =[5]DatiContoEconomico!AI53 -> 0 | R53: 742362.6906 | T53: Acc art. 14 | U53: B10.d | V53: di cui valore massimo previsto dalle norme fiscali (tariffa corrispettiva) | W53: =[4]DatiContoEconomico!W53 -> 0 | X53: =[4]DatiContoEconomico!X53 -> 0 | Y53: =[4]DatiContoEconomico!Y53 -> 0 | Z53: =[4]DatiContoEconomico!Z53 -> 0 | AA53: =[4]DatiContoEconomico!AA53 -> 0 | AB53: =[4]DatiContoEconomico!AB53 -> 0 | AC53: =[4]DatiContoEconomico!AC53 -> 0 | AD53: =[4]DatiContoEconomico!AD53 -> 0 | AE53: =[4]DatiContoEconomico!AE53 -> 0 | AF53: =[4]DatiContoEconomico!AF53 -> 0 | AG53: =[4]DatiContoEconomico!AG53 -> 0 | AH53: =[4]DatiContoEconomico!AH53 -> 0 | AI53: =[4]DatiContoEconomico!AI53 -> 0 | AJ53: 0 | AL53: Acc art. 14 | AM53: B10.d | AN53: di cui valore massimo previsto dalle norme fiscali (tariffa corrispettiva) | BB53: 0
C54: B10.d | D54: di cui altri costi di B10.d | E54: =[5]DatiContoEconomico!W54 -> 0 | F54: =[5]DatiContoEconomico!X54 -> 0 | G54: =[5]DatiContoEconomico!Y54 -> 0 | H54: =[5]DatiContoEconomico!Z54 -> 0 | I54: =[5]DatiContoEconomico!AA54 -> 0 | J54: =[5]DatiContoEconomico!AB54 -> 0 | K54: =[5]DatiContoEconomico!AC54 -> 0 | L54: =[5]DatiContoEconomico!AD54 -> 0 | M54: =[5]DatiContoEconomico!AE54 -> 0 | N54: =[5]DatiContoEconomico!AF54 -> 0 | O54: =[5]DatiContoEconomico!AG54 -> 0 | P54: =[5]DatiContoEconomico!AH54 -> 0 | Q54: =[5]DatiContoEconomico!AI54 -> 0 | R54: 0 | U54: B10.d | V54: di cui altri costi di B10.d | W54: =[4]DatiContoEconomico!W54 -> 0 | X54: =[4]DatiContoEconomico!X54 -> 0 | Y54: =[4]DatiContoEconomico!Y54 -> 0 | Z54: =[4]DatiContoEconomico!Z54 -> 0 | AA54: =[4]DatiContoEconomico!AA54 -> 0 | AB54: =[4]DatiContoEconomico!AB54 -> 0 | AC54: =[4]DatiContoEconomico!AC54 -> 0 | AD54: =[4]DatiContoEconomico!AD54 -> 0 | AE54: =[4]DatiContoEconomico!AE54 -> 0 | AF54: =[4]DatiContoEconomico!AF54 -> 0 | AG54: =[4]DatiContoEconomico!AG54 -> 0 | AH54: =[4]DatiContoEconomico!AH54 -> 0 | AI54: =[4]DatiContoEconomico!AI54 -> 0 | AJ54: 0 | AM54: B10.d | AN54: di cui altri costi di B10.d | BB54: 0
C55: B11 | D55: Variazione delle rimanenze | E55: =[5]DatiContoEconomico!W55 -> -48.79996982 | F55: =[5]DatiContoEconomico!X55 -> -255.5047772 | G55: =[5]DatiContoEconomico!Y55 -> 0 | H55: =[5]DatiContoEconomico!Z55 -> -1241.902653 | I55: =[5]DatiContoEconomico!AA55 -> 0 | J55: =[5]DatiContoEconomico!AB55 -> 0 | K55: =[5]DatiContoEconomico!AC55 -> 0 | L55: =[5]DatiContoEconomico!AD55 -> 0 | M55: =[5]DatiContoEconomico!AE55 -> 0 | N55: =[5]DatiContoEconomico!AF55 -> 0 | O55: =[5]DatiContoEconomico!AG55 -> -1.667366224 | P55: =[5]DatiContoEconomico!AH55 -> -68.94291793 | Q55: =[5]DatiContoEconomico!AI55 -> 0 | R55: -1616.817684 | U55: B11 | V55: Variazione delle rimanenze | W55: =[4]DatiContoEconomico!W55 -> 0 | X55: =[4]DatiContoEconomico!X55 -> 0 | Y55: =[4]DatiContoEconomico!Y55 -> 0 | Z55: =[4]DatiContoEconomico!Z55 -> 0 | AA55: =[4]DatiContoEconomico!AA55 -> 0 | AB55: =[4]DatiContoEconomico!AB55 -> 0 | AC55: =[4]DatiContoEconomico!AC55 -> 0 | AD55: =[4]DatiContoEconomico!AD55 -> 0 | AE55: =[4]DatiContoEconomico!AE55 -> 0 | AF55: =[4]DatiContoEconomico!AF55 -> 0 | AG55: =[4]DatiContoEconomico!AG55 -> 0 | AH55: =[4]DatiContoEconomico!AH55 -> 0 | AI55: =[4]DatiContoEconomico!AI55 -> 0 | AJ55: 0 | AM55: B11 | AN55: Variazione delle rimanenze | BB55: 0
C56: B12 | D56: Accantonamenti per rischi | E56: =SUM(E57:E58) -> 0 | F56: =SUM(F57:F58) -> 0 | G56: 0 | H56: 0 | I56: 0 | J56: 0 | K56: 0 | L56: 0 | M56: 0 | N56: 0 | O56: 0 | P56: 0 | Q56: 0 | R56: 0 | U56: B12 | V56: Accantonamenti per rischi | W56: =SUM(W57:W58) -> 0 | X56: =SUM(X57:X58) -> 0 | Y56: 0 | Z56: 0 | AA56: 0 | AB56: 0 | AC56: 0 | AD56: 0 | AE56: 0 | AF56: 0 | AG56: 0 | AH56: 0 | AI56: 0 | AJ56: 0 | AM56: B12 | AN56: Accantonamenti per rischi | AO56: =SUM(AO57:AO58) -> 0 | AP56: =SUM(AP57:AP58) -> 0 | AQ56: 0 | AR56: 0 | AS56: 0 | AT56: 0 | AU56: 0 | AV56: 0 | AW56: 0 | AX56: 0 | AY56: 0 | AZ56: 0 | BA56: 0 | BB56: 0
B57: Acc art. 14 | C57: B12 | D57: di cui per oneri previsti dalla normativa di settore e/o dai contratti di affidamento | E57: =[5]DatiContoEconomico!W57 -> 0 | F57: =[5]DatiContoEconomico!X57 -> 0 | G57: =[5]DatiContoEconomico!Y57 -> 0 | H57: =[5]DatiContoEconomico!Z57 -> 0 | I57: =[5]DatiContoEconomico!AA57 -> 0 | J57: =[5]DatiContoEconomico!AB57 -> 0 | K57: =[5]DatiContoEconomico!AC57 -> 0 | L57: =[5]DatiContoEconomico!AD57 -> 0 | M57: =[5]DatiContoEconomico!AE57 -> 0 | N57: =[5]DatiContoEconomico!AF57 -> 0 | O57: =[5]DatiContoEconomico!AG57 -> 0 | P57: =[5]DatiContoEconomico!AH57 -> 0 | Q57: =[5]DatiContoEconomico!AI57 -> 0 | R57: 0 | T57: Acc art. 14 | U57: B12 | V57: di cui per oneri previsti dalla normativa di settore e/o dai contratti di affidamento | W57: =[4]DatiContoEconomico!W57 -> 0 | X57: =[4]DatiContoEconomico!X57 -> 0 | Y57: =[4]DatiContoEconomico!Y57 -> 0 | Z57: =[4]DatiContoEconomico!Z57 -> 0 | AA57: =[4]DatiContoEconomico!AA57 -> 0 | AB57: =[4]DatiContoEconomico!AB57 -> 0 | AC57: =[4]DatiContoEconomico!AC57 -> 0 | AD57: =[4]DatiContoEconomico!AD57 -> 0 | AE57: =[4]DatiContoEconomico!AE57 -> 0 | AF57: =[4]DatiContoEconomico!AF57 -> 0 | AG57: =[4]DatiContoEconomico!AG57 -> 0 | AH57: =[4]DatiContoEconomico!AH57 -> 0 | AI57: =[4]DatiContoEconomico!AI57 -> 0 | AJ57: 0 | AL57: Acc art. 14 | AM57: B12 | AN57: di cui per oneri previsti dalla normativa di settore e/o dai contratti di affidamento | BB57: 0
C58: B12 | D58: di cui altri costi di B12 | E58: =[5]DatiContoEconomico!W58 -> 0 | F58: =[5]DatiContoEconomico!X58 -> 0 | G58: =[5]DatiContoEconomico!Y58 -> 0 | H58: =[5]DatiContoEconomico!Z58 -> 0 | I58: =[5]DatiContoEconomico!AA58 -> 0 | J58: =[5]DatiContoEconomico!AB58 -> 0 | K58: =[5]DatiContoEconomico!AC58 -> 0 | L58: =[5]DatiContoEconomico!AD58 -> 0 | M58: =[5]DatiContoEconomico!AE58 -> 0 | N58: =[5]DatiContoEconomico!AF58 -> 0 | O58: =[5]DatiContoEconomico!AG58 -> 0 | P58: =[5]DatiContoEconomico!AH58 -> 0 | Q58: =[5]DatiContoEconomico!AI58 -> 0 | R58: 0 | U58: B12 | V58: di cui altri costi di B12 | W58: =[4]DatiContoEconomico!W58 -> 0 | X58: =[4]DatiContoEconomico!X58 -> 0 | Y58: =[4]DatiContoEconomico!Y58 -> 0 | Z58: =[4]DatiContoEconomico!Z58 -> 0 | AA58: =[4]DatiContoEconomico!AA58 -> 0 | AB58: =[4]DatiContoEconomico!AB58 -> 0 | AC58: =[4]DatiContoEconomico!AC58 -> 0 | AD58: =[4]DatiContoEconomico!AD58 -> 0 | AE58: =[4]DatiContoEconomico!AE58 -> 0 | AF58: =[4]DatiContoEconomico!AF58 -> 0 | AG58: =[4]DatiContoEconomico!AG58 -> 0 | AH58: =[4]DatiContoEconomico!AH58 -> 0 | AI58: =[4]DatiContoEconomico!AI58 -> 0 | AJ58: 0 | AM58: B12 | AN58: di cui altri costi di B12 | BB58: 0
C59: B13 | D59: Altri accantonamenti | E59: =SUM(E60:E65) -> 0 | F59: =SUM(F60:F65) -> 0 | G59: 0 | H59: =SUM(H60:H65) -> 0 | I59: 0 | J59: 0 | K59: 0 | L59: 0 | M59: 10918.26818 | N59: 0 | O59: 7.920736463 | P59: 327.5097432 | Q59: 0 | R59: 11253.69866 | U59: B13 | V59: Altri accantonamenti | W59: =SUM(W60:W65) -> 0 | X59: =SUM(X60:X65) -> 0 | Y59: 0 | Z59: =SUM(Z60:Z65) -> 0 | AA59: =SUM(AA60:AA65) -> 0 | AB59: 0 | AC59: 0 | AD59: 0 | AE59: 0 | AF59: 0 | AG59: 0 | AH59: 0 | AI59: 0 | AJ59: 0 | AM59: B13 | AN59: Altri accantonamenti | AO59: =SUM(AO60:AO65) -> 0 | AP59: =SUM(AP60:AP65) -> 0 | AQ59: 0 | AR59: =SUM(AR60:AR65) -> 0 | AS59: =SUM(AS60:AS65) -> 0 | AT59: 0 | AU59: 0 | AV59: 0 | AW59: 0 | AX59: 0 | AY59: 0 | AZ59: 0 | BA59: 0 | BB59: 0
B60: Acc art. 14 | C60: B13 | D60: di cui costituzione di un fondo per la chiusura a fine vita dell'impianto | E60: =[5]DatiContoEconomico!W60 -> 0 | F60: =[5]DatiContoEconomico!X60 -> 0 | G60: =[5]DatiContoEconomico!Y60 -> 0 | H60: =[5]DatiContoEconomico!Z60 -> 0 | I60: =[5]DatiContoEconomico!AA60 -> 0 | J60: =[5]DatiContoEconomico!AB60 -> 0 | K60: =[5]DatiContoEconomico!AC60 -> 0 | L60: =[5]DatiContoEconomico!AD60 -> 0 | M60: =[5]DatiContoEconomico!AE60 -> 0 | N60: =[5]DatiContoEconomico!AF60 -> 0 | O60: =[5]DatiContoEconomico!AG60 -> 0 | P60: =[5]DatiContoEconomico!AH60 -> 0 | Q60: =[5]DatiContoEconomico!AI60 -> 0 | R60: 0 | T60: Acc art. 14 | U60: B13 | V60: di cui costituzione di un fondo per la chiusura a fine vita dell'impianto | W60: =[4]DatiContoEconomico!W60 -> 0 | X60: =[4]DatiContoEconomico!X60 -> 0 | Y60: =[4]DatiContoEconomico!Y60 -> 0 | Z60: =[4]DatiContoEconomico!Z60 -> 0 | AA60: =[4]DatiContoEconomico!AA60 -> 0 | AB60: =[4]DatiContoEconomico!AB60 -> 0 | AC60: =[4]DatiContoEconomico!AC60 -> 0 | AD60: =[4]DatiContoEconomico!AD60 -> 0 | AE60: =[4]DatiContoEconomico!AE60 -> 0 | AF60: =[4]DatiContoEconomico!AF60 -> 0 | AG60: =[4]DatiContoEconomico!AG60 -> 0 | AH60: =[4]DatiContoEconomico!AH60 -> 0 | AI60: =[4]DatiContoEconomico!AI60 -> 0 | AJ60: 0 | AL60: Acc art. 14 | AM60: B13 | AN60: di cui costituzione di un fondo per la chiusura a fine vita dell'impianto | BB60: 0
B61: Acc art. 14 | C61: B13 | D61: di cui costituzione di un fondo per il ripristino dei siti | E61: =[5]DatiContoEconomico!W61 -> 0 | F61: =[5]DatiContoEconomico!X61 -> 0 | G61: =[5]DatiContoEconomico!Y61 -> 0 | H61: =[5]DatiContoEconomico!Z61 -> 0 | I61: =[5]DatiContoEconomico!AA61 -> 0 | J61: =[5]DatiContoEconomico!AB61 -> 0 | K61: =[5]DatiContoEconomico!AC61 -> 0 | L61: =[5]DatiContoEconomico!AD61 -> 0 | M61: =[5]DatiContoEconomico!AE61 -> 10918.26818 | N61: =[5]DatiContoEconomico!AF61 -> 0 | O61: =[5]DatiContoEconomico!AG61 -> 7.920736463 | P61: =[5]DatiContoEconomico!AH61 -> 327.5097432 | Q61: =[5]DatiContoEconomico!AI61 -> 0 | R61: 11253.69866 | T61: Acc art. 14 | U61: B13 | V61: di cui costituzione di un fondo per il ripristino dei siti | W61: =[4]DatiContoEconomico!W61 -> 0 | X61: =[4]DatiContoEconomico!X61 -> 0 | Y61: =[4]DatiContoEconomico!Y61 -> 0 | Z61: =[4]DatiContoEconomico!Z61 -> 0 | AA61: =[4]DatiContoEconomico!AA61 -> 0 | AB61: =[4]DatiContoEconomico!AB61 -> 0 | AC61: =[4]DatiContoEconomico!AC61 -> 0 | AD61: =[4]DatiContoEconomico!AD61 -> 0 | AE61: =[4]DatiContoEconomico!AE61 -> 0 | AF61: =[4]DatiContoEconomico!AF61 -> 0 | AG61: =[4]DatiContoEconomico!AG61 -> 0 | AH61: =[4]DatiContoEconomico!AH61 -> 0 | AI61: =[4]DatiContoEconomico!AI61 -> 0 | AJ61: 0 | AL61: Acc art. 14 | AM61: B13 | AN61: di cui costituzione di un fondo per il ripristino dei siti | BB61: 0
B62: Acc art. 14 | C62: B13 | D62: di cui costituzione di un fondo per la gestione post operativa della discarica | E62: =[5]DatiContoEconomico!W62 -> 0 | F62: =[5]DatiContoEconomico!X62 -> 0 | G62: =[5]DatiContoEconomico!Y62 -> 0 | H62: =[5]DatiContoEconomico!Z62 -> 0 | I62: =[5]DatiContoEconomico!AA62 -> 0 | J62: =[5]DatiContoEconomico!AB62 -> 0 | K62: =[5]DatiContoEconomico!AC62 -> 0 | L62: =[5]DatiContoEconomico!AD62 -> 0 | M62: =[5]DatiContoEconomico!AE62 -> 0 | N62: =[5]DatiContoEconomico!AF62 -> 0 | O62: =[5]DatiContoEconomico!AG62 -> 0 | P62: =[5]DatiContoEconomico!AH62 -> 0 | Q62: =[5]DatiContoEconomico!AI62 -> 0 | R62: 0 | T62: Acc art. 14 | U62: B13 | V62: di cui costituzione di un fondo per la gestione post operativa della discarica | W62: =[4]DatiContoEconomico!W62 -> 0 | X62: =[4]DatiContoEconomico!X62 -> 0 | Y62: =[4]DatiContoEconomico!Y62 -> 0 | Z62: =[4]DatiContoEconomico!Z62 -> 0 | AA62: =[4]DatiContoEconomico!AA62 -> 0 | AB62: =[4]DatiContoEconomico!AB62 -> 0 | AC62: =[4]DatiContoEconomico!AC62 -> 0 | AD62: =[4]DatiContoEconomico!AD62 -> 0 | AE62: =[4]DatiContoEconomico!AE62 -> 0 | AF62: =[4]DatiContoEconomico!AF62 -> 0 | AG62: =[4]DatiContoEconomico!AG62 -> 0 | AH62: =[4]DatiContoEconomico!AH62 -> 0 | AI62: =[4]DatiContoEconomico!AI62 -> 0 | AJ62: 0 | AL62: Acc art. 14 | AM62: B13 | AN62: di cui costituzione di un fondo per la gestione post operativa della discarica | BB62: 0
B63: Acc art. 14 | C63: B13 | D63: di cui altri accantonamenti non in eccesso rispetto all'applicazione di norme tributarie | E63: =[5]DatiContoEconomico!W63 -> 0 | F63: =[5]DatiContoEconomico!X63 -> 0 | G63: =[5]DatiContoEconomico!Y63 -> 0 | H63: =[5]DatiContoEconomico!Z63 -> 0 | I63: =[5]DatiContoEconomico!AA63 -> 0 | J63: =[5]DatiContoEconomico!AB63 -> 0 | K63: =[5]DatiContoEconomico!AC63 -> 0 | L63: =[5]DatiContoEconomico!AD63 -> 0 | M63: =[5]DatiContoEconomico!AE63 -> 0 | N63: =[5]DatiContoEconomico!AF63 -> 0 | O63: =[5]DatiContoEconomico!AG63 -> 0 | P63: =[5]DatiContoEconomico!AH63 -> 0 | Q63: =[5]DatiContoEconomico!AI63 -> 0 | R63: 0 | T63: Acc art. 14 | U63: B13 | V63: di cui altri accantonamenti non in eccesso rispetto all'applicazione di norme tributarie | W63: =[4]DatiContoEconomico!W63 -> 0 | X63: =[4]DatiContoEconomico!X63 -> 0 | Y63: =[4]DatiContoEconomico!Y63 -> 0 | Z63: =[4]DatiContoEconomico!Z63 -> 0 | AA63: =[4]DatiContoEconomico!AA63 -> 0 | AB63: =[4]DatiContoEconomico!AB63 -> 0 | AC63: =[4]DatiContoEconomico!AC63 -> 0 | AD63: =[4]DatiContoEconomico!AD63 -> 0 | AE63: =[4]DatiContoEconomico!AE63 -> 0 | AF63: =[4]DatiContoEconomico!AF63 -> 0 | AG63: =[4]DatiContoEconomico!AG63 -> 0 | AH63: =[4]DatiContoEconomico!AH63 -> 0 | AI63: =[4]DatiContoEconomico!AI63 -> 0 | AJ63: 0 | AL63: Acc art. 14 | AM63: B13 | AN63: di cui altri accantonamenti non in eccesso rispetto all'applicazione di norme tributarie | BB63: 0
